Workbook

Sheet Simple - Same Growth
D2: Code | E2: 1 | I2: V = ROE x BV * (1-g/ROE)/(k-g) | M2: P/B = (ROE-g)/(k-g) | O2: k=(ROE-g)/PB + g | Q2: k = ROE/PB-g/PB + g
F4: Applied | G4: Vol | I4: Base | J4: Constant | K4: High ROE | L4: High G | M4: Low G | N4: High ST | O4: High LT G | P4: Sim 1 | Q4: Sim 1 | R4: Sim 1 | S4: Sim 1 | T4: Sim 1 | U4: Sim 1 | V4: Sim 1 | W4: Sim 1 | X4: Sim 1 | Y4: Sim 1 | Z4: Sim 1 | AA4: Sim 1 | AB4: Sim 1 | AC4: Sim 1
D5: Book Value | E5: USD/Share | F5: =INDEX(I5:AC5,$E$2) -> 100 | I5: 100 | J5: 100 | K5: 100 | L5: 100 | M5: 100 | N5: 100 | O5: 100 | P5: 100 | Q5: 100 | R5: 100 | S5: 100 | T5: 100 | U5: 100 | V5: 100 | W5: 100 | X5: 100 | Y5: 100 | Z5: 100 | AA5: 100 | AB5: 100 | AC5: 100 | AD5: =AC5 -> 100
D6: ROE Short-term | E6: % | F6: =INDEX(I6:AC6,$E$2) -> 0.08 | G6: 0.03 | I6: 0.08 | J6: 0.11 | K6: 0.12 | L6: 0.15 | M6: 0.11 | N6: 0.15 | O6: 0.11 | P6: 0.1 | Q6: 0.15 | R6: 0.1093191607 | S6: 0.09921623579 | T6: 0.1129329062 | U6: 0.06630837756 | V6: 0.06636568185 | W6: 0.09017023417 | X6: 0.14180194 | Y6: 0.08206024472 | Z6: 0.07156023511 | AA6: 0.05272731426 | AB6: 0.0618170143 | AC6: 0.12 | AD6: =_xlfn.NORM.INV(RAND(),$I6,$G6) -> 0.07215348318
D7: ROE vs k | E7: % | F7: =INDEX(I7:AC7,$E$2) -> 0.02 | G7: 0.02 | I7: 0.02 | J7: 0.05 | K7: 0.05 | L7: 0.05 | M7: 0.05 | N7: 0.05 | O7: 0.05 | P7: -0.01066063777 | Q7: 0.01105045059 | R7: 0.01940074478 | S7: 0.04343949355 | T7: 0.01062672213 | U7: 0.03086547148 | V7: 0.03247678077 | W7: 0.03936588201 | X7: 0.03289536935 | Y7: 0.004766428775 | Z7: 0.02620934328 | AA7: 0.01865440025 | AB7: 0.01566876545 | AC7: 0.0449528048 | AD7: =_xlfn.NORM.INV(RAND(),$I7,$G7) -> 0.02674059654
D8: k | E8: % | F8: =INDEX(I8:AC8,$E$2) -> 0.06 | I8: 0.06 | J8: 0.06 | K8: 0.06 | L8: 0.06 | M8: 0.06 | N8: 0.06 | O8: 0.06 | P8: 0.06 | Q8: 0.06 | R8: 0.06 | S8: 0.06 | T8: 0.06 | U8: 0.06 | V8: 0.06 | W8: 0.06 | X8: 0.06 | Y8: 0.06 | Z8: 0.06 | AA8: 0.06 | AB8: 0.06 | AC8: 0.06 | AD8: =AC8 -> 0.06
D9: Short-term g | E9: % | F9: =INDEX(I9:AC9,$E$2) -> 0.03 | G9: 0.02 | I9: 0.03 | J9: 0.03 | K9: 0.03 | L9: 0.03 | M9: 0.03 | N9: 0.03 | O9: 0.03 | P9: 0.03 | Q9: 0.03 | R9: 0.03 | S9: 0.03 | T9: 0.03 | U9: 0.03 | V9: 0.03 | W9: 0.03 | X9: 0.03 | Y9: 0.03 | Z9: 0.03 | AA9: 0.03 | AB9: 0.03 | AC9: 0.03 | AD9: 0.03
D10: Long-term g | E10: % | F10: =INDEX(I10:AC10,$E$2) -> 0.03 | G10: 0.01 | I10: =I9 -> 0.03 | J10: =J9 -> 0.03 | K10: 0.03 | L10: 0.03 | M10: 0.03 | N10: 0.03 | O10: 0.03 | P10: 0.03 | Q10: 0.03 | R10: 0.03 | S10: 0.03 | T10: 0.03 | U10: 0.03 | V10: 0.03 | W10: 0.03 | X10: 0.03 | Y10: 0.03 | Z10: 0.03 | AA10: 0.03 | AB10: 0.03 | AC10: 0.03 | AD10: 0.03
D11: Short-term period | E11: years | F11: =INDEX(I11:AC11,$E$2) -> 5 | G11: 2 | I11: 5 | J11: 5 | K11: 5 | L11: 5 | M11: 5 | N11: 5 | O11: 5 | P11: 6 | Q11: 7 | R11: 7 | S11: 7 | T11: 7 | U11: 7 | V11: 4 | W11: 4 | X11: 8 | Y11: 6 | Z11: 4 | AA11: 7 | AB11: 4 | AC11: 5 | AD11: =_xlfn.NORM.INV(RAND(),$I11,$G11) -> 7.228651307
D12: Terminal Period | E12: Year | F12: =INDEX(I12:AC12,E2) -> 15 | I12: 15 | J12: 15 | K12: 15 | L12: 15 | M12: 15 | N12: 15 | O12: 15 | P12: 15 | Q12: 15 | R12: 15 | S12: 15 | T12: 15 | U12: 15 | V12: 15 | W12: 15 | X12: 15 | Y12: 15 | Z12: 15 | AA12: 15 | AB12: 15 | AC12: 15 | AD12: =AC12 -> 15
I14: 1 | J14: 2 | K14: 3 | L14: 4 | M14: 5 | N14: 6 | O14: 7 | P14: 8 | Q14: 9 | R14: 10 | S14: 11 | T14: 12 | U14: 13 | V14: 14 | W14: 15 | X14: 16 | Y14: 17 | Z14: 18 | AA14: 19 | AB14: 20 | AC14: 21
G15: PB Ratio | H15: =F67 -> 1.666666667 | I15: 1.666666667 | J15: 2.666666667 | K15: 3 | L15: 4 | M15: 2.666666667 | N15: 4 | O15: 2.666666667 | P15: 2.333333333 | Q15: 4 | R15: 2.643972025 | S15: 2.30720786 | T15: 2.764430205 | U15: 1.210279252 | V15: 1.212189395 | W15: 2.005674472 | X15: 3.726731334 | Y15: 1.735341491 | Z15: 1.38534117 | AA15: 0.757577142 | AB15: 1.060567143 | AC15: 3
D16: Simple Implied k | I16: =I6/I15-I9/I15+I9 -> 0.06 | J16: =J6/J15-J9/J15+J9 -> 0.06 | K16: 0.06 | L16: 0.06 | M16: 0.06 | N16: 0.06 | O16: 0.06 | P16: 0.06 | Q16: 0.06 | R16: 0.06 | S16: 0.06 | T16: 0.06 | U16: 0.06 | V16: 0.06 | W16: 0.06 | X16: 0.06 | Y16: 0.06 | Z16: 0.06 | AA16: 0.06 | AB16: 0.06 | AC16: 0.06
G18: PB Ratio | I18: =I15 -> 1.666666667 | J18: =J15 -> 2.666666667 | K18: 3 | L18: 4 | M18: 2.666666667 | N18: 4 | O18: 2.666666667 | P18: 2.333333333 | Q18: 4 | R18: 2.643972025 | S18: 2.30720786 | T18: 2.764430205 | U18: 1.210279252 | V18: 1.212189395 | W18: 2.005674472 | X18: 3.726731334 | Y18: 1.735341491 | Z18: 1.38534117 | AA18: 0.757577142 | AB18: 1.060567143 | AC18: 3
H19: ROE | I19: =I6 -> 0.08 | J19: =J6 -> 0.11 | K19: 0.12 | L19: 0.15 | M19: 0.11 | N19: 0.15 | O19: 0.11 | P19: 0.1 | Q19: 0.15 | R19: 0.1093191607 | S19: 0.09921623579 | T19: 0.1129329062 | U19: 0.06630837756 | V19: 0.06636568185 | W19: 0.09017023417 | X19: 0.14180194 | Y19: 0.08206024472 | Z19: 0.07156023511 | AA19: 0.05272731426 | AB19: 0.0618170143 | AC19: 0.12
H20: Growth | I20: =I10 -> 0.03 | J20: =J10 -> 0.03 | K20: 0.03 | L20: 0.03 | M20: 0.03 | N20: 0.03 | O20: 0.03 | P20: 0.03 | Q20: 0.03 | R20: 0.03 | S20: 0.03 | T20: 0.03 | U20: 0.03 | V20: 0.03 | W20: 0.03 | X20: 0.03 | Y20: 0.03 | Z20: 0.03 | AA20: 0.03 | AB20: 0.03 | AC20: 0.03
H21: ROE * G | I21: =I20*I19 -> 0.0024 | J21: =J20*J19 -> 0.0033 | K21: 0.0036 | L21: 0.0045 | M21: 0.0033 | N21: 0.0045 | O21: 0.0033 | P21: 0.003 | Q21: 0.0045 | R21: 0.003279574822 | S21: 0.002976487074 | T21: 0.003387987185 | U21: 0.001989251327 | V21: 0.001990970455 | W21: 0.002705107025 | X21: 0.004254058201 | Y21: 0.002461807341 | Z21: 0.002146807053 | AA21: 0.001581819428 | AB21: 0.001854510429 | AC21: 0.0036
I24: =LINEST(I18:AC18,I19:AC21,TRUE,TRUE) -> 0 | J24: 0 | K24: 33.33333333 | L24: -1 | O24: MB = A + B x ROE + C x G + D x ROE x G
D25: ROE = a + B x MB | E25: a | F25: =INTERCEPT(I6:AC6,I15:AC15) -> 0.03 | I25: 0 | J25: 0 | K25: 4.330201737e-15 | L25: 4.619954402e-16
E26: b | F26: =SLOPE(I6:AC6,I15:AC15) -> 0.03 | I26: 1 | J26: 5.817339599e-16 | O26: 2195 | P26: -143 | Q26: -58 | R26: 3.1131
E27: k | F27: =F25+F26 -> 0.06 | I27: 5.925721423e+31 | J27: 19
E28: R2 | F28: =RSQ(I19:AC19,I18:AC18) -> 1 | O28: ROE | P28: =AVERAGE(I19:AC19) -> 0.1025847307 | Q28: =P28*K24 -> 3.419491023 | R28: =K24 -> 33.33333333 | S28: =P28*I29 -> 3.419491023
I29: =LINEST(I18:AC18,I19:AC19,TRUE,TRUE) -> 33.33333333 | J29: -1 | O29: G | P29: =AVERAGE(I20:AC20) -> 0.03 | Q29: =P29*J24 -> 0 | R29: =J24 -> 0 | S29: =J29 -> -1
E30: =-J29+1 -> 2 | I30: 4.330201737e-15 | J30: 4.619954402e-16 | O30: G x ROE | P30: =AVERAGE(I21:AC21) -> 0.003077541921 | Q30: =P30*I24 -> 0 | R30: =I24 -> 0 | S30: =S28+S29 -> 2.419491023
E31: =E30/I29 -> 0.06 | I31: 1 | J31: 5.817339599e-16 | O31: Constant | Q31: =L24 -> -1
I32: 5.925721423e+31 | J32: 19 | Q32: =SUM(Q28:Q31) -> 2.419491023 | S32: =AVERAGE(I18:AC18) -> 2.419491023
I34: =LINEST(I18:AC18,I19:AC20,TRUE,TRUE) -> 0 | J34: 33.33333333 | K34: -1 | Q34: =I29*P28+J29 -> 2.419491023
I35: 0 | J35: 4.330201737e-15 | K35: 4.619954402e-16
I36: 1 | J36: 5.817339599e-16 | Q36: =I34*P29+J34*P28+K34 -> 2.419491023
I37: 5.925721423e+31 | J37: 19
O38: Estimated Cost of Capiital | R38: =(1-P29*J24-I24*P30-L24) -> 2 | S38: =R38/K24 -> 0.06
L39: Complex Regression
O40: B x ROE + D x ROE x G = (1-C x G) | S40: MB = A + B x ROE + C x G + D x ROE x G
O41: ROE * (B-D x G) = (1-C x G) | S41: MB - A - C x G = B x ROE + D x ROE x G
O42: ROE = (1-C x G)/(B - D x G) | S42: MB - A - C x G = ROE x (B + C x G + D x G)
D43: ROE Table | F43: 1 | G43: =F12 -> 15 | H43: 15 | O43: Adjusted G | Q43: =P30/P28 -> 0.03
D44: ROE | F44: =F6 -> 0.08 | G44: =F44 -> 0.08 | H44: =G44 -> 0.08 | O44: Cost of Capital | Q44: =(1-L24-Q29)/(K24+Q43*I24) -> 0.06
D45: Growth | F45: =F10 -> 0.03 | G45: =F45 -> 0.03 | H45: =F10 -> 0.03
D49: Time Period | G49: 1 | H49: 2 | I49: 3 | J49: 4 | K49: 5 | L49: 6 | M49: 7 | N49: 8 | O49: 9 | P49: 10 | Q49: 11 | R49: 12 | S49: 13 | T49: 14 | U49: 15
D50: Short-term | E50: =F11 -> 5 | G50: =G49<=$E$50 -> TRUE | H50: =H49<=$E$50 -> TRUE | I50: TRUE | J50: TRUE | K50: TRUE | L50: FALSE | M50: FALSE | N50: FALSE | O50: FALSE | P50: FALSE | Q50: FALSE | R50: FALSE | S50: FALSE | T50: FALSE | U50: FALSE
D51: Terminal Period | E51: =F12 -> 15 | G51: =G49=$E$51 -> FALSE | H51: =H49=$E$51 -> FALSE | I51: FALSE | J51: FALSE | K51: FALSE | L51: FALSE | M51: FALSE | N51: FALSE | O51: FALSE | P51: FALSE | Q51: FALSE | R51: FALSE | S51: FALSE | T51: FALSE | U51: TRUE
D53: ROE | G53: =interpolate_look_up(G49,43:43,44:44) -> 0.08 | H53: =interpolate_look_up(H49,43:43,44:44) -> 0.08 | I53: =interpolate_look_up(I49,43:43,44:44) -> 0.08 | J53: =interpolate_look_up(J49,43:43,44:44) -> 0.08 | K53: =interpolate_look_up(K49,43:43,44:44) -> 0.08 | L53: =interpolate_look_up(L49,43:43,44:44) -> 0.08 | M53: =interpolate_look_up(M49,43:43,44:44) -> 0.08 | N53: =interpolate_look_up(N49,43:43,44:44) -> 0.08 | O53: =interpolate_look_up(O49,43:43,44:44) -> 0.08 | P53: =interpolate_look_up(P49,43:43,44:44) -> 0.08 | Q53: =interpolate_look_up(Q49,43:43,44:44) -> 0.08 | R53: =interpolate_look_up(R49,43:43,44:44) -> 0.08 | S53: =interpolate_look_up(S49,43:43,44:44) -> 0.08 | T53: =interpolate_look_up(T49,43:43,44:44) -> 0.08 | U53: =interpolate_look_up(U49,43:43,44:44) -> 0.08
D54: Growth | G54: =interpolate_look_up(G49,43:43,45:45) -> 0.03 | H54: =interpolate_look_up(H49,43:43,45:45) -> 0.03 | I54: =interpolate_look_up(I49,43:43,45:45) -> 0.03 | J54: =interpolate_look_up(J49,43:43,45:45) -> 0.03 | K54: =interpolate_look_up(K49,43:43,45:45) -> 0.03 | L54: =interpolate_look_up(L49,43:43,45:45) -> 0.03 | M54: =interpolate_look_up(M49,43:43,45:45) -> 0.03 | N54: =interpolate_look_up(N49,43:43,45:45) -> 0.03 | O54: =interpolate_look_up(O49,43:43,45:45) -> 0.03 | P54: =interpolate_look_up(P49,43:43,45:45) -> 0.03 | Q54: =interpolate_look_up(Q49,43:43,45:45) -> 0.03 | R54: =interpolate_look_up(R49,43:43,45:45) -> 0.03 | S54: =interpolate_look_up(S49,43:43,45:45) -> 0.03 | T54: =interpolate_look_up(T49,43:43,45:45) -> 0.03 | U54: =interpolate_look_up(U49,43:43,45:45) -> 0.03
D55: Payout Ratio | G55: =(1-G54/G53) -> 0.625 | H55: =(1-H54/H53) -> 0.625 | I55: 0.625 | J55: 0.625 | K55: 0.625 | L55: 0.625 | M55: 0.625 | N55: 0.625 | O55: 0.625 | P55: 0.625 | Q55: 0.625 | R55: 0.625 | S55: 0.625 | T55: 0.625 | U55: 0.625
D57: BV Progression
D58: Opening | G58: =F61 -> 100 | H58: =G61 -> 103 | I58: 106.09 | J58: 109.2727 | K58: 112.550881 | L58: 115.9274074 | M58: 119.4052297 | N58: 122.9873865 | O58: 126.6770081 | P58: 130.4773184 | Q58: 134.3916379 | R58: 138.4233871 | S58: 142.5760887 | T58: 146.8533713 | U58: 151.2589725
D59: Add: Income | G59: =G58*G53 -> 8 | H59: =H58*H53 -> 8.24 | I59: 8.4872 | J59: 8.741816 | K59: 9.00407048 | L59: 9.274192594 | M59: 9.552418372 | N59: 9.838990923 | O59: 10.13416065 | P59: 10.43818547 | Q59: 10.75133103 | R59: 11.07387097 | S59: 11.40608709 | T59: 11.74826971 | U59: 12.1007178
D60: Less: Dividend | G60: =G59*G55 -> 5 | H60: =H59*H55 -> 5.15 | I60: 5.3045 | J60: 5.463635 | K60: 5.62754405 | L60: 5.796370371 | M60: 5.970261483 | N60: 6.149369327 | O60: 6.333850407 | P60: 6.523865919 | Q60: 6.719581897 | R60: 6.921169354 | S60: 7.128804434 | T60: 7.342668567 | U60: 7.562948624
D61: Closing Balance | F61: =F5 -> 100 | G61: =G58+G59-G60 -> 103 | H61: =H58+H59-H60 -> 106.09 | I61: 109.2727 | J61: 112.550881 | K61: 115.9274074 | L61: 119.4052297 | M61: 122.9873865 | N61: 126.6770081 | O61: 130.4773184 | P61: 134.3916379 | Q61: 138.4233871 | R61: 142.5760887 | S61: 146.8533713 | T61: 151.2589725 | U61: 155.7967417
D63: Terminal Value | E63: =(1+F10)*(1-F10/H44)/(F8-H45) -> 21.45833333 | G63: =G59*$E$63*G51 -> 0 | H63: =H59*$E$63*H51 -> 0 | I63: 0 | J63: 0 | K63: 0 | L63: 0 | M63: 0 | N63: 0 | O63: 0 | P63: 0 | Q63: 0 | R63: 0 | S63: 0 | T63: 0 | U63: 259.6612361
D65: Total Cash Flow | G65: =G63+G60 -> 5 | H65: =H63+H60 -> 5.15 | I65: 5.3045 | J65: 5.463635 | K65: 5.62754405 | L65: 5.796370371 | M65: 5.970261483 | N65: 6.149369327 | O65: 6.333850407 | P65: 6.523865919 | Q65: 6.719581897 | R65: 6.921169354 | S65: 7.128804434 | T65: 7.342668567 | U65: 267.2241847
D66: Total Value | E66: =F8 -> 0.06 | F66: =NPV(E66,G65:U65) -> 166.6666667
D67: Price to Book | F67: =F66/F61 -> 1.666666667
D68: P/E Ratio | F68: =F66/G59 -> 20.83333333

Sheet Simple - Different Growth
D2: Code | E2: 5 | I2: V = ROE x BV * (1-g/ROE)/(k-g) | M2: P/B = (ROE-g)/(k-g) | O2: k=(ROE-g)/PB + g | Q2: k = ROE/PB-g/PB + g
F4: Applied | G4: Vol | I4: Base | J4: Constant | K4: High ROE | L4: High G | M4: Low G | N4: High ST | O4: High LT G | P4: Sim 1 | Q4: Sim 1 | R4: Sim 1 | S4: Sim 1 | T4: Sim 1 | U4: Sim 1 | V4: Sim 1 | W4: Sim 1 | X4: Sim 1 | Y4: Sim 1 | Z4: Sim 1 | AA4: Sim 1 | AB4: Sim 1 | AC4: Sim 1
D5: Book Value | E5: USD/Share | F5: =INDEX(I5:AC5,$E$2) -> 100 | I5: 100 | J5: 100 | K5: 100 | L5: 100 | M5: 100 | N5: 100 | O5: 100 | P5: 100 | Q5: 100 | R5: 100 | S5: 100 | T5: 100 | U5: 100 | V5: 100 | W5: 100 | X5: 100 | Y5: 100 | Z5: 100 | AA5: 100 | AB5: 100 | AC5: 100 | AD5: =AC5 -> 100
D6: ROE Short-term | E6: % | F6: =INDEX(I6:AC6,$E$2) -> 0.11 | G6: 0.03 | I6: 0.08 | J6: 0.11 | K6: 0.12 | L6: 0.15 | M6: 0.11 | N6: 0.15 | O6: 0.11 | P6: 0.1 | Q6: 0.15 | R6: 0.1093191607 | S6: 0.09921623579 | T6: 0.1129329062 | U6: 0.06630837756 | V6: 0.06636568185 | W6: 0.09017023417 | X6: 0.14180194 | Y6: 0.08206024472 | Z6: 0.07156023511 | AA6: 0.05272731426 | AB6: 0.0618170143 | AC6: 0.12 | AD6: =_xlfn.NORM.INV(RAND(),$I6,$G6) -> 0.05221647288
D7: ROE vs k | E7: % | F7: =INDEX(I7:AC7,$E$2) -> 0.05 | G7: 0.02 | I7: 0.02 | J7: 0.05 | K7: 0.05 | L7: 0.05 | M7: 0.05 | N7: 0.05 | O7: 0.05 | P7: -0.01066063777 | Q7: 0.01105045059 | R7: 0.01940074478 | S7: 0.04343949355 | T7: 0.01062672213 | U7: 0.03086547148 | V7: 0.03247678077 | W7: 0.03936588201 | X7: 0.03289536935 | Y7: 0.004766428775 | Z7: 0.02620934328 | AA7: 0.01865440025 | AB7: 0.01566876545 | AC7: 0.0449528048 | AD7: =_xlfn.NORM.INV(RAND(),$I7,$G7) -> 0.01081404227
D8: k | E8: % | F8: =INDEX(I8:AC8,$E$2) -> 0.06 | I8: 0.06 | J8: 0.06 | K8: 0.06 | L8: 0.06 | M8: 0.06 | N8: 0.06 | O8: 0.06 | P8: 0.06 | Q8: 0.06 | R8: 0.06 | S8: 0.06 | T8: 0.06 | U8: 0.06 | V8: 0.06 | W8: 0.06 | X8: 0.06 | Y8: 0.06 | Z8: 0.06 | AA8: 0.06 | AB8: 0.06 | AC8: 0.06 | AD8: =AC8 -> 0.06
D9: Short-term g | E9: % | F9: =INDEX(I9:AC9,$E$2) -> 0.01 | G9: 0.02 | I9: 0.02 | J9: 0.04 | K9: 0.03 | L9: 0 | M9: 0.01 | N9: 0.02 | O9: 0.03 | P9: 0.04 | Q9: 0 | R9: 0.01 | S9: 0.02 | T9: 0.03 | U9: 0.04 | V9: 0 | W9: 0.01 | X9: 0.02 | Y9: 0.03 | Z9: 0.04 | AA9: 0.01 | AB9: 0.05 | AC9: 0.03 | AD9: 0.05
D10: Long-term g | E10: % | F10: =INDEX(I10:AC10,$E$2) -> 0.01 | G10: 0.01 | I10: =I9 -> 0.02 | J10: =J9 -> 0.04 | K10: 0.03 | L10: 0 | M10: 0.01 | N10: 0.02 | O10: 0.03 | P10: 0.04 | Q10: 0 | R10: 0.01 | S10: 0.02 | T10: 0.03 | U10: 0.04 | V10: 0 | W10: 0.01 | X10: 0.02 | Y10: 0.03 | Z10: 0.04 | AA10: 0.01 | AB10: 0.05 | AC10: 0.03 | AD10: 0.05
D11: Short-term period | E11: years | F11: =INDEX(I11:AC11,$E$2) -> 5 | G11: 2 | I11: 5 | J11: 5 | K11: 5 | L11: 5 | M11: 5 | N11: 5 | O11: 5 | P11: 6 | Q11: 7 | R11: 7 | S11: 7 | T11: 7 | U11: 7 | V11: 4 | W11: 4 | X11: 8 | Y11: 6 | Z11: 4 | AA11: 7 | AB11: 4 | AC11: 5 | AD11: 3.21989224
D12: Terminal Period | E12: Year | F12: =INDEX(I12:AC12,E2) -> 15 | I12: 15 | J12: 15 | K12: 15 | L12: 15 | M12: 15 | N12: 15 | O12: 15 | P12: 15 | Q12: 15 | R12: 15 | S12: 15 | T12: 15 | U12: 15 | V12: 15 | W12: 15 | X12: 15 | Y12: 15 | Z12: 15 | AA12: 15 | AB12: 15 | AC12: 15 | AD12: =AC12 -> 15
I14: 1 | J14: 2 | K14: 3 | L14: 4 | M14: 5 | N14: 6 | O14: 7 | P14: 8 | Q14: 9 | R14: 10 | S14: 11 | T14: 12 | U14: 13 | V14: 14 | W14: 15 | X14: 16 | Y14: 17 | Z14: 18 | AA14: 19 | AB14: 20 | AC14: 21
G15: PB Ratio | H15: =F69 -> 2 | I15: 1.5 | J15: 3.5 | K15: 3 | L15: 2.5 | M15: 2 | N15: 3.25 | O15: 2.666666667 | P15: 3 | Q15: 2.5 | R15: 1.986383215 | S15: 1.980405895 | T15: 2.764430205 | U15: 1.315418878 | V15: 1.106094697 | W15: 1.603404683 | X15: 3.045048501 | Y15: 1.735341491 | Z15: 1.578011756 | AA15: 0.8545462852 | AB15: 1.18170143 | AC15: 3
D16: Simple Implied k | I16: =I6/I15-I9/I15+I9 -> 0.06 | J16: =J6/J15-J9/J15+J9 -> 0.06 | K16: 0.06 | L16: 0.06 | M16: 0.06 | N16: 0.06 | O16: 0.06 | P16: 0.06 | Q16: 0.06 | R16: 0.06 | S16: 0.06 | T16: 0.06 | U16: 0.06 | V16: 0.06 | W16: 0.06 | X16: 0.06 | Y16: 0.06 | Z16: 0.06 | AA16: 0.06 | AB16: 0.06 | AC16: 0.06
G18: PB Ratio | I18: =I15 -> 1.5 | J18: =J15 -> 3.5 | K18: 3 | L18: 2.5 | M18: 2 | N18: 3.25 | O18: 2.666666667 | P18: 3 | Q18: 2.5 | R18: 1.986383215 | S18: 1.980405895 | T18: 2.764430205 | U18: 1.315418878 | V18: 1.106094697 | W18: 1.603404683 | X18: 3.045048501 | Y18: 1.735341491 | Z18: 1.578011756 | AA18: 0.8545462852 | AB18: 1.18170143 | AC18: 3
H19: ROE | I19: =I6 -> 0.08 | J19: =J6 -> 0.11 | K19: 0.12 | L19: 0.15 | M19: 0.11 | N19: 0.15 | O19: 0.11 | P19: 0.1 | Q19: 0.15 | R19: 0.1093191607 | S19: 0.09921623579 | T19: 0.1129329062 | U19: 0.06630837756 | V19: 0.06636568185 | W19: 0.09017023417 | X19: 0.14180194 | Y19: 0.08206024472 | Z19: 0.07156023511 | AA19: 0.05272731426 | AB19: 0.0618170143 | AC19: 0.12
H20: Growth | I20: =I10 -> 0.02 | J20: =J10 -> 0.04 | K20: 0.03 | L20: 0 | M20: 0.01 | N20: 0.02 | O20: 0.03 | P20: 0.04 | Q20: 0 | R20: 0.01 | S20: 0.02 | T20: 0.03 | U20: 0.04 | V20: 0 | W20: 0.01 | X20: 0.02 | Y20: 0.03 | Z20: 0.04 | AA20: 0.01 | AB20: 0.05 | AC20: 0.03
H21: ROE * G | I21: =I20*I19 -> 0.0016 | J21: =J20*J19 -> 0.0044 | K21: 0.0036 | L21: 0 | M21: 0.0011 | N21: 0.003 | O21: 0.0033 | P21: 0.004 | Q21: 0 | R21: 0.001093191607 | S21: 0.001984324716 | T21: 0.003387987185 | U21: 0.002652335102 | V21: 0 | W21: 0.0009017023417 | X21: 0.002836038801 | Y21: 0.002461807341 | Z21: 0.002862409404 | AA21: 0.0005272731426 | AB21: 0.003090850715 | AC21: 0.0036
I24: =LINEST(I18:AC18,I19:AC21,TRUE,TRUE) -> 565.6486089 | J24: -28.20868899 | K24: 15.88378746 | L24: -0.04073380643 | O24: MB = A + B x ROE + C x G + D x ROE x G
D25: ROE = a + B x MB | E25: a | F25: =INTERCEPT(I6:AC6,I15:AC15) -> 0.03506893902 | I25: 82.04170429 | J25: 8.115195473 | K25: 1.911947922 | L25: 0.2176648353
E26: b | F26: =SLOPE(I6:AC6,I15:AC15) -> 0.03077729528 | H26: R2 | I26: 0.9603670894 | J26: 0.1710575628 | O26: 2195 | P26: -143 | Q26: -58 | R26: 3.1131
E27: k | F27: =F25+F26 -> 0.0658462343 | I27: 137.3121504 | J27: 17
E28: R2 | F28: =RSQ(I19:AC19,I18:AC18) -> 0.6587275717 | O28: ROE | P28: =AVERAGE(I19:AC19) -> 0.1025847307 | Q28: =P28*K24 -> 1.629434059 | R28: =K24 -> 15.88378746 | S28: =P28*I29 -> 2.195624727
I29: =LINEST(I18:AC18,I19:AC19,TRUE,TRUE) -> 21.40303642 | J29: -0.001936455657 | O29: G | P29: =AVERAGE(I20:AC20) -> 0.02285714286 | Q29: =P29*J24 -> -0.6447700341 | R29: =J24 -> -28.20868899 | S29: =J29 -> -0.001936455657
I30: 3.534241893 | J30: 0.3770733418 | O30: G x ROE | P30: =AVERAGE(I21:AC21) -> 0.002209424779 | Q30: =P30*I24 -> 1.249758053 | R30: =I24 -> 565.6486089 | S30: =S28+S29 -> 2.193688272
I31: 0.6587275717 | J31: 0.47480202 | O31: Constant | Q31: =L24 -> -0.04073380643
I32: 36.67399656 | J32: 19 | Q32: =SUM(Q28:Q31) -> 2.193688272 | S32: =AVERAGE(I18:AC18) -> 2.193688272
I34: =LINEST(I18:AC18,I19:AC20,TRUE,TRUE) -> 24.52791051 | J34: 25.26640999 | K34: -0.9588975473 | Q34: =I29*P28+J29 -> 2.193688272
I35: 5.133596886 | J35: 2.542946962 | K35: 0.3260098599
I36: 0.8495437723 | J36: 0.3238974949 | Q36: =I34*P29+J34*P28+K34 -> 2.193688272
I37: 50.81806227 | J37: 18
O38: Estimated Cost of Capiital | R38: =(1-P29*J24-I24*P30-L24) -> 0.4357457879 | S38: =R38/K24 -> 0.02743336807
L39: Complex Regression
O40: B x ROE + D x ROE x G = (1-C x G)
O41: ROE * (B-D x G) = (1-C x G)
O42: ROE = (1-C x G)/(B - D x G)
O43: Adjusted G | Q43: =P30/P28 -> 0.02153755987
O44: Cost of Capital | Q44: =(1-L24-Q29)/(K24+Q43*I24) -> 0.06005398419
B46: Value Simulaion
D47: ROE Table | F47: 1 | G47: =F12 -> 15 | H47: 15
D48: ROE | F48: =F6 -> 0.11 | G48: =F48 -> 0.11 | H48: =G48 -> 0.11
D49: Growth | F49: =F10 -> 0.01 | G49: =F49 -> 0.01 | H49: =F10 -> 0.01
D51: Time Period | G51: 1 | H51: 2 | I51: 3 | J51: 4 | K51: 5 | L51: 6 | M51: 7 | N51: 8 | O51: 9 | P51: 10 | Q51: 11 | R51: 12 | S51: 13 | T51: 14 | U51: 15
D52: Short-term | E52: =F11 -> 5 | G52: =G51<=$E$52 -> TRUE | H52: =H51<=$E$52 -> TRUE | I52: TRUE | J52: TRUE | K52: TRUE | L52: FALSE | M52: FALSE | N52: FALSE | O52: FALSE | P52: FALSE | Q52: FALSE | R52: FALSE | S52: FALSE | T52: FALSE | U52: FALSE
D53: Terminal Period | E53: =F12 -> 15 | G53: =G51=$E$53 -> FALSE | H53: =H51=$E$53 -> FALSE | I53: FALSE | J53: FALSE | K53: FALSE | L53: FALSE | M53: FALSE | N53: FALSE | O53: FALSE | P53: FALSE | Q53: FALSE | R53: FALSE | S53: FALSE | T53: FALSE | U53: TRUE
D55: ROE | G55: =interpolate_look_up(G51,47:47,48:48) -> 0.11 | H55: =interpolate_look_up(H51,47:47,48:48) -> 0.11 | I55: =interpolate_look_up(I51,47:47,48:48) -> 0.11 | J55: =interpolate_look_up(J51,47:47,48:48) -> 0.11 | K55: =interpolate_look_up(K51,47:47,48:48) -> 0.11 | L55: =interpolate_look_up(L51,47:47,48:48) -> 0.11 | M55: =interpolate_look_up(M51,47:47,48:48) -> 0.11 | N55: =interpolate_look_up(N51,47:47,48:48) -> 0.11 | O55: =interpolate_look_up(O51,47:47,48:48) -> 0.11 | P55: =interpolate_look_up(P51,47:47,48:48) -> 0.11 | Q55: =interpolate_look_up(Q51,47:47,48:48) -> 0.11 | R55: =interpolate_look_up(R51,47:47,48:48) -> 0.11 | S55: =interpolate_look_up(S51,47:47,48:48) -> 0.11 | T55: =interpolate_look_up(T51,47:47,48:48) -> 0.11 | U55: =interpolate_look_up(U51,47:47,48:48) -> 0.11
D56: Growth | G56: =interpolate_look_up(G51,47:47,49:49) -> 0.01 | H56: =interpolate_look_up(H51,47:47,49:49) -> 0.01 | I56: =interpolate_look_up(I51,47:47,49:49) -> 0.01 | J56: =interpolate_look_up(J51,47:47,49:49) -> 0.01 | K56: =interpolate_look_up(K51,47:47,49:49) -> 0.01 | L56: =interpolate_look_up(L51,47:47,49:49) -> 0.01 | M56: =interpolate_look_up(M51,47:47,49:49) -> 0.01 | N56: =interpolate_look_up(N51,47:47,49:49) -> 0.01 | O56: =interpolate_look_up(O51,47:47,49:49) -> 0.01 | P56: =interpolate_look_up(P51,47:47,49:49) -> 0.01 | Q56: =interpolate_look_up(Q51,47:47,49:49) -> 0.01 | R56: =interpolate_look_up(R51,47:47,49:49) -> 0.01 | S56: =interpolate_look_up(S51,47:47,49:49) -> 0.01 | T56: =interpolate_look_up(T51,47:47,49:49) -> 0.01 | U56: =interpolate_look_up(U51,47:47,49:49) -> 0.01
D57: Payout Ratio | G57: =(1-G56/G55) -> 0.9090909091 | H57: =(1-H56/H55) -> 0.9090909091 | I57: 0.9090909091 | J57: 0.9090909091 | K57: 0.9090909091 | L57: 0.9090909091 | M57: 0.9090909091 | N57: 0.9090909091 | O57: 0.9090909091 | P57: 0.9090909091 | Q57: 0.9090909091 | R57: 0.9090909091 | S57: 0.9090909091 | T57: 0.9090909091 | U57: 0.9090909091
D59: BV Progression
D60: Opening | G60: =F63 -> 100 | H60: =G63 -> 101 | I60: 102.01 | J60: 103.0301 | K60: 104.060401 | L60: 105.101005 | M60: 106.1520151 | N60: 107.2135352 | O60: 108.2856706 | P60: 109.3685273 | Q60: 110.4622125 | R60: 111.5668347 | S60: 112.682503 | T60: 113.809328 | U60: 114.9474213
D61: Add: Income | G61: =G60*G55 -> 11 | H61: =H60*H55 -> 11.11 | I61: 11.2211 | J61: 11.333311 | K61: 11.44664411 | L61: 11.56111055 | M61: 11.67672166 | N61: 11.79348887 | O61: 11.91142376 | P61: 12.030538 | Q61: 12.15084338 | R61: 12.27235181 | S61: 12.39507533 | T61: 12.51902608 | U61: 12.64421635
D62: Less: Dividend | G62: =G61*G57 -> 10 | H62: =H61*H57 -> 10.1 | I62: 10.201 | J62: 10.30301 | K62: 10.4060401 | L62: 10.5101005 | M62: 10.61520151 | N62: 10.72135352 | O62: 10.82856706 | P62: 10.93685273 | Q62: 11.04622125 | R62: 11.15668347 | S62: 11.2682503 | T62: 11.3809328 | U62: 11.49474213
D63: Closing Balance | F63: =F5 -> 100 | G63: =G60+G61-G62 -> 101 | H63: =H60+H61-H62 -> 102.01 | I63: 103.0301 | J63: 104.060401 | K63: 105.101005 | L63: 106.1520151 | M63: 107.2135352 | N63: 108.2856706 | O63: 109.3685273 | P63: 110.4622125 | Q63: 111.5668347 | R63: 112.682503 | S63: 113.809328 | T63: 114.9474213 | U63: 116.0968955
D65: Terminal Value | E65: =(1+F10)*(1-F10/H48)/(F8-H49) -> 18.36363636 | G65: =G61*$E$65*G53 -> 0 | H65: =H61*$E$65*H53 -> 0 | I65: 0 | J65: 0 | K65: 0 | L65: 0 | M65: 0 | N65: 0 | O65: 0 | P65: 0 | Q65: 0 | R65: 0 | S65: 0 | T65: 0 | U65: 232.1937911
D67: Total Cash Flow | G67: =G65+G62 -> 10 | H67: =H65+H62 -> 10.1 | I67: 10.201 | J67: 10.30301 | K67: 10.4060401 | L67: 10.5101005 | M67: 10.61520151 | N67: 10.72135352 | O67: 10.82856706 | P67: 10.93685273 | Q67: 11.04622125 | R67: 11.15668347 | S67: 11.2682503 | T67: 11.3809328 | U67: 243.6885332
D68: Total Value | E68: =F8 -> 0.06 | F68: =NPV(E68,G67:U67) -> 200
D69: Price to Book | F69: =F68/F63 -> 2
D70: P/E Ratio | F70: =F68/G61 -> 18.18181818

Sheet Simple - Same ROE
D2: Code | E2: 5 | I2: V = ROE x BV * (1-g/ROE)/(k-g) | M2: P/B = (ROE-g)/(k-g) | O2: k=(ROE-g)/PB + g | Q2: k = ROE/PB-g/PB + g
F4: Applied | G4: Vol | I4: Base | J4: Constant | K4: High ROE | L4: High G | M4: Low G | N4: High ST | O4: High LT G | P4: Sim 1 | Q4: Sim 1 | R4: Sim 1 | S4: Sim 1 | T4: Sim 1 | U4: Sim 1 | V4: Sim 1 | W4: Sim 1 | X4: Sim 1 | Y4: Sim 1 | Z4: Sim 1 | AA4: Sim 1 | AB4: Sim 1 | AC4: Sim 1
D5: Book Value | E5: USD/Share | F5: =INDEX(I5:AC5,$E$2) -> 100 | I5: 100 | J5: 100 | K5: 100 | L5: 100 | M5: 100 | N5: 100 | O5: 100 | P5: 100 | Q5: 100 | R5: 100 | S5: 100 | T5: 100 | U5: 100 | V5: 100 | W5: 100 | X5: 100 | Y5: 100 | Z5: 100 | AA5: 100 | AB5: 100 | AC5: 100 | AD5: =AC5 -> 100
D6: ROE Short-term | E6: % | F6: =INDEX(I6:AC6,$E$2) -> 0.09 | G6: 0.03 | I6: 0.09 | J6: 0.1 | K6: 0.09 | L6: 0.1 | M6: 0.09 | N6: 0.1 | O6: 0.09 | P6: 0.1 | Q6: 0.09 | R6: 0.1 | S6: 0.09 | T6: 0.1 | U6: 0.09 | V6: 0.1 | W6: 0.09 | X6: 0.1 | Y6: 0.09 | Z6: 0.1 | AA6: 0.09 | AB6: 0.1 | AC6: 0.09 | AD6: 0.09
D7: ROE vs k | E7: % | F7: =INDEX(I7:AC7,$E$2) -> 0.05 | G7: 0.02 | I7: 0.02 | J7: 0.05 | K7: 0.05 | L7: 0.05 | M7: 0.05 | N7: 0.05 | O7: 0.05 | P7: -0.01066063777 | Q7: 0.01105045059 | R7: 0.01940074478 | S7: 0.04343949355 | T7: 0.01062672213 | U7: 0.03086547148 | V7: 0.03247678077 | W7: 0.03936588201 | X7: 0.03289536935 | Y7: 0.004766428775 | Z7: 0.02620934328 | AA7: 0.01865440025 | AB7: 0.01566876545 | AC7: 0.0449528048 | AD7: =_xlfn.NORM.INV(RAND(),$I7,$G7) -> 0.02234821701
D8: k | E8: % | F8: =INDEX(I8:AC8,$E$2) -> 0.06 | I8: 0.06 | J8: 0.06 | K8: 0.06 | L8: 0.06 | M8: 0.06 | N8: 0.06 | O8: 0.06 | P8: 0.06 | Q8: 0.06 | R8: 0.06 | S8: 0.06 | T8: 0.06 | U8: 0.06 | V8: 0.06 | W8: 0.06 | X8: 0.06 | Y8: 0.06 | Z8: 0.06 | AA8: 0.06 | AB8: 0.06 | AC8: 0.06 | AD8: =AC8 -> 0.06
D9: Short-term g | E9: % | F9: =INDEX(I9:AC9,$E$2) -> 0.01 | G9: 0.02 | I9: 0.02 | J9: 0.04 | K9: 0.03 | L9: 0 | M9: 0.01 | N9: 0.02 | O9: 0.03 | P9: 0.04 | Q9: 0 | R9: 0.01 | S9: 0.02 | T9: 0.03 | U9: 0.04 | V9: 0 | W9: 0.01 | X9: 0.02 | Y9: 0.03 | Z9: 0.04 | AA9: 0.01 | AB9: 0.05 | AC9: 0.03 | AD9: 0.05
D10: Long-term g | E10: % | F10: =INDEX(I10:AC10,$E$2) -> 0.01 | G10: 0.01 | I10: =I9 -> 0.02 | J10: =J9 -> 0.04 | K10: 0.03 | L10: 0 | M10: 0.01 | N10: 0.02 | O10: 0.03 | P10: 0.04 | Q10: 0 | R10: 0.01 | S10: 0.02 | T10: 0.03 | U10: 0.04 | V10: 0 | W10: 0.01 | X10: 0.02 | Y10: 0.03 | Z10: 0.04 | AA10: 0.01 | AB10: 0.05 | AC10: 0.03 | AD10: 0.05
D11: Short-term period | E11: years | F11: =INDEX(I11:AC11,$E$2) -> 5 | G11: 2 | I11: 5 | J11: 5 | K11: 5 | L11: 5 | M11: 5 | N11: 5 | O11: 5 | P11: 6 | Q11: 7 | R11: 7 | S11: 7 | T11: 7 | U11: 7 | V11: 4 | W11: 4 | X11: 8 | Y11: 6 | Z11: 4 | AA11: 7 | AB11: 4 | AC11: 5 | AD11: =_xlfn.NORM.INV(RAND(),$I11,$G11) -> 6.696147655
D12: Terminal Period | E12: Year | F12: =INDEX(I12:AC12,E2) -> 15 | I12: 15 | J12: 15 | K12: 15 | L12: 15 | M12: 15 | N12: 15 | O12: 15 | P12: 15 | Q12: 15 | R12: 15 | S12: 15 | T12: 15 | U12: 15 | V12: 15 | W12: 15 | X12: 15 | Y12: 15 | Z12: 15 | AA12: 15 | AB12: 15 | AC12: 15 | AD12: =AC12 -> 15
I14: 1 | J14: 2 | K14: 3 | L14: 4 | M14: 5 | N14: 6 | O14: 7 | P14: 8 | Q14: 9 | R14: 10 | S14: 11 | T14: 12 | U14: 13 | V14: 14 | W14: 15 | X14: 16 | Y14: 17 | Z14: 18 | AA14: 19 | AB14: 20 | AC14: 21
G15: PB Ratio | H15: =F69 -> 1.6 | I15: 1.75 | J15: 3 | K15: 2 | L15: 1.666666667 | M15: 1.6 | N15: 2 | O15: 2 | P15: 3 | Q15: 1.5 | R15: 1.8 | S15: 1.75 | T15: 2.333333333 | U15: 2.5 | V15: 1.666666667 | W15: 1.6 | X15: 2 | Y15: 2 | Z15: 3 | AA15: 1.6 | AB15: 5 | AC15: 2
D16: Simple Implied k | I16: =I6/I15-I9/I15+I9 -> 0.06 | J16: =J6/J15-J9/J15+J9 -> 0.06 | K16: 0.06 | L16: 0.06 | M16: 0.06 | N16: 0.06 | O16: 0.06 | P16: 0.06 | Q16: 0.06 | R16: 0.06 | S16: 0.06 | T16: 0.06 | U16: 0.06 | V16: 0.06 | W16: 0.06 | X16: 0.06 | Y16: 0.06 | Z16: 0.06 | AA16: 0.06 | AB16: 0.06 | AC16: 0.06
G18: PB Ratio | I18: =I15 -> 1.75 | J18: =J15 -> 3 | K18: 2 | L18: 1.666666667 | M18: 1.6 | N18: 2 | O18: 2 | P18: 3 | Q18: 1.5 | R18: 1.8 | S18: 1.75 | T18: 2.333333333 | U18: 2.5 | V18: 1.666666667 | W18: 1.6 | X18: 2 | Y18: 2 | Z18: 3 | AA18: 1.6 | AB18: 5 | AC18: 2
H19: ROE | I19: =I6 -> 0.09 | J19: =J6 -> 0.1 | K19: 0.09 | L19: 0.1 | M19: 0.09 | N19: 0.1 | O19: 0.09 | P19: 0.1 | Q19: 0.09 | R19: 0.1 | S19: 0.09 | T19: 0.1 | U19: 0.09 | V19: 0.1 | W19: 0.09 | X19: 0.1 | Y19: 0.09 | Z19: 0.1 | AA19: 0.09 | AB19: 0.1 | AC19: 0.09
H20: Growth | I20: =I10 -> 0.02 | J20: =J10 -> 0.04 | K20: 0.03 | L20: 0 | M20: 0.01 | N20: 0.02 | O20: 0.03 | P20: 0.04 | Q20: 0 | R20: 0.01 | S20: 0.02 | T20: 0.03 | U20: 0.04 | V20: 0 | W20: 0.01 | X20: 0.02 | Y20: 0.03 | Z20: 0.04 | AA20: 0.01 | AB20: 0.05 | AC20: 0.03
H21: ROE * G | I21: =I20*I19 -> 0.0018 | J21: =J20*J19 -> 0.004 | K21: 0.0027 | L21: 0 | M21: 0.0009 | N21: 0.002 | O21: 0.0027 | P21: 0.004 | Q21: 0 | R21: 0.001 | S21: 0.0018 | T21: 0.003 | U21: 0.0036 | V21: 0 | W21: 0.0009 | X21: 0.002 | Y21: 0.0027 | Z21: 0.004 | AA21: 0.0009 | AB21: 0.005 | AC21: 0.0027
I24: =LINEST(I18:AC18,I19:AC21,TRUE,TRUE) -> 2709.064327 | J24: -221.3157895 | K24: -6.80994152 | L24: 1.987894737 | O24: MB = A + B x ROE + C x G + D x ROE x G
D25: ROE = a + B x MB | E25: a | F25: =INTERCEPT(I6:AC6,I15:AC15) -> 0.08850945256 | I25: 1216.749088 | J25: 117.6378954 | K25: 31.92814165 | L25: 3.052032617
E26: b | F26: =SLOPE(I6:AC6,I15:AC15) -> 0.002868932912 | H26: R2 | I26: 0.8075739346 | J26: 0.3806788034 | O26: 2195 | P26: -143 | Q26: -58 | R26: 3.1131
E27: k | F27: =F25+F26 -> 0.09137838547 | I27: 23.78187324 | J27: 17
E28: R2 | F28: =RSQ(I19:AC19,I18:AC18) -> 0.2011730533 | O28: ROE | P28: =AVERAGE(I19:AC19) -> 0.09476190476 | Q28: =P28*K24 -> -0.6453230298 | R28: =K24 -> -6.80994152 | S28: =P28*I29 -> 6.644819625
I29: =LINEST(I18:AC18,I19:AC19,TRUE,TRUE) -> 70.12121212 | J29: -4.465454545 | O29: G | P29: =AVERAGE(I20:AC20) -> 0.02285714286 | Q29: =P29*J24 -> -5.058646617 | R29: =J24 -> -221.3157895 | S29: =J29 -> -4.465454545
I30: 32.05634945 | J30: 3.041936758 | O30: G x ROE | P30: =AVERAGE(I21:AC21) -> 0.002176190476 | Q30: =P30*I24 -> 5.895439989 | R30: =I24 -> 2709.064327 | S30: =S28+S29 -> 2.179365079
I31: 0.2011730533 | J31: 0.7336699967 | O31: Constant | Q31: =L24 -> 1.987894737
I32: 4.784876158 | J32: 19 | Q32: =SUM(Q28:Q31) -> 2.179365079 | S32: =AVERAGE(I18:AC18) -> 2.179365079
I34: =LINEST(I18:AC18,I19:AC20,TRUE,TRUE) -> 40.28621291 | J34: 53.64048866 | K34: -3.824537522 | Q34: =I29*P28+J29 -> 2.179365079
I35: 6.38146794 | J35: 18.55520357 | K35: 1.7462065
I36: 0.7514624764 | J36: 0.4204466893 | Q36: =I34*P29+J34*P28+K34 -> 2.179365079
I37: 27.21183583 | J37: 18
O38: Estimated Cost of Capiital | R38: =(1-P29*J24-I24*P30-L24) -> -1.824688109 | S38: =R38/K24 -> 0.2679447545
L39: Complex Regression
O40: B x ROE + D x ROE x G = (1-C x G)
O41: ROE * (B-D x G) = (1-C x G)
O42: ROE = (1-C x G)/(B - D x G)
O43: Adjusted G | Q43: =P30/P28 -> 0.02296482412
O44: Cost of Capital | Q44: =(1-L24-Q29)/(K24+Q43*I24) -> 0.07347497302
B46: Value Simulaion
D47: ROE Table | F47: 1 | G47: =F12 -> 15 | H47: 15
D48: ROE | F48: =F6 -> 0.09 | G48: =F48 -> 0.09 | H48: =G48 -> 0.09
D49: Growth | F49: =F10 -> 0.01 | G49: =F49 -> 0.01 | H49: =F10 -> 0.01
D51: Time Period | G51: 1 | H51: 2 | I51: 3 | J51: 4 | K51: 5 | L51: 6 | M51: 7 | N51: 8 | O51: 9 | P51: 10 | Q51: 11 | R51: 12 | S51: 13 | T51: 14 | U51: 15
D52: Short-term | E52: =F11 -> 5 | G52: =G51<=$E$52 -> TRUE | H52: =H51<=$E$52 -> TRUE | I52: TRUE | J52: TRUE | K52: TRUE | L52: FALSE | M52: FALSE | N52: FALSE | O52: FALSE | P52: FALSE | Q52: FALSE | R52: FALSE | S52: FALSE | T52: FALSE | U52: FALSE
D53: Terminal Period | E53: =F12 -> 15 | G53: =G51=$E$53 -> FALSE | H53: =H51=$E$53 -> FALSE | I53: FALSE | J53: FALSE | K53: FALSE | L53: FALSE | M53: FALSE | N53: FALSE | O53: FALSE | P53: FALSE | Q53: FALSE | R53: FALSE | S53: FALSE | T53: FALSE | U53: TRUE
D55: ROE | G55: =interpolate_look_up(G51,47:47,48:48) -> 0.09 | H55: =interpolate_look_up(H51,47:47,48:48) -> 0.09 | I55: =interpolate_look_up(I51,47:47,48:48) -> 0.09 | J55: =interpolate_look_up(J51,47:47,48:48) -> 0.09 | K55: =interpolate_look_up(K51,47:47,48:48) -> 0.09 | L55: =interpolate_look_up(L51,47:47,48:48) -> 0.09 | M55: =interpolate_look_up(M51,47:47,48:48) -> 0.09 | N55: =interpolate_look_up(N51,47:47,48:48) -> 0.09 | O55: =interpolate_look_up(O51,47:47,48:48) -> 0.09 | P55: =interpolate_look_up(P51,47:47,48:48) -> 0.09 | Q55: =interpolate_look_up(Q51,47:47,48:48) -> 0.09 | R55: =interpolate_look_up(R51,47:47,48:48) -> 0.09 | S55: =interpolate_look_up(S51,47:47,48:48) -> 0.09 | T55: =interpolate_look_up(T51,47:47,48:48) -> 0.09 | U55: =interpolate_look_up(U51,47:47,48:48) -> 0.09
D56: Growth | G56: =interpolate_look_up(G51,47:47,49:49) -> 0.01 | H56: =interpolate_look_up(H51,47:47,49:49) -> 0.01 | I56: =interpolate_look_up(I51,47:47,49:49) -> 0.01 | J56: =interpolate_look_up(J51,47:47,49:49) -> 0.01 | K56: =interpolate_look_up(K51,47:47,49:49) -> 0.01 | L56: =interpolate_look_up(L51,47:47,49:49) -> 0.01 | M56: =interpolate_look_up(M51,47:47,49:49) -> 0.01 | N56: =interpolate_look_up(N51,47:47,49:49) -> 0.01 | O56: =interpolate_look_up(O51,47:47,49:49) -> 0.01 | P56: =interpolate_look_up(P51,47:47,49:49) -> 0.01 | Q56: =interpolate_look_up(Q51,47:47,49:49) -> 0.01 | R56: =interpolate_look_up(R51,47:47,49:49) -> 0.01 | S56: =interpolate_look_up(S51,47:47,49:49) -> 0.01 | T56: =interpolate_look_up(T51,47:47,49:49) -> 0.01 | U56: =interpolate_look_up(U51,47:47,49:49) -> 0.01
D57: Payout Ratio | G57: =(1-G56/G55) -> 0.8888888889 | H57: =(1-H56/H55) -> 0.8888888889 | I57: 0.8888888889 | J57: 0.8888888889 | K57: 0.8888888889 | L57: 0.8888888889 | M57: 0.8888888889 | N57: 0.8888888889 | O57: 0.8888888889 | P57: 0.8888888889 | Q57: 0.8888888889 | R57: 0.8888888889 | S57: 0.8888888889 | T57: 0.8888888889 | U57: 0.8888888889
D59: BV Progression
D60: Opening | G60: =F63 -> 100 | H60: =G63 -> 101 | I60: 102.01 | J60: 103.0301 | K60: 104.060401 | L60: 105.101005 | M60: 106.1520151 | N60: 107.2135352 | O60: 108.2856706 | P60: 109.3685273 | Q60: 110.4622125 | R60: 111.5668347 | S60: 112.682503 | T60: 113.809328 | U60: 114.9474213
D61: Add: Income | G61: =G60*G55 -> 9 | H61: =H60*H55 -> 9.09 | I61: 9.1809 | J61: 9.272709 | K61: 9.36543609 | L61: 9.459090451 | M61: 9.553681355 | N61: 9.649218169 | O61: 9.745710351 | P61: 9.843167454 | Q61: 9.941599129 | R61: 10.04101512 | S61: 10.14142527 | T61: 10.24283952 | U61: 10.34526792
D62: Less: Dividend | G62: =G61*G57 -> 8 | H62: =H61*H57 -> 8.08 | I62: 8.1608 | J62: 8.242408 | K62: 8.32483208 | L62: 8.408080401 | M62: 8.492161205 | N62: 8.577082817 | O62: 8.662853645 | P62: 8.749482181 | Q62: 8.836977003 | R62: 8.925346773 | S62: 9.014600241 | T62: 9.104746243 | U62: 9.195793706
D63: Closing Balance | F63: =F5 -> 100 | G63: =G60+G61-G62 -> 101 | H63: =H60+H61-H62 -> 102.01 | I63: 103.0301 | J63: 104.060401 | K63: 105.101005 | L63: 106.1520151 | M63: 107.2135352 | N63: 108.2856706 | O63: 109.3685273 | P63: 110.4622125 | Q63: 111.5668347 | R63: 112.682503 | S63: 113.809328 | T63: 114.9474213 | U63: 116.0968955
D65: Terminal Value | E65: =(1+F10)*(1-F10/H48)/(F8-H49) -> 17.95555556 | G65: =G61*$E$65*G53 -> 0 | H65: =H61*$E$65*H53 -> 0 | I65: 0 | J65: 0 | K65: 0 | L65: 0 | M65: 0 | N65: 0 | O65: 0 | P65: 0 | Q65: 0 | R65: 0 | S65: 0 | T65: 0 | U65: 185.7550329
D67: Total Cash Flow | G67: =G65+G62 -> 8 | H67: =H65+H62 -> 8.08 | I67: 8.1608 | J67: 8.242408 | K67: 8.32483208 | L67: 8.408080401 | M67: 8.492161205 | N67: 8.577082817 | O67: 8.662853645 | P67: 8.749482181 | Q67: 8.836977003 | R67: 8.925346773 | S67: 9.014600241 | T67: 9.104746243 | U67: 194.9508266
D68: Total Value | E68: =F8 -> 0.06 | F68: =NPV(E68,G67:U67) -> 160
D69: Price to Book | F69: =F68/F63 -> 1.6
D70: P/E Ratio | F70: =F68/G61 -> 17.77777778

Sheet Simulation Rand
D2: Code | E2: 100 | I2: V = ROE x BV * (1-g/ROE)/(k-g) | M2: P/B = (ROE-g)/(k-g) | O2: k=(ROE-g)/PB + g | Q2: k = ROE/PB-g/PB + g
B4: Simulated Inputs with Volatility
F6: Applied | G6: Vol | H6: Max | I6: Base | J6: Constant | K6: High ROE | L6: High G | M6: Low G | N6: High ST | O6: High LT G | P6: 1 | Q6: 2 | R6: 3 | S6: 4 | T6: 5 | U6: 6 | V6: 7 | W6: 8 | X6: 9 | Y6: 10 | Z6: 11 | AA6: 12 | AB6: 13 | AC6: 14 | AD6: 15 | AE6: 16 | AF6: 17 | AG6: 18 | AH6: 19 | AI6: 20 | AJ6: 21 | AK6: 22 | AL6: 23 | AM6: 24 | AN6: 25 | AO6: 26 | AP6: 27 | AQ6: 28 | AR6: 29 | AS6: 30 | AT6: 31 | AU6: 32 | AV6: 33 | AW6: 34 | AX6: 35 | AY6: 36 | AZ6: 37 | BA6: 38 | BB6: 39 | BC6: 40 | BD6: 41 | BE6: 42 | BF6: 43 | BG6: 44 | BH6: 45 | BI6: 46 | BJ6: 47 | BK6: 48 | BL6: 49 | BM6: 50 | BN6: 51 | BO6: 52 | BP6: 53 | BQ6: 54 | BR6: 55 | BS6: 56 | BT6: 57 | BU6: 58 | BV6: 59 | BW6: 60 | BX6: 61 | BY6: 62 | BZ6: 63 | CA6: 64 | CB6: 65 | CC6: 66 | CD6: 67 | CE6: 68 | CF6: 69 | CG6: 70 | CH6: 71 | CI6: 72 | CJ6: 73 | CK6: 74 | CL6: 75 | CM6: 76 | CN6: 77 | CO6: 78 | CP6: 79 | CQ6: 80 | CR6: 81 | CS6: 82 | CT6: 83 | CU6: 84 | CV6: 85 | CW6: 86 | CX6: 87 | CY6: 88 | CZ6: 89 | DA6: 90 | DB6: 91 | DC6: 92 | DD6: 93 | DE6: 94 | DF6: 95 | DG6: 96 | DH6: 97 | DI6: 98 | DJ6: 99 | DK6: 100 | DL6: 101 | DM6: 102 | DN6: 103 | DO6: 104 | DP6: 105 | DQ6: 106 | DR6: 107 | DS6: 108 | DT6: 109 | DU6: 110 | DV6: 111 | DW6: 112 | DX6: 113 | DY6: 114 | DZ6: 115 | EA6: 116 | EB6: 117 | EC6: 118 | ED6: 119 | EE6: 120 | EF6: 121 | EG6: 122 | EH6: 123 | EI6: 124 | EJ6: 125 | EK6: 126 | EL6: 127 | EM6: 128 | EN6: 129 | EO6: 130 | EP6: 131 | EQ6: 132 | ER6: 133 | ES6: 134 | ET6: 135 | EU6: 136 | EV6: 137 | EW6: 138 | EX6: 139 | EY6: 140 | EZ6: 141 | FA6: 142 | FB6: 143 | FC6: 144 | FD6: 145 | FE6: 146 | FF6: 147 | FG6: 148 | FH6: 149 | FI6: 150 | FJ6: 151 | FK6: 152 | FL6: 153 | FM6: 154 | FN6: 155 | FO6: 156 | FP6: 157 | FQ6: 158 | FR6: 159 | FS6: 160 | FT6: 161 | FU6: 162 | FV6: 163 | FW6: 164 | FX6: 165 | FY6: 166 | FZ6: 167 | GA6: 168 | GB6: 169 | GC6: 170 | GD6: 171 | GE6: 172 | GF6: 173 | GG6: 174 | GH6: 175 | GI6: 176 | GJ6: 177 | GK6: 178 | GL6: 179 | GM6: 180 | GN6: 181 | GO6: 182 | GP6: 183 | GQ6: 184 | GR6: 185 | GS6: 186 | GT6: 187 | GU6: 188 | GV6: 189 | GW6: 190 | GX6: 191 | GY6: 192 | GZ6: 193 | HA6: 194 | HB6: 195 | HC6: 196 | HD6: 197 | HE6: 198 | HF6: 199 | HG6: 200 | HH6: 201 | HI6: 202 | HJ6: 203 | HK6: 204 | HL6: 205 | HM6: 206 | HN6: 207 | HO6: 208 | HP6: 209 | HQ6: 210 | HR6: 211 | HS6: 212 | HT6: 213 | HU6: 214 | HV6: 215 | HW6: 216 | HX6: 217 | HY6: 218 | HZ6: 219 | IA6: 220 | IB6: 221 | IC6: 222 | ID6: 223 | IE6: 224 | IF6: 225 | IG6: 226 | IH6: 227 | II6: 228 | IJ6: 229 | IK6: 230 | IL6: 231 | IM6: 232 | IN6: 233 | IO6: 234 | IP6: 235 | IQ6: 236 | IR6: 237 | IS6: 238 | IT6: 239 | IU6: 240 | IV6: 241 | IW6: 242 | IX6: 243 | IY6: 244 | IZ6: 245 | JA6: 246 | JB6: 247 | JC6: 248 | JD6: 249 | JE6: 250 | JF6: 251 | JG6: 252 | JH6: 253 | JI6: 254 | JJ6: 255 | JK6: 256 | JL6: 257 | JM6: 258 | JN6: 259 | JO6: 260 | JP6: 261 | JQ6: 262 | JR6: 263 | JS6: 264 | JT6: 265 | JU6: 266 | JV6: 267 | JW6: 268 | JX6: 269 | JY6: 270 | JZ6: 271 | KA6: 272 | KB6: 273 | KC6: 274 | KD6: 275 | KE6: 276 | KF6: 277 | KG6: 278 | KH6: 279 | KI6: 280 | KJ6: 281 | KK6: 282 | KL6: 283 | KM6: 284 | KN6: 285 | KO6: 286 | KP6: 287 | KQ6: 288 | KR6: 289 | KS6: 290 | KT6: 291 | KU6: 292 | KV6: 293 | KW6: 294 | KX6: 295 | KY6: 296 | KZ6: 297 | LA6: 298 | LB6: 299 | LC6: 300 | LD6: 301 | LE6: 302 | LF6: 303 | LG6: 304 | LH6: 305 | LI6: 306 | LJ6: 307 | LK6: 308 | LL6: 309 | LM6: 310 | LN6: 311 | LO6: 312 | LP6: 313 | LQ6: 314 | LR6: 315 | LS6: 316 | LT6: 317 | LU6: 318 | LV6: 319 | LW6: 320 | LX6: 321 | LY6: 322 | LZ6: 323 | MA6: 324 | MB6: 325 | MC6: 326 | MD6: 327 | ME6: 328 | MF6: 329 | MG6: 330 | MH6: 331 | MI6: 332 | MJ6: 333 | MK6: 334 | ML6: 335 | MM6: 336 | MN6: 337 | MO6: 338 | MP6: 339 | MQ6: 340 | MR6: 341 | MS6: 342
D7: Book Value | E7: USD/Share | F7: =INDEX(I7:MS7,$E$2) -> 100 | I7: 100 | J7: 100 | K7: 100 | L7: 100 | M7: 100 | N7: 100 | O7: 100 | P7: 100 | Q7: 100 | R7: 100 | S7: 100 | T7: 100 | U7: 100 | V7: 100 | W7: 100 | X7: 100 | Y7: 100 | Z7: 100 | AA7: 100 | AB7: 100 | AC7: 100 | AD7: =AC7 -> 100 | AE7: =AD7 -> 100 | AF7: 100 | AG7: 100 | AH7: 100 | AI7: 100 | AJ7: 100 | AK7: 100 | AL7: 100 | AM7: 100 | AN7: 100 | AO7: 100 | AP7: 100 | AQ7: 100 | AR7: 100 | AS7: 100 | AT7: 100 | AU7: 100 | AV7: 100 | AW7: 100 | AX7: 100 | AY7: 100 | AZ7: 100 | BA7: 100 | BB7: 100 | BC7: 100 | BD7: 100 | BE7: 100 | BF7: 100 | BG7: 100 | BH7: 100 | BI7: 100 | BJ7: 100 | BK7: 100 | BL7: 100 | BM7: 100 | BN7: 100 | BO7: 100 | BP7: 100 | BQ7: 100 | BR7: 100 | BS7: 100 | BT7: 100 | BU7: 100 | BV7: 100 | BW7: 100 | BX7: 100 | BY7: 100 | BZ7: 100 | CA7: 100 | CB7: 100 | CC7: 100 | CD7: 100 | CE7: 100 | CF7: 100 | CG7: 100 | CH7: 100 | CI7: 100 | CJ7: 100 | CK7: 100 | CL7: 100 | CM7: 100 | CN7: 100 | CO7: 100 | CP7: 100 | CQ7: =CP7 -> 100 | CR7: 100 | CS7: 100 | CT7: 100 | CU7: 100 | CV7: 100 | CW7: 100 | CX7: 100 | CY7: 100 | CZ7: 100 | DA7: 100 | DB7: 100 | DC7: 100 | DD7: 100 | DE7: 100 | DF7: 100 | DG7: 100 | DH7: 100 | DI7: 100 | DJ7: 100 | DK7: 100 | DL7: 100 | DM7: 100 | DN7: 100 | DO7: 100 | DP7: 100 | DQ7: 100 | DR7: 100 | DS7: 100 | DT7: 100 | DU7: 100 | DV7: 100 | DW7: 100 | DX7: 100 | DY7: 100 | DZ7: 100 | EA7: 100 | EB7: 100 | EC7: 100 | ED7: 100 | EE7: 100 | EF7: 100 | EG7: 100 | EH7: 100 | EI7: 100 | EJ7: 100 | EK7: 100 | EL7: 100 | EM7: 100 | EN7: =EM7 -> 100 | EO7: 100 | EP7: 100 | EQ7: 100 | ER7: 100 | ES7: 100 | ET7: 100 | EU7: 100 | EV7: 100 | EW7: 100 | EX7: 100 | EY7: 100 | EZ7: 100 | FA7: 100 | FB7: 100 | FC7: 100 | FD7: 100 | FE7: 100 | FF7: 100 | FG7: 100 | FH7: 100 | FI7: 100 | FJ7: 100 | FK7: 100 | FL7: 100 | FM7: 100 | FN7: 100 | FO7: 100 | FP7: 100 | FQ7: 100 | FR7: 100 | FS7: 100 | FT7: 100 | FU7: 100 | FV7: 100 | FW7: 100 | FX7: 100 | FY7: 100 | FZ7: 100 | GA7: 100 | GB7: 100 | GC7: 100 | GD7: 100 | GE7: 100 | GF7: 100 | GG7: 100 | GH7: 100 | GI7: 100 | GJ7: 100 | GK7: 100 | GL7: 100 | GM7: 100 | GN7: 100 | GO7: 100 | GP7: 100 | GQ7: 100 | GR7: 100 | GS7: 100 | GT7: 100 | GU7: 100 | GV7: 100 | GW7: 100 | GX7: 100 | GY7: 100 | GZ7: =GY7 -> 100 | HA7: 100 | HB7: 100 | HC7: 100 | HD7: 100 | HE7: 100 | HF7: 100 | HG7: 100 | HH7: 100 | HI7: 100 | HJ7: 100 | HK7: 100 | HL7: 100 | HM7: 100 | HN7: 100 | HO7: 100 | HP7: 100 | HQ7: 100 | HR7: 100 | HS7: 100 | HT7: 100 | HU7: 100 | HV7: 100 | HW7: 100 | HX7: 100 | HY7: 100 | HZ7: 100 | IA7: 100 | IB7: 100 | IC7: 100 | ID7: 100 | IE7: 100 | IF7: 100 | IG7: 100 | IH7: 100 | II7: 100 | IJ7: 100 | IK7: 100 | IL7: 100 | IM7: 100 | IN7: 100 | IO7: 100 | IP7: 100 | IQ7: 100 | IR7: 100 | IS7: 100 | IT7: 100 | IU7: 100 | IV7: 100 | IW7: 100 | IX7: 100 | IY7: 100 | IZ7: 100 | JA7: 100 | JB7: 100 | JC7: 100 | JD7: 100 | JE7: 100 | JF7: 100 | JG7: 100 | JH7: 100 | JI7: 100 | JJ7: 100 | JK7: 100 | JL7: =JK7 -> 100 | JM7: 100 | JN7: 100 | JO7: 100 | JP7: 100 | JQ7: 100 | JR7: 100 | JS7: 100 | JT7: 100 | JU7: 100 | JV7: 100 | JW7: 100 | JX7: 100 | JY7: 100 | JZ7: 100 | KA7: 100 | KB7: 100 | KC7: 100 | KD7: 100 | KE7: 100 | KF7: 100 | KG7: 100 | KH7: 100 | KI7: 100 | KJ7: 100 | KK7: 100 | KL7: 100 | KM7: 100 | KN7: 100 | KO7: 100 | KP7: 100 | KQ7: 100 | KR7: 100 | KS7: 100 | KT7: 100 | KU7: 100 | KV7: 100 | KW7: 100 | KX7: 100 | KY7: 100 | KZ7: 100 | LA7: 100 | LB7: 100 | LC7: 100 | LD7: 100 | LE7: 100 | LF7: 100 | LG7: 100 | LH7: 100 | LI7: 100 | LJ7: 100 | LK7: 100 | LL7: 100 | LM7: 100 | LN7: 100 | LO7: 100 | LP7: 100 | LQ7: 100 | LR7: 100 | LS7: 100 | LT7: 100 | LU7: 100 | LV7: 100 | LW7: 100 | LX7: =LW7 -> 100 | LY7: 100 | LZ7: 100 | MA7: 100 | MB7: 100 | MC7: 100 | MD7: 100 | ME7: 100 | MF7: 100 | MG7: 100 | MH7: 100 | MI7: 100 | MJ7: 100 | MK7: 100 | ML7: 100 | MM7: 100 | MN7: 100 | MO7: 100 | MP7: 100 | MQ7: 100 | MR7: 100 | MS7: 100
D8: ROE Short-term | E8: % | F8: =INDEX(I8:MS8,$E$2) -> 0.1147206166 | G8: 0.03 | I8: 0.08 | J8: 0.11 | K8: 0.15 | L8: 0.15 | M8: 0.11 | N8: 0.2 | O8: 0.11 | P8: =_xlfn.NORM.INV(RAND(),$I8,$G8) -> 0.03621883157 | Q8: =_xlfn.NORM.INV(RAND(),$I8,$G8) -> 0.09394915254 | R8: 0.06043769364 | S8: 0.08344564777 | T8: 0.09769057453 | U8: 0.1140896607 | V8: 0.07646683504 | W8: 0.1081838793 | X8: 0.06297414853 | Y8: 0.1027656917 | Z8: 0.04972670777 | AA8: 0.1062144503 | AB8: 0.07816152533 | AC8: 0.07554276218 | AD8: 0.06139341932 | AE8: 0.1156107109 | AF8: 0.1178465846 | AG8: 0.05602489358 | AH8: 0.1135241748 | AI8: 0.05066521611 | AJ8: 0.06575346842 | AK8: 0.02768050878 | AL8: 0.08083178327 | AM8: 0.01224265488 | AN8: 0.06803343106 | AO8: 0.06345133135 | AP8: 0.08400011718 | AQ8: 0.07574772282 | AR8: 0.09097214677 | AS8: 0.08108976715 | AT8: 0.06728586041 | AU8: 0.1148925566 | AV8: 0.08778254384 | AW8: 0.09589291192 | AX8: 0.06516608028 | AY8: 0.1106454538 | AZ8: 0.1045123622 | BA8: 0.1025944032 | BB8: 0.08309729382 | BC8: 0.0831569131 | BD8: 0.1132063132 | BE8: 0.08646079412 | BF8: 0.09722311632 | BG8: 0.08752796231 | BH8: 0.135256825 | BI8: 0.09948171286 | BJ8: 0.1118760531 | BK8: 0.1003762984 | BL8: 0.06133536408 | BM8: 0.08159709623 | BN8: 0.04193551058 | BO8: 0.05597591901 | BP8: 0.08854691637 | BQ8: 0.07159858123 | BR8: 0.0899979073 | BS8: 0.03778848173 | BT8: 0.07907766701 | BU8: 0.1044800594 | BV8: 0.1057873405 | BW8: 0.07670142459 | BX8: 0.107163171 | BY8: 0.1304080753 | BZ8: 0.08199258605 | CA8: 0.05542015633 | CB8: 0.09228291626 | CC8: =_xlfn.NORM.INV(RAND(),$I8,$G8) -> 0.08382787513 | CD8: 0.1296239254 | CE8: 0.1053665184 | CF8: 0.1163157399 | CG8: 0.06727332681 | CH8: 0.07703876627 | CI8: 0.03606951042 | CJ8: 0.05867142182 | CK8: 0.08826930008 | CL8: 0.09338942383 | CM8: 0.0846618601 | CN8: 0.05992483835 | CO8: 0.0962969219 | CP8: 0.06778394363 | CQ8: 0.07188628965 | CR8: 0.09795274882 | CS8: 0.1082305054 | CT8: 0.06900863728 | CU8: 0.07516699402 | CV8: 0.1081149064 | CW8: 0.04959833818 | CX8: 0.1276008024 | CY8: 0.02918361848 | CZ8: 0.1141545303 | DA8: 0.07701745322 | DB8: 0.04534859762 | DC8: 0.00708175903 | DD8: 0.1147206166 | DE8: 0.07474020422 | DF8: 0.1158273921 | DG8: 0.08637327154 | DH8: 0.1033880666 | DI8: 0.1131761581 | DJ8: 0.1279622788 | DK8: 0.1092447938 | DL8: 0.06067213349 | DM8: 0.0689990096 | DN8: 0.1019189355 | DO8: 0.05606543072 | DP8: 0.09961781496 | DQ8: 0.05103972501 | DR8: 0.09901686733 | DS8: 0.07663867667 | DT8: 0.07508786143 | DU8: 0.09847189793 | DV8: 0.05780479394 | DW8: 0.09509269353 | DX8: 0.06161588518 | DY8: 0.0607944198 | DZ8: 0.05464503675 | EA8: 0.09686489579 | EB8: 0.1251642857 | EC8: 0.1044537314 | ED8: 0.09594278902 | EE8: 0.03472964831 | EF8: 0.05926419209 | EG8: 0.07784541767 | EH8: 0.08109692414 | EI8: 0.112443962 | EJ8: 0.04215689908 | EK8: 0.09853042226 | EL8: 0.03636693874 | EM8: 0.1070966988 | EN8: 0.1025667061 | EO8: =_xlfn.NORM.INV(RAND(),$I8,$G8) -> 0.0370263869 | EP8: 0.01384040584 | EQ8: 0.08393392695 | ER8: 0.1457078849 | ES8: 0.06226808553 | ET8: 0.09655380413 | EU8: 0.04809018347 | EV8: 0.06381380584 | EW8: 0.1206546591 | EX8: 0.08830002859 | EY8: 0.1003257946 | EZ8: 0.1142871113 | FA8: 0.07839146703 | FB8: 0.09350471189 | FC8: 0.0502407024 | FD8: 0.1012458402 | FE8: 0.1110561322 | FF8: 0.1226449538 | FG8: 0.04033222366 | FH8: 0.07438829926 | FI8: 0.1199257741 | FJ8: 0.1065866799 | FK8: 0.03544067816 | FL8: 0.04997842357 | FM8: 0.06705334968 | FN8: 0.1481530345 | FO8: 0.05298769428 | FP8: 0.1032286855 | FQ8: 0.05571669552 | FR8: 0.05077481875 | FS8: 0.08050988273 | FT8: 0.07173942132 | FU8: 0.09393552191 | FV8: 0.07046070888 | FW8: 0.04986842596 | FX8: 0.07483589461 | FY8: 0.02504071087 | FZ8: 0.05048349586 | GA8: 0.1133305529 | GB8: 0.05053455442 | GC8: 0.08756089055 | GD8: 0.07685312845 | GE8: 0.09277699038 | GF8: 0.06244823307 | GG8: 0.08889676465 | GH8: 0.08932341581 | GI8: 0.07641658031 | GJ8: 0.1144129136 | GK8: 0.07696786995 | GL8: 0.09941578693 | GM8: 0.0619818583 | GN8: 0.1287934759 | GO8: 0.08153092172 | GP8: 0.04596181084 | GQ8: 0.02131188509 | GR8: 0.04604448409 | GS8: 0.0741164351 | GT8: 0.1275182216 | GU8: 0.03940614853 | GV8: 0.1076489509 | GW8: 0.06309039537 | GX8: 0.06410084748 | GY8: 0.0677184299 | GZ8: 0.05750511105 | HA8: =_xlfn.NORM.INV(RAND(),$I8,$G8) -> 0.092006216 | HB8: 0.06406703335 | HC8: 0.08345850139 | HD8: 0.05438812125 | HE8: 0.07592362315 | HF8: 0.06891258571 | HG8: 0.03608879488 | HH8: 0.1155102844 | HI8: 0.05784036611 | HJ8: 0.06743327217 | HK8: 0.1172239188 | HL8: 0.08566641704 | HM8: 0.05477829252 | HN8: 0.03101644675 | HO8: 0.07539999029 | HP8: 0.1121587851 | HQ8: 0.1056494628 | HR8: 0.07432109591 | HS8: 0.0826149757 | HT8: 0.123660703 | HU8: 0.07708593269 | HV8: 0.1020862289 | HW8: 0.09077970609 | HX8: 0.06382249073 | HY8: 0.1007080525 | HZ8: 0.1035572731 | IA8: 0.05842594142 | IB8: 0.06095166105 | IC8: 0.05944787694 | ID8: 0.07883200822 | IE8: 0.1087318305 | IF8: 0.05225158096 | IG8: 0.06633132758 | IH8: 0.04538200034 | II8: 0.0374319817 | IJ8: 0.06285997318 | IK8: 0.05577904477 | IL8: 0.06752999369 | IM8: 0.02790004418 | IN8: 0.0856445503 | IO8: 0.06782265426 | IP8: 0.005176534824 | IQ8: 0.05777280925 | IR8: 0.1168259333 | IS8: 0.06663624247 | IT8: 0.117397884 | IU8: 0.1009221523 | IV8: 0.04616334788 | IW8: 0.07618446718 | IX8: 0.01191348654 | IY8: 0.05586391543 | IZ8: 0.06007016788 | JA8: 0.02503089615 | JB8: 0.06995178327 | JC8: 0.09530910826 | JD8: 0.08479183297 | JE8: 0.1128763124 | JF8: 0.06220859625 | JG8: 0.07678699599 | JH8: 0.06606379034 | JI8: 0.04877182589 | JJ8: 0.1057975429 | JK8: 0.132474818 | JL8: 0.09991643264 | JM8: =_xlfn.NORM.INV(RAND(),$I8,$G8) -> 0.08290850956 | JN8: 0.05501290576 | JO8: -0.006961758987 | JP8: 0.05049606694 | JQ8: 0.05245705597 | JR8: 0.1152656781 | JS8: 0.119848604 | JT8: 0.1169655352 | JU8: 0.114208498 | JV8: 0.1247433378 | JW8: 0.06497921765 | JX8: 0.1085923539 | JY8: 0.08819369171 | JZ8: 0.07014270526 | KA8: 0.07259398294 | KB8: 0.07511205452 | KC8: 0.08710798505 | KD8: 0.07706501325 | KE8: 0.1253194726 | KF8: 0.06361076953 | KG8: 0.06977556009 | KH8: 0.06987090481 | KI8: 0.04500718822 | KJ8: 0.1389511112 | KK8: 0.05319361371 | KL8: 0.09334005686 | KM8: 0.03840804186 | KN8: 0.07239167552 | KO8: 0.09116109448 | KP8: 0.05725660686 | KQ8: 0.03971124074 | KR8: 0.0716617334 | KS8: 0.1111414007 | KT8: 0.09357199537 | KU8: 0.05267883842 | KV8: 0.09494322623 | KW8: 0.05623846768 | KX8: 0.05223310634 | KY8: 0.0794061309 | KZ8: 0.1077948653 | LA8: 0.1472192015 | LB8: 0.1335008373 | LC8: 0.09332030955 | LD8: 0.1031472697 | LE8: 0.1074355614 | LF8: 0.0971854231 | LG8: 0.05405964529 | LH8: 0.06641134053 | LI8: 0.07336265909 | LJ8: 0.06078785932 | LK8: 0.05715078764 | LL8: 0.09315840958 | LM8: 0.1177068715 | LN8: 0.1050947034 | LO8: 0.08133991229 | LP8: 0.05614400221 | LQ8: 0.02420749092 | LR8: 0.07903785796 | LS8: 0.03461243442 | LT8: 0.07848065831 | LU8: 0.09943130186 | LV8: 0.06582608138 | LW8: 0.05014487495 | LX8: 0.07933427422 | LY8: =_xlfn.NORM.INV(RAND(),$I8,$G8) -> 0.04088599347 | LZ8: 0.04472394028 | MA8: 0.06034269519 | MB8: 0.1163270395 | MC8: 0.05437438881 | MD8: 0.04990057658 | ME8: 0.07536208059 | MF8: 0.08404945766 | MG8: 0.06037824385 | MH8: 0.08775491819 | MI8: 0.08058170942 | MJ8: 0.09023039206 | MK8: 0.09657189021 | ML8: 0.07325396917 | MM8: 0.04130181114 | MN8: 0.08503745275 | MO8: 0.08432845363 | MP8: 0.06887030313 | MQ8: 0.1075703973 | MR8: 0.03539975601 | MS8: 0.07408840082
D9: ROE vs k | E9: % | F9: =INDEX(I9:MS9,$E$2) -> 0.1147206166 | G9: 0.02 | I9: =I8 -> 0.08 | J9: =J8 -> 0.11 | K9: 0.15 | L9: 0.15 | M9: 0.11 | N9: 0.2 | O9: 0.11 | P9: 0.03621883157 | Q9: =Q8 -> 0.09394915254 | R9: =R8 -> 0.06043769364 | S9: =S8 -> 0.08344564777 | T9: =T8 -> 0.09769057453 | U9: =U8 -> 0.1140896607 | V9: =V8 -> 0.07646683504 | W9: =W8 -> 0.1081838793 | X9: =X8 -> 0.06297414853 | Y9: =Y8 -> 0.1027656917 | Z9: =Z8 -> 0.04972670777 | AA9: =AA8 -> 0.1062144503 | AB9: =AB8 -> 0.07816152533 | AC9: =AC8 -> 0.07554276218 | AD9: =AD8 -> 0.06139341932 | AE9: =AE8 -> 0.1156107109 | AF9: =AF8 -> 0.1178465846 | AG9: =AG8 -> 0.05602489358 | AH9: =AH8 -> 0.1135241748 | AI9: =AI8 -> 0.05066521611 | AJ9: =AJ8 -> 0.06575346842 | AK9: =AK8 -> 0.02768050878 | AL9: =AL8 -> 0.08083178327 | AM9: =AM8 -> 0.01224265488 | AN9: =AN8 -> 0.06803343106 | AO9: =AO8 -> 0.06345133135 | AP9: =AP8 -> 0.08400011718 | AQ9: =AQ8 -> 0.07574772282 | AR9: =AR8 -> 0.09097214677 | AS9: =AS8 -> 0.08108976715 | AT9: =AT8 -> 0.06728586041 | AU9: =AU8 -> 0.1148925566 | AV9: =AV8 -> 0.08778254384 | AW9: =AW8 -> 0.09589291192 | AX9: =AX8 -> 0.06516608028 | AY9: =AY8 -> 0.1106454538 | AZ9: =AZ8 -> 0.1045123622 | BA9: =BA8 -> 0.1025944032 | BB9: =BB8 -> 0.08309729382 | BC9: =BC8 -> 0.0831569131 | BD9: =BD8 -> 0.1132063132 | BE9: =BE8 -> 0.08646079412 | BF9: =BF8 -> 0.09722311632 | BG9: =BG8 -> 0.08752796231 | BH9: =BH8 -> 0.135256825 | BI9: =BI8 -> 0.09948171286 | BJ9: =BJ8 -> 0.1118760531 | BK9: =BK8 -> 0.1003762984 | BL9: =BL8 -> 0.06133536408 | BM9: =BM8 -> 0.08159709623 | BN9: =BN8 -> 0.04193551058 | BO9: =BO8 -> 0.05597591901 | BP9: =BP8 -> 0.08854691637 | BQ9: =BQ8 -> 0.07159858123 | BR9: =BR8 -> 0.0899979073 | BS9: =BS8 -> 0.03778848173 | BT9: =BT8 -> 0.07907766701 | BU9: =BU8 -> 0.1044800594 | BV9: =BV8 -> 0.1057873405 | BW9: =BW8 -> 0.07670142459 | BX9: =BX8 -> 0.107163171 | BY9: =BY8 -> 0.1304080753 | BZ9: =BZ8 -> 0.08199258605 | CA9: =CA8 -> 0.05542015633 | CB9: =CB8 -> 0.09228291626 | CC9: =CC8 -> 0.08382787513 | CD9: =CD8 -> 0.1296239254 | CE9: =CE8 -> 0.1053665184 | CF9: =CF8 -> 0.1163157399 | CG9: =CG8 -> 0.06727332681 | CH9: =CH8 -> 0.07703876627 | CI9: =CI8 -> 0.03606951042 | CJ9: =CJ8 -> 0.05867142182 | CK9: =CK8 -> 0.08826930008 | CL9: =CL8 -> 0.09338942383 | CM9: =CM8 -> 0.0846618601 | CN9: =CN8 -> 0.05992483835 | CO9: =CO8 -> 0.0962969219 | CP9: =CP8 -> 0.06778394363 | CQ9: =CQ8 -> 0.07188628965 | CR9: =CR8 -> 0.09795274882 | CS9: =CS8 -> 0.1082305054 | CT9: =CT8 -> 0.06900863728 | CU9: =CU8 -> 0.07516699402 | CV9: =CV8 -> 0.1081149064 | CW9: =CW8 -> 0.04959833818 | CX9: =CX8 -> 0.1276008024 | CY9: =CY8 -> 0.02918361848 | CZ9: =CZ8 -> 0.1141545303 | DA9: =DA8 -> 0.07701745322 | DB9: =DB8 -> 0.04534859762 | DC9: =DC8 -> 0.00708175903 | DD9: =DD8 -> 0.1147206166 | DE9: =DE8 -> 0.07474020422 | DF9: =DF8 -> 0.1158273921 | DG9: =DG8 -> 0.08637327154 | DH9: =DH8 -> 0.1033880666 | DI9: =DI8 -> 0.1131761581 | DJ9: =DJ8 -> 0.1279622788 | DK9: =DK8 -> 0.1092447938 | DL9: =DL8 -> 0.06067213349 | DM9: =DM8 -> 0.0689990096 | DN9: =DN8 -> 0.1019189355 | DO9: =DO8 -> 0.05606543072 | DP9: =DP8 -> 0.09961781496 | DQ9: =DQ8 -> 0.05103972501 | DR9: =DR8 -> 0.09901686733 | DS9: =DS8 -> 0.07663867667 | DT9: =DT8 -> 0.07508786143 | DU9: =DU8 -> 0.09847189793 | DV9: =DV8 -> 0.05780479394 | DW9: =DW8 -> 0.09509269353 | DX9: =DX8 -> 0.06161588518 | DY9: =DY8 -> 0.0607944198 | DZ9: =DZ8 -> 0.05464503675 | EA9: =EA8 -> 0.09686489579 | EB9: =EB8 -> 0.1251642857 | EC9: =EC8 -> 0.1044537314 | ED9: =ED8 -> 0.09594278902 | EE9: =EE8 -> 0.03472964831 | EF9: =EF8 -> 0.05926419209 | EG9: =EG8 -> 0.07784541767 | EH9: =EH8 -> 0.08109692414 | EI9: =EI8 -> 0.112443962 | EJ9: =EJ8 -> 0.04215689908 | EK9: =EK8 -> 0.09853042226 | EL9: =EL8 -> 0.03636693874 | EM9: =EM8 -> 0.1070966988 | EN9: =EN8 -> 0.1025667061 | EO9: =EO8 -> 0.0370263869 | EP9: =EP8 -> 0.01384040584 | EQ9: =EQ8 -> 0.08393392695 | ER9: =ER8 -> 0.1457078849 | ES9: =ES8 -> 0.06226808553 | ET9: =ET8 -> 0.09655380413 | EU9: =EU8 -> 0.04809018347 | EV9: =EV8 -> 0.06381380584 | EW9: =EW8 -> 0.1206546591 | EX9: =EX8 -> 0.08830002859 | EY9: =EY8 -> 0.1003257946 | EZ9: =EZ8 -> 0.1142871113 | FA9: =FA8 -> 0.07839146703 | FB9: =FB8 -> 0.09350471189 | FC9: =FC8 -> 0.0502407024 | FD9: =FD8 -> 0.1012458402 | FE9: =FE8 -> 0.1110561322 | FF9: =FF8 -> 0.1226449538 | FG9: =FG8 -> 0.04033222366 | FH9: =FH8 -> 0.07438829926 | FI9: =FI8 -> 0.1199257741 | FJ9: =FJ8 -> 0.1065866799 | FK9: =FK8 -> 0.03544067816 | FL9: =FL8 -> 0.04997842357 | FM9: =FM8 -> 0.06705334968 | FN9: =FN8 -> 0.1481530345 | FO9: =FO8 -> 0.05298769428 | FP9: =FP8 -> 0.1032286855 | FQ9: =FQ8 -> 0.05571669552 | FR9: =FR8 -> 0.05077481875 | FS9: =FS8 -> 0.08050988273 | FT9: =FT8 -> 0.07173942132 | FU9: =FU8 -> 0.09393552191 | FV9: =FV8 -> 0.07046070888 | FW9: =FW8 -> 0.04986842596 | FX9: =FX8 -> 0.07483589461 | FY9: =FY8 -> 0.02504071087 | FZ9: =FZ8 -> 0.05048349586 | GA9: =GA8 -> 0.1133305529 | GB9: =GB8 -> 0.05053455442 | GC9: =GC8 -> 0.08756089055 | GD9: =GD8 -> 0.07685312845 | GE9: =GE8 -> 0.09277699038 | GF9: =GF8 -> 0.06244823307 | GG9: =GG8 -> 0.08889676465 | GH9: =GH8 -> 0.08932341581 | GI9: =GI8 -> 0.07641658031 | GJ9: =GJ8 -> 0.1144129136 | GK9: =GK8 -> 0.07696786995 | GL9: =GL8 -> 0.09941578693 | GM9: =GM8 -> 0.0619818583 | GN9: =GN8 -> 0.1287934759 | GO9: =GO8 -> 0.08153092172 | GP9: =GP8 -> 0.04596181084 | GQ9: =GQ8 -> 0.02131188509 | GR9: =GR8 -> 0.04604448409 | GS9: =GS8 -> 0.0741164351 | GT9: =GT8 -> 0.1275182216 | GU9: =GU8 -> 0.03940614853 | GV9: =GV8 -> 0.1076489509 | GW9: =GW8 -> 0.06309039537 | GX9: =GX8 -> 0.06410084748 | GY9: =GY8 -> 0.0677184299 | GZ9: =GZ8 -> 0.05750511105 | HA9: =HA8 -> 0.092006216 | HB9: =HB8 -> 0.06406703335 | HC9: =HC8 -> 0.08345850139 | HD9: =HD8 -> 0.05438812125 | HE9: =HE8 -> 0.07592362315 | HF9: =HF8 -> 0.06891258571 | HG9: =HG8 -> 0.03608879488 | HH9: =HH8 -> 0.1155102844 | HI9: =HI8 -> 0.05784036611 | HJ9: =HJ8 -> 0.06743327217 | HK9: =HK8 -> 0.1172239188 | HL9: =HL8 -> 0.08566641704 | HM9: =HM8 -> 0.05477829252 | HN9: =HN8 -> 0.03101644675 | HO9: =HO8 -> 0.07539999029 | HP9: =HP8 -> 0.1121587851 | HQ9: =HQ8 -> 0.1056494628 | HR9: =HR8 -> 0.07432109591 | HS9: =HS8 -> 0.0826149757 | HT9: =HT8 -> 0.123660703 | HU9: =HU8 -> 0.07708593269 | HV9: =HV8 -> 0.1020862289 | HW9: =HW8 -> 0.09077970609 | HX9: =HX8 -> 0.06382249073 | HY9: =HY8 -> 0.1007080525 | HZ9: =HZ8 -> 0.1035572731 | IA9: =IA8 -> 0.05842594142 | IB9: =IB8 -> 0.06095166105 | IC9: =IC8 -> 0.05944787694 | ID9: =ID8 -> 0.07883200822 | IE9: =IE8 -> 0.1087318305 | IF9: =IF8 -> 0.05225158096 | IG9: =IG8 -> 0.06633132758 | IH9: =IH8 -> 0.04538200034 | II9: =II8 -> 0.0374319817 | IJ9: =IJ8 -> 0.06285997318 | IK9: =IK8 -> 0.05577904477 | IL9: =IL8 -> 0.06752999369 | IM9: =IM8 -> 0.02790004418 | IN9: =IN8 -> 0.0856445503 | IO9: =IO8 -> 0.06782265426 | IP9: =IP8 -> 0.005176534824 | IQ9: =IQ8 -> 0.05777280925 | IR9: =IR8 -> 0.1168259333 | IS9: =IS8 -> 0.06663624247 | IT9: =IT8 -> 0.117397884 | IU9: =IU8 -> 0.1009221523 | IV9: =IV8 -> 0.04616334788 | IW9: =IW8 -> 0.07618446718 | IX9: =IX8 -> 0.01191348654 | IY9: =IY8 -> 0.05586391543 | IZ9: =IZ8 -> 0.06007016788 | JA9: =JA8 -> 0.02503089615 | JB9: =JB8 -> 0.06995178327 | JC9: =JC8 -> 0.09530910826 | JD9: =JD8 -> 0.08479183297 | JE9: =JE8 -> 0.1128763124 | JF9: =JF8 -> 0.06220859625 | JG9: =JG8 -> 0.07678699599 | JH9: =JH8 -> 0.06606379034 | JI9: =JI8 -> 0.04877182589 | JJ9: =JJ8 -> 0.1057975429 | JK9: =JK8 -> 0.132474818 | JL9: =JL8 -> 0.09991643264 | JM9: =JM8 -> 0.08290850956 | JN9: =JN8 -> 0.05501290576 | JO9: =JO8 -> -0.006961758987 | JP9: =JP8 -> 0.05049606694 | JQ9: =JQ8 -> 0.05245705597 | JR9: =JR8 -> 0.1152656781 | JS9: =JS8 -> 0.119848604 | JT9: =JT8 -> 0.1169655352 | JU9: =JU8 -> 0.114208498 | JV9: =JV8 -> 0.1247433378 | JW9: =JW8 -> 0.06497921765 | JX9: =JX8 -> 0.1085923539 | JY9: =JY8 -> 0.08819369171 | JZ9: =JZ8 -> 0.07014270526 | KA9: =KA8 -> 0.07259398294 | KB9: =KB8 -> 0.07511205452 | KC9: =KC8 -> 0.08710798505 | KD9: =KD8 -> 0.07706501325 | KE9: =KE8 -> 0.1253194726 | KF9: =KF8 -> 0.06361076953 | KG9: =KG8 -> 0.06977556009 | KH9: =KH8 -> 0.06987090481 | KI9: =KI8 -> 0.04500718822 | KJ9: =KJ8 -> 0.1389511112 | KK9: =KK8 -> 0.05319361371 | KL9: =KL8 -> 0.09334005686 | KM9: =KM8 -> 0.03840804186 | KN9: =KN8 -> 0.07239167552 | KO9: =KO8 -> 0.09116109448 | KP9: =KP8 -> 0.05725660686 | KQ9: =KQ8 -> 0.03971124074 | KR9: =KR8 -> 0.0716617334 | KS9: =KS8 -> 0.1111414007 | KT9: =KT8 -> 0.09357199537 | KU9: =KU8 -> 0.05267883842 | KV9: =KV8 -> 0.09494322623 | KW9: =KW8 -> 0.05623846768 | KX9: =KX8 -> 0.05223310634 | KY9: =KY8 -> 0.0794061309 | KZ9: =KZ8 -> 0.1077948653 | LA9: =LA8 -> 0.1472192015 | LB9: =LB8 -> 0.1335008373 | LC9: =LC8 -> 0.09332030955 | LD9: =LD8 -> 0.1031472697 | LE9: =LE8 -> 0.1074355614 | LF9: =LF8 -> 0.0971854231 | LG9: =LG8 -> 0.05405964529 | LH9: =LH8 -> 0.06641134053 | LI9: =LI8 -> 0.07336265909 | LJ9: =LJ8 -> 0.06078785932 | LK9: =LK8 -> 0.05715078764 | LL9: =LL8 -> 0.09315840958 | LM9: =LM8 -> 0.1177068715 | LN9: =LN8 -> 0.1050947034 | LO9: =LO8 -> 0.08133991229 | LP9: =LP8 -> 0.05614400221 | LQ9: =LQ8 -> 0.02420749092 | LR9: =LR8 -> 0.07903785796 | LS9: =LS8 -> 0.03461243442 | LT9: =LT8 -> 0.07848065831 | LU9: =LU8 -> 0.09943130186 | LV9: =LV8 -> 0.06582608138 | LW9: =LW8 -> 0.05014487495 | LX9: =LX8 -> 0.07933427422 | LY9: =LY8 -> 0.04088599347 | LZ9: =LZ8 -> 0.04472394028 | MA9: =MA8 -> 0.06034269519 | MB9: =MB8 -> 0.1163270395 | MC9: =MC8 -> 0.05437438881 | MD9: =MD8 -> 0.04990057658 | ME9: =ME8 -> 0.07536208059 | MF9: =MF8 -> 0.08404945766 | MG9: =MG8 -> 0.06037824385 | MH9: =MH8 -> 0.08775491819 | MI9: =MI8 -> 0.08058170942 | MJ9: =MJ8 -> 0.09023039206 | MK9: =MK8 -> 0.09657189021 | ML9: =ML8 -> 0.07325396917 | MM9: =MM8 -> 0.04130181114 | MN9: =MN8 -> 0.08503745275 | MO9: =MO8 -> 0.08432845363 | MP9: =MP8 -> 0.06887030313 | MQ9: =MQ8 -> 0.1075703973 | MR9: =MR8 -> 0.03539975601 | MS9: =MS8 -> 0.07408840082
D10: k | E10: % | F10: =INDEX(I10:MS10,$E$2) -> 0.06 | I10: 0.06 | J10: 0.06 | K10: 0.06 | L10: 0.06 | M10: 0.06 | N10: 0.06 | O10: 0.06 | P10: =O10 -> 0.06 | Q10: =P10 -> 0.06 | R10: 0.06 | S10: 0.06 | T10: 0.06 | U10: 0.06 | V10: 0.06 | W10: 0.06 | X10: 0.06 | Y10: 0.06 | Z10: 0.06 | AA10: 0.06 | AB10: 0.06 | AC10: 0.06 | AD10: 0.06 | AE10: 0.06 | AF10: 0.06 | AG10: 0.06 | AH10: 0.06 | AI10: 0.06 | AJ10: 0.06 | AK10: 0.06 | AL10: 0.06 | AM10: 0.06 | AN10: 0.06 | AO10: 0.06 | AP10: 0.06 | AQ10: 0.06 | AR10: 0.06 | AS10: 0.06 | AT10: 0.06 | AU10: 0.06 | AV10: 0.06 | AW10: 0.06 | AX10: 0.06 | AY10: 0.06 | AZ10: 0.06 | BA10: 0.06 | BB10: 0.06 | BC10: 0.06 | BD10: 0.06 | BE10: 0.06 | BF10: 0.06 | BG10: 0.06 | BH10: 0.06 | BI10: 0.06 | BJ10: 0.06 | BK10: 0.06 | BL10: 0.06 | BM10: 0.06 | BN10: 0.06 | BO10: 0.06 | BP10: 0.06 | BQ10: 0.06 | BR10: 0.06 | BS10: 0.06 | BT10: 0.06 | BU10: 0.06 | BV10: 0.06 | BW10: 0.06 | BX10: 0.06 | BY10: 0.06 | BZ10: 0.06 | CA10: 0.06 | CB10: 0.06 | CC10: =CB10 -> 0.06 | CD10: 0.06 | CE10: 0.06 | CF10: 0.06 | CG10: 0.06 | CH10: 0.06 | CI10: 0.06 | CJ10: 0.06 | CK10: 0.06 | CL10: 0.06 | CM10: 0.06 | CN10: 0.06 | CO10: 0.06 | CP10: 0.06 | CQ10: 0.06 | CR10: 0.06 | CS10: 0.06 | CT10: 0.06 | CU10: 0.06 | CV10: 0.06 | CW10: 0.06 | CX10: 0.06 | CY10: 0.06 | CZ10: 0.06 | DA10: 0.06 | DB10: 0.06 | DC10: 0.06 | DD10: 0.06 | DE10: 0.06 | DF10: 0.06 | DG10: 0.06 | DH10: 0.06 | DI10: 0.06 | DJ10: 0.06 | DK10: 0.06 | DL10: 0.06 | DM10: 0.06 | DN10: 0.06 | DO10: 0.06 | DP10: 0.06 | DQ10: 0.06 | DR10: 0.06 | DS10: 0.06 | DT10: 0.06 | DU10: 0.06 | DV10: 0.06 | DW10: 0.06 | DX10: 0.06 | DY10: 0.06 | DZ10: 0.06 | EA10: 0.06 | EB10: 0.06 | EC10: 0.06 | ED10: 0.06 | EE10: 0.06 | EF10: 0.06 | EG10: 0.06 | EH10: 0.06 | EI10: 0.06 | EJ10: 0.06 | EK10: 0.06 | EL10: 0.06 | EM10: 0.06 | EN10: =EM10 -> 0.06 | EO10: 0.06 | EP10: 0.06 | EQ10: 0.06 | ER10: 0.06 | ES10: 0.06 | ET10: 0.06 | EU10: 0.06 | EV10: 0.06 | EW10: 0.06 | EX10: 0.06 | EY10: 0.06 | EZ10: 0.06 | FA10: 0.06 | FB10: 0.06 | FC10: 0.06 | FD10: 0.06 | FE10: 0.06 | FF10: 0.06 | FG10: 0.06 | FH10: 0.06 | FI10: 0.06 | FJ10: 0.06 | FK10: 0.06 | FL10: 0.06 | FM10: 0.06 | FN10: 0.06 | FO10: 0.06 | FP10: 0.06 | FQ10: 0.06 | FR10: 0.06 | FS10: 0.06 | FT10: 0.06 | FU10: 0.06 | FV10: 0.06 | FW10: 0.06 | FX10: 0.06 | FY10: 0.06 | FZ10: 0.06 | GA10: 0.06 | GB10: 0.06 | GC10: 0.06 | GD10: 0.06 | GE10: 0.06 | GF10: 0.06 | GG10: 0.06 | GH10: 0.06 | GI10: 0.06 | GJ10: 0.06 | GK10: 0.06 | GL10: 0.06 | GM10: 0.06 | GN10: 0.06 | GO10: 0.06 | GP10: 0.06 | GQ10: 0.06 | GR10: 0.06 | GS10: 0.06 | GT10: 0.06 | GU10: 0.06 | GV10: 0.06 | GW10: 0.06 | GX10: 0.06 | GY10: 0.06 | GZ10: =GY10 -> 0.06 | HA10: 0.06 | HB10: 0.06 | HC10: 0.06 | HD10: 0.06 | HE10: 0.06 | HF10: 0.06 | HG10: 0.06 | HH10: 0.06 | HI10: 0.06 | HJ10: 0.06 | HK10: 0.06 | HL10: 0.06 | HM10: 0.06 | HN10: 0.06 | HO10: 0.06 | HP10: 0.06 | HQ10: 0.06 | HR10: 0.06 | HS10: 0.06 | HT10: 0.06 | HU10: 0.06 | HV10: 0.06 | HW10: 0.06 | HX10: 0.06 | HY10: 0.06 | HZ10: 0.06 | IA10: 0.06 | IB10: 0.06 | IC10: 0.06 | ID10: 0.06 | IE10: 0.06 | IF10: 0.06 | IG10: 0.06 | IH10: 0.06 | II10: 0.06 | IJ10: 0.06 | IK10: 0.06 | IL10: 0.06 | IM10: 0.06 | IN10: 0.06 | IO10: 0.06 | IP10: 0.06 | IQ10: 0.06 | IR10: 0.06 | IS10: 0.06 | IT10: 0.06 | IU10: 0.06 | IV10: 0.06 | IW10: 0.06 | IX10: 0.06 | IY10: 0.06 | IZ10: 0.06 | JA10: 0.06 | JB10: 0.06 | JC10: 0.06 | JD10: 0.06 | JE10: 0.06 | JF10: 0.06 | JG10: 0.06 | JH10: 0.06 | JI10: 0.06 | JJ10: 0.06 | JK10: 0.06 | JL10: =JK10 -> 0.06 | JM10: 0.06 | JN10: 0.06 | JO10: 0.06 | JP10: 0.06 | JQ10: 0.06 | JR10: 0.06 | JS10: 0.06 | JT10: 0.06 | JU10: 0.06 | JV10: 0.06 | JW10: 0.06 | JX10: 0.06 | JY10: 0.06 | JZ10: 0.06 | KA10: 0.06 | KB10: 0.06 | KC10: 0.06 | KD10: 0.06 | KE10: 0.06 | KF10: 0.06 | KG10: 0.06 | KH10: 0.06 | KI10: 0.06 | KJ10: 0.06 | KK10: 0.06 | KL10: 0.06 | KM10: 0.06 | KN10: 0.06 | KO10: 0.06 | KP10: 0.06 | KQ10: 0.06 | KR10: 0.06 | KS10: 0.06 | KT10: 0.06 | KU10: 0.06 | KV10: 0.06 | KW10: 0.06 | KX10: 0.06 | KY10: 0.06 | KZ10: 0.06 | LA10: 0.06 | LB10: 0.06 | LC10: 0.06 | LD10: 0.06 | LE10: 0.06 | LF10: 0.06 | LG10: 0.06 | LH10: 0.06 | LI10: 0.06 | LJ10: 0.06 | LK10: 0.06 | LL10: 0.06 | LM10: 0.06 | LN10: 0.06 | LO10: 0.06 | LP10: 0.06 | LQ10: 0.06 | LR10: 0.06 | LS10: 0.06 | LT10: 0.06 | LU10: 0.06 | LV10: 0.06 | LW10: 0.06 | LX10: =LW10 -> 0.06 | LY10: 0.06 | LZ10: 0.06 | MA10: 0.06 | MB10: 0.06 | MC10: 0.06 | MD10: 0.06 | ME10: 0.06 | MF10: 0.06 | MG10: 0.06 | MH10: 0.06 | MI10: 0.06 | MJ10: 0.06 | MK10: 0.06 | ML10: 0.06 | MM10: 0.06 | MN10: 0.06 | MO10: 0.06 | MP10: 0.06 | MQ10: 0.06 | MR10: 0.06 | MS10: 0.06
D11: Short-term g | E11: % | F11: 0.02 | G11: 0.005 | H11: 1 | I11: 0.05 | J11: 0.05 | K11: 0.05 | L11: 0.08 | M11: 0.03 | N11: 0.03 | O11: 0.03 | P11: =MIN(_xlfn.NORM.INV(RAND(),$F11,$G11),$H$11) -> 0.01609931761 | Q11: =MIN(_xlfn.NORM.INV(RAND(),$F11,$G11),$H$11) -> 0.009613102552 | R11: 0.01892507946 | S11: 0.02171568594 | T11: 0.01662032728 | U11: 0.01795358394 | V11: 0.02545024042 | W11: 0.0280439147 | X11: 0.02348818195 | Y11: 0.02107039906 | Z11: 0.01500178433 | AA11: 0.01872680148 | AB11: 0.0197902992 | AC11: 0.02276306701 | AD11: 0.01728266559 | AE11: 0.02380538474 | AF11: 0.02068554351 | AG11: 0.03014170788 | AH11: 0.02529798267 | AI11: 0.02082531634 | AJ11: 0.02021109373 | AK11: 0.0122640271 | AL11: 0.0210040691 | AM11: 0.01820791744 | AN11: 0.02058637011 | AO11: 0.01906006943 | AP11: 0.02337773084 | AQ11: 0.02332195237 | AR11: 0.01866308076 | AS11: 0.01550407451 | AT11: 0.02410180236 | AU11: 0.02510870093 | AV11: 0.02258284785 | AW11: 0.0228449799 | AX11: 0.01671899204 | AY11: 0.02057170207 | AZ11: 0.02096162705 | BA11: 0.01849549962 | BB11: 0.02149971298 | BC11: 0.01020243963 | BD11: 0.02256534385 | BE11: 0.01742300505 | BF11: 0.01093676155 | BG11: 0.01696290249 | BH11: 0.02414376145 | BI11: 0.01562973771 | BJ11: 0.0178472753 | BK11: 0.0184997485 | BL11: 0.01468865757 | BM11: 0.02216780666 | BN11: 0.01778242375 | BO11: 0.02372261713 | BP11: 0.01874219915 | BQ11: 0.02700429085 | BR11: 0.01551218739 | BS11: 0.0228621689 | BT11: 0.03060300334 | BU11: 0.01182209724 | BV11: 0.01399622938 | BW11: 0.02255895449 | BX11: 0.01875511149 | BY11: 0.01521621084 | BZ11: 0.02520661735 | CA11: 0.02118497131 | CB11: 0.02621057704 | CC11: =MIN(_xlfn.NORM.INV(RAND(),$F11,$G11),$H$11) -> 0.0182905377 | CD11: 0.02269318979 | CE11: 0.01315133647 | CF11: 0.01764695129 | CG11: 0.02638890378 | CH11: 0.02678149851 | CI11: 0.02113596306 | CJ11: 0.02409494121 | CK11: 0.01556037344 | CL11: 0.01644603048 | CM11: 0.02380227613 | CN11: 0.01229471445 | CO11: 0.01717642563 | CP11: 0.01839861376 | CQ11: 0.01624790823 | CR11: 0.02129695985 | CS11: 0.0151084964 | CT11: 0.02026383208 | CU11: 0.01979302393 | CV11: 0.01228815056 | CW11: 0.01944817329 | CX11: 0.01997497089 | CY11: 0.02077982174 | CZ11: 0.01508040609 | DA11: 0.02712677173 | DB11: 0.02211005054 | DC11: 0.02705255842 | DD11: 0.02353069973 | DE11: 0.02764507505 | DF11: 0.01630459631 | DG11: 0.02500094294 | DH11: 0.01566809617 | DI11: 0.0214110158 | DJ11: 0.02240049114 | DK11: 0.02211759447 | DL11: 0.01274227703 | DM11: 0.02018058691 | DN11: 0.02166354176 | DO11: 0.01306893566 | DP11: 0.03220665575 | DQ11: 0.02234116062 | DR11: 0.02583722244 | DS11: 0.02074199788 | DT11: 0.01833160403 | DU11: 0.02711398658 | DV11: 0.01760325785 | DW11: 0.02350340799 | DX11: 0.02175808178 | DY11: 0.02154500432 | DZ11: 0.02152252752 | EA11: 0.01946468751 | EB11: 0.02139671885 | EC11: 0.02200697435 | ED11: 0.01480959676 | EE11: 0.02305164192 | EF11: 0.02335091806 | EG11: 0.01440593113 | EH11: 0.02941743048 | EI11: 0.01818845997 | EJ11: 0.02171630071 | EK11: 0.01462756982 | EL11: 0.02227587404 | EM11: 0.01885478678 | EN11: 0.02363287128 | EO11: =MIN(_xlfn.NORM.INV(RAND(),$F11,$G11),$H$11) -> 0.01310907189 | EP11: 0.02540371094 | EQ11: 0.01432889124 | ER11: 0.02063999201 | ES11: 0.01133237778 | ET11: 0.02307315039 | EU11: 0.01889826626 | EV11: 0.02053018834 | EW11: 0.01584348014 | EX11: 0.03165047215 | EY11: 0.02123984114 | EZ11: 0.02657517514 | FA11: 0.02548956214 | FB11: 0.01801361322 | FC11: 0.02191771317 | FD11: 0.0230117981 | FE11: 0.01902925437 | FF11: 0.01729527537 | FG11: 0.01977290939 | FH11: 0.03002948909 | FI11: 0.01463476351 | FJ11: 0.0296926892 | FK11: 0.01535158154 | FL11: 0.01447481714 | FM11: 0.02422419575 | FN11: 0.01641061895 | FO11: 0.01459563246 | FP11: 0.01097872074 | FQ11: 0.01123314345 | FR11: 0.02298721784 | FS11: 0.02526679168 | FT11: 0.01808491465 | FU11: 0.02069911341 | FV11: 0.02127191301 | FW11: 0.0278155451 | FX11: 0.01573450134 | FY11: 0.02788150802 | FZ11: 0.01050160341 | GA11: 0.02276621239 | GB11: 0.01764943505 | GC11: 0.01401603021 | GD11: 0.01734077533 | GE11: 0.01778977785 | GF11: 0.01270546432 | GG11: 0.01793383254 | GH11: 0.0213457549 | GI11: 0.0205689204 | GJ11: 0.01979324915 | GK11: 0.02414259678 | GL11: 0.01582772488 | GM11: 0.02174390153 | GN11: 0.01457212183 | GO11: 0.0256887421 | GP11: 0.02210277591 | GQ11: 0.01806489108 | GR11: 0.02240993318 | GS11: 0.02292363688 | GT11: 0.02201332947 | GU11: 0.03070499358 | GV11: 0.01875476975 | GW11: 0.02332201362 | GX11: 0.01397954717 | GY11: 0.0129880862 | GZ11: 0.02424918482 | HA11: =MIN(_xlfn.NORM.INV(RAND(),$F11,$G11),$H$11) -> 0.02699538989 | HB11: 0.02143434637 | HC11: 0.0153626604 | HD11: 0.01493998742 | HE11: 0.0169639859 | HF11: 0.01349631732 | HG11: 0.02168757164 | HH11: 0.01172156402 | HI11: 0.02801551656 | HJ11: 0.01453304373 | HK11: 0.0182225025 | HL11: 0.01745116415 | HM11: 0.01306150908 | HN11: 0.02615483915 | HO11: 0.01597861982 | HP11: 0.01086589505 | HQ11: 0.02034346474 | HR11: 0.02329981276 | HS11: 0.020209036 | HT11: 0.01279855093 | HU11: 0.03315735438 | HV11: 0.02830970513 | HW11: 0.01555466216 | HX11: 0.02697701074 | HY11: 0.01914356228 | HZ11: 0.02571884436 | IA11: 0.01587164691 | IB11: 0.02759519715 | IC11: 0.02275744549 | ID11: 0.02177148189 | IE11: 0.01890489251 | IF11: 0.03256146931 | IG11: 0.01017938308 | IH11: 0.02426252524 | II11: 0.0180848759 | IJ11: 0.02471396305 | IK11: 0.01990139821 | IL11: 0.0235282176 | IM11: 0.02049671139 | IN11: 0.02302885075 | IO11: 0.01605693803 | IP11: 0.02920274742 | IQ11: 0.02148130326 | IR11: 0.02156844856 | IS11: 0.01788309229 | IT11: 0.024492242 | IU11: 0.02126374454 | IV11: 0.02403396356 | IW11: 0.01665197239 | IX11: 0.01636341866 | IY11: 0.03137203163 | IZ11: 0.02210581361 | JA11: 0.009661158791 | JB11: 0.01865721925 | JC11: 0.01505328255 | JD11: 0.01939407195 | JE11: 0.02293829245 | JF11: 0.02075429172 | JG11: 0.02145763616 | JH11: 0.01486686204 | JI11: 0.02102597807 | JJ11: 0.02121680687 | JK11: 0.02674109226 | JL11: 0.02253990874 | JM11: =MIN(_xlfn.NORM.INV(RAND(),$F11,$G11),$H$11) -> 0.0238775261 | JN11: 0.01744480136 | JO11: 0.02321156711 | JP11: 0.02024696386 | JQ11: 0.02213888097 | JR11: 0.01256030837 | JS11: 0.01084660689 | JT11: 0.02584667598 | JU11: 0.02895294299 | JV11: 0.01256403319 | JW11: 0.02009733775 | JX11: 0.01919369724 | JY11: 0.02574558315 | JZ11: 0.02005077398 | KA11: 0.0217657413 | KB11: 0.02053427094 | KC11: 0.02349454932 | KD11: 0.01043839031 | KE11: 0.02238531166 | KF11: 0.02326115058 | KG11: 0.01396612301 | KH11: 0.01832277899 | KI11: 0.01842122114 | KJ11: 0.01476961133 | KK11: 0.02465156499 | KL11: 0.02969197683 | KM11: 0.01722308204 | KN11: 0.01892690478 | KO11: 0.02061952059 | KP11: 0.01551356404 | KQ11: 0.01988569248 | KR11: 0.01400229828 | KS11: 0.0207046998 | KT11: 0.02595112715 | KU11: 0.02724327276 | KV11: 0.009290682195 | KW11: 0.03009140579 | KX11: 0.0310362958 | KY11: 0.0164511763 | KZ11: 0.02858286579 | LA11: 0.01173827084 | LB11: 0.02042284543 | LC11: 0.0254472047 | LD11: 0.02250240488 | LE11: 0.01958010938 | LF11: 0.008655679775 | LG11: 0.02170580082 | LH11: 0.01252936026 | LI11: 0.01461451186 | LJ11: 0.01562453382 | LK11: 0.0277513617 | LL11: 0.03014904028 | LM11: 0.01584495686 | LN11: 0.02100943586 | LO11: 0.01993493009 | LP11: 0.02117530032 | LQ11: 0.01592012517 | LR11: 0.01740766659 | LS11: 0.01588393754 | LT11: 0.01384218219 | LU11: 0.02245110322 | LV11: 0.01668134534 | LW11: 0.02027963903 | LX11: 0.02117387328 | LY11: =MIN(_xlfn.NORM.INV(RAND(),$F11,$G11),$H$11) -> 0.01816550812 | LZ11: 0.01482928181 | MA11: 0.01687140341 | MB11: 0.02107164627 | MC11: 0.01858620006 | MD11: 0.009666822097 | ME11: 0.01304467745 | MF11: 0.02363391684 | MG11: 0.01624643521 | MH11: 0.02034715693 | MI11: 0.02669638613 | MJ11: 0.02157733254 | MK11: 0.02312781319 | ML11: 0.02320257635 | MM11: 0.01783842322 | MN11: 0.009020017068 | MO11: 0.01494943389 | MP11: 0.0211670498 | MQ11: 0.01639909593 | MR11: 0.0278762445 | MS11: 0.0207259682
D12: Long-term g | E12: % | F12: =F11 -> 0.02 | G12: 0.005 | I12: =I11 -> 0.05 | J12: =J11 -> 0.05 | K12: 0.05 | L12: 0.08 | M12: 0.03 | N12: 0.03 | O12: 0.03 | P12: 0.01609931761 | Q12: =Q11 -> 0.009613102552 | R12: =R11 -> 0.01892507946 | S12: =S11 -> 0.02171568594 | T12: =T11 -> 0.01662032728 | U12: =U11 -> 0.01795358394 | V12: =V11 -> 0.02545024042 | W12: =W11 -> 0.0280439147 | X12: =X11 -> 0.02348818195 | Y12: =Y11 -> 0.02107039906 | Z12: =Z11 -> 0.01500178433 | AA12: =AA11 -> 0.01872680148 | AB12: =AB11 -> 0.0197902992 | AC12: =AC11 -> 0.02276306701 | AD12: =AD11 -> 0.01728266559 | AE12: =AE11 -> 0.02380538474 | AF12: =AF11 -> 0.02068554351 | AG12: =AG11 -> 0.03014170788 | AH12: =AH11 -> 0.02529798267 | AI12: =AI11 -> 0.02082531634 | AJ12: =AJ11 -> 0.02021109373 | AK12: =AK11 -> 0.0122640271 | AL12: =AL11 -> 0.0210040691 | AM12: =AM11 -> 0.01820791744 | AN12: =AN11 -> 0.02058637011 | AO12: =AO11 -> 0.01906006943 | AP12: =AP11 -> 0.02337773084 | AQ12: =AQ11 -> 0.02332195237 | AR12: =AR11 -> 0.01866308076 | AS12: =AS11 -> 0.01550407451 | AT12: =AT11 -> 0.02410180236 | AU12: =AU11 -> 0.02510870093 | AV12: =AV11 -> 0.02258284785 | AW12: =AW11 -> 0.0228449799 | AX12: =AX11 -> 0.01671899204 | AY12: =AY11 -> 0.02057170207 | AZ12: =AZ11 -> 0.02096162705 | BA12: =BA11 -> 0.01849549962 | BB12: =BB11 -> 0.02149971298 | BC12: =BC11 -> 0.01020243963 | BD12: =BD11 -> 0.02256534385 | BE12: =BE11 -> 0.01742300505 | BF12: =BF11 -> 0.01093676155 | BG12: =BG11 -> 0.01696290249 | BH12: =BH11 -> 0.02414376145 | BI12: =BI11 -> 0.01562973771 | BJ12: =BJ11 -> 0.0178472753 | BK12: =BK11 -> 0.0184997485 | BL12: =BL11 -> 0.01468865757 | BM12: =BM11 -> 0.02216780666 | BN12: =BN11 -> 0.01778242375 | BO12: =BO11 -> 0.02372261713 | BP12: =BP11 -> 0.01874219915 | BQ12: =BQ11 -> 0.02700429085 | BR12: =BR11 -> 0.01551218739 | BS12: =BS11 -> 0.0228621689 | BT12: =BT11 -> 0.03060300334 | BU12: =BU11 -> 0.01182209724 | BV12: =BV11 -> 0.01399622938 | BW12: =BW11 -> 0.02255895449 | BX12: =BX11 -> 0.01875511149 | BY12: =BY11 -> 0.01521621084 | BZ12: =BZ11 -> 0.02520661735 | CA12: =CA11 -> 0.02118497131 | CB12: =CB11 -> 0.02621057704 | CC12: =CC11 -> 0.0182905377 | CD12: =CD11 -> 0.02269318979 | CE12: =CE11 -> 0.01315133647 | CF12: =CF11 -> 0.01764695129 | CG12: =CG11 -> 0.02638890378 | CH12: =CH11 -> 0.02678149851 | CI12: =CI11 -> 0.02113596306 | CJ12: =CJ11 -> 0.02409494121 | CK12: =CK11 -> 0.01556037344 | CL12: =CL11 -> 0.01644603048 | CM12: =CM11 -> 0.02380227613 | CN12: =CN11 -> 0.01229471445 | CO12: =CO11 -> 0.01717642563 | CP12: =CP11 -> 0.01839861376 | CQ12: =CQ11 -> 0.01624790823 | CR12: =CR11 -> 0.02129695985 | CS12: =CS11 -> 0.0151084964 | CT12: =CT11 -> 0.02026383208 | CU12: =CU11 -> 0.01979302393 | CV12: =CV11 -> 0.01228815056 | CW12: =CW11 -> 0.01944817329 | CX12: =CX11 -> 0.01997497089 | CY12: =CY11 -> 0.02077982174 | CZ12: =CZ11 -> 0.01508040609 | DA12: =DA11 -> 0.02712677173 | DB12: =DB11 -> 0.02211005054 | DC12: =DC11 -> 0.02705255842 | DD12: =DD11 -> 0.02353069973 | DE12: =DE11 -> 0.02764507505 | DF12: =DF11 -> 0.01630459631 | DG12: =DG11 -> 0.02500094294 | DH12: =DH11 -> 0.01566809617 | DI12: =DI11 -> 0.0214110158 | DJ12: =DJ11 -> 0.02240049114 | DK12: =DK11 -> 0.02211759447 | DL12: =DL11 -> 0.01274227703 | DM12: =DM11 -> 0.02018058691 | DN12: =DN11 -> 0.02166354176 | DO12: =DO11 -> 0.01306893566 | DP12: =DP11 -> 0.03220665575 | DQ12: =DQ11 -> 0.02234116062 | DR12: =DR11 -> 0.02583722244 | DS12: =DS11 -> 0.02074199788 | DT12: =DT11 -> 0.01833160403 | DU12: =DU11 -> 0.02711398658 | DV12: =DV11 -> 0.01760325785 | DW12: =DW11 -> 0.02350340799 | DX12: =DX11 -> 0.02175808178 | DY12: =DY11 -> 0.02154500432 | DZ12: =DZ11 -> 0.02152252752 | EA12: =EA11 -> 0.01946468751 | EB12: =EB11 -> 0.02139671885 | EC12: =EC11 -> 0.02200697435 | ED12: =ED11 -> 0.01480959676 | EE12: =EE11 -> 0.02305164192 | EF12: =EF11 -> 0.02335091806 | EG12: =EG11 -> 0.01440593113 | EH12: =EH11 -> 0.02941743048 | EI12: =EI11 -> 0.01818845997 | EJ12: =EJ11 -> 0.02171630071 | EK12: =EK11 -> 0.01462756982 | EL12: =EL11 -> 0.02227587404 | EM12: =EM11 -> 0.01885478678 | EN12: =EN11 -> 0.02363287128 | EO12: =EO11 -> 0.01310907189 | EP12: =EP11 -> 0.02540371094 | EQ12: =EQ11 -> 0.01432889124 | ER12: =ER11 -> 0.02063999201 | ES12: =ES11 -> 0.01133237778 | ET12: =ET11 -> 0.02307315039 | EU12: =EU11 -> 0.01889826626 | EV12: =EV11 -> 0.02053018834 | EW12: =EW11 -> 0.01584348014 | EX12: =EX11 -> 0.03165047215 | EY12: =EY11 -> 0.02123984114 | EZ12: =EZ11 -> 0.02657517514 | FA12: =FA11 -> 0.02548956214 | FB12: =FB11 -> 0.01801361322 | FC12: =FC11 -> 0.02191771317 | FD12: =FD11 -> 0.0230117981 | FE12: =FE11 -> 0.01902925437 | FF12: =FF11 -> 0.01729527537 | FG12: =FG11 -> 0.01977290939 | FH12: =FH11 -> 0.03002948909 | FI12: =FI11 -> 0.01463476351 | FJ12: =FJ11 -> 0.0296926892 | FK12: =FK11 -> 0.01535158154 | FL12: =FL11 -> 0.01447481714 | FM12: =FM11 -> 0.02422419575 | FN12: =FN11 -> 0.01641061895 | FO12: =FO11 -> 0.01459563246 | FP12: =FP11 -> 0.01097872074 | FQ12: =FQ11 -> 0.01123314345 | FR12: =FR11 -> 0.02298721784 | FS12: =FS11 -> 0.02526679168 | FT12: =FT11 -> 0.01808491465 | FU12: =FU11 -> 0.02069911341 | FV12: =FV11 -> 0.02127191301 | FW12: =FW11 -> 0.0278155451 | FX12: =FX11 -> 0.01573450134 | FY12: =FY11 -> 0.02788150802 | FZ12: =FZ11 -> 0.01050160341 | GA12: =GA11 -> 0.02276621239 | GB12: =GB11 -> 0.01764943505 | GC12: =GC11 -> 0.01401603021 | GD12: =GD11 -> 0.01734077533 | GE12: =GE11 -> 0.01778977785 | GF12: =GF11 -> 0.01270546432 | GG12: =GG11 -> 0.01793383254 | GH12: =GH11 -> 0.0213457549 | GI12: =GI11 -> 0.0205689204 | GJ12: =GJ11 -> 0.01979324915 | GK12: =GK11 -> 0.02414259678 | GL12: =GL11 -> 0.01582772488 | GM12: =GM11 -> 0.02174390153 | GN12: =GN11 -> 0.01457212183 | GO12: =GO11 -> 0.0256887421 | GP12: =GP11 -> 0.02210277591 | GQ12: =GQ11 -> 0.01806489108 | GR12: =GR11 -> 0.02240993318 | GS12: =GS11 -> 0.02292363688 | GT12: =GT11 -> 0.02201332947 | GU12: =GU11 -> 0.03070499358 | GV12: =GV11 -> 0.01875476975 | GW12: =GW11 -> 0.02332201362 | GX12: =GX11 -> 0.01397954717 | GY12: =GY11 -> 0.0129880862 | GZ12: =GZ11 -> 0.02424918482 | HA12: =HA11 -> 0.02699538989 | HB12: =HB11 -> 0.02143434637 | HC12: =HC11 -> 0.0153626604 | HD12: =HD11 -> 0.01493998742 | HE12: =HE11 -> 0.0169639859 | HF12: =HF11 -> 0.01349631732 | HG12: =HG11 -> 0.02168757164 | HH12: =HH11 -> 0.01172156402 | HI12: =HI11 -> 0.02801551656 | HJ12: =HJ11 -> 0.01453304373 | HK12: =HK11 -> 0.0182225025 | HL12: =HL11 -> 0.01745116415 | HM12: =HM11 -> 0.01306150908 | HN12: =HN11 -> 0.02615483915 | HO12: =HO11 -> 0.01597861982 | HP12: =HP11 -> 0.01086589505 | HQ12: =HQ11 -> 0.02034346474 | HR12: =HR11 -> 0.02329981276 | HS12: =HS11 -> 0.020209036 | HT12: =HT11 -> 0.01279855093 | HU12: =HU11 -> 0.03315735438 | HV12: =HV11 -> 0.02830970513 | HW12: =HW11 -> 0.01555466216 | HX12: =HX11 -> 0.02697701074 | HY12: =HY11 -> 0.01914356228 | HZ12: =HZ11 -> 0.02571884436 | IA12: =IA11 -> 0.01587164691 | IB12: =IB11 -> 0.02759519715 | IC12: =IC11 -> 0.02275744549 | ID12: =ID11 -> 0.02177148189 | IE12: =IE11 -> 0.01890489251 | IF12: =IF11 -> 0.03256146931 | IG12: =IG11 -> 0.01017938308 | IH12: =IH11 -> 0.02426252524 | II12: =II11 -> 0.0180848759 | IJ12: =IJ11 -> 0.02471396305 | IK12: =IK11 -> 0.01990139821 | IL12: =IL11 -> 0.0235282176 | IM12: =IM11 -> 0.02049671139 | IN12: =IN11 -> 0.02302885075 | IO12: =IO11 -> 0.01605693803 | IP12: =IP11 -> 0.02920274742 | IQ12: =IQ11 -> 0.02148130326 | IR12: =IR11 -> 0.02156844856 | IS12: =IS11 -> 0.01788309229 | IT12: =IT11 -> 0.024492242 | IU12: =IU11 -> 0.02126374454 | IV12: =IV11 -> 0.02403396356 | IW12: =IW11 -> 0.01665197239 | IX12: =IX11 -> 0.01636341866 | IY12: =IY11 -> 0.03137203163 | IZ12: =IZ11 -> 0.02210581361 | JA12: =JA11 -> 0.009661158791 | JB12: =JB11 -> 0.01865721925 | JC12: =JC11 -> 0.01505328255 | JD12: =JD11 -> 0.01939407195 | JE12: =JE11 -> 0.02293829245 | JF12: =JF11 -> 0.02075429172 | JG12: =JG11 -> 0.02145763616 | JH12: =JH11 -> 0.01486686204 | JI12: =JI11 -> 0.02102597807 | JJ12: =JJ11 -> 0.02121680687 | JK12: =JK11 -> 0.02674109226 | JL12: =JL11 -> 0.02253990874 | JM12: =JM11 -> 0.0238775261 | JN12: =JN11 -> 0.01744480136 | JO12: =JO11 -> 0.02321156711 | JP12: =JP11 -> 0.02024696386 | JQ12: =JQ11 -> 0.02213888097 | JR12: =JR11 -> 0.01256030837 | JS12: =JS11 -> 0.01084660689 | JT12: =JT11 -> 0.02584667598 | JU12: =JU11 -> 0.02895294299 | JV12: =JV11 -> 0.01256403319 | JW12: =JW11 -> 0.02009733775 | JX12: =JX11 -> 0.01919369724 | JY12: =JY11 -> 0.02574558315 | JZ12: =JZ11 -> 0.02005077398 | KA12: =KA11 -> 0.0217657413 | KB12: =KB11 -> 0.02053427094 | KC12: =KC11 -> 0.02349454932 | KD12: =KD11 -> 0.01043839031 | KE12: =KE11 -> 0.02238531166 | KF12: =KF11 -> 0.02326115058 | KG12: =KG11 -> 0.01396612301 | KH12: =KH11 -> 0.01832277899 | KI12: =KI11 -> 0.01842122114 | KJ12: =KJ11 -> 0.01476961133 | KK12: =KK11 -> 0.02465156499 | KL12: =KL11 -> 0.02969197683 | KM12: =KM11 -> 0.01722308204 | KN12: =KN11 -> 0.01892690478 | KO12: =KO11 -> 0.02061952059 | KP12: =KP11 -> 0.01551356404 | KQ12: =KQ11 -> 0.01988569248 | KR12: =KR11 -> 0.01400229828 | KS12: =KS11 -> 0.0207046998 | KT12: =KT11 -> 0.02595112715 | KU12: =KU11 -> 0.02724327276 | KV12: =KV11 -> 0.009290682195 | KW12: =KW11 -> 0.03009140579 | KX12: =KX11 -> 0.0310362958 | KY12: =KY11 -> 0.0164511763 | KZ12: =KZ11 -> 0.02858286579 | LA12: =LA11 -> 0.01173827084 | LB12: =LB11 -> 0.02042284543 | LC12: =LC11 -> 0.0254472047 | LD12: =LD11 -> 0.02250240488 | LE12: =LE11 -> 0.01958010938 | LF12: =LF11 -> 0.008655679775 | LG12: =LG11 -> 0.02170580082 | LH12: =LH11 -> 0.01252936026 | LI12: =LI11 -> 0.01461451186 | LJ12: =LJ11 -> 0.01562453382 | LK12: =LK11 -> 0.0277513617 | LL12: =LL11 -> 0.03014904028 | LM12: =LM11 -> 0.01584495686 | LN12: =LN11 -> 0.02100943586 | LO12: =LO11 -> 0.01993493009 | LP12: =LP11 -> 0.02117530032 | LQ12: =LQ11 -> 0.01592012517 | LR12: =LR11 -> 0.01740766659 | LS12: =LS11 -> 0.01588393754 | LT12: =LT11 -> 0.01384218219 | LU12: =LU11 -> 0.02245110322 | LV12: =LV11 -> 0.01668134534 | LW12: =LW11 -> 0.02027963903 | LX12: =LX11 -> 0.02117387328 | LY12: =LY11 -> 0.01816550812 | LZ12: =LZ11 -> 0.01482928181 | MA12: =MA11 -> 0.01687140341 | MB12: =MB11 -> 0.02107164627 | MC12: =MC11 -> 0.01858620006 | MD12: =MD11 -> 0.009666822097 | ME12: =ME11 -> 0.01304467745 | MF12: =MF11 -> 0.02363391684 | MG12: =MG11 -> 0.01624643521 | MH12: =MH11 -> 0.02034715693 | MI12: =MI11 -> 0.02669638613 | MJ12: =MJ11 -> 0.02157733254 | MK12: =MK11 -> 0.02312781319 | ML12: =ML11 -> 0.02320257635 | MM12: =MM11 -> 0.01783842322 | MN12: =MN11 -> 0.009020017068 | MO12: =MO11 -> 0.01494943389 | MP12: =MP11 -> 0.0211670498 | MQ12: =MQ11 -> 0.01639909593 | MR12: =MR11 -> 0.0278762445 | MS12: =MS11 -> 0.0207259682
D13: Short-term period | E13: years | F13: =INDEX(I13:MS13,$E$2) -> 7.389571226 | G13: 2 | I13: 5 | J13: 5 | K13: 5 | L13: 5 | M13: 5 | N13: 5 | O13: 5 | P13: =_xlfn.NORM.INV(RAND(),$I13,$G13) -> 2.8805056 | Q13: =_xlfn.NORM.INV(RAND(),$I13,$G13) -> 3.623219065 | R13: 5.679482867 | S13: 7.613958789 | T13: 6.631577042 | U13: 2.490248296 | V13: 3.191468929 | W13: 8.741524421 | X13: 6.585471484 | Y13: 5.521254951 | Z13: 5.868500807 | AA13: 4.203876514 | AB13: 3.869252997 | AC13: 1.411495156 | AD13: 8.911077911 | AE13: 7.546298169 | AF13: 5.366345087 | AG13: 2.472307282 | AH13: 7.059032751 | AI13: 5.284624324 | AJ13: 9.070772396 | AK13: 5.709334743 | AL13: 0.8531697219 | AM13: 6.559437688 | AN13: 4.600335122 | AO13: 3.85538972 | AP13: 1.561502334 | AQ13: 3.474210365 | AR13: 7.836928765 | AS13: 6.693075427 | AT13: 6.918905624 | AU13: 6.911905186 | AV13: 8.350867091 | AW13: 9.559902232 | AX13: 6.469562768 | AY13: 3.722175146 | AZ13: 5.117365148 | BA13: 5.444894364 | BB13: 1.926264744 | BC13: 6.544430796 | BD13: 4.175950612 | BE13: 3.303896005 | BF13: 4.949642928 | BG13: 5.133554481 | BH13: 2.477051402 | BI13: 4.120995639 | BJ13: 8.185215123 | BK13: 4.343482701 | BL13: 3.933018104 | BM13: 5.03355433 | BN13: 2.894052416 | BO13: 6.704708036 | BP13: 9.127728016 | BQ13: 5.728830504 | BR13: 4.82664831 | BS13: 4.590214978 | BT13: 5.150645648 | BU13: 5.502488293 | BV13: 2.382382074 | BW13: 5.935596473 | BX13: 2.531807049 | BY13: 5.194770281 | BZ13: 5.410363362 | CA13: 4.959052315 | CB13: 5.467712381 | CC13: =_xlfn.NORM.INV(RAND(),$I13,$G13) -> 5.336414185 | CD13: 5.835802371 | CE13: 6.435866656 | CF13: 4.153316846 | CG13: 7.22880546 | CH13: 0.7139660246 | CI13: 5.445613171 | CJ13: 5.193549142 | CK13: 4.837488272 | CL13: 7.092564454 | CM13: 3.079821236 | CN13: 3.768083723 | CO13: 3.240028867 | CP13: 5.259549925 | CQ13: 3.849363091 | CR13: 6.933584271 | CS13: 6.068414589 | CT13: 2.713264055 | CU13: 6.920065732 | CV13: 8.258237149 | CW13: 5.537458795 | CX13: 5.245257204 | CY13: 5.852495821 | CZ13: 1.193121882 | DA13: 6.924002572 | DB13: 3.047005464 | DC13: 5.575965344 | DD13: 7.389571226 | DE13: 4.385454154 | DF13: 4.756775143 | DG13: 4.64190529 | DH13: 2.345232609 | DI13: 3.109104469 | DJ13: 1.471486888 | DK13: 2.966804951 | DL13: 4.371373205 | DM13: 0.9702417083 | DN13: 7.294728062 | DO13: 6.298660085 | DP13: 3.725527 | DQ13: 5.675279041 | DR13: 6.773633296 | DS13: 2.730818528 | DT13: 6.901599783 | DU13: 1.900211131 | DV13: 3.74600013 | DW13: 5.795726231 | DX13: 5.921314704 | DY13: 7.633894487 | DZ13: 4.103448947 | EA13: 6.489386883 | EB13: 7.497125741 | EC13: 4.246915132 | ED13: 7.057712326 | EE13: 8.251238874 | EF13: 7.275968601 | EG13: 3.754809897 | EH13: 5.005978958 | EI13: 6.097756001 | EJ13: 4.066179852 | EK13: 4.861293858 | EL13: 3.732431204 | EM13: 5.808085179 | EN13: 2.790095576 | EO13: =_xlfn.NORM.INV(RAND(),$I13,$G13) -> 6.745787451 | EP13: 4.762624277 | EQ13: 1.872495915 | ER13: 4.313487368 | ES13: 4.498401447 | ET13: 4.45463796 | EU13: 9.267694054 | EV13: 5.783524257 | EW13: 3.426262374 | EX13: 6.078527802 | EY13: -0.3318496875 | EZ13: 4.968664978 | FA13: 5.480435333 | FB13: 4.716611479 | FC13: 6.593049527 | FD13: 6.63846933 | FE13: 8.575876246 | FF13: 1.593500579 | FG13: 4.617333698 | FH13: 7.169445298 | FI13: 4.662331214 | FJ13: 5.035126402 | FK13: 5.36584385 | FL13: 8.168942442 | FM13: 4.38524839 | FN13: 6.123028281 | FO13: 4.186401934 | FP13: 9.991305419 | FQ13: 5.181426828 | FR13: 6.101295854 | FS13: 3.920605741 | FT13: 4.680671569 | FU13: 5.801928545 | FV13: 4.679055375 | FW13: 4.218963624 | FX13: 4.919653978 | FY13: 6.366300822 | FZ13: 7.220284724 | GA13: 5.667545033 | GB13: 3.752243065 | GC13: 3.363365041 | GD13: 3.053595376 | GE13: 5.48743375 | GF13: 4.570383955 | GG13: 7.607978655 | GH13: 7.138886953 | GI13: 5.121322837 | GJ13: 7.078909834 | GK13: 3.594138136 | GL13: 11.13174569 | GM13: 2.559176007 | GN13: 3.863397206 | GO13: 5.732157386 | GP13: 4.87977458 | GQ13: 6.042230468 | GR13: 7.924023887 | GS13: 4.164439341 | GT13: 6.264200419 | GU13: 1.494459986 | GV13: 5.505539724 | GW13: 4.981783991 | GX13: 7.289216966 | GY13: 3.915460054 | GZ13: 1.148384266 | HA13: =_xlfn.NORM.INV(RAND(),$I13,$G13) -> 5.393164658 | HB13: 2.785678833 | HC13: 6.498540032 | HD13: 5.879183179 | HE13: 6.039577989 | HF13: 3.812494211 | HG13: 6.032688121 | HH13: 7.498212359 | HI13: 5.708086518 | HJ13: 3.60517935 | HK13: 4.11991784 | HL13: 3.813658117 | HM13: 5.599590187 | HN13: 5.178095751 | HO13: 3.688736637 | HP13: 6.258188974 | HQ13: 2.977925427 | HR13: 5.257747549 | HS13: 4.825143817 | HT13: 5.984139221 | HU13: 4.74693164 | HV13: 7.431094874 | HW13: 4.751762882 | HX13: 3.935672663 | HY13: 4.729547422 | HZ13: 5.494187866 | IA13: 5.044512547 | IB13: 4.589985136 | IC13: 6.103896505 | ID13: 8.073871556 | IE13: 4.147221776 | IF13: 4.108957309 | IG13: 3.979142111 | IH13: 5.352368897 | II13: 1.097205331 | IJ13: 5.067077779 | IK13: 2.149768495 | IL13: 5.720334253 | IM13: 5.549211847 | IN13: 4.296040824 | IO13: 4.960674528 | IP13: 7.622994476 | IQ13: 5.262660071 | IR13: 6.033328924 | IS13: 5.531903279 | IT13: 6.710066384 | IU13: 7.259527031 | IV13: 5.741612392 | IW13: 10.38846519 | IX13: 4.415674887 | IY13: 3.517162302 | IZ13: 4.493041594 | JA13: 2.667454464 | JB13: 2.819873672 | JC13: 5.899934149 | JD13: 7.16443967 | JE13: 6.327190415 | JF13: 7.35541745 | JG13: 4.266829765 | JH13: 3.876520101 | JI13: 4.589794226 | JJ13: 4.265371865 | JK13: 2.871963674 | JL13: 6.654381791 | JM13: =_xlfn.NORM.INV(RAND(),$I13,$G13) -> 1.953856079 | JN13: 7.402106425 | JO13: 8.446916456 | JP13: 4.295081584 | JQ13: 6.510542395 | JR13: 7.290921854 | JS13: 4.796941369 | JT13: -0.6651374362 | JU13: 5.544972753 | JV13: 7.088852175 | JW13: 1.413135734 | JX13: 7.663119585 | JY13: 5.262443028 | JZ13: 8.085913438 | KA13: 5.999121581 | KB13: 6.94898911 | KC13: 5.405088672 | KD13: 2.228638495 | KE13: 5.287465389 | KF13: 5.936776822 | KG13: 2.678634874 | KH13: 3.610525361 | KI13: 5.524893684 | KJ13: 8.947689243 | KK13: 5.178002827 | KL13: 4.132004929 | KM13: 5.324048627 | KN13: 8.457463569 | KO13: 1.968530071 | KP13: 3.687199346 | KQ13: 6.744785809 | KR13: 5.046788464 | KS13: 5.346099922 | KT13: 7.896809672 | KU13: 4.905157446 | KV13: 1.49572841 | KW13: 7.954465106 | KX13: 9.375488935 | KY13: 8.558232258 | KZ13: 7.251222464 | LA13: 5.318231515 | LB13: 3.556673171 | LC13: 2.764797286 | LD13: 2.823999736 | LE13: 4.788847607 | LF13: 5.251093474 | LG13: 3.968194166 | LH13: 3.755057143 | LI13: 4.060750698 | LJ13: 6.364916147 | LK13: -1.607359674 | LL13: 7.699990224 | LM13: 7.329770694 | LN13: 5.698729223 | LO13: 5.095749864 | LP13: 2.832398211 | LQ13: 8.22459363 | LR13: 8.060751889 | LS13: 2.537116673 | LT13: 3.767973939 | LU13: 3.216125085 | LV13: 2.696527616 | LW13: 5.372197309 | LX13: 3.755519411 | LY13: =_xlfn.NORM.INV(RAND(),$I13,$G13) -> 6.12628513 | LZ13: 3.376559416 | MA13: 6.107385663 | MB13: 5.530012167 | MC13: 1.218636022 | MD13: 7.222143376 | ME13: 4.941967549 | MF13: 3.252473961 | MG13: 6.865098038 | MH13: 2.94178202 | MI13: 3.615460107 | MJ13: 0.07814771125 | MK13: 2.781295359 | ML13: 3.415595709 | MM13: 6.206607714 | MN13: 6.278301928 | MO13: 8.403137608 | MP13: 5.48328584 | MQ13: 3.550482455 | MR13: 4.718521456 | MS13: 7.114224287
D14: Terminal Period | E14: Year | F14: =INDEX(I14:MS14,$E$2) -> 15 | I14: 15 | J14: 15 | K14: 15 | L14: 15 | M14: 15 | N14: 15 | O14: 15 | P14: =O14 -> 15 | Q14: =P14 -> 15 | R14: 15 | S14: 15 | T14: 15 | U14: 15 | V14: 15 | W14: 15 | X14: 15 | Y14: 15 | Z14: 15 | AA14: 15 | AB14: 15 | AC14: 15 | AD14: 15 | AE14: 15 | AF14: 15 | AG14: 15 | AH14: 15 | AI14: 15 | AJ14: 15 | AK14: 15 | AL14: 15 | AM14: 15 | AN14: 15 | AO14: 15 | AP14: 15 | AQ14: 15 | AR14: 15 | AS14: 15 | AT14: 15 | AU14: 15 | AV14: 15 | AW14: 15 | AX14: 15 | AY14: 15 | AZ14: 15 | BA14: 15 | BB14: 15 | BC14: 15 | BD14: 15 | BE14: 15 | BF14: 15 | BG14: 15 | BH14: 15 | BI14: 15 | BJ14: 15 | BK14: 15 | BL14: 15 | BM14: 15 | BN14: 15 | BO14: 15 | BP14: 15 | BQ14: 15 | BR14: 15 | BS14: 15 | BT14: 15 | BU14: 15 | BV14: 15 | BW14: 15 | BX14: 15 | BY14: 15 | BZ14: 15 | CA14: 15 | CB14: 15 | CC14: =CB14 -> 15 | CD14: 15 | CE14: 15 | CF14: 15 | CG14: 15 | CH14: 15 | CI14: 15 | CJ14: 15 | CK14: 15 | CL14: 15 | CM14: 15 | CN14: 15 | CO14: 15 | CP14: 15 | CQ14: 15 | CR14: 15 | CS14: 15 | CT14: 15 | CU14: 15 | CV14: 15 | CW14: 15 | CX14: 15 | CY14: 15 | CZ14: 15 | DA14: 15 | DB14: 15 | DC14: 15 | DD14: 15 | DE14: 15 | DF14: 15 | DG14: 15 | DH14: 15 | DI14: 15 | DJ14: 15 | DK14: 15 | DL14: 15 | DM14: 15 | DN14: 15 | DO14: 15 | DP14: 15 | DQ14: 15 | DR14: 15 | DS14: 15 | DT14: 15 | DU14: 15 | DV14: 15 | DW14: 15 | DX14: 15 | DY14: 15 | DZ14: 15 | EA14: 15 | EB14: 15 | EC14: 15 | ED14: 15 | EE14: 15 | EF14: 15 | EG14: 15 | EH14: 15 | EI14: 15 | EJ14: 15 | EK14: 15 | EL14: 15 | EM14: 15 | EN14: =EM14 -> 15 | EO14: 15 | EP14: 15 | EQ14: 15 | ER14: 15 | ES14: 15 | ET14: 15 | EU14: 15 | EV14: 15 | EW14: 15 | EX14: 15 | EY14: 15 | EZ14: 15 | FA14: 15 | FB14: 15 | FC14: 15 | FD14: 15 | FE14: 15 | FF14: 15 | FG14: 15 | FH14: 15 | FI14: 15 | FJ14: 15 | FK14: 15 | FL14: 15 | FM14: 15 | FN14: 15 | FO14: 15 | FP14: 15 | FQ14: 15 | FR14: 15 | FS14: 15 | FT14: 15 | FU14: 15 | FV14: 15 | FW14: 15 | FX14: 15 | FY14: 15 | FZ14: 15 | GA14: 15 | GB14: 15 | GC14: 15 | GD14: 15 | GE14: 15 | GF14: 15 | GG14: 15 | GH14: 15 | GI14: 15 | GJ14: 15 | GK14: 15 | GL14: 15 | GM14: 15 | GN14: 15 | GO14: 15 | GP14: 15 | GQ14: 15 | GR14: 15 | GS14: 15 | GT14: 15 | GU14: 15 | GV14: 15 | GW14: 15 | GX14: 15 | GY14: 15 | GZ14: =GY14 -> 15 | HA14: 15 | HB14: 15 | HC14: 15 | HD14: 15 | HE14: 15 | HF14: 15 | HG14: 15 | HH14: 15 | HI14: 15 | HJ14: 15 | HK14: 15 | HL14: 15 | HM14: 15 | HN14: 15 | HO14: 15 | HP14: 15 | HQ14: 15 | HR14: 15 | HS14: 15 | HT14: 15 | HU14: 15 | HV14: 15 | HW14: 15 | HX14: 15 | HY14: 15 | HZ14: 15 | IA14: 15 | IB14: 15 | IC14: 15 | ID14: 15 | IE14: 15 | IF14: 15 | IG14: 15 | IH14: 15 | II14: 15 | IJ14: 15 | IK14: 15 | IL14: 15 | IM14: 15 | IN14: 15 | IO14: 15 | IP14: 15 | IQ14: 15 | IR14: 15 | IS14: 15 | IT14: 15 | IU14: 15 | IV14: 15 | IW14: 15 | IX14: 15 | IY14: 15 | IZ14: 15 | JA14: 15 | JB14: 15 | JC14: 15 | JD14: 15 | JE14: 15 | JF14: 15 | JG14: 15 | JH14: 15 | JI14: 15 | JJ14: 15 | JK14: 15 | JL14: =JK14 -> 15 | JM14: 15 | JN14: 15 | JO14: 15 | JP14: 15 | JQ14: 15 | JR14: 15 | JS14: 15 | JT14: 15 | JU14: 15 | JV14: 15 | JW14: 15 | JX14: 15 | JY14: 15 | JZ14: 15 | KA14: 15 | KB14: 15 | KC14: 15 | KD14: 15 | KE14: 15 | KF14: 15 | KG14: 15 | KH14: 15 | KI14: 15 | KJ14: 15 | KK14: 15 | KL14: 15 | KM14: 15 | KN14: 15 | KO14: 15 | KP14: 15 | KQ14: 15 | KR14: 15 | KS14: 15 | KT14: 15 | KU14: 15 | KV14: 15 | KW14: 15 | KX14: 15 | KY14: 15 | KZ14: 15 | LA14: 15 | LB14: 15 | LC14: 15 | LD14: 15 | LE14: 15 | LF14: 15 | LG14: 15 | LH14: 15 | LI14: 15 | LJ14: 15 | LK14: 15 | LL14: 15 | LM14: 15 | LN14: 15 | LO14: 15 | LP14: 15 | LQ14: 15 | LR14: 15 | LS14: 15 | LT14: 15 | LU14: 15 | LV14: 15 | LW14: 15 | LX14: =LW14 -> 15 | LY14: 15 | LZ14: 15 | MA14: 15 | MB14: 15 | MC14: 15 | MD14: 15 | ME14: 15 | MF14: 15 | MG14: 15 | MH14: 15 | MI14: 15 | MJ14: 15 | MK14: 15 | ML14: 15 | MM14: 15 | MN14: 15 | MO14: 15 | MP14: 15 | MQ14: 15 | MR14: 15 | MS14: 15
I16: 1 | J16: 2 | K16: 3 | L16: 4 | M16: 5 | N16: 6 | O16: 7 | P16: 8 | Q16: 9 | R16: 10 | S16: 11 | T16: 12 | U16: 13 | V16: 14 | W16: 15 | X16: 16 | Y16: 17 | Z16: 18 | AA16: 19 | AB16: 20 | AC16: 21 | AD16: 22 | AE16: 23 | AF16: 24 | AG16: 25 | AH16: 26 | AI16: 27 | AJ16: 28 | AK16: 29 | AL16: 30 | AM16: 31 | AN16: 32 | AO16: 33 | AP16: 34 | AQ16: 35 | AR16: 36 | AS16: 37 | AT16: 38 | AU16: 39 | AV16: 40 | AW16: 41 | AX16: 42 | AY16: 43 | AZ16: 44 | BA16: 45 | BB16: 46 | BC16: 47 | BD16: 48 | BE16: 49 | BF16: 50 | BG16: 51 | BH16: 52 | BI16: 53 | BJ16: 54 | BK16: 55 | BL16: 56 | BM16: 57 | BN16: 58 | BO16: 59 | BP16: 60 | BQ16: 61 | BR16: 62 | BS16: 63 | BT16: 64 | BU16: 65 | BV16: 66 | BW16: 67 | BX16: 68 | BY16: 69 | BZ16: 70 | CA16: 71 | CB16: 72 | CC16: 73 | CD16: 74 | CE16: 75 | CF16: 76 | CG16: 77 | CH16: 78 | CI16: 79 | CJ16: 80 | CK16: 81 | CL16: 82 | CM16: 83 | CN16: 84 | CO16: 85 | CP16: 86 | CQ16: 87 | CR16: 88 | CS16: 89 | CT16: 90 | CU16: 91 | CV16: 92 | CW16: 93 | CX16: 94 | CY16: 95 | CZ16: 96 | DA16: 97 | DB16: 98 | DC16: 99 | DD16: 100 | DE16: 101 | DF16: 102 | DG16: 103 | DH16: 104 | DI16: 105 | DJ16: 106 | DK16: 107 | DL16: 108 | DM16: 109 | DN16: 110 | DO16: 111 | DP16: 112 | DQ16: 113 | DR16: 114 | DS16: 115 | DT16: 116 | DU16: 117 | DV16: 118 | DW16: 119 | DX16: 120 | DY16: 121 | DZ16: 122 | EA16: 123 | EB16: 124 | EC16: 125 | ED16: 126 | EE16: 127 | EF16: 128 | EG16: 129 | EH16: 130 | EI16: 131 | EJ16: 132 | EK16: 133 | EL16: 134 | EM16: 135 | EN16: 135 | EO16: 135 | EP16: 135 | EQ16: 135 | ER16: 135 | ES16: 135 | ET16: 135 | EU16: 135 | EV16: 135 | EW16: 135 | EX16: 135 | EY16: 135 | EZ16: 135 | FA16: 135 | FB16: 135 | FC16: 135 | FD16: 135 | FE16: 135 | FF16: 135 | FG16: 135 | FH16: 135 | FI16: 135 | FJ16: 135 | FK16: 135 | FL16: 135 | FM16: 135 | FN16: 135 | FO16: 135 | FP16: 135 | FQ16: 135 | FR16: 135 | FS16: 135 | FT16: 135 | FU16: 135 | FV16: 135 | FW16: 135 | FX16: 135 | FY16: 135 | FZ16: 135 | GA16: 135 | GB16: 135 | GC16: 135 | GD16: 135 | GE16: 135 | GF16: 135 | GG16: 135 | GH16: 135 | GI16: 135 | GJ16: 135 | GK16: 135 | GL16: 135 | GM16: 135 | GN16: 135 | GO16: 135 | GP16: 135 | GQ16: 135 | GR16: 135 | GS16: 135 | GT16: 135 | GU16: 135 | GV16: 135 | GW16: 135 | GX16: 135 | GY16: 135 | GZ16: 135 | HA16: 135 | HB16: 135 | HC16: 135 | HD16: 135 | HE16: 135 | HF16: 135 | HG16: 135 | HH16: 135 | HI16: 135 | HJ16: 135 | HK16: 135 | HL16: 135 | HM16: 135 | HN16: 135 | HO16: 135 | HP16: 135 | HQ16: 135 | HR16: 135 | HS16: 135 | HT16: 135 | HU16: 135 | HV16: 135 | HW16: 135 | HX16: 135 | HY16: 135 | HZ16: 135 | IA16: 135 | IB16: 135 | IC16: 135 | ID16: 135 | IE16: 135 | IF16: 135 | IG16: 135 | IH16: 135 | II16: 135 | IJ16: 135 | IK16: 135 | IL16: 135 | IM16: 135 | IN16: 135 | IO16: 135 | IP16: 135 | IQ16: 135 | IR16: 135 | IS16: 135 | IT16: 135 | IU16: 135 | IV16: 135 | IW16: 135 | IX16: 135 | IY16: 135 | IZ16: 135 | JA16: 135 | JB16: 135 | JC16: 135 | JD16: 135 | JE16: 135 | JF16: 135 | JG16: 135 | JH16: 135 | JI16: 135 | JJ16: 135 | JK16: 135 | JL16: 135 | JM16: 135 | JN16: 135 | JO16: 135 | JP16: 135 | JQ16: 135 | JR16: 135 | JS16: 135 | JT16: 135 | JU16: 135 | JV16: 135 | JW16: 135 | JX16: 135 | JY16: 135 | JZ16: 135 | KA16: 135 | KB16: 135 | KC16: 135 | KD16: 135 | KE16: 135 | KF16: 135 | KG16: 135 | KH16: 135 | KI16: 135 | KJ16: 135 | KK16: 135 | KL16: 135 | KM16: 135 | KN16: 135 | KO16: 135 | KP16: 135 | KQ16: 135 | KR16: 135 | KS16: 135 | KT16: 135 | KU16: 135 | KV16: 135 | KW16: 135 | KX16: 135 | KY16: 135 | KZ16: 135 | LA16: 135 | LB16: 135 | LC16: 135 | LD16: 135 | LE16: 135 | LF16: 135 | LG16: 135 | LH16: 135 | LI16: 135 | LJ16: 135 | LK16: 135 | LL16: 135 | LM16: 135 | LN16: 135 | LO16: 135 | LP16: 135 | LQ16: 135 | LR16: 135 | LS16: 135 | LT16: 135 | LU16: 135 | LV16: 135 | LW16: 135 | LX16: 135 | LY16: 135 | LZ16: 135 | MA16: 135 | MB16: 135 | MC16: 135 | MD16: 135 | ME16: 135 | MF16: 135 | MG16: 135 | MH16: 135 | MI16: 135 | MJ16: 135 | MK16: 135 | ML16: 135 | MM16: 135 | MN16: 135 | MO16: 135 | MP16: 135 | MQ16: 135 | MR16: 135 | MS16: 135
H17: =F50 -> 2.368015415
D18: Simple Implied k
G20: x | I20: =I17 -> 0 | J20: =J17 -> 0 | K20: 0 | L20: 0 | M20: 0 | N20: 0 | O20: 0 | P20: 0 | Q20: 0 | R20: 0 | S20: 0 | T20: 0 | U20: 0 | V20: 0 | W20: 0 | X20: 0 | Y20: 0 | Z20: 0 | AA20: 0 | AB20: 0 | AC20: 0
H21: ROE | I21: =I8 -> 0.08 | J21: =J8 -> 0.11 | K21: 0.15 | L21: 0.15 | M21: 0.11 | N21: 0.2 | O21: 0.11 | P21: 0.03621883157 | Q21: 0.09394915254 | R21: 0.06043769364 | S21: 0.08344564777 | T21: 0.09769057453 | U21: 0.1140896607 | V21: 0.07646683504 | W21: 0.1081838793 | X21: 0.06297414853 | Y21: 0.1027656917 | Z21: 0.04972670777 | AA21: 0.1062144503 | AB21: 0.07816152533 | AC21: 0.07554276218
H22: Growth | I22: =I12 -> 0.05 | J22: =J12 -> 0.05 | K22: 0.05 | L22: 0.08 | M22: 0.03 | N22: 0.03 | O22: 0.03 | P22: 0.01609931761 | Q22: 0.009613102552 | R22: 0.01892507946 | S22: 0.02171568594 | T22: 0.01662032728 | U22: 0.01795358394 | V22: 0.02545024042 | W22: 0.0280439147 | X22: 0.02348818195 | Y22: 0.02107039906 | Z22: 0.01500178433 | AA22: 0.01872680148 | AB22: 0.0197902992 | AC22: 0.02276306701
H23: ROE * G | I23: =I21*I22 -> 0.004 | J23: =J21*J22 -> 0.0055 | K23: 0.0075 | L23: 0.012 | M23: 0.0033 | N23: 0.006 | O23: 0.0033 | P23: 0.0005830984728 | Q23: 0.0009031428381 | R23: 0.001143788155 | S23: 0.00181207948 | T23: 0.001623649321 | U23: 0.002048318299 | V23: 0.001946099336 | W23: 0.003033899483 | X23: 0.001479148259 | Y23: 0.002165314134 | Z23: 0.0007459893453 | AA23: 0.001989056926 | AB23: 0.001546839972 | AC23: 0.001719584958
D26: ROE Table | F26: 1 | G26: =F14 -> 15 | H26: 15
D27: ROE | F27: =F8 -> 0.1147206166 | G27: =F27 -> 0.1147206166 | H27: =G27 -> 0.1147206166
D28: Growth | F28: =F12 -> 0.02 | G28: =F28 -> 0.02 | H28: =F12 -> 0.02
D32: Time Period | G32: 1 | H32: 2 | I32: 3 | J32: 4 | K32: 5 | L32: 6 | M32: 7 | N32: 8 | O32: 9 | P32: 10 | Q32: 11 | R32: 12 | S32: 13 | T32: 14 | U32: 15
D33: Short-term | E33: =F13 -> 7.389571226 | G33: =G32<=$E$33 -> TRUE | H33: =H32<=$E$33 -> TRUE | I33: TRUE | J33: TRUE | K33: TRUE | L33: TRUE | M33: TRUE | N33: FALSE | O33: FALSE | P33: FALSE | Q33: FALSE | R33: FALSE | S33: FALSE | T33: FALSE | U33: FALSE
D34: Terminal Period | E34: =F14 -> 15 | G34: =G32=$E$34 -> FALSE | H34: =H32=$E$34 -> FALSE | I34: FALSE | J34: FALSE | K34: FALSE | L34: FALSE | M34: FALSE | N34: FALSE | O34: FALSE | P34: FALSE | Q34: FALSE | R34: FALSE | S34: FALSE | T34: FALSE | U34: TRUE
D36: ROE | G36: =interpolate_look_up(G32,26:26,27:27) -> 0.1147206166 | H36: =interpolate_look_up(H32,26:26,27:27) -> 0.1147206166 | I36: =interpolate_look_up(I32,26:26,27:27) -> 0.1147206166 | J36: =interpolate_look_up(J32,26:26,27:27) -> 0.1147206166 | K36: =interpolate_look_up(K32,26:26,27:27) -> 0.1147206166 | L36: =interpolate_look_up(L32,26:26,27:27) -> 0.1147206166 | M36: =interpolate_look_up(M32,26:26,27:27) -> 0.1147206166 | N36: =interpolate_look_up(N32,26:26,27:27) -> 0.1147206166 | O36: =interpolate_look_up(O32,26:26,27:27) -> 0.1147206166 | P36: =interpolate_look_up(P32,26:26,27:27) -> 0.1147206166 | Q36: =interpolate_look_up(Q32,26:26,27:27) -> 0.1147206166 | R36: =interpolate_look_up(R32,26:26,27:27) -> 0.1147206166 | S36: =interpolate_look_up(S32,26:26,27:27) -> 0.1147206166 | T36: =interpolate_look_up(T32,26:26,27:27) -> 0.1147206166 | U36: =interpolate_look_up(U32,26:26,27:27) -> 0.1147206166
D37: Growth | G37: =interpolate_look_up(G32,26:26,28:28) -> 0.02 | H37: =interpolate_look_up(H32,26:26,28:28) -> 0.02 | I37: =interpolate_look_up(I32,26:26,28:28) -> 0.02 | J37: =interpolate_look_up(J32,26:26,28:28) -> 0.02 | K37: =interpolate_look_up(K32,26:26,28:28) -> 0.02 | L37: =interpolate_look_up(L32,26:26,28:28) -> 0.02 | M37: =interpolate_look_up(M32,26:26,28:28) -> 0.02 | N37: =interpolate_look_up(N32,26:26,28:28) -> 0.02 | O37: =interpolate_look_up(O32,26:26,28:28) -> 0.02 | P37: =interpolate_look_up(P32,26:26,28:28) -> 0.02 | Q37: =interpolate_look_up(Q32,26:26,28:28) -> 0.02 | R37: =interpolate_look_up(R32,26:26,28:28) -> 0.02 | S37: =interpolate_look_up(S32,26:26,28:28) -> 0.02 | T37: =interpolate_look_up(T32,26:26,28:28) -> 0.02 | U37: =interpolate_look_up(U32,26:26,28:28) -> 0.02
D38: Payout Ratio | G38: =(1-G37/G36) -> 0.8256634196 | H38: =(1-H37/H36) -> 0.8256634196 | I38: 0.8256634196 | J38: 0.8256634196 | K38: 0.8256634196 | L38: 0.8256634196 | M38: 0.8256634196 | N38: 0.8256634196 | O38: 0.8256634196 | P38: 0.8256634196 | Q38: 0.8256634196 | R38: 0.8256634196 | S38: 0.8256634196 | T38: 0.8256634196 | U38: 0.8256634196
D40: BV Progression
D41: Opening | G41: =F44 -> 100 | H41: =G44 -> 102 | I41: 104.04 | J41: 106.1208 | K41: 108.243216 | L41: 110.4080803 | M41: 112.6162419 | N41: 114.8685668 | O41: 117.1659381 | P41: 119.5092569 | Q41: 121.899442 | R41: 124.3374308 | S41: 126.8241795 | T41: 129.360663 | U41: 131.9478763
D42: Add: Income | G42: =G41*G36 -> 11.47206166 | H42: =H41*H36 -> 11.70150289 | I42: 11.93553295 | J42: 12.17424361 | K42: 12.41772848 | L42: 12.66608305 | M42: 12.91940471 | N42: 13.17779281 | O42: 13.44134866 | P42: 13.71017564 | Q42: 13.98437915 | R42: 14.26406673 | S42: 14.54934807 | T42: 14.84033503 | U42: 15.13714173
D43: Less: Dividend | G43: =G42*G38 -> 9.47206166 | H43: =H42*H38 -> 9.661502893 | I43: 9.854732951 | J43: 10.05182761 | K43: 10.25286416 | L43: 10.45792145 | M43: 10.66707987 | N43: 10.88042147 | O43: 11.0980299 | P43: 11.3199905 | Q43: 11.54639031 | R43: 11.77731812 | S43: 12.01286448 | T43: 12.25312177 | U43: 12.4981842
D44: Closing Balance | F44: =F7 -> 100 | G44: =G41+G42-G43 -> 102 | H44: =H41+H42-H43 -> 104.04 | I44: 106.1208 | J44: 108.243216 | K44: 110.4080803 | L44: 112.6162419 | M44: 114.8685668 | N44: 117.1659381 | O44: 119.5092569 | P44: 121.899442 | Q44: 124.3374308 | R44: 126.8241795 | S44: 129.360663 | T44: 131.9478763 | U44: 134.5868338
D46: Terminal Value | E46: =(1+F12)*(1-F12/H27)/(F10-H28) -> 21.0544172 | G46: =G42*$E$46*G34 -> 0 | H46: =H42*$E$46*H34 -> 0 | I46: 0 | J46: 0 | K46: 0 | L46: 0 | M46: 0 | N46: 0 | O46: 0 | P46: 0 | Q46: 0 | R46: 0 | S46: 0 | T46: 0 | U46: 318.7036972
D48: Total Cash Flow | G48: =G46+G43 -> 9.47206166 | H48: =H46+H43 -> 9.661502893 | I48: 9.854732951 | J48: 10.05182761 | K48: 10.25286416 | L48: 10.45792145 | M48: 10.66707987 | N48: 10.88042147 | O48: 11.0980299 | P48: 11.3199905 | Q48: 11.54639031 | R48: 11.77731812 | S48: 12.01286448 | T48: 12.25312177 | U48: 331.2018814
D49: Total Value | E49: =F10 -> 0.06 | F49: =NPV(E49,G48:U48) -> 236.8015415
D50: Price to Book | F50: =F49/F44 -> 2.368015415
D51: P/E Ratio | F51: =F49/G42 -> 20.64158549
D53: Cash Flow | G53: =G43+G46 -> 9.47206166 | H53: =H43+H46 -> 9.661502893 | I53: 9.854732951 | J53: 10.05182761 | K53: 10.25286416 | L53: 10.45792145 | M53: 10.66707987 | N53: 10.88042147 | O53: 11.0980299 | P53: 11.3199905 | Q53: 11.54639031 | R53: 11.77731812 | S53: 12.01286448 | T53: 12.25312177 | U53: 331.2018814
D54: PV of Cash Flow | G54: =G53/(1+$E$49)^G32 -> 8.935907226 | H54: =H53/(1+$E$49)^H32 -> 8.59870318 | I54: 8.274223815 | J54: 7.961988954 | K54: 7.66153654 | L54: 7.372421954 | M54: 7.094217352 | N54: 6.826511037 | O54: 6.568906847 | P54: 6.321023569 | Q54: 6.082494378 | R54: 5.852966288 | S54: 5.632099636 | T54: 5.419567574 | U54: 138.1989731
D55: Weighting | G55: =G54/SUM(54:54) -> 0.03773584906 | H55: =H54/SUM(54:54) -> 0.03631185475 | I55: 0.03494159608 | J55: 0.03362304529 | K55: 0.03235425113 | L55: 0.03113333599 | M55: 0.02995849312 | N55: 0.02882798395 | O55: 0.0277401355 | P55: 0.02669333793 | Q55: 0.02568604216 | R55: 0.02471675755 | S55: 0.02378404972 | T55: 0.02288653841 | U55: 0.5836067294
D56: Weighted ROE | E56: =SUMPRODUCT(G55:U55,G36:U36) -> 0.1147206166

Sheet Simulation Fixed
D2: Code | E2: 1 | I2: V = ROE x BV * (1-g/ROE)/(k-g) | M2: P/B = (ROE-g)/(k-g) | O2: k=(ROE-g)/PB + g | Q2: k = ROE/PB-g/PB + g
F4: Applied | G4: Vol | H4: Max | I4: Base | J4: Constant | K4: High ROE | L4: High G | M4: Low G | N4: High ST | O4: High LT G | P4: 1 | Q4: 2 | R4: 3 | S4: 4 | T4: 5 | U4: 6 | V4: 7 | W4: 8 | X4: 9 | Y4: 10 | Z4: 11 | AA4: 12 | AB4: 13 | AC4: 14 | AD4: 15 | AE4: 16 | AF4: 17 | AG4: 18 | AH4: 19 | AI4: 20 | AJ4: 21 | AK4: 22 | AL4: 23 | AM4: 24 | AN4: 25 | AO4: 26 | AP4: 27 | AQ4: 28 | AR4: 29 | AS4: 30 | AT4: 31 | AU4: 32 | AV4: 33 | AW4: 34 | AX4: 35 | AY4: 36 | AZ4: 37 | BA4: 38 | BB4: 39 | BC4: 40 | BD4: 41 | BE4: 42 | BF4: 43 | BG4: 44 | BH4: 45 | BI4: 46 | BJ4: 47 | BK4: 48 | BL4: 49 | BM4: 50 | BN4: 51 | BO4: 52 | BP4: 53 | BQ4: 54 | BR4: 55 | BS4: 56 | BT4: 57 | BU4: 58 | BV4: 59 | BW4: 60 | BX4: 61 | BY4: 62 | BZ4: 63 | CA4: 64 | CB4: 65 | CC4: 66 | CD4: 67 | CE4: 68 | CF4: 69 | CG4: 70 | CH4: 71 | CI4: 72 | CJ4: 73 | CK4: 74 | CL4: 75 | CM4: 76 | CN4: 77 | CO4: 78 | CP4: 79 | CQ4: 80 | CR4: 81 | CS4: 82 | CT4: 83 | CU4: 84 | CV4: 85 | CW4: 86 | CX4: 87 | CY4: 88 | CZ4: 89 | DA4: 90 | DB4: 91 | DC4: 92 | DD4: 93 | DE4: 94 | DF4: 95 | DG4: 96 | DH4: 97 | DI4: 98 | DJ4: 99 | DK4: 100 | DL4: 101 | DM4: 102 | DN4: 103 | DO4: 104 | DP4: 105 | DQ4: 106 | DR4: 107 | DS4: 108 | DT4: 109 | DU4: 110 | DV4: 111 | DW4: 112 | DX4: 113 | DY4: 114 | DZ4: 115 | EA4: 116 | EB4: 117 | EC4: 118 | ED4: 119 | EE4: 120 | EF4: 121 | EG4: 122 | EH4: 123 | EI4: 124 | EJ4: 125 | EK4: 126 | EL4: 127 | EM4: 128 | EN4: 129 | EO4: 130 | EP4: 131 | EQ4: 132 | ER4: 133 | ES4: 134 | ET4: 135 | EU4: 136 | EV4: 137 | EW4: 138 | EX4: 139 | EY4: 140 | EZ4: 141 | FA4: 142 | FB4: 143 | FC4: 144 | FD4: 145 | FE4: 146 | FF4: 147 | FG4: 148 | FH4: 149 | FI4: 150 | FJ4: 151 | FK4: 152 | FL4: 153 | FM4: 154 | FN4: 155 | FO4: 156 | FP4: 157 | FQ4: 158 | FR4: 159 | FS4: 160 | FT4: 161 | FU4: 162 | FV4: 163 | FW4: 164 | FX4: 165 | FY4: 166 | FZ4: 167 | GA4: 168 | GB4: 169 | GC4: 170 | GD4: 171 | GE4: 172 | GF4: 173 | GG4: 174 | GH4: 175 | GI4: 176 | GJ4: 177 | GK4: 178 | GL4: 179 | GM4: 180 | GN4: 181 | GO4: 182 | GP4: 183 | GQ4: 184 | GR4: 185 | GS4: 186 | GT4: 187 | GU4: 188 | GV4: 189 | GW4: 190 | GX4: 191 | GY4: 192 | GZ4: 193 | HA4: 194 | HB4: 195 | HC4: 196 | HD4: 197 | HE4: 198 | HF4: 199 | HG4: 200 | HH4: 201 | HI4: 202 | HJ4: 203 | HK4: 204 | HL4: 205 | HM4: 206 | HN4: 207 | HO4: 208 | HP4: 209 | HQ4: 210 | HR4: 211 | HS4: 212 | HT4: 213 | HU4: 214 | HV4: 215 | HW4: 216 | HX4: 217 | HY4: 218 | HZ4: 219 | IA4: 220 | IB4: 221 | IC4: 222 | ID4: 223 | IE4: 224 | IF4: 225 | IG4: 226 | IH4: 227 | II4: 228 | IJ4: 229 | IK4: 230 | IL4: 231 | IM4: 232 | IN4: 233 | IO4: 234 | IP4: 235 | IQ4: 236 | IR4: 237 | IS4: 238 | IT4: 239 | IU4: 240 | IV4: 241 | IW4: 242 | IX4: 243 | IY4: 244 | IZ4: 245 | JA4: 246 | JB4: 247 | JC4: 248 | JD4: 249 | JE4: 250 | JF4: 251 | JG4: 252 | JH4: 253 | JI4: 254 | JJ4: 255 | JK4: 256 | JL4: 257 | JM4: 258 | JN4: 259 | JO4: 260 | JP4: 261 | JQ4: 262 | JR4: 263 | JS4: 264 | JT4: 265 | JU4: 266 | JV4: 267 | JW4: 268 | JX4: 269 | JY4: 270 | JZ4: 271 | KA4: 272 | KB4: 273 | KC4: 274 | KD4: 275 | KE4: 276 | KF4: 277 | KG4: 278 | KH4: 279 | KI4: 280 | KJ4: 281 | KK4: 282 | KL4: 283 | KM4: 284 | KN4: 285 | KO4: 286 | KP4: 287 | KQ4: 288 | KR4: 289 | KS4: 290 | KT4: 291 | KU4: 292 | KV4: 293 | KW4: 294 | KX4: 295 | KY4: 296 | KZ4: 297 | LA4: 298 | LB4: 299 | LC4: 300 | LD4: 301 | LE4: 302 | LF4: 303 | LG4: 304 | LH4: 305 | LI4: 306 | LJ4: 307 | LK4: 308 | LL4: 309 | LM4: 310 | LN4: 311 | LO4: 312 | LP4: 313 | LQ4: 314 | LR4: 315 | LS4: 316 | LT4: 317 | LU4: 318 | LV4: 319 | LW4: 320 | LX4: 321 | LY4: 322 | LZ4: 323 | MA4: 324 | MB4: 325 | MC4: 326 | MD4: 327 | ME4: 328 | MF4: 329 | MG4: 330 | MH4: 331 | MI4: 332 | MJ4: 333 | MK4: 334 | ML4: 335 | MM4: 336 | MN4: 337 | MO4: 338 | MP4: 339 | MQ4: 340 | MR4: 341 | MS4: 342
D5: Book Value | E5: USD/Share | F5: =INDEX(I5:MS5,$E$2) -> 100 | I5: 100 | J5: 100 | K5: 100 | L5: 100 | M5: 100 | N5: 100 | O5: 100 | P5: 100 | Q5: 100 | R5: 100 | S5: 100 | T5: 100 | U5: 100 | V5: 100 | W5: 100 | X5: 100 | Y5: 100 | Z5: 100 | AA5: 100 | AB5: 100 | AC5: 100 | AD5: 100 | AE5: 100 | AF5: 100 | AG5: 100 | AH5: 100 | AI5: 100 | AJ5: 100 | AK5: 100 | AL5: 100 | AM5: 100 | AN5: 100 | AO5: 100 | AP5: 100 | AQ5: 100 | AR5: 100 | AS5: 100 | AT5: 100 | AU5: 100 | AV5: 100 | AW5: 100 | AX5: 100 | AY5: 100 | AZ5: 100 | BA5: 100 | BB5: 100 | BC5: 100 | BD5: 100 | BE5: 100 | BF5: 100 | BG5: 100 | BH5: 100 | BI5: 100 | BJ5: 100 | BK5: 100 | BL5: 100 | BM5: 100 | BN5: 100 | BO5: 100 | BP5: 100 | BQ5: 100 | BR5: 100 | BS5: 100 | BT5: 100 | BU5: 100 | BV5: 100 | BW5: 100 | BX5: 100 | BY5: 100 | BZ5: 100 | CA5: 100 | CB5: 100 | CC5: 100 | CD5: 100 | CE5: 100 | CF5: 100 | CG5: 100 | CH5: 100 | CI5: 100 | CJ5: 100 | CK5: 100 | CL5: 100 | CM5: 100 | CN5: 100 | CO5: 100 | CP5: 100 | CQ5: 100 | CR5: 100 | CS5: 100 | CT5: 100 | CU5: 100 | CV5: 100 | CW5: 100 | CX5: 100 | CY5: 100 | CZ5: 100 | DA5: 100 | DB5: 100 | DC5: 100 | DD5: 100 | DE5: 100 | DF5: 100 | DG5: 100 | DH5: 100 | DI5: 100 | DJ5: 100 | DK5: 100 | DL5: 100 | DM5: 100 | DN5: 100 | DO5: 100 | DP5: 100 | DQ5: 100 | DR5: 100 | DS5: 100 | DT5: 100 | DU5: 100 | DV5: 100 | DW5: 100 | DX5: 100 | DY5: 100 | DZ5: 100 | EA5: 100 | EB5: 100 | EC5: 100 | ED5: 100 | EE5: 100 | EF5: 100 | EG5: 100 | EH5: 100 | EI5: 100 | EJ5: 100 | EK5: 100 | EL5: 100 | EM5: 100 | EN5: 100 | EO5: 100 | EP5: 100 | EQ5: 100 | ER5: 100 | ES5: 100 | ET5: 100 | EU5: 100 | EV5: 100 | EW5: 100 | EX5: 100 | EY5: 100 | EZ5: 100 | FA5: 100 | FB5: 100 | FC5: 100 | FD5: 100 | FE5: 100 | FF5: 100 | FG5: 100 | FH5: 100 | FI5: 100 | FJ5: 100 | FK5: 100 | FL5: 100 | FM5: 100 | FN5: 100 | FO5: 100 | FP5: 100 | FQ5: 100 | FR5: 100 | FS5: 100 | FT5: 100 | FU5: 100 | FV5: 100 | FW5: 100 | FX5: 100 | FY5: 100 | FZ5: 100 | GA5: 100 | GB5: 100 | GC5: 100 | GD5: 100 | GE5: 100 | GF5: 100 | GG5: 100 | GH5: 100 | GI5: 100 | GJ5: 100 | GK5: 100 | GL5: 100 | GM5: 100 | GN5: 100 | GO5: 100 | GP5: 100 | GQ5: 100 | GR5: 100 | GS5: 100 | GT5: 100 | GU5: 100 | GV5: 100 | GW5: 100 | GX5: 100 | GY5: 100 | GZ5: 100 | HA5: 100 | HB5: 100 | HC5: 100 | HD5: 100 | HE5: 100 | HF5: 100 | HG5: 100 | HH5: 100 | HI5: 100 | HJ5: 100 | HK5: 100 | HL5: 100 | HM5: 100 | HN5: 100 | HO5: 100 | HP5: 100 | HQ5: 100 | HR5: 100 | HS5: 100 | HT5: 100 | HU5: 100 | HV5: 100 | HW5: 100 | HX5: 100 | HY5: 100 | HZ5: 100 | IA5: 100 | IB5: 100 | IC5: 100 | ID5: 100 | IE5: 100 | IF5: 100 | IG5: 100 | IH5: 100 | II5: 100 | IJ5: 100 | IK5: 100 | IL5: 100 | IM5: 100 | IN5: 100 | IO5: 100 | IP5: 100 | IQ5: 100 | IR5: 100 | IS5: 100 | IT5: 100 | IU5: 100 | IV5: 100 | IW5: 100 | IX5: 100 | IY5: 100 | IZ5: 100 | JA5: 100 | JB5: 100 | JC5: 100 | JD5: 100 | JE5: 100 | JF5: 100 | JG5: 100 | JH5: 100 | JI5: 100 | JJ5: 100 | JK5: 100 | JL5: 100 | JM5: 100 | JN5: 100 | JO5: 100 | JP5: 100 | JQ5: 100 | JR5: 100 | JS5: 100 | JT5: 100 | JU5: 100 | JV5: 100 | JW5: 100 | JX5: 100 | JY5: 100 | JZ5: 100 | KA5: 100 | KB5: 100 | KC5: 100 | KD5: 100 | KE5: 100 | KF5: 100 | KG5: 100 | KH5: 100 | KI5: 100 | KJ5: 100 | KK5: 100 | KL5: 100 | KM5: 100 | KN5: 100 | KO5: 100 | KP5: 100 | KQ5: 100 | KR5: 100 | KS5: 100 | KT5: 100 | KU5: 100 | KV5: 100 | KW5: 100 | KX5: 100 | KY5: 100 | KZ5: 100 | LA5: 100 | LB5: 100 | LC5: 100 | LD5: 100 | LE5: 100 | LF5: 100 | LG5: 100 | LH5: 100 | LI5: 100 | LJ5: 100 | LK5: 100 | LL5: 100 | LM5: 100 | LN5: 100 | LO5: 100 | LP5: 100 | LQ5: 100 | LR5: 100 | LS5: 100 | LT5: 100 | LU5: 100 | LV5: 100 | LW5: 100 | LX5: 100 | LY5: 100 | LZ5: 100 | MA5: 100 | MB5: 100 | MC5: 100 | MD5: 100 | ME5: 100 | MF5: 100 | MG5: 100 | MH5: 100 | MI5: 100 | MJ5: 100 | MK5: 100 | ML5: 100 | MM5: 100 | MN5: 100 | MO5: 100 | MP5: 100 | MQ5: 100 | MR5: 100 | MS5: 100
D6: ROE Short-term | E6: % | F6: =INDEX(I6:MS6,$E$2) -> 0.06762037022 | G6: 0.03 | I6: 0.06762037022 | J6: 0.08333206208 | K6: 0.05069122156 | L6: 0.07088810483 | M6: 0.06506178505 | N6: 0.1022153458 | O6: 0.06650503019 | P6: 0.1260441989 | Q6: 0.1010447508 | R6: 0.1461414353 | S6: 0.08747802869 | T6: 0.05460494263 | U6: 0.1169406979 | V6: 0.08443408636 | W6: 0.05813510905 | X6: 0.07928815272 | Y6: 0.1508916664 | Z6: 0.1322731526 | AA6: 0.09245981602 | AB6: 0.08248240075 | AC6: 0.09164949708 | AD6: 0.07004170643 | AE6: 0.07779877214 | AF6: 0.1269863762 | AG6: 0.06493160727 | AH6: 0.1171890265 | AI6: 0.1271244212 | AJ6: 0.06335436721 | AK6: 0.08585261309 | AL6: 0.08199349168 | AM6: 0.06077995137 | AN6: 0.07569143762 | AO6: 0.02425112653 | AP6: 0.06857828408 | AQ6: 0.06976305854 | AR6: 0.0831525298 | AS6: 0.07096881394 | AT6: 0.1040780997 | AU6: 0.03303934909 | AV6: 0.0759071932 | AW6: 0.08182585384 | AX6: 0.05800158343 | AY6: 0.07781650617 | AZ6: 0.07254788553 | BA6: 0.09886959952 | BB6: 0.08996193329 | BC6: 0.07729048576 | BD6: 0.1434812533 | BE6: 0.1224638611 | BF6: 0.0485230128 | BG6: 0.1144357911 | BH6: 0.08402979203 | BI6: 0.05455631712 | BJ6: 0.01882663097 | BK6: 0.093304526 | BL6: 0.1145911218 | BM6: 0.04083157324 | BN6: 0.105086707 | BO6: 0.06094163812 | BP6: 0.1338471748 | BQ6: 0.1116858756 | BR6: 0.05407547301 | BS6: 0.07962339707 | BT6: 0.05729499439 | BU6: 0.08452104198 | BV6: 0.09291603267 | BW6: 0.1215180318 | BX6: 0.1484322796 | BY6: 0.07426845129 | BZ6: 0.03527869119 | CA6: 0.09564597225 | CB6: 0.0685645103 | CC6: 0.06467138215 | CD6: 0.05447849679 | CE6: 0.09743571545 | CF6: 0.09719113201 | CG6: 0.08492403509 | CH6: 0.06683603298 | CI6: 0.09148628767 | CJ6: 0.06532078132 | CK6: 0.09395005101 | CL6: 0.1246508332 | CM6: 0.02605306692 | CN6: 0.1390814236 | CO6: 0.07847397852 | CP6: 0.1134709436 | CQ6: 0.08206064359 | CR6: 0.09278716491 | CS6: 0.06623557428 | CT6: 0.1394745518 | CU6: 0.05568120382 | CV6: 0.1350140044 | CW6: 0.08784509697 | CX6: 0.09239991581 | CY6: 0.04904088836 | CZ6: 0.1284386592 | DA6: 0.08501004766 | DB6: 0.1150325793 | DC6: 0.07102293314 | DD6: 0.07212595735 | DE6: 0.01227834465 | DF6: 0.0832242776 | DG6: 0.1188832934 | DH6: 0.08232731053 | DI6: 0.05272413405 | DJ6: 0.1314472352 | DK6: 0.07212251397 | DL6: 0.06395826953 | DM6: 0.1147899935 | DN6: 0.04230610795 | DO6: 0.08591676629 | DP6: 0.04147876132 | DQ6: 0.08861166077 | DR6: 0.08782563929 | DS6: 0.08379918925 | DT6: 0.06743526386 | DU6: 0.1091128395 | DV6: 0.06869116682 | DW6: 0.08467895034 | DX6: 0.1113637848 | DY6: 0.0662837585 | DZ6: 0.1124977535 | EA6: 0.06763497625 | EB6: 0.08712964478 | EC6: 0.0515004093 | ED6: 0.05968130245 | EE6: 0.05630797334 | EF6: 0.07587150455 | EG6: 0.08367949534 | EH6: 0.1015888287 | EI6: 0.06655415085 | EJ6: 0.04911074877 | EK6: 0.05719703461 | EL6: 0.1103686384 | EM6: 0.03390353718 | EN6: 0.07446971266 | EO6: 0.03887350501 | EP6: 0.08910376417 | EQ6: 0.06766571635 | ER6: 0.04710270551 | ES6: 0.05926421079 | ET6: 0.1012839385 | EU6: 0.07963755395 | EV6: 0.082892116 | EW6: 0.067022795 | EX6: 0.08786808663 | EY6: 0.0650242633 | EZ6: 0.1113420892 | FA6: 0.09630782486 | FB6: 0.1145261323 | FC6: 0.064316695 | FD6: 0.07926997419 | FE6: 0.08273207292 | FF6: 0.08606167995 | FG6: 0.1026689309 | FH6: 0.009364187147 | FI6: 0.08261530076 | FJ6: 0.1096799158 | FK6: 0.02308737253 | FL6: 0.03862093952 | FM6: 0.1238347329 | FN6: 0.06443811138 | FO6: 0.05346201821 | FP6: 0.08325687038 | FQ6: 0.08628047375 | FR6: 0.07652070266 | FS6: 0.07310619744 | FT6: 0.110127966 | FU6: 0.09136698732 | FV6: 0.05053360566 | FW6: 0.07787345592 | FX6: 0.09751093592 | FY6: 0.05427962782 | FZ6: 0.1111082101 | GA6: 0.1471343118 | GB6: 0.07357956195 | GC6: 0.05083954782 | GD6: 0.03491385815 | GE6: 0.09337558192 | GF6: 0.00757807797 | GG6: 0.04383620603 | GH6: 0.1297985696 | GI6: 0.09070989153 | GJ6: 0.09051763314 | GK6: 0.112103574 | GL6: 0.04212951819 | GM6: 0.07662994816 | GN6: 0.05677821157 | GO6: 0.07068008121 | GP6: 0.108506343 | GQ6: 0.07812179854 | GR6: 0.04978929038 | GS6: 0.0587207678 | GT6: 0.04969445608 | GU6: 0.07326276976 | GV6: 0.06090660389 | GW6: 0.1035554944 | GX6: 0.1308920448 | GY6: 0.1039869236 | GZ6: 0.03947332123 | HA6: 0.1474668824 | HB6: 0.08357076291 | HC6: 0.1311086576 | HD6: -0.0002637505736 | HE6: 0.06203873919 | HF6: 0.04149785539 | HG6: 0.1174915192 | HH6: 0.09186433476 | HI6: 0.08231556682 | HJ6: 0.1267017499 | HK6: 0.05620945951 | HL6: 0.03426871733 | HM6: 0.04113744824 | HN6: 0.05225254045 | HO6: 0.09729935341 | HP6: 0.08901679203 | HQ6: 0.09928090558 | HR6: 0.09179501032 | HS6: 0.1273424063 | HT6: 0.09657089442 | HU6: 0.05228478882 | HV6: 0.08932308303 | HW6: 0.06665806236 | HX6: 0.04397066756 | HY6: 0.05573475779 | HZ6: 0.08052664715 | IA6: 0.09155783114 | IB6: 0.05849445249 | IC6: 0.1136856582 | ID6: 0.1111282801 | IE6: 0.05639756412 | IF6: 0.1285824266 | IG6: 0.06752096233 | IH6: 0.07832140662 | II6: 0.1251705566 | IJ6: 0.1118067255 | IK6: 0.140960617 | IL6: 0.08496167174 | IM6: 0.0799912429 | IN6: 0.0663316624 | IO6: 0.1197301566 | IP6: 0.1370052386 | IQ6: 0.05598347895 | IR6: 0.08647012595 | IS6: 0.0710618314 | IT6: 0.07913442734 | IU6: 0.0303440197 | IV6: 0.07917240728 | IW6: 0.09051993319 | IX6: 0.08946219313 | IY6: 0.05260969213 | IZ6: 0.1011703019 | JA6: 0.09572392678 | JB6: 0.1023592895 | JC6: 0.06650991509 | JD6: 0.0775046325 | JE6: 0.06432740727 | JF6: 0.0400134501 | JG6: 0.1215669759 | JH6: 0.06893885913 | JI6: 0.08478516304 | JJ6: 0.06481430111 | JK6: 0.04732886175 | JL6: 0.02364868928 | JM6: 0.0978781946 | JN6: 0.08527388932 | JO6: 0.09890993381 | JP6: 0.08014827842 | JQ6: 0.05214183305 | JR6: 0.04756817225 | JS6: 0.1028712841 | JT6: 0.06645574188 | JU6: 0.06441099885 | JV6: 0.04153220256 | JW6: 0.07540551838 | JX6: 0.1040183502 | JY6: 0.0623123766 | JZ6: 0.1144093194 | KA6: 0.1223061318 | KB6: 0.1406722187 | KC6: 0.1301761696 | KD6: 0.1509599827 | KE6: 0.103136392 | KF6: 0.07457036727 | KG6: 0.09213969932 | KH6: 0.08172271679 | KI6: 0.0988675905 | KJ6: 0.03132158928 | KK6: 0.08569628383 | KL6: 0.04936729419 | KM6: 0.06846211965 | KN6: 0.05458657565 | KO6: 0.08286749551 | KP6: 0.1155118283 | KQ6: 0.04643969951 | KR6: 0.04418842043 | KS6: 0.08079824727 | KT6: 0.07178823134 | KU6: 0.08813581718 | KV6: 0.02815232554 | KW6: 0.1370761643 | KX6: 0.0786501071 | KY6: 0.09562078336 | KZ6: 0.1160234996 | LA6: 0.0668140797 | LB6: 0.05572637702 | LC6: 0.0756183408 | LD6: 0.08100040034 | LE6: 0.09853355084 | LF6: 0.08173286041 | LG6: 0.0926035235 | LH6: 0.1202031979 | LI6: 0.09350735905 | LJ6: 0.07936015399 | LK6: 0.0514911072 | LL6: 0.07016662738 | LM6: 0.03759677009 | LN6: 0.08394983726 | LO6: 0.05981401919 | LP6: 0.06467897202 | LQ6: 0.03932774563 | LR6: 0.1280368044 | LS6: 0.08737760379 | LT6: 0.09389511872 | LU6: 0.06835550568 | LV6: 0.09937974065 | LW6: 0.133858294 | LX6: 0.0905839988 | LY6: 0.09979846919 | LZ6: 0.09347994164 | MA6: 0.08794241104 | MB6: 0.0621589043 | MC6: 0.1120799918 | MD6: 0.06111190234 | ME6: 0.09125647467 | MF6: 0.07599533926 | MG6: 0.05863687845 | MH6: 0.1061610879 | MI6: 0.08603524742 | MJ6: 0.09335017739 | MK6: 0.09742055311 | ML6: 0.05415129914 | MM6: 0.09244000132 | MN6: 0.07003820465 | MO6: 0.1107600298 | MP6: 0.08119129201 | MQ6: 0.1064923248 | MR6: 0.07798510366 | MS6: 0.09698146106
D7: ROE vs k | E7: % | F7: =INDEX(I7:MS7,$E$2) -> 0.06762037022 | G7: 0.02 | I7: 0.06762037022 | J7: 0.08333206208 | K7: 0.05069122156 | L7: 0.07088810483 | M7: 0.06506178505 | N7: 0.1022153458 | O7: 0.06650503019 | P7: 0.1260441989 | Q7: 0.1010447508 | R7: 0.1461414353 | S7: 0.08747802869 | T7: 0.05460494263 | U7: 0.1169406979 | V7: 0.08443408636 | W7: 0.05813510905 | X7: 0.07928815272 | Y7: 0.1508916664 | Z7: 0.1322731526 | AA7: 0.09245981602 | AB7: 0.08248240075 | AC7: 0.09164949708 | AD7: 0.07004170643 | AE7: 0.07779877214 | AF7: 0.1269863762 | AG7: 0.06493160727 | AH7: 0.1171890265 | AI7: 0.1271244212 | AJ7: 0.06335436721 | AK7: 0.08585261309 | AL7: 0.08199349168 | AM7: 0.06077995137 | AN7: 0.07569143762 | AO7: 0.02425112653 | AP7: 0.06857828408 | AQ7: 0.06976305854 | AR7: 0.0831525298 | AS7: 0.07096881394 | AT7: 0.1040780997 | AU7: 0.03303934909 | AV7: 0.0759071932 | AW7: 0.08182585384 | AX7: 0.05800158343 | AY7: 0.07781650617 | AZ7: 0.07254788553 | BA7: 0.09886959952 | BB7: 0.08996193329 | BC7: 0.07729048576 | BD7: 0.1434812533 | BE7: 0.1224638611 | BF7: 0.0485230128 | BG7: 0.1144357911 | BH7: 0.08402979203 | BI7: 0.05455631712 | BJ7: 0.01882663097 | BK7: 0.093304526 | BL7: 0.1145911218 | BM7: 0.04083157324 | BN7: 0.105086707 | BO7: 0.06094163812 | BP7: 0.1338471748 | BQ7: 0.1116858756 | BR7: 0.05407547301 | BS7: 0.07962339707 | BT7: 0.05729499439 | BU7: 0.08452104198 | BV7: 0.09291603267 | BW7: 0.1215180318 | BX7: 0.1484322796 | BY7: 0.07426845129 | BZ7: 0.03527869119 | CA7: 0.09564597225 | CB7: 0.0685645103 | CC7: 0.06467138215 | CD7: 0.05447849679 | CE7: 0.09743571545 | CF7: 0.09719113201 | CG7: 0.08492403509 | CH7: 0.06683603298 | CI7: 0.09148628767 | CJ7: 0.06532078132 | CK7: 0.09395005101 | CL7: 0.1246508332 | CM7: 0.02605306692 | CN7: 0.1390814236 | CO7: 0.07847397852 | CP7: 0.1134709436 | CQ7: 0.08206064359 | CR7: 0.09278716491 | CS7: 0.06623557428 | CT7: 0.1394745518 | CU7: 0.05568120382 | CV7: 0.1350140044 | CW7: 0.08784509697 | CX7: 0.09239991581 | CY7: 0.04904088836 | CZ7: 0.1284386592 | DA7: 0.08501004766 | DB7: 0.1150325793 | DC7: 0.07102293314 | DD7: 0.07212595735 | DE7: 0.01227834465 | DF7: 0.0832242776 | DG7: 0.1188832934 | DH7: 0.08232731053 | DI7: 0.05272413405 | DJ7: 0.1314472352 | DK7: 0.07212251397 | DL7: 0.06395826953 | DM7: 0.1147899935 | DN7: 0.04230610795 | DO7: 0.08591676629 | DP7: 0.04147876132 | DQ7: 0.08861166077 | DR7: 0.08782563929 | DS7: 0.08379918925 | DT7: 0.06743526386 | DU7: 0.1091128395 | DV7: 0.06869116682 | DW7: 0.08467895034 | DX7: 0.1113637848 | DY7: 0.0662837585 | DZ7: 0.1124977535 | EA7: 0.06763497625 | EB7: 0.08712964478 | EC7: 0.0515004093 | ED7: 0.05968130245 | EE7: 0.05630797334 | EF7: 0.07587150455 | EG7: 0.08367949534 | EH7: 0.1015888287 | EI7: 0.06655415085 | EJ7: 0.04911074877 | EK7: 0.05719703461 | EL7: 0.1103686384 | EM7: 0.03390353718 | EN7: 0.07446971266 | EO7: 0.03887350501 | EP7: 0.08910376417 | EQ7: 0.06766571635 | ER7: 0.04710270551 | ES7: 0.05926421079 | ET7: 0.1012839385 | EU7: 0.07963755395 | EV7: 0.082892116 | EW7: 0.067022795 | EX7: 0.08786808663 | EY7: 0.0650242633 | EZ7: 0.1113420892 | FA7: 0.09630782486 | FB7: 0.1145261323 | FC7: 0.064316695 | FD7: 0.07926997419 | FE7: 0.08273207292 | FF7: 0.08606167995 | FG7: 0.1026689309 | FH7: 0.009364187147 | FI7: 0.08261530076 | FJ7: 0.1096799158 | FK7: 0.02308737253 | FL7: 0.03862093952 | FM7: 0.1238347329 | FN7: 0.06443811138 | FO7: 0.05346201821 | FP7: 0.08325687038 | FQ7: 0.08628047375 | FR7: 0.07652070266 | FS7: 0.07310619744 | FT7: 0.110127966 | FU7: 0.09136698732 | FV7: 0.05053360566 | FW7: 0.07787345592 | FX7: 0.09751093592 | FY7: 0.05427962782 | FZ7: 0.1111082101 | GA7: 0.1471343118 | GB7: 0.07357956195 | GC7: 0.05083954782 | GD7: 0.03491385815 | GE7: 0.09337558192 | GF7: 0.00757807797 | GG7: 0.04383620603 | GH7: 0.1297985696 | GI7: 0.09070989153 | GJ7: 0.09051763314 | GK7: 0.112103574 | GL7: 0.04212951819 | GM7: 0.07662994816 | GN7: 0.05677821157 | GO7: 0.07068008121 | GP7: 0.108506343 | GQ7: 0.07812179854 | GR7: 0.04978929038 | GS7: 0.0587207678 | GT7: 0.04969445608 | GU7: 0.07326276976 | GV7: 0.06090660389 | GW7: 0.1035554944 | GX7: 0.1308920448 | GY7: 0.1039869236 | GZ7: 0.03947332123 | HA7: 0.1474668824 | HB7: 0.08357076291 | HC7: 0.1311086576 | HD7: -0.0002637505736 | HE7: 0.06203873919 | HF7: 0.04149785539 | HG7: 0.1174915192 | HH7: 0.09186433476 | HI7: 0.08231556682 | HJ7: 0.1267017499 | HK7: 0.05620945951 | HL7: 0.03426871733 | HM7: 0.04113744824 | HN7: 0.05225254045 | HO7: 0.09729935341 | HP7: 0.08901679203 | HQ7: 0.09928090558 | HR7: 0.09179501032 | HS7: 0.1273424063 | HT7: 0.09657089442 | HU7: 0.05228478882 | HV7: 0.08932308303 | HW7: 0.06665806236 | HX7: 0.04397066756 | HY7: 0.05573475779 | HZ7: 0.08052664715 | IA7: 0.09155783114 | IB7: 0.05849445249 | IC7: 0.1136856582 | ID7: 0.1111282801 | IE7: 0.05639756412 | IF7: 0.1285824266 | IG7: 0.06752096233 | IH7: 0.07832140662 | II7: 0.1251705566 | IJ7: 0.1118067255 | IK7: 0.140960617 | IL7: 0.08496167174 | IM7: 0.0799912429 | IN7: 0.0663316624 | IO7: 0.1197301566 | IP7: 0.1370052386 | IQ7: 0.05598347895 | IR7: 0.08647012595 | IS7: 0.0710618314 | IT7: 0.07913442734 | IU7: 0.0303440197 | IV7: 0.07917240728 | IW7: 0.09051993319 | IX7: 0.08946219313 | IY7: 0.05260969213 | IZ7: 0.1011703019 | JA7: 0.09572392678 | JB7: 0.1023592895 | JC7: 0.06650991509 | JD7: 0.0775046325 | JE7: 0.06432740727 | JF7: 0.0400134501 | JG7: 0.1215669759 | JH7: 0.06893885913 | JI7: 0.08478516304 | JJ7: 0.06481430111 | JK7: 0.04732886175 | JL7: 0.02364868928 | JM7: 0.0978781946 | JN7: 0.08527388932 | JO7: 0.09890993381 | JP7: 0.08014827842 | JQ7: 0.05214183305 | JR7: 0.04756817225 | JS7: 0.1028712841 | JT7: 0.06645574188 | JU7: 0.06441099885 | JV7: 0.04153220256 | JW7: 0.07540551838 | JX7: 0.1040183502 | JY7: 0.0623123766 | JZ7: 0.1144093194 | KA7: 0.1223061318 | KB7: 0.1406722187 | KC7: 0.1301761696 | KD7: 0.1509599827 | KE7: 0.103136392 | KF7: 0.07457036727 | KG7: 0.09213969932 | KH7: 0.08172271679 | KI7: 0.0988675905 | KJ7: 0.03132158928 | KK7: 0.08569628383 | KL7: 0.04936729419 | KM7: 0.06846211965 | KN7: 0.05458657565 | KO7: 0.08286749551 | KP7: 0.1155118283 | KQ7: 0.04643969951 | KR7: 0.04418842043 | KS7: 0.08079824727 | KT7: 0.07178823134 | KU7: 0.08813581718 | KV7: 0.02815232554 | KW7: 0.1370761643 | KX7: 0.0786501071 | KY7: 0.09562078336 | KZ7: 0.1160234996 | LA7: 0.0668140797 | LB7: 0.05572637702 | LC7: 0.0756183408 | LD7: 0.08100040034 | LE7: 0.09853355084 | LF7: 0.08173286041 | LG7: 0.0926035235 | LH7: 0.1202031979 | LI7: 0.09350735905 | LJ7: 0.07936015399 | LK7: 0.0514911072 | LL7: 0.07016662738 | LM7: 0.03759677009 | LN7: 0.08394983726 | LO7: 0.05981401919 | LP7: 0.06467897202 | LQ7: 0.03932774563 | LR7: 0.1280368044 | LS7: 0.08737760379 | LT7: 0.09389511872 | LU7: 0.06835550568 | LV7: 0.09937974065 | LW7: 0.133858294 | LX7: 0.0905839988 | LY7: 0.09979846919 | LZ7: 0.09347994164 | MA7: 0.08794241104 | MB7: 0.0621589043 | MC7: 0.1120799918 | MD7: 0.06111190234 | ME7: 0.09125647467 | MF7: 0.07599533926 | MG7: 0.05863687845 | MH7: 0.1061610879 | MI7: 0.08603524742 | MJ7: 0.09335017739 | MK7: 0.09742055311 | ML7: 0.05415129914 | MM7: 0.09244000132 | MN7: 0.07003820465 | MO7: 0.1107600298 | MP7: 0.08119129201 | MQ7: 0.1064923248 | MR7: 0.07798510366 | MS7: 0.09698146106
D8: k | E8: % | F8: =INDEX(I8:MS8,$E$2) -> 0.06 | I8: 0.06 | J8: 0.06 | K8: 0.06 | L8: 0.06 | M8: 0.06 | N8: 0.06 | O8: 0.06 | P8: 0.06 | Q8: 0.06 | R8: 0.06 | S8: 0.06 | T8: 0.06 | U8: 0.06 | V8: 0.06 | W8: 0.06 | X8: 0.06 | Y8: 0.06 | Z8: 0.06 | AA8: 0.06 | AB8: 0.06 | AC8: 0.06 | AD8: 0.06 | AE8: 0.06 | AF8: 0.06 | AG8: 0.06 | AH8: 0.06 | AI8: 0.06 | AJ8: 0.06 | AK8: 0.06 | AL8: 0.06 | AM8: 0.06 | AN8: 0.06 | AO8: 0.06 | AP8: 0.06 | AQ8: 0.06 | AR8: 0.06 | AS8: 0.06 | AT8: 0.06 | AU8: 0.06 | AV8: 0.06 | AW8: 0.06 | AX8: 0.06 | AY8: 0.06 | AZ8: 0.06 | BA8: 0.06 | BB8: 0.06 | BC8: 0.06 | BD8: 0.06 | BE8: 0.06 | BF8: 0.06 | BG8: 0.06 | BH8: 0.06 | BI8: 0.06 | BJ8: 0.06 | BK8: 0.06 | BL8: 0.06 | BM8: 0.06 | BN8: 0.06 | BO8: 0.06 | BP8: 0.06 | BQ8: 0.06 | BR8: 0.06 | BS8: 0.06 | BT8: 0.06 | BU8: 0.06 | BV8: 0.06 | BW8: 0.06 | BX8: 0.06 | BY8: 0.06 | BZ8: 0.06 | CA8: 0.06 | CB8: 0.06 | CC8: 0.06 | CD8: 0.06 | CE8: 0.06 | CF8: 0.06 | CG8: 0.06 | CH8: 0.06 | CI8: 0.06 | CJ8: 0.06 | CK8: 0.06 | CL8: 0.06 | CM8: 0.06 | CN8: 0.06 | CO8: 0.06 | CP8: 0.06 | CQ8: 0.06 | CR8: 0.06 | CS8: 0.06 | CT8: 0.06 | CU8: 0.06 | CV8: 0.06 | CW8: 0.06 | CX8: 0.06 | CY8: 0.06 | CZ8: 0.06 | DA8: 0.06 | DB8: 0.06 | DC8: 0.06 | DD8: 0.06 | DE8: 0.06 | DF8: 0.06 | DG8: 0.06 | DH8: 0.06 | DI8: 0.06 | DJ8: 0.06 | DK8: 0.06 | DL8: 0.06 | DM8: 0.06 | DN8: 0.06 | DO8: 0.06 | DP8: 0.06 | DQ8: 0.06 | DR8: 0.06 | DS8: 0.06 | DT8: 0.06 | DU8: 0.06 | DV8: 0.06 | DW8: 0.06 | DX8: 0.06 | DY8: 0.06 | DZ8: 0.06 | EA8: 0.06 | EB8: 0.06 | EC8: 0.06 | ED8: 0.06 | EE8: 0.06 | EF8: 0.06 | EG8: 0.06 | EH8: 0.06 | EI8: 0.06 | EJ8: 0.06 | EK8: 0.06 | EL8: 0.06 | EM8: 0.06 | EN8: 0.06 | EO8: 0.06 | EP8: 0.06 | EQ8: 0.06 | ER8: 0.06 | ES8: 0.06 | ET8: 0.06 | EU8: 0.06 | EV8: 0.06 | EW8: 0.06 | EX8: 0.06 | EY8: 0.06 | EZ8: 0.06 | FA8: 0.06 | FB8: 0.06 | FC8: 0.06 | FD8: 0.06 | FE8: 0.06 | FF8: 0.06 | FG8: 0.06 | FH8: 0.06 | FI8: 0.06 | FJ8: 0.06 | FK8: 0.06 | FL8: 0.06 | FM8: 0.06 | FN8: 0.06 | FO8: 0.06 | FP8: 0.06 | FQ8: 0.06 | FR8: 0.06 | FS8: 0.06 | FT8: 0.06 | FU8: 0.06 | FV8: 0.06 | FW8: 0.06 | FX8: 0.06 | FY8: 0.06 | FZ8: 0.06 | GA8: 0.06 | GB8: 0.06 | GC8: 0.06 | GD8: 0.06 | GE8: 0.06 | GF8: 0.06 | GG8: 0.06 | GH8: 0.06 | GI8: 0.06 | GJ8: 0.06 | GK8: 0.06 | GL8: 0.06 | GM8: 0.06 | GN8: 0.06 | GO8: 0.06 | GP8: 0.06 | GQ8: 0.06 | GR8: 0.06 | GS8: 0.06 | GT8: 0.06 | GU8: 0.06 | GV8: 0.06 | GW8: 0.06 | GX8: 0.06 | GY8: 0.06 | GZ8: 0.06 | HA8: 0.06 | HB8: 0.06 | HC8: 0.06 | HD8: 0.06 | HE8: 0.06 | HF8: 0.06 | HG8: 0.06 | HH8: 0.06 | HI8: 0.06 | HJ8: 0.06 | HK8: 0.06 | HL8: 0.06 | HM8: 0.06 | HN8: 0.06 | HO8: 0.06 | HP8: 0.06 | HQ8: 0.06 | HR8: 0.06 | HS8: 0.06 | HT8: 0.06 | HU8: 0.06 | HV8: 0.06 | HW8: 0.06 | HX8: 0.06 | HY8: 0.06 | HZ8: 0.06 | IA8: 0.06 | IB8: 0.06 | IC8: 0.06 | ID8: 0.06 | IE8: 0.06 | IF8: 0.06 | IG8: 0.06 | IH8: 0.06 | II8: 0.06 | IJ8: 0.06 | IK8: 0.06 | IL8: 0.06 | IM8: 0.06 | IN8: 0.06 | IO8: 0.06 | IP8: 0.06 | IQ8: 0.06 | IR8: 0.06 | IS8: 0.06 | IT8: 0.06 | IU8: 0.06 | IV8: 0.06 | IW8: 0.06 | IX8: 0.06 | IY8: 0.06 | IZ8: 0.06 | JA8: 0.06 | JB8: 0.06 | JC8: 0.06 | JD8: 0.06 | JE8: 0.06 | JF8: 0.06 | JG8: 0.06 | JH8: 0.06 | JI8: 0.06 | JJ8: 0.06 | JK8: 0.06 | JL8: 0.06 | JM8: 0.06 | JN8: 0.06 | JO8: 0.06 | JP8: 0.06 | JQ8: 0.06 | JR8: 0.06 | JS8: 0.06 | JT8: 0.06 | JU8: 0.06 | JV8: 0.06 | JW8: 0.06 | JX8: 0.06 | JY8: 0.06 | JZ8: 0.06 | KA8: 0.06 | KB8: 0.06 | KC8: 0.06 | KD8: 0.06 | KE8: 0.06 | KF8: 0.06 | KG8: 0.06 | KH8: 0.06 | KI8: 0.06 | KJ8: 0.06 | KK8: 0.06 | KL8: 0.06 | KM8: 0.06 | KN8: 0.06 | KO8: 0.06 | KP8: 0.06 | KQ8: 0.06 | KR8: 0.06 | KS8: 0.06 | KT8: 0.06 | KU8: 0.06 | KV8: 0.06 | KW8: 0.06 | KX8: 0.06 | KY8: 0.06 | KZ8: 0.06 | LA8: 0.06 | LB8: 0.06 | LC8: 0.06 | LD8: 0.06 | LE8: 0.06 | LF8: 0.06 | LG8: 0.06 | LH8: 0.06 | LI8: 0.06 | LJ8: 0.06 | LK8: 0.06 | LL8: 0.06 | LM8: 0.06 | LN8: 0.06 | LO8: 0.06 | LP8: 0.06 | LQ8: 0.06 | LR8: 0.06 | LS8: 0.06 | LT8: 0.06 | LU8: 0.06 | LV8: 0.06 | LW8: 0.06 | LX8: 0.06 | LY8: 0.06 | LZ8: 0.06 | MA8: 0.06 | MB8: 0.06 | MC8: 0.06 | MD8: 0.06 | ME8: 0.06 | MF8: 0.06 | MG8: 0.06 | MH8: 0.06 | MI8: 0.06 | MJ8: 0.06 | MK8: 0.06 | ML8: 0.06 | MM8: 0.06 | MN8: 0.06 | MO8: 0.06 | MP8: 0.06 | MQ8: 0.06 | MR8: 0.06 | MS8: 0.06
D9: Short-term g | E9: % | F9: =INDEX(I9:MS9,$E$2) -> 0.01793032383 | G9: 0.02 | H9: =F8-1% -> 0.05 | I9: 0.01793032383 | J9: 0.02775970842 | K9: 0.002636087575 | L9: 0.01653277706 | M9: 0.01078425271 | N9: 0.01951405813 | O9: 0.02375890592 | P9: 0.01451176044 | Q9: 0.02230004775 | R9: 0.01874810659 | S9: 0.01632647759 | T9: 0.01899971069 | U9: 0.01517138689 | V9: 0.01847163754 | W9: 0.01685935733 | X9: 0.01342255515 | Y9: 0.02689585854 | Z9: 0.02833279371 | AA9: 0.02338600509 | AB9: 0.02115199003 | AC9: 0.02878627425 | AD9: 0.02387355199 | AE9: 0.02265742207 | AF9: 0.02285713685 | AG9: 0.01341341629 | AH9: 0.02369794657 | AI9: 0.02317328466 | AJ9: 0.01650783545 | AK9: 0.02249259509 | AL9: 0.0260459066 | AM9: 0.03454823066 | AN9: 0.01664242928 | AO9: 0.0246871533 | AP9: 0.01408462496 | AQ9: 0.01858154272 | AR9: 0.02230214666 | AS9: 0.03236630494 | AT9: 0.02412725462 | AU9: 0.02134160686 | AV9: 0.02385107156 | AW9: 0.02562029448 | AX9: 0.01886118133 | AY9: 0.02646970884 | AZ9: 0.02065131729 | BA9: 0.01903903983 | BB9: 0.01818280889 | BC9: 0.01681242876 | BD9: 0.02136808374 | BE9: 0.02379312552 | BF9: 0.01082577124 | BG9: 0.02081412269 | BH9: 0.02344951393 | BI9: 0.01483164253 | BJ9: 0.01241894177 | BK9: 0.01885537301 | BL9: 0.01640142503 | BM9: 0.01883633753 | BN9: 0.02121880593 | BO9: 0.01860737168 | BP9: 0.02583753609 | BQ9: 0.02375148752 | BR9: 0.01183015854 | BS9: 0.01503065154 | BT9: 0.02436178846 | BU9: 0.01619996442 | BV9: 0.01431668421 | BW9: 0.01805068797 | BX9: 0.01366515077 | BY9: 0.01720402951 | BZ9: 0.01580713007 | CA9: 0.02655972086 | CB9: 0.02054470483 | CC9: 0.02477163331 | CD9: 0.029128665 | CE9: 0.01936999624 | CF9: 0.02060955088 | CG9: 0.01009887192 | CH9: 0.016675255 | CI9: 0.02242272882 | CJ9: 0.008777579964 | CK9: 0.02571367067 | CL9: 0.004917129405 | CM9: 0.02174159453 | CN9: 0.02734335762 | CO9: 0.02356950688 | CP9: 0.01943537967 | CQ9: 0.02310433205 | CR9: 0.02440104183 | CS9: 0.01671443414 | CT9: 0.03213464604 | CU9: 0.01317311188 | CV9: 0.01581344135 | CW9: 0.02319974295 | CX9: 0.0178921292 | CY9: 0.02169197131 | CZ9: 0.02184019786 | DA9: 0.02062646682 | DB9: 0.02088740348 | DC9: 0.01985328346 | DD9: 0.01490849038 | DE9: 0.0195595456 | DF9: 0.01868397365 | DG9: 0.02175239101 | DH9: 0.01416712396 | DI9: 0.01869987988 | DJ9: 0.02652416842 | DK9: 0.01355248209 | DL9: 0.02337623457 | DM9: 0.01729310952 | DN9: 0.02593918083 | DO9: 0.02097761816 | DP9: 0.01460907223 | DQ9: 0.01207753537 | DR9: 0.0229652729 | DS9: 0.02325238698 | DT9: 0.02761630566 | DU9: 0.01228697834 | DV9: 0.02250624164 | DW9: 0.03389330697 | DX9: 0.02091223775 | DY9: 0.02255723463 | DZ9: 0.01105289463 | EA9: 0.02264329957 | EB9: 0.01818585791 | EC9: 0.01273480208 | ED9: 0.0157015547 | EE9: 0.01318177204 | EF9: 0.02394478978 | EG9: 0.02682985438 | EH9: 0.02743714141 | EI9: 0.01317701793 | EJ9: 0.02766617596 | EK9: 0.02880415368 | EL9: 0.0170103473 | EM9: 0.01661785995 | EN9: 0.01999529581 | EO9: 0.01295239004 | EP9: 0.02473133685 | EQ9: 0.0229791933 | ER9: 0.02101894315 | ES9: 0.02327187185 | ET9: 0.02454636916 | EU9: 0.02068843164 | EV9: 0.01677257963 | EW9: 0.02051135996 | EX9: 0.02038100662 | EY9: 0.02128628679 | EZ9: 0.0216296708 | FA9: 0.01486582856 | FB9: 0.01388278342 | FC9: 0.01737300448 | FD9: 0.01317674965 | FE9: 0.01985798881 | FF9: 0.01690759411 | FG9: 0.01264075027 | FH9: 0.01198100989 | FI9: 0.02388493228 | FJ9: 0.02137883761 | FK9: 0.01203725649 | FL9: 0.01871402024 | FM9: 0.02631776178 | FN9: 0.02587965809 | FO9: 0.02042400481 | FP9: 0.02087840754 | FQ9: 0.03183435138 | FR9: 0.02148706308 | FS9: 0.008934898536 | FT9: 0.01460818616 | FU9: 0.03144986473 | FV9: 0.02196227187 | FW9: 0.02442357006 | FX9: 0.01812330735 | FY9: 0.02865964647 | FZ9: 0.01219349868 | GA9: 0.01473914999 | GB9: 0.01783449629 | GC9: 0.02111532138 | GD9: 0.01745940771 | GE9: 0.03443166486 | GF9: 0.02557915851 | GG9: 0.02273008946 | GH9: 0.01988803737 | GI9: 0.01359221999 | GJ9: 0.02109469872 | GK9: 0.02075790054 | GL9: 0.01094601538 | GM9: 0.03263930825 | GN9: 0.0100829368 | GO9: 0.02328340474 | GP9: 0.02606255609 | GQ9: 0.0173502417 | GR9: 0.02442555438 | GS9: 0.02660834861 | GT9: 0.02045720753 | GU9: 0.02744925768 | GV9: 0.02149280547 | GW9: 0.02159221772 | GX9: 0.01654549304 | GY9: 0.02526631264 | GZ9: 0.02110712947 | HA9: 0.01576717617 | HB9: 0.02279787506 | HC9: 0.02013702093 | HD9: 0.01766169541 | HE9: 0.01825094572 | HF9: 0.02277368397 | HG9: 0.01967361547 | HH9: 0.01830712559 | HI9: 0.0115913463 | HJ9: 0.02117794892 | HK9: 0.0154720048 | HL9: 0.02110506869 | HM9: 0.02298421617 | HN9: 0.02547918406 | HO9: 0.020863501 | HP9: 0.02694432586 | HQ9: 0.02424737474 | HR9: 0.01452421396 | HS9: 0.02381848418 | HT9: 0.02132533675 | HU9: 0.01712192949 | HV9: 0.02041036558 | HW9: 0.02496085764 | HX9: 0.0144887684 | HY9: 0.02666451591 | HZ9: 0.0212821455 | IA9: 0.01611941523 | IB9: 0.01347934422 | IC9: 0.0287609171 | ID9: 0.01600218986 | IE9: 0.02242039403 | IF9: 0.02347021673 | IG9: 0.02106647354 | IH9: 0.01798222117 | II9: 0.02843964898 | IJ9: 0.02536596504 | IK9: 0.0183749076 | IL9: 0.01756109335 | IM9: 0.0309903616 | IN9: 0.01321718926 | IO9: 0.02442334154 | IP9: 0.02592345215 | IQ9: 0.02532839591 | IR9: 0.02234046485 | IS9: 0.02303431947 | IT9: 0.02545458539 | IU9: 0.01965450216 | IV9: 0.01488499539 | IW9: 0.02130166974 | IX9: 0.02802723187 | IY9: 0.01111281172 | IZ9: 0.01120436547 | JA9: 0.01438333532 | JB9: 0.01752943351 | JC9: 0.02214570103 | JD9: 0.01719504149 | JE9: 0.01803735888 | JF9: 0.01934487005 | JG9: 0.02637232308 | JH9: 0.02006044249 | JI9: 0.01081514533 | JJ9: 0.01881350387 | JK9: 0.01739616193 | JL9: 0.02607313442 | JM9: 0.01469650053 | JN9: 0.01739245791 | JO9: 0.02436742605 | JP9: 0.02312097603 | JQ9: 0.02456714455 | JR9: 0.01303502612 | JS9: 0.009626784752 | JT9: 0.01926858312 | JU9: 0.006332808565 | JV9: 0.02475852186 | JW9: 0.02062074494 | JX9: 0.02100723697 | JY9: 0.01484676919 | JZ9: 0.01996442709 | KA9: 0.01843338536 | KB9: 0.0286381089 | KC9: 0.0219683446 | KD9: 0.01635313794 | KE9: 0.02235479426 | KF9: 0.01302123613 | KG9: 0.02614448514 | KH9: 0.01917723546 | KI9: 0.027157704 | KJ9: 0.019464713 | KK9: 0.01618807577 | KL9: 0.0214578346 | KM9: 0.01955017184 | KN9: 0.02038531599 | KO9: 0.0183289699 | KP9: 0.02756028946 | KQ9: 0.02501294029 | KR9: 0.01498197299 | KS9: 0.01817219936 | KT9: 0.019339727 | KU9: 0.01466322094 | KV9: 0.01757907821 | KW9: 0.01892413492 | KX9: 0.0154114969 | KY9: 0.02595408659 | KZ9: 0.02226389168 | LA9: 0.01856606183 | LB9: 0.0198126521 | LC9: 0.01658158476 | LD9: 0.02607056267 | LE9: 0.0129728242 | LF9: 0.02112821615 | LG9: 0.02190628447 | LH9: 0.02262426791 | LI9: 0.01981792934 | LJ9: 0.02100024936 | LK9: 0.0202955902 | LL9: 0.01799500932 | LM9: 0.02330980099 | LN9: 0.01685906712 | LO9: 0.02389204977 | LP9: 0.02589367774 | LQ9: 0.01757393843 | LR9: 0.008650295768 | LS9: 0.01436409171 | LT9: 0.02510121792 | LU9: 0.01999307913 | LV9: 0.02258320037 | LW9: 0.006658853074 | LX9: 0.01727469522 | LY9: 0.02278183297 | LZ9: 0.02312468962 | MA9: 0.02688476208 | MB9: 0.01826700019 | MC9: 0.02166858447 | MD9: 0.01948181509 | ME9: 0.02150963242 | MF9: 0.02241206 | MG9: 0.01909783505 | MH9: 0.01082285551 | MI9: 0.01757069463 | MJ9: 0.02531396489 | MK9: 0.01762227986 | ML9: 0.02345161936 | MM9: 0.005149979368 | MN9: 0.01205309497 | MO9: 0.00946421925 | MP9: 0.00921399014 | MQ9: 0.007319123375 | MR9: 0.008116171344 | MS9: 0.006286383518
D10: Long-term g | E10: % | F10: =INDEX(I10:MS10,$E$2) -> 0.01793032383 | G10: 0.01 | I10: 0.01793032383 | J10: 0.02775970842 | K10: 0.002636087575 | L10: 0.01653277706 | M10: 0.01078425271 | N10: 0.01951405813 | O10: 0.02375890592 | P10: 0.01451176044 | Q10: 0.02230004775 | R10: 0.01874810659 | S10: 0.01632647759 | T10: 0.01899971069 | U10: 0.01517138689 | V10: 0.01847163754 | W10: 0.01685935733 | X10: 0.01342255515 | Y10: 0.02689585854 | Z10: 0.02833279371 | AA10: 0.02338600509 | AB10: 0.02115199003 | AC10: 0.02878627425 | AD10: 0.02387355199 | AE10: 0.02265742207 | AF10: 0.02285713685 | AG10: 0.01341341629 | AH10: 0.02369794657 | AI10: 0.02317328466 | AJ10: 0.01650783545 | AK10: 0.02249259509 | AL10: 0.0260459066 | AM10: 0.03454823066 | AN10: 0.01664242928 | AO10: 0.0246871533 | AP10: 0.01408462496 | AQ10: 0.01858154272 | AR10: 0.02230214666 | AS10: 0.03236630494 | AT10: 0.02412725462 | AU10: 0.02134160686 | AV10: 0.02385107156 | AW10: 0.02562029448 | AX10: 0.01886118133 | AY10: 0.02646970884 | AZ10: 0.02065131729 | BA10: 0.01903903983 | BB10: 0.01818280889 | BC10: 0.01681242876 | BD10: 0.02136808374 | BE10: 0.02379312552 | BF10: 0.01082577124 | BG10: 0.02081412269 | BH10: 0.02344951393 | BI10: 0.01483164253 | BJ10: 0.01241894177 | BK10: 0.01885537301 | BL10: 0.01640142503 | BM10: 0.01883633753 | BN10: 0.02121880593 | BO10: 0.01860737168 | BP10: 0.02583753609 | BQ10: 0.02375148752 | BR10: 0.01183015854 | BS10: 0.01503065154 | BT10: 0.02436178846 | BU10: 0.01619996442 | BV10: 0.01431668421 | BW10: 0.01805068797 | BX10: 0.01366515077 | BY10: 0.01720402951 | BZ10: 0.01580713007 | CA10: 0.02655972086 | CB10: 0.02054470483 | CC10: 0.02477163331 | CD10: 0.029128665 | CE10: 0.01936999624 | CF10: 0.02060955088 | CG10: 0.01009887192 | CH10: 0.016675255 | CI10: 0.02242272882 | CJ10: 0.008777579964 | CK10: 0.02571367067 | CL10: 0.004917129405 | CM10: 0.02174159453 | CN10: 0.02734335762 | CO10: 0.02356950688 | CP10: 0.01943537967 | CQ10: 0.02310433205 | CR10: 0.02440104183 | CS10: 0.01671443414 | CT10: 0.03213464604 | CU10: 0.01317311188 | CV10: 0.01581344135 | CW10: 0.02319974295 | CX10: 0.0178921292 | CY10: 0.02169197131 | CZ10: 0.02184019786 | DA10: 0.02062646682 | DB10: 0.02088740348 | DC10: 0.01985328346 | DD10: 0.01490849038 | DE10: 0.0195595456 | DF10: 0.01868397365 | DG10: 0.02175239101 | DH10: 0.01416712396 | DI10: 0.01869987988 | DJ10: 0.02652416842 | DK10: 0.01355248209 | DL10: 0.02337623457 | DM10: 0.01729310952 | DN10: 0.02593918083 | DO10: 0.02097761816 | DP10: 0.01460907223 | DQ10: 0.01207753537 | DR10: 0.0229652729 | DS10: 0.02325238698 | DT10: 0.02761630566 | DU10: 0.01228697834 | DV10: 0.02250624164 | DW10: 0.03389330697 | DX10: 0.02091223775 | DY10: 0.02255723463 | DZ10: 0.01105289463 | EA10: 0.02264329957 | EB10: 0.01818585791 | EC10: 0.01273480208 | ED10: 0.0157015547 | EE10: 0.01318177204 | EF10: 0.02394478978 | EG10: 0.02682985438 | EH10: 0.02743714141 | EI10: 0.01317701793 | EJ10: 0.02766617596 | EK10: 0.02880415368 | EL10: 0.0170103473 | EM10: 0.01661785995 | EN10: 0.01999529581 | EO10: 0.01295239004 | EP10: 0.02473133685 | EQ10: 0.0229791933 | ER10: 0.02101894315 | ES10: 0.02327187185 | ET10: 0.02454636916 | EU10: 0.02068843164 | EV10: 0.01677257963 | EW10: 0.02051135996 | EX10: 0.02038100662 | EY10: 0.02128628679 | EZ10: 0.0216296708 | FA10: 0.01486582856 | FB10: 0.01388278342 | FC10: 0.01737300448 | FD10: 0.01317674965 | FE10: 0.01985798881 | FF10: 0.01690759411 | FG10: 0.01264075027 | FH10: 0.01198100989 | FI10: 0.02388493228 | FJ10: 0.02137883761 | FK10: 0.01203725649 | FL10: 0.01871402024 | FM10: 0.02631776178 | FN10: 0.02587965809 | FO10: 0.02042400481 | FP10: 0.02087840754 | FQ10: 0.03183435138 | FR10: 0.02148706308 | FS10: 0.008934898536 | FT10: 0.01460818616 | FU10: 0.03144986473 | FV10: 0.02196227187 | FW10: 0.02442357006 | FX10: 0.01812330735 | FY10: 0.02865964647 | FZ10: 0.01219349868 | GA10: 0.01473914999 | GB10: 0.01783449629 | GC10: 0.02111532138 | GD10: 0.01745940771 | GE10: 0.03443166486 | GF10: 0.02557915851 | GG10: 0.02273008946 | GH10: 0.01988803737 | GI10: 0.01359221999 | GJ10: 0.02109469872 | GK10: 0.02075790054 | GL10: 0.01094601538 | GM10: 0.03263930825 | GN10: 0.0100829368 | GO10: 0.02328340474 | GP10: 0.02606255609 | GQ10: 0.0173502417 | GR10: 0.02442555438 | GS10: 0.02660834861 | GT10: 0.02045720753 | GU10: 0.02744925768 | GV10: 0.02149280547 | GW10: 0.02159221772 | GX10: 0.01654549304 | GY10: 0.02526631264 | GZ10: 0.02110712947 | HA10: 0.01576717617 | HB10: 0.02279787506 | HC10: 0.02013702093 | HD10: 0.01766169541 | HE10: 0.01825094572 | HF10: 0.02277368397 | HG10: 0.01967361547 | HH10: 0.01830712559 | HI10: 0.0115913463 | HJ10: 0.02117794892 | HK10: 0.0154720048 | HL10: 0.02110506869 | HM10: 0.02298421617 | HN10: 0.02547918406 | HO10: 0.020863501 | HP10: 0.02694432586 | HQ10: 0.02424737474 | HR10: 0.01452421396 | HS10: 0.02381848418 | HT10: 0.02132533675 | HU10: 0.01712192949 | HV10: 0.02041036558 | HW10: 0.02496085764 | HX10: 0.0144887684 | HY10: 0.02666451591 | HZ10: 0.0212821455 | IA10: 0.01611941523 | IB10: 0.01347934422 | IC10: 0.0287609171 | ID10: 0.01600218986 | IE10: 0.02242039403 | IF10: 0.02347021673 | IG10: 0.02106647354 | IH10: 0.01798222117 | II10: 0.02843964898 | IJ10: 0.02536596504 | IK10: 0.0183749076 | IL10: 0.01756109335 | IM10: 0.0309903616 | IN10: 0.01321718926 | IO10: 0.02442334154 | IP10: 0.02592345215 | IQ10: 0.02532839591 | IR10: 0.02234046485 | IS10: 0.02303431947 | IT10: 0.02545458539 | IU10: 0.01965450216 | IV10: 0.01488499539 | IW10: 0.02130166974 | IX10: 0.02802723187 | IY10: 0.01111281172 | IZ10: 0.01120436547 | JA10: 0.01438333532 | JB10: 0.01752943351 | JC10: 0.02214570103 | JD10: 0.01719504149 | JE10: 0.01803735888 | JF10: 0.01934487005 | JG10: 0.02637232308 | JH10: 0.02006044249 | JI10: 0.01081514533 | JJ10: 0.01881350387 | JK10: 0.01739616193 | JL10: 0.02607313442 | JM10: 0.01469650053 | JN10: 0.01739245791 | JO10: 0.02436742605 | JP10: 0.02312097603 | JQ10: 0.02456714455 | JR10: 0.01303502612 | JS10: 0.009626784752 | JT10: 0.01926858312 | JU10: 0.006332808565 | JV10: 0.02475852186 | JW10: 0.02062074494 | JX10: 0.02100723697 | JY10: 0.01484676919 | JZ10: 0.01996442709 | KA10: 0.01843338536 | KB10: 0.0286381089 | KC10: 0.0219683446 | KD10: 0.01635313794 | KE10: 0.02235479426 | KF10: 0.01302123613 | KG10: 0.02614448514 | KH10: 0.01917723546 | KI10: 0.027157704 | KJ10: 0.019464713 | KK10: 0.01618807577 | KL10: 0.0214578346 | KM10: 0.01955017184 | KN10: 0.02038531599 | KO10: 0.0183289699 | KP10: 0.02756028946 | KQ10: 0.02501294029 | KR10: 0.01498197299 | KS10: 0.01817219936 | KT10: 0.019339727 | KU10: 0.01466322094 | KV10: 0.01757907821 | KW10: 0.01892413492 | KX10: 0.0154114969 | KY10: 0.02595408659 | KZ10: 0.02226389168 | LA10: 0.01856606183 | LB10: 0.0198126521 | LC10: 0.01658158476 | LD10: 0.02607056267 | LE10: 0.0129728242 | LF10: 0.02112821615 | LG10: 0.02190628447 | LH10: 0.02262426791 | LI10: 0.01981792934 | LJ10: 0.02100024936 | LK10: 0.0202955902 | LL10: 0.01799500932 | LM10: 0.02330980099 | LN10: 0.01685906712 | LO10: 0.02389204977 | LP10: 0.02589367774 | LQ10: 0.01757393843 | LR10: 0.008650295768 | LS10: 0.01436409171 | LT10: 0.02510121792 | LU10: 0.01999307913 | LV10: 0.02258320037 | LW10: 0.006658853074 | LX10: 0.01727469522 | LY10: 0.02278183297 | LZ10: 0.02312468962 | MA10: 0.02688476208 | MB10: 0.01826700019 | MC10: 0.02166858447 | MD10: 0.01948181509 | ME10: 0.02150963242 | MF10: 0.02241206 | MG10: 0.01909783505 | MH10: 0.01082285551 | MI10: 0.01757069463 | MJ10: 0.02531396489 | MK10: 0.01762227986 | ML10: 0.02345161936 | MM10: 0.005149979368 | MN10: 0.01205309497 | MO10: 0.00946421925 | MP10: 0.00921399014 | MQ10: 0.007319123375 | MR10: 0.008116171344 | MS10: 0.006286383518
D11: Short-term period | E11: years | F11: =INDEX(I11:MS11,$E$2) -> 6.328417558 | G11: 2 | I11: 6.328417558 | J11: 6.13491661 | K11: 2.334620789 | L11: 0.2923577835 | M11: 5.101984313 | N11: 6.635413823 | O11: 4.015470092 | P11: 5.039338276 | Q11: 6.923809149 | R11: 3.717694518 | S11: 4.753268733 | T11: 1.436066158 | U11: 5.114532458 | V11: 7.240072967 | W11: 6.083245164 | X11: 3.981872024 | Y11: 2.785479458 | Z11: 8.537573041 | AA11: 5.493622628 | AB11: 2.023785549 | AC11: 4.864526854 | AD11: 4.311636977 | AE11: 5.458008775 | AF11: 6.796092789 | AG11: 9.582199391 | AH11: 3.404348859 | AI11: 3.491768956 | AJ11: 4.950570914 | AK11: 1.690338558 | AL11: 3.287178743 | AM11: 4.922772355 | AN11: 7.555623099 | AO11: 1.460851709 | AP11: 6.065794447 | AQ11: 5.977623396 | AR11: 5.051135321 | AS11: 5.988303924 | AT11: 2.47676292 | AU11: 4.771538752 | AV11: 2.770536678 | AW11: 3.048965085 | AX11: 3.091246926 | AY11: 0.9322433859 | AZ11: 1.094991199 | BA11: 8.74933308 | BB11: 3.336231149 | BC11: 7.109403132 | BD11: 1.606934847 | BE11: 4.073343403 | BF11: 2.325765645 | BG11: 2.72590457 | BH11: 7.651376462 | BI11: 2.605429545 | BJ11: 5.572114627 | BK11: 5.872988162 | BL11: 5.43942552 | BM11: 7.399805866 | BN11: 2.647612991 | BO11: 4.459346345 | BP11: 3.612178042 | BQ11: 8.281720698 | BR11: 4.367950613 | BS11: 3.287668257 | BT11: 6.261117559 | BU11: 5.790788608 | BV11: 8.654045184 | BW11: 4.593867462 | BX11: 3.42023485 | BY11: 6.037898622 | BZ11: 6.440390348 | CA11: 5.360329769 | CB11: 4.679314696 | CC11: 1.418802712 | CD11: 3.850142033 | CE11: 8.010522048 | CF11: 4.918473859 | CG11: 3.948902064 | CH11: -1.492101655 | CI11: 5.33380902 | CJ11: 5.607651076 | CK11: 0.9772924366 | CL11: 1.968044561 | CM11: 4.763825965 | CN11: 1.86657334 | CO11: 7.685833779 | CP11: 6.826004622 | CQ11: 6.567229184 | CR11: 5.775722686 | CS11: 5.125322245 | CT11: 5.477014994 | CU11: 6.859474129 | CV11: 5.285011895 | CW11: 0.6344786739 | CX11: 6.862374096 | CY11: 4.756859528 | CZ11: 6.744891161 | DA11: 6.154053557 | DB11: 7.997379977 | DC11: 7.217173935 | DD11: 1.991069339 | DE11: 4.543198878 | DF11: 6.136525711 | DG11: 3.631358689 | DH11: 7.116392527 | DI11: 3.991059074 | DJ11: 6.846564857 | DK11: 2.734330458 | DL11: 4.020597469 | DM11: 2.621680243 | DN11: 2.123868609 | DO11: 7.349530258 | DP11: 8.006276143 | DQ11: 8.005715239 | DR11: 6.044809043 | DS11: 1.6104771 | DT11: 6.679048425 | DU11: 7.374049662 | DV11: 2.786563478 | DW11: 3.804584445 | DX11: 5.411168734 | DY11: 7.007036964 | DZ11: 7.82850949 | EA11: 4.665532809 | EB11: 5.469318655 | EC11: 2.574214983 | ED11: 8.653910724 | EE11: 6.327272289 | EF11: 6.100469955 | EG11: 7.850954488 | EH11: 6.204213338 | EI11: 5.177907175 | EJ11: 6.496454451 | EK11: 5.019933038 | EL11: 4.606732226 | EM11: 4.767994345 | EN11: 7.42468391 | EO11: 5.812814318 | EP11: 5.935519757 | EQ11: 7.330225152 | ER11: 6.978518596 | ES11: 7.201524704 | ET11: 3.364674902 | EU11: 7.48409333 | EV11: 4.140409455 | EW11: 8.204044493 | EX11: 2.061858904 | EY11: 6.59067637 | EZ11: 1.40352454 | FA11: 3.929986237 | FB11: 6.040777796 | FC11: 4.987023061 | FD11: 6.063095094 | FE11: 4.470316052 | FF11: 5.962474144 | FG11: 5.06711064 | FH11: 7.811820084 | FI11: 3.543444134 | FJ11: 3.881843432 | FK11: 5.539914662 | FL11: 4.062145037 | FM11: 3.369798864 | FN11: 7.070745489 | FO11: 6.408632898 | FP11: 5.837841861 | FQ11: 6.349681597 | FR11: 6.61964327 | FS11: 5.343258996 | FT11: 6.10749042 | FU11: 3.88392865 | FV11: 4.316855401 | FW11: 8.179932769 | FX11: 4.851431374 | FY11: 6.570159417 | FZ11: 4.674754989 | GA11: 5.542540165 | GB11: 3.372181209 | GC11: 3.548280138 | GD11: 2.962067591 | GE11: 6.402319366 | GF11: 3.904789308 | GG11: 5.34085006 | GH11: 5.638801193 | GI11: 3.340503806 | GJ11: 7.316390971 | GK11: 3.265881163 | GL11: 4.554858625 | GM11: 2.906244993 | GN11: 7.333351515 | GO11: 6.449874014 | GP11: 5.19990101 | GQ11: 3.841999777 | GR11: 7.830742098 | GS11: 3.791262796 | GT11: 3.941793434 | GU11: 6.059379166 | GV11: 0.4040538885 | GW11: 1.731757669 | GX11: 5.649007373 | GY11: 6.699775599 | GZ11: 4.815463691 | HA11: 4.961916571 | HB11: 3.49034932 | HC11: 1.728233932 | HD11: 6.338503042 | HE11: 1.912124844 | HF11: 1.934104452 | HG11: 4.297549407 | HH11: 2.849897927 | HI11: 7.241385693 | HJ11: 7.571747693 | HK11: 6.630828452 | HL11: 4.516572247 | HM11: 6.618477295 | HN11: 9.014825374 | HO11: 5.118116003 | HP11: 0.4119536993 | HQ11: 4.693637803 | HR11: 5.551704064 | HS11: 5.076002869 | HT11: 6.958740536 | HU11: 6.698713972 | HV11: 5.797096187 | HW11: 6.534324177 | HX11: 5.982830116 | HY11: 4.266145435 | HZ11: 6.207435829 | IA11: 6.058750832 | IB11: 3.049865519 | IC11: 5.208886008 | ID11: 6.090024322 | IE11: 3.066120601 | IF11: 6.586748704 | IG11: 3.1426645 | IH11: 3.87697058 | II11: 2.408660288 | IJ11: 5.104889068 | IK11: 5.112152095 | IL11: 4.550406212 | IM11: 5.083185185 | IN11: 6.914200225 | IO11: 9.334352284 | IP11: 7.502908891 | IQ11: 5.967616239 | IR11: 4.564365539 | IS11: 7.211905103 | IT11: 4.740842702 | IU11: 5.170862573 | IV11: 5.253335279 | IW11: 5.273920566 | IX11: 7.754738309 | IY11: 8.243384956 | IZ11: 3.758116503 | JA11: 5.129530225 | JB11: 4.989045379 | JC11: 5.178171035 | JD11: 6.4033556 | JE11: 2.703672925 | JF11: 4.889155375 | JG11: 7.023851656 | JH11: 3.351336854 | JI11: 2.851569082 | JJ11: 6.056396261 | JK11: 2.044709449 | JL11: 2.836978168 | JM11: 4.886535144 | JN11: 5.653309786 | JO11: 6.894929976 | JP11: 1.91312016 | JQ11: 4.930228586 | JR11: 5.392048302 | JS11: 2.884634996 | JT11: 9.244120217 | JU11: 3.610561933 | JV11: 5.851474887 | JW11: 5.307186496 | JX11: 3.09327483 | JY11: 3.662677753 | JZ11: 2.075847278 | KA11: 7.635591492 | KB11: 4.821872015 | KC11: 2.616055608 | KD11: 5.614851062 | KE11: 5.111586036 | KF11: 5.643726306 | KG11: 4.88466873 | KH11: 5.876104608 | KI11: 5.858486881 | KJ11: 3.646475918 | KK11: 6.532012622 | KL11: 3.999159798 | KM11: 3.114878741 | KN11: 3.856611497 | KO11: 1.36152508 | KP11: 6.86257691 | KQ11: 3.593173181 | KR11: 10.37562218 | KS11: -0.227576756 | KT11: 6.330422413 | KU11: 5.286672147 | KV11: 6.264077843 | KW11: 6.804720536 | KX11: 3.361760613 | KY11: 3.433443308 | KZ11: 3.849119553 | LA11: 5.124111099 | LB11: 4.721941045 | LC11: 4.298956486 | LD11: 3.688854374 | LE11: 5.328869314 | LF11: 9.17086129 | LG11: 5.169597 | LH11: 5.168874371 | LI11: 6.624062591 | LJ11: 5.203932348 | LK11: 3.412660428 | LL11: 5.231118974 | LM11: 3.263323012 | LN11: 3.807670831 | LO11: 3.591170064 | LP11: 3.935503871 | LQ11: 7.025088377 | LR11: 7.209123228 | LS11: 5.309419759 | LT11: 5.764954492 | LU11: 4.021748865 | LV11: 2.130289638 | LW11: 6.420634093 | LX11: 3.274920291 | LY11: 4.833328199 | LZ11: 4.760936635 | MA11: 4.448070957 | MB11: 2.788978042 | MC11: 8.611013784 | MD11: 7.793779756 | ME11: 5.739939786 | MF11: 8.152758931 | MG11: 7.086990842 | MH11: 7.708624093 | MI11: 4.527917885 | MJ11: 6.115411619 | MK11: 8.56807695 | ML11: 4.506586955 | MM11: 7.173094183 | MN11: 2.971118521 | MO11: 3.607828941 | MP11: 6.708798321 | MQ11: 2.168576497 | MR11: 2.825430912 | MS11: 1.115669659
D12: Terminal Period | E12: Year | F12: =INDEX(I12:MS12,$E$2) -> 15 | I12: 15 | J12: 15 | K12: 15 | L12: 15 | M12: 15 | N12: 15 | O12: 15 | P12: 15 | Q12: 15 | R12: 15 | S12: 15 | T12: 15 | U12: 15 | V12: 15 | W12: 15 | X12: 15 | Y12: 15 | Z12: 15 | AA12: 15 | AB12: 15 | AC12: 15 | AD12: 15 | AE12: 15 | AF12: 15 | AG12: 15 | AH12: 15 | AI12: 15 | AJ12: 15 | AK12: 15 | AL12: 15 | AM12: 15 | AN12: 15 | AO12: 15 | AP12: 15 | AQ12: 15 | AR12: 15 | AS12: 15 | AT12: 15 | AU12: 15 | AV12: 15 | AW12: 15 | AX12: 15 | AY12: 15 | AZ12: 15 | BA12: 15 | BB12: 15 | BC12: 15 | BD12: 15 | BE12: 15 | BF12: 15 | BG12: 15 | BH12: 15 | BI12: 15 | BJ12: 15 | BK12: 15 | BL12: 15 | BM12: 15 | BN12: 15 | BO12: 15 | BP12: 15 | BQ12: 15 | BR12: 15 | BS12: 15 | BT12: 15 | BU12: 15 | BV12: 15 | BW12: 15 | BX12: 15 | BY12: 15 | BZ12: 15 | CA12: 15 | CB12: 15 | CC12: 15 | CD12: 15 | CE12: 15 | CF12: 15 | CG12: 15 | CH12: 15 | CI12: 15 | CJ12: 15 | CK12: 15 | CL12: 15 | CM12: 15 | CN12: 15 | CO12: 15 | CP12: 15 | CQ12: 15 | CR12: 15 | CS12: 15 | CT12: 15 | CU12: 15 | CV12: 15 | CW12: 15 | CX12: 15 | CY12: 15 | CZ12: 15 | DA12: 15 | DB12: 15 | DC12: 15 | DD12: 15 | DE12: 15 | DF12: 15 | DG12: 15 | DH12: 15 | DI12: 15 | DJ12: 15 | DK12: 15 | DL12: 15 | DM12: 15 | DN12: 15 | DO12: 15 | DP12: 15 | DQ12: 15 | DR12: 15 | DS12: 15 | DT12: 15 | DU12: 15 | DV12: 15 | DW12: 15 | DX12: 15 | DY12: 15 | DZ12: 15 | EA12: 15 | EB12: 15 | EC12: 15 | ED12: 15 | EE12: 15 | EF12: 15 | EG12: 15 | EH12: 15 | EI12: 15 | EJ12: 15 | EK12: 15 | EL12: 15 | EM12: 15 | EN12: 15 | EO12: 15 | EP12: 15 | EQ12: 15 | ER12: 15 | ES12: 15 | ET12: 15 | EU12: 15 | EV12: 15 | EW12: 15 | EX12: 15 | EY12: 15 | EZ12: 15 | FA12: 15 | FB12: 15 | FC12: 15 | FD12: 15 | FE12: 15 | FF12: 15 | FG12: 15 | FH12: 15 | FI12: 15 | FJ12: 15 | FK12: 15 | FL12: 15 | FM12: 15 | FN12: 15 | FO12: 15 | FP12: 15 | FQ12: 15 | FR12: 15 | FS12: 15 | FT12: 15 | FU12: 15 | FV12: 15 | FW12: 15 | FX12: 15 | FY12: 15 | FZ12: 15 | GA12: 15 | GB12: 15 | GC12: 15 | GD12: 15 | GE12: 15 | GF12: 15 | GG12: 15 | GH12: 15 | GI12: 15 | GJ12: 15 | GK12: 15 | GL12: 15 | GM12: 15 | GN12: 15 | GO12: 15 | GP12: 15 | GQ12: 15 | GR12: 15 | GS12: 15 | GT12: 15 | GU12: 15 | GV12: 15 | GW12: 15 | GX12: 15 | GY12: 15 | GZ12: 15 | HA12: 15 | HB12: 15 | HC12: 15 | HD12: 15 | HE12: 15 | HF12: 15 | HG12: 15 | HH12: 15 | HI12: 15 | HJ12: 15 | HK12: 15 | HL12: 15 | HM12: 15 | HN12: 15 | HO12: 15 | HP12: 15 | HQ12: 15 | HR12: 15 | HS12: 15 | HT12: 15 | HU12: 15 | HV12: 15 | HW12: 15 | HX12: 15 | HY12: 15 | HZ12: 15 | IA12: 15 | IB12: 15 | IC12: 15 | ID12: 15 | IE12: 15 | IF12: 15 | IG12: 15 | IH12: 15 | II12: 15 | IJ12: 15 | IK12: 15 | IL12: 15 | IM12: 15 | IN12: 15 | IO12: 15 | IP12: 15 | IQ12: 15 | IR12: 15 | IS12: 15 | IT12: 15 | IU12: 15 | IV12: 15 | IW12: 15 | IX12: 15 | IY12: 15 | IZ12: 15 | JA12: 15 | JB12: 15 | JC12: 15 | JD12: 15 | JE12: 15 | JF12: 15 | JG12: 15 | JH12: 15 | JI12: 15 | JJ12: 15 | JK12: 15 | JL12: 15 | JM12: 15 | JN12: 15 | JO12: 15 | JP12: 15 | JQ12: 15 | JR12: 15 | JS12: 15 | JT12: 15 | JU12: 15 | JV12: 15 | JW12: 15 | JX12: 15 | JY12: 15 | JZ12: 15 | KA12: 15 | KB12: 15 | KC12: 15 | KD12: 15 | KE12: 15 | KF12: 15 | KG12: 15 | KH12: 15 | KI12: 15 | KJ12: 15 | KK12: 15 | KL12: 15 | KM12: 15 | KN12: 15 | KO12: 15 | KP12: 15 | KQ12: 15 | KR12: 15 | KS12: 15 | KT12: 15 | KU12: 15 | KV12: 15 | KW12: 15 | KX12: 15 | KY12: 15 | KZ12: 15 | LA12: 15 | LB12: 15 | LC12: 15 | LD12: 15 | LE12: 15 | LF12: 15 | LG12: 15 | LH12: 15 | LI12: 15 | LJ12: 15 | LK12: 15 | LL12: 15 | LM12: 15 | LN12: 15 | LO12: 15 | LP12: 15 | LQ12: 15 | LR12: 15 | LS12: 15 | LT12: 15 | LU12: 15 | LV12: 15 | LW12: 15 | LX12: 15 | LY12: 15 | LZ12: 15 | MA12: 15 | MB12: 15 | MC12: 15 | MD12: 15 | ME12: 15 | MF12: 15 | MG12: 15 | MH12: 15 | MI12: 15 | MJ12: 15 | MK12: 15 | ML12: 15 | MM12: 15 | MN12: 15 | MO12: 15 | MP12: 15 | MQ12: 15 | MR12: 15 | MS12: 15
I14: 1 | J14: 2 | K14: 3 | L14: 4 | M14: 5 | N14: 6 | O14: 7 | P14: 8 | Q14: 9 | R14: 10 | S14: 11 | T14: 12 | U14: 13 | V14: 14 | W14: 15 | X14: 16 | Y14: 17 | Z14: 18 | AA14: 19 | AB14: 20 | AC14: 21 | AD14: 22 | AE14: 23 | AF14: 24 | AG14: 25 | AH14: 26 | AI14: 27 | AJ14: 28 | AK14: 29 | AL14: 30 | AM14: 31 | AN14: 32 | AO14: 33 | AP14: 34 | AQ14: 35 | AR14: 36 | AS14: 37 | AT14: 38 | AU14: 39 | AV14: 40 | AW14: 41 | AX14: 42 | AY14: 43 | AZ14: 44 | BA14: 45 | BB14: 46 | BC14: 47 | BD14: 48 | BE14: 49 | BF14: 50 | BG14: 51 | BH14: 52 | BI14: 53 | BJ14: 54 | BK14: 55 | BL14: 56 | BM14: 57 | BN14: 58 | BO14: 59 | BP14: 60 | BQ14: 61 | BR14: 62 | BS14: 63 | BT14: 64 | BU14: 65 | BV14: 66 | BW14: 67 | BX14: 68 | BY14: 69 | BZ14: 70 | CA14: 71 | CB14: 72 | CC14: 73 | CD14: 74 | CE14: 75 | CF14: 76 | CG14: 77 | CH14: 78 | CI14: 79 | CJ14: 80 | CK14: 81 | CL14: 82 | CM14: 83 | CN14: 84 | CO14: 85 | CP14: 86 | CQ14: 87 | CR14: 88 | CS14: 89 | CT14: 90 | CU14: 91 | CV14: 92 | CW14: 93 | CX14: 94 | CY14: 95 | CZ14: 96 | DA14: 97 | DB14: 98 | DC14: 99 | DD14: 100 | DE14: 101 | DF14: 102 | DG14: 103 | DH14: 104 | DI14: 105 | DJ14: 106 | DK14: 107 | DL14: 108 | DM14: 109 | DN14: 110 | DO14: 111 | DP14: 112 | DQ14: 113 | DR14: 114 | DS14: 115 | DT14: 116 | DU14: 117 | DV14: 118 | DW14: 119 | DX14: 120 | DY14: 121 | DZ14: 122 | EA14: 123 | EB14: 124 | EC14: 125 | ED14: 126 | EE14: 127 | EF14: 128 | EG14: 129 | EH14: 130 | EI14: 131 | EJ14: 132 | EK14: 133 | EL14: 134 | EM14: 135 | EN14: 136 | EO14: 137 | EP14: 138 | EQ14: 139 | ER14: 140 | ES14: 141 | ET14: 142 | EU14: 143 | EV14: 144 | EW14: 145 | EX14: 146 | EY14: 147 | EZ14: 148 | FA14: 149 | FB14: 150 | FC14: 151 | FD14: 152 | FE14: 153 | FF14: 154 | FG14: 155 | FH14: 156 | FI14: 157 | FJ14: 158 | FK14: 159 | FL14: 160 | FM14: 161 | FN14: 162 | FO14: 163 | FP14: 164 | FQ14: 165 | FR14: 166 | FS14: 167 | FT14: 168 | FU14: 169 | FV14: 170 | FW14: 171 | FX14: 172 | FY14: 173 | FZ14: 174 | GA14: 175 | GB14: 176 | GC14: 177 | GD14: 178 | GE14: 179 | GF14: 180 | GG14: 181 | GH14: 182 | GI14: 183 | GJ14: 184 | GK14: 185 | GL14: 186 | GM14: 187 | GN14: 188 | GO14: 189 | GP14: 190 | GQ14: 191 | GR14: 192 | GS14: 193 | GT14: 194 | GU14: 195 | GV14: 196 | GW14: 197 | GX14: 198 | GY14: 199 | GZ14: 200 | HA14: 201 | HB14: 202 | HC14: 203 | HD14: 204 | HE14: 205 | HF14: 206 | HG14: 207 | HH14: 208 | HI14: 209 | HJ14: 210 | HK14: 211 | HL14: 212 | HM14: 213 | HN14: 214 | HO14: 215 | HP14: 216 | HQ14: 217 | HR14: 218 | HS14: 219 | HT14: 220 | HU14: 221 | HV14: 222 | HW14: 223 | HX14: 224 | HY14: 225 | HZ14: 226 | IA14: 227 | IB14: 228 | IC14: 229 | ID14: 230 | IE14: 231 | IF14: 232 | IG14: 233 | IH14: 234 | II14: 235 | IJ14: 236 | IK14: 237 | IL14: 238 | IM14: 239 | IN14: 240 | IO14: 241 | IP14: 242 | IQ14: 243 | IR14: 244 | IS14: 245 | IT14: 246 | IU14: 247 | IV14: 248 | IW14: 249 | IX14: 250 | IY14: 251 | IZ14: 252 | JA14: 253 | JB14: 254 | JC14: 255 | JD14: 256 | JE14: 257 | JF14: 258 | JG14: 259 | JH14: 260 | JI14: 261 | JJ14: 262 | JK14: 263 | JL14: 264 | JM14: 265 | JN14: 266 | JO14: 267 | JP14: 268 | JQ14: 269 | JR14: 270 | JS14: 271 | JT14: 272 | JU14: 273 | JV14: 274 | JW14: 275 | JX14: 276 | JY14: 277 | JZ14: 278 | KA14: 279 | KB14: 280 | KC14: 281 | KD14: 282 | KE14: 283 | KF14: 284 | KG14: 285 | KH14: 286 | KI14: 287 | KJ14: 288 | KK14: 289 | KL14: 290 | KM14: 291 | KN14: 292 | KO14: 293 | KP14: 294 | KQ14: 295 | KR14: 296 | KS14: 297 | KT14: 298 | KU14: 299 | KV14: 300 | KW14: 301 | KX14: 302 | KY14: 303 | KZ14: 304 | LA14: 305 | LB14: 306 | LC14: 307 | LD14: 308 | LE14: 309 | LF14: 310 | LG14: 311 | LH14: 312 | LI14: 313 | LJ14: 314 | LK14: 315 | LL14: 316 | LM14: 317 | LN14: 318 | LO14: 319 | LP14: 320 | LQ14: 321 | LR14: 322 | LS14: 323 | LT14: 324 | LU14: 325 | LV14: 326 | LW14: 327 | LX14: 328 | LY14: 329 | LZ14: 330 | MA14: 331 | MB14: 332 | MC14: 333 | MD14: 334 | ME14: 335 | MF14: 336 | MG14: 337 | MH14: 338 | MI14: 339 | MJ14: 340 | MK14: 341 | ML14: 342 | MM14: 343 | MN14: 344 | MO14: 345 | MP14: 346 | MQ14: 347 | MR14: 348 | MS14: 349
H15: =F52 -> 1.181136888 | I15: 1.181136888 | J15: 1.723692651 | K15: 0.8377241363 | L15: 1.250490003 | M15: 1.102848892 | N15: 2.042716158 | O15: 1.179493207 | P15: 2.451896128 | Q15: 2.08872156 | R15: 3.088181371 | S15: 1.629169052 | T15: 0.8684141635 | U15: 2.270186472 | V15: 1.588371053 | W15: 0.9567718319 | X15: 1.414109292 | Y15: 3.745628263 | Z15: 3.282271191 | AA15: 1.886541228 | AB15: 1.578727218 | AC15: 2.013960888 | AD15: 1.277959971 | AE15: 1.476634799 | AF15: 2.803479068 | AG15: 1.105858959 | AH15: 2.575366158 | AI15: 2.82270997 | AJ15: 1.077125782 | AK15: 1.68926691 | AL15: 1.64774198 | AM15: 1.030644289 | AN15: 1.361907675 | AO15: -0.01234753949 | AP15: 1.186828139 | AQ15: 1.23571758 | AR15: 1.61416043 | AS15: 1.396936201 | AT15: 2.228735052 | AU15: 0.3025925623 | AV15: 1.440046051 | AW15: 1.634847027 | AX15: 0.9514226069 | AY15: 1.531355546 | AZ15: 1.318889596 | BA15: 1.948942587 | BB15: 1.716497988 | BC15: 1.40035791 | BD15: 3.160940005 | BE15: 2.725193406 | BF15: 0.7666056491 | BG15: 2.389168621 | BH15: 1.657441107 | BI15: 0.8794801674 | BJ15: 0.134668909 | BK15: 1.809450187 | BL15: 2.252130873 | BM15: 0.5343362177 | BN15: 2.162592027 | BO15: 1.022748933 | BP15: 3.161646626 | BQ15: 2.425875768 | BR15: 0.8770075465 | BS15: 1.436372724 | BT15: 0.9240981661 | BU15: 1.559840686 | BV15: 1.720526348 | BW15: 2.466484879 | BX15: 2.90854791 | BY15: 1.333406419 | BZ15: 0.4406041326 | CA15: 2.065959172 | CB15: 1.217068717 | CC15: 1.132602859 | CD15: 0.8211446571 | CE15: 1.921381048 | CF15: 1.944166234 | CG15: 1.49946837 | CH15: 1.157785879 | CI15: 1.837907774 | CJ15: 1.103876024 | CK15: 1.990192058 | CL15: 2.173701235 | CM15: 0.1126934681 | CN15: 3.421603013 | CO15: 1.507102071 | CP15: 2.318166992 | CQ15: 1.597919615 | CR15: 1.921014732 | CS15: 1.144056665 | CT15: 3.852091952 | CU15: 0.9077710188 | CV15: 2.697665685 | CW15: 1.756654958 | CX15: 1.769450347 | CY15: 0.7139212845 | CZ15: 2.793475211 | DA15: 1.635199476 | DB15: 2.407029557 | DC15: 1.274566243 | DD15: 1.26891886 | DE15: -0.1800474564 | DF15: 1.56211305 | DG15: 2.539528744 | DH15: 1.487146181 | DI15: 0.823829424 | DJ15: 3.134293066 | DK15: 1.260993795 | DL15: 1.108079262 | DM15: 2.282930996 | DN15: 0.4805206545 | DO15: 1.664151317 | DP15: 0.591961663 | DQ15: 1.597040678 | DR15: 1.751339121 | DS15: 1.647639052 | DT15: 1.229599001 | DU15: 2.029338277 | DV15: 1.231803031 | DW15: 1.945311239 | DX15: 2.314063067 | DY15: 1.167823034 | DZ15: 2.072540513 | EA15: 1.20438037 | EB15: 1.648815052 | EC15: 0.8201723239 | ED15: 0.9928056718 | EE15: 0.9211412559 | EF15: 1.440200028 | EG15: 1.713879752 | EH15: 2.277186047 | EI15: 1.13997722 | EJ15: 0.6632241453 | EK15: 0.9101494039 | EL15: 2.171645622 | EM15: 0.3984514642 | EN15: 1.361700279 | EO15: 0.5509549793 | EP15: 1.825201796 | EQ15: 1.207065081 | ER15: 0.6691394352 | ES15: 0.9799666021 | ET15: 2.164448817 | EU15: 1.499536263 | EV15: 1.529573956 | EW15: 1.177843425 | EX15: 1.703402188 | EY15: 1.129779938 | EZ15: 2.338067467 | FA15: 1.804442038 | FB15: 2.182337886 | FC15: 1.101266696 | FD15: 1.411547128 | FE15: 1.56629133 | FF15: 1.604785911 | FG15: 1.900962983 | FH15: -0.05449558051 | FI15: 1.626201256 | FJ15: 2.286339218 | FK15: 0.230389574 | FL15: 0.482171415 | FM15: 2.895204602 | FN15: 1.130072301 | FO15: 0.8347993081 | FP15: 1.594476577 | FQ15: 1.933068296 | FR15: 1.428965018 | FS15: 1.256656641 | FT15: 2.104339347 | FU15: 2.098663352 | FV15: 0.7511314475 | FW15: 1.502395995 | FX15: 1.895747337 | FY15: 0.8174758248 | FZ15: 2.069064011 | GA15: 2.925158536 | GB15: 1.32205383 | GC15: 0.7644200105 | GD15: 0.4103010677 | GE15: 2.305348265 | GF15: -0.5229703797 | GG15: 0.5663044602 | GH15: 2.740093604 | GI15: 1.661740155 | GJ15: 1.784408092 | GK15: 2.327746852 | GL15: 0.6356976514 | GM15: 1.607804375 | GN15: 0.935457172 | GO15: 1.290878856 | GP15: 2.429286869 | GQ15: 1.424898036 | GR15: 0.7129762829 | GS15: 0.9616900588 | GT15: 0.7393824949 | GU15: 1.407449072 | GV15: 1.023543753 | GW15: 2.134027841 | GX15: 2.631408333 | GY15: 2.266405237 | GZ15: 0.4722251537 | HA15: 2.97742027 | HB15: 1.633586467 | HC15: 2.78382698 | HD15: -0.423386013 | HE15: 1.048833183 | HF15: 0.5029821218 | HG15: 2.425655184 | HH15: 1.764263323 | HI15: 1.460983009 | HJ15: 2.7181408 | HK15: 0.9148728687 | HL15: 0.3384412365 | HM15: 0.4904186862 | HN15: 0.7755713663 | HO15: 1.953057999 | HP15: 1.87781577 | HQ15: 2.098685909 | HR15: 1.699163513 | HS15: 2.861237838 | HT15: 1.945603435 | HU15: 0.8200662696 | HV15: 1.740675772 | HW15: 1.190017846 | HX15: 0.6477939208 | HY15: 0.8720509892 | HZ15: 1.530159727 | IA15: 1.719175264 | IB15: 0.9676370101 | IC15: 2.718541431 | ID15: 2.162064201 | IE15: 0.9041385402 | IF15: 2.877438638 | IG15: 1.193174444 | IH15: 1.436039389 | II15: 3.064950308 | IJ15: 2.4958328 | IK15: 2.94499549 | IL15: 1.588178954 | IM15: 1.689124167 | IN15: 1.135341641 | IO15: 2.678914186 | IP15: 3.25977229 | IQ15: 0.8841553152 | IR15: 1.702879784 | IS15: 1.299245983 | IT15: 1.553891958 | IU15: 0.2649494519 | IV15: 1.424967424 | IW15: 1.788662792 | IX15: 1.921477709 | IY15: 0.8488293533 | IZ15: 1.843729204 | JA15: 1.783133248 | JB15: 1.997379902 | JC15: 1.17197294 | JD15: 1.408939364 | JE15: 1.103125236 | JF15: 0.5083879963 | JG15: 2.830842375 | JH15: 1.223809668 | JI15: 1.503918599 | JJ15: 1.116890281 | JK15: 0.7025822361 | JL15: -0.07146092351 | JM15: 1.836098647 | JN15: 1.593178768 | JO15: 2.091976512 | JP15: 1.546334373 | JQ15: 0.7782237179 | JR15: 0.7352957593 | JS15: 1.851073013 | JT15: 1.158495392 | JU15: 1.082191721 | JV15: 0.4759641645 | JW15: 1.391208984 | JX15: 2.128885126 | JY15: 1.051211764 | JZ15: 2.359024373 | KA15: 2.498946505 | KB15: 3.572300837 | KC15: 2.845204181 | KD15: 3.083998217 | KE15: 2.145866816 | KF15: 1.310147949 | KG15: 1.949319467 | KH15: 1.532122629 | KI15: 2.183461427 | KJ15: 0.2925075201 | KK15: 1.586513473 | KL15: 0.7241279596 | KM15: 1.209200386 | KN15: 0.8633480366 | KO15: 1.548762425 | KP15: 2.71123069 | KQ15: 0.6124195459 | KR15: 0.6487722669 | KS15: 1.49723502 | KT15: 1.289920123 | KU15: 1.620595855 | KV15: 0.2492460532 | KW15: 2.876434353 | KX15: 1.418271657 | KY15: 2.046257239 | KZ15: 2.484612538 | LA15: 1.164456482 | LB15: 0.8936575016 | LC15: 1.359716971 | LD15: 1.618943372 | LE15: 1.819389006 | LF15: 1.559090895 | LG15: 1.855876699 | LH15: 2.610756352 | LI15: 1.833888311 | LJ15: 1.496417379 | LK15: 0.7856940112 | LL15: 1.242033797 | LM15: 0.3893947017 | LN15: 1.555153439 | LO15: 0.9948493115 | LP15: 1.137187821 | LQ15: 0.5127463261 | LR15: 2.324969742 | LS15: 1.599913638 | LT15: 1.971240734 | LU15: 1.208851506 | LV15: 2.052461489 | LW15: 2.384640156 | LX15: 1.715828686 | LY15: 2.069329104 | LZ15: 1.907922979 | MA15: 1.843793154 | MB15: 1.051731347 | MC15: 2.358676456 | MD15: 1.027442057 | ME15: 1.812059656 | MF15: 1.42554445 | MG15: 0.9666736088 | MH15: 1.938669545 | MI15: 1.613614746 | MJ15: 1.96148716 | MK15: 1.883024216 | ML15: 0.8399737347 | MM15: 1.591430978 | MN15: 1.209360847 | MO15: 2.004437432 | MP15: 1.417266331 | MQ15: 1.882527546 | MR15: 1.346641798 | MS15: 1.688493225
D16: Simple Implied k | I16: =I7/I15-I9/I15+I9 -> 0.06 | J16: =J7/J15-J9/J15+J9 -> 0.06 | K16: 0.06 | L16: 0.06 | M16: 0.06 | N16: 0.06 | O16: 0.06 | P16: 0.06 | Q16: 0.06 | R16: 0.06 | S16: 0.06 | T16: 0.06 | U16: 0.06 | V16: 0.06 | W16: 0.06 | X16: 0.06 | Y16: 0.06 | Z16: 0.06 | AA16: 0.06 | AB16: 0.06 | AC16: 0.06 | AD16: 0.06 | AE16: 0.06 | AF16: 0.06 | AG16: 0.06 | AH16: 0.06 | AI16: 0.06 | AJ16: 0.06 | AK16: 0.06 | AL16: 0.06 | AM16: 0.06 | AN16: 0.06 | AO16: 0.06 | AP16: 0.06 | AQ16: 0.06 | AR16: 0.06 | AS16: 0.06 | AT16: 0.06 | AU16: 0.06 | AV16: 0.06 | AW16: 0.06 | AX16: 0.06 | AY16: 0.06 | AZ16: 0.06 | BA16: 0.06 | BB16: 0.06 | BC16: 0.06 | BD16: 0.06 | BE16: 0.06 | BF16: 0.06 | BG16: 0.06 | BH16: 0.06 | BI16: 0.06 | BJ16: 0.06 | BK16: 0.06 | BL16: 0.06 | BM16: 0.06 | BN16: 0.06 | BO16: 0.06 | BP16: 0.06 | BQ16: 0.06 | BR16: 0.06 | BS16: 0.06 | BT16: 0.06 | BU16: 0.06 | BV16: =BV7/BV15-BV9/BV15+BV9 -> 0.06 | BW16: 0.06 | BX16: 0.06 | BY16: 0.06 | BZ16: 0.06 | CA16: 0.06 | CB16: 0.06 | CC16: 0.06 | CD16: 0.06 | CE16: 0.06 | CF16: 0.06 | CG16: 0.06 | CH16: 0.06 | CI16: 0.06 | CJ16: 0.06 | CK16: 0.06 | CL16: 0.06 | CM16: 0.06 | CN16: 0.06 | CO16: 0.06 | CP16: 0.06 | CQ16: 0.06 | CR16: 0.06 | CS16: 0.06 | CT16: 0.06 | CU16: 0.06 | CV16: 0.06 | CW16: 0.06 | CX16: 0.06 | CY16: 0.06 | CZ16: 0.06 | DA16: 0.06 | DB16: 0.06 | DC16: 0.06 | DD16: 0.06 | DE16: 0.06 | DF16: 0.06 | DG16: 0.06 | DH16: 0.06 | DI16: 0.06 | DJ16: 0.06 | DK16: 0.06 | DL16: 0.06 | DM16: 0.06 | DN16: 0.06 | DO16: 0.06 | DP16: 0.06 | DQ16: 0.06 | DR16: 0.06 | DS16: 0.06 | DT16: 0.06 | DU16: 0.06 | DV16: 0.06 | DW16: 0.06 | DX16: 0.06 | DY16: 0.06 | DZ16: 0.06 | EA16: 0.06 | EB16: 0.06 | EC16: 0.06 | ED16: 0.06 | EE16: 0.06 | EF16: 0.06 | EG16: 0.06 | EH16: =EH7/EH15-EH9/EH15+EH9 -> 0.06 | EI16: 0.06 | EJ16: 0.06 | EK16: 0.06 | EL16: 0.06 | EM16: 0.06 | EN16: 0.06 | EO16: 0.06 | EP16: 0.06 | EQ16: 0.06 | ER16: 0.06 | ES16: 0.06 | ET16: 0.06 | EU16: 0.06 | EV16: 0.06 | EW16: 0.06 | EX16: 0.06 | EY16: 0.06 | EZ16: 0.06 | FA16: 0.06 | FB16: 0.06 | FC16: 0.06 | FD16: 0.06 | FE16: 0.06 | FF16: 0.06 | FG16: 0.06 | FH16: 0.06 | FI16: 0.06 | FJ16: 0.06 | FK16: 0.06 | FL16: 0.06 | FM16: 0.06 | FN16: 0.06 | FO16: 0.06 | FP16: 0.06 | FQ16: 0.06 | FR16: 0.06 | FS16: 0.06 | FT16: 0.06 | FU16: 0.06 | FV16: 0.06 | FW16: 0.06 | FX16: 0.06 | FY16: 0.06 | FZ16: 0.06 | GA16: 0.06 | GB16: 0.06 | GC16: 0.06 | GD16: 0.06 | GE16: 0.06 | GF16: 0.06 | GG16: 0.06 | GH16: 0.06 | GI16: 0.06 | GJ16: 0.06 | GK16: 0.06 | GL16: 0.06 | GM16: 0.06 | GN16: 0.06 | GO16: 0.06 | GP16: 0.06 | GQ16: 0.06 | GR16: 0.06 | GS16: 0.06 | GT16: =GT7/GT15-GT9/GT15+GT9 -> 0.06 | GU16: 0.06 | GV16: 0.06 | GW16: 0.06 | GX16: 0.06 | GY16: 0.06 | GZ16: 0.06 | HA16: 0.06 | HB16: 0.06 | HC16: 0.06 | HD16: 0.06 | HE16: 0.06 | HF16: 0.06 | HG16: 0.06 | HH16: 0.06 | HI16: 0.06 | HJ16: 0.06 | HK16: 0.06 | HL16: 0.06 | HM16: 0.06 | HN16: 0.06 | HO16: 0.06 | HP16: 0.06 | HQ16: 0.06 | HR16: 0.06 | HS16: 0.06 | HT16: 0.06 | HU16: 0.06 | HV16: 0.06 | HW16: 0.06 | HX16: 0.06 | HY16: 0.06 | HZ16: 0.06 | IA16: 0.06 | IB16: 0.06 | IC16: 0.06 | ID16: 0.06 | IE16: 0.06 | IF16: 0.06 | IG16: 0.06 | IH16: 0.06 | II16: 0.06 | IJ16: 0.06 | IK16: 0.06 | IL16: 0.06 | IM16: 0.06 | IN16: 0.06 | IO16: 0.06 | IP16: 0.06 | IQ16: 0.06 | IR16: 0.06 | IS16: 0.06 | IT16: 0.06 | IU16: 0.06 | IV16: 0.06 | IW16: 0.06 | IX16: 0.06 | IY16: 0.06 | IZ16: 0.06 | JA16: 0.06 | JB16: 0.06 | JC16: 0.06 | JD16: 0.06 | JE16: 0.06 | JF16: =JF7/JF15-JF9/JF15+JF9 -> 0.06 | JG16: 0.06 | JH16: 0.06 | JI16: 0.06 | JJ16: 0.06 | JK16: 0.06 | JL16: 0.06 | JM16: 0.06 | JN16: 0.06 | JO16: 0.06 | JP16: 0.06 | JQ16: 0.06 | JR16: 0.06 | JS16: 0.06 | JT16: 0.06 | JU16: 0.06 | JV16: 0.06 | JW16: 0.06 | JX16: 0.06 | JY16: 0.06 | JZ16: 0.06 | KA16: 0.06 | KB16: 0.06 | KC16: 0.06 | KD16: 0.06 | KE16: 0.06 | KF16: 0.06 | KG16: 0.06 | KH16: 0.06 | KI16: 0.06 | KJ16: 0.06 | KK16: 0.06 | KL16: 0.06 | KM16: 0.06 | KN16: 0.06 | KO16: 0.06 | KP16: 0.06 | KQ16: 0.06 | KR16: 0.06 | KS16: 0.06 | KT16: 0.06 | KU16: 0.06 | KV16: 0.06 | KW16: 0.06 | KX16: 0.06 | KY16: 0.06 | KZ16: 0.06 | LA16: 0.06 | LB16: 0.06 | LC16: 0.06 | LD16: 0.06 | LE16: 0.06 | LF16: 0.06 | LG16: 0.06 | LH16: 0.06 | LI16: 0.06 | LJ16: 0.06 | LK16: 0.06 | LL16: 0.06 | LM16: 0.06 | LN16: 0.06 | LO16: 0.06 | LP16: 0.06 | LQ16: 0.06 | LR16: =LR7/LR15-LR9/LR15+LR9 -> 0.06 | LS16: 0.06 | LT16: 0.06 | LU16: 0.06 | LV16: 0.06 | LW16: 0.06 | LX16: 0.06 | LY16: 0.06 | LZ16: 0.06 | MA16: 0.06 | MB16: 0.06 | MC16: 0.06 | MD16: 0.06 | ME16: 0.06 | MF16: 0.06 | MG16: 0.06 | MH16: 0.06 | MI16: 0.06 | MJ16: 0.06 | MK16: 0.06 | ML16: 0.06 | MM16: 0.06 | MN16: 0.06 | MO16: 0.06 | MP16: 0.06 | MQ16: 0.06 | MR16: 0.06 | MS16: 0.06
G18: x | I18: =I15 -> 1.181136888 | J18: =J15 -> 1.723692651 | K18: 0.8377241363 | L18: 1.250490003 | M18: 1.102848892 | N18: 2.042716158 | O18: 1.179493207 | P18: 2.451896128 | Q18: 2.08872156 | R18: 3.088181371 | S18: 1.629169052 | T18: 0.8684141635 | U18: 2.270186472 | V18: 1.588371053 | W18: 0.9567718319 | X18: 1.414109292 | Y18: 3.745628263 | Z18: 3.282271191 | AA18: 1.886541228 | AB18: 1.578727218 | AC18: 2.013960888 | AD18: =AD15 -> 1.277959971 | AE18: 1.476634799 | AF18: 2.803479068 | AG18: 1.105858959 | AH18: 2.575366158 | AI18: 2.82270997 | AJ18: 1.077125782 | AK18: 1.68926691 | AL18: 1.64774198 | AM18: 1.030644289 | AN18: 1.361907675 | AO18: -0.01234753949 | AP18: 1.186828139 | AQ18: 1.23571758 | AR18: 1.61416043 | AS18: 1.396936201 | AT18: 2.228735052 | AU18: 0.3025925623 | AV18: 1.440046051 | AW18: 1.634847027 | AX18: 0.9514226069 | AY18: 1.531355546 | AZ18: 1.318889596 | BA18: 1.948942587 | BB18: 1.716497988 | BC18: 1.40035791 | BD18: 3.160940005 | BE18: 2.725193406 | BF18: 0.7666056491 | BG18: 2.389168621 | BH18: 1.657441107 | BI18: 0.8794801674 | BJ18: 0.134668909 | BK18: 1.809450187 | BL18: 2.252130873 | BM18: 0.5343362177 | BN18: 2.162592027 | BO18: 1.022748933 | BP18: 3.161646626 | BQ18: 2.425875768 | BR18: 0.8770075465 | BS18: 1.436372724 | BT18: 0.9240981661 | BU18: 1.559840686 | BV18: 1.720526348 | BW18: 2.466484879 | BX18: 2.90854791 | BY18: 1.333406419 | BZ18: 0.4406041326 | CA18: 2.065959172 | CB18: 1.217068717 | CC18: 1.132602859 | CD18: 0.8211446571 | CE18: 1.921381048 | CF18: 1.944166234 | CG18: 1.49946837 | CH18: 1.157785879 | CI18: 1.837907774 | CJ18: 1.103876024 | CK18: 1.990192058 | CL18: 2.173701235 | CM18: 0.1126934681 | CN18: 3.421603013 | CO18: 1.507102071 | CP18: =CP15 -> 2.318166992 | CQ18: 1.597919615 | CR18: 1.921014732 | CS18: 1.144056665 | CT18: 3.852091952 | CU18: 0.9077710188 | CV18: 2.697665685 | CW18: 1.756654958 | CX18: 1.769450347 | CY18: 0.7139212845 | CZ18: 2.793475211 | DA18: 1.635199476 | DB18: 2.407029557 | DC18: 1.274566243 | DD18: 1.26891886 | DE18: -0.1800474564 | DF18: 1.56211305 | DG18: 2.539528744 | DH18: 1.487146181 | DI18: 0.823829424 | DJ18: 3.134293066 | DK18: 1.260993795 | DL18: 1.108079262 | DM18: 2.282930996 | DN18: 0.4805206545 | DO18: 1.664151317 | DP18: 0.591961663 | DQ18: 1.597040678 | DR18: 1.751339121 | DS18: 1.647639052 | DT18: 1.229599001 | DU18: 2.029338277 | DV18: 1.231803031 | DW18: 1.945311239 | DX18: 2.314063067 | DY18: 1.167823034 | DZ18: 2.072540513 | EA18: 1.20438037 | EB18: 1.648815052 | EC18: 0.8201723239 | ED18: 0.9928056718 | EE18: 0.9211412559 | EF18: 1.440200028 | EG18: 1.713879752 | EH18: 2.277186047 | EI18: 1.13997722 | EJ18: 0.6632241453 | EK18: 0.9101494039 | EL18: 2.171645622 | EM18: 0.3984514642 | EN18: 1.361700279 | EO18: 0.5509549793 | EP18: 1.825201796 | EQ18: 1.207065081 | ER18: 0.6691394352 | ES18: 0.9799666021 | ET18: 2.164448817 | EU18: 1.499536263 | EV18: 1.529573956 | EW18: 1.177843425 | EX18: 1.703402188 | EY18: 1.129779938 | EZ18: 2.338067467 | FA18: 1.804442038 | FB18: =FB15 -> 2.182337886 | FC18: 1.101266696 | FD18: 1.411547128 | FE18: 1.56629133 | FF18: 1.604785911 | FG18: 1.900962983 | FH18: -0.05449558051 | FI18: 1.626201256 | FJ18: 2.286339218 | FK18: 0.230389574 | FL18: 0.482171415 | FM18: 2.895204602 | FN18: 1.130072301 | FO18: 0.8347993081 | FP18: 1.594476577 | FQ18: 1.933068296 | FR18: 1.428965018 | FS18: 1.256656641 | FT18: 2.104339347 | FU18: 2.098663352 | FV18: 0.7511314475 | FW18: 1.502395995 | FX18: 1.895747337 | FY18: 0.8174758248 | FZ18: 2.069064011 | GA18: 2.925158536 | GB18: 1.32205383 | GC18: 0.7644200105 | GD18: 0.4103010677 | GE18: 2.305348265 | GF18: -0.5229703797 | GG18: 0.5663044602 | GH18: 2.740093604 | GI18: 1.661740155 | GJ18: 1.784408092 | GK18: 2.327746852 | GL18: 0.6356976514 | GM18: 1.607804375 | GN18: 0.935457172 | GO18: 1.290878856 | GP18: 2.429286869 | GQ18: 1.424898036 | GR18: 0.7129762829 | GS18: 0.9616900588 | GT18: 0.7393824949 | GU18: 1.407449072 | GV18: 1.023543753 | GW18: 2.134027841 | GX18: 2.631408333 | GY18: 2.266405237 | GZ18: 0.4722251537 | HA18: 2.97742027 | HB18: 1.633586467 | HC18: 2.78382698 | HD18: -0.423386013 | HE18: 1.048833183 | HF18: 0.5029821218 | HG18: 2.425655184 | HH18: 1.764263323 | HI18: 1.460983009 | HJ18: 2.7181408 | HK18: 0.9148728687 | HL18: 0.3384412365 | HM18: 0.4904186862 | HN18: =HN15 -> 0.7755713663 | HO18: 1.953057999 | HP18: 1.87781577 | HQ18: 2.098685909 | HR18: 1.699163513 | HS18: 2.861237838 | HT18: 1.945603435 | HU18: 0.8200662696 | HV18: 1.740675772 | HW18: 1.190017846 | HX18: 0.6477939208 | HY18: 0.8720509892 | HZ18: 1.530159727 | IA18: 1.719175264 | IB18: 0.9676370101 | IC18: 2.718541431 | ID18: 2.162064201 | IE18: 0.9041385402 | IF18: 2.877438638 | IG18: 1.193174444 | IH18: 1.436039389 | II18: 3.064950308 | IJ18: 2.4958328 | IK18: 2.94499549 | IL18: 1.588178954 | IM18: 1.689124167 | IN18: 1.135341641 | IO18: 2.678914186 | IP18: 3.25977229 | IQ18: 0.8841553152 | IR18: 1.702879784 | IS18: 1.299245983 | IT18: 1.553891958 | IU18: 0.2649494519 | IV18: 1.424967424 | IW18: 1.788662792 | IX18: 1.921477709 | IY18: 0.8488293533 | IZ18: 1.843729204 | JA18: 1.783133248 | JB18: 1.997379902 | JC18: 1.17197294 | JD18: 1.408939364 | JE18: 1.103125236 | JF18: 0.5083879963 | JG18: 2.830842375 | JH18: 1.223809668 | JI18: 1.503918599 | JJ18: 1.116890281 | JK18: 0.7025822361 | JL18: -0.07146092351 | JM18: 1.836098647 | JN18: 1.593178768 | JO18: 2.091976512 | JP18: 1.546334373 | JQ18: 0.7782237179 | JR18: 0.7352957593 | JS18: 1.851073013 | JT18: 1.158495392 | JU18: 1.082191721 | JV18: 0.4759641645 | JW18: 1.391208984 | JX18: 2.128885126 | JY18: 1.051211764 | JZ18: =JZ15 -> 2.359024373 | KA18: 2.498946505 | KB18: 3.572300837 | KC18: 2.845204181 | KD18: 3.083998217 | KE18: 2.145866816 | KF18: 1.310147949 | KG18: 1.949319467 | KH18: 1.532122629 | KI18: 2.183461427 | KJ18: 0.2925075201 | KK18: 1.586513473 | KL18: 0.7241279596 | KM18: 1.209200386 | KN18: 0.8633480366 | KO18: 1.548762425 | KP18: 2.71123069 | KQ18: 0.6124195459 | KR18: 0.6487722669 | KS18: 1.49723502 | KT18: 1.289920123 | KU18: 1.620595855 | KV18: 0.2492460532 | KW18: 2.876434353 | KX18: 1.418271657 | KY18: 2.046257239 | KZ18: 2.484612538 | LA18: 1.164456482 | LB18: 0.8936575016 | LC18: 1.359716971 | LD18: 1.618943372 | LE18: 1.819389006 | LF18: 1.559090895 | LG18: 1.855876699 | LH18: 2.610756352 | LI18: 1.833888311 | LJ18: 1.496417379 | LK18: 0.7856940112 | LL18: 1.242033797 | LM18: 0.3893947017 | LN18: 1.555153439 | LO18: 0.9948493115 | LP18: 1.137187821 | LQ18: 0.5127463261 | LR18: 2.324969742 | LS18: 1.599913638 | LT18: 1.971240734 | LU18: 1.208851506 | LV18: 2.052461489 | LW18: 2.384640156 | LX18: 1.715828686 | LY18: 2.069329104 | LZ18: 1.907922979 | MA18: 1.843793154 | MB18: 1.051731347 | MC18: 2.358676456 | MD18: 1.027442057 | ME18: 1.812059656 | MF18: 1.42554445 | MG18: 0.9666736088 | MH18: 1.938669545 | MI18: 1.613614746 | MJ18: 1.96148716 | MK18: 1.883024216 | ML18: =ML15 -> 0.8399737347 | MM18: 1.591430978 | MN18: 1.209360847 | MO18: 2.004437432 | MP18: 1.417266331 | MQ18: 1.882527546 | MR18: 1.346641798 | MS18: 1.688493225
H19: ROE | I19: =I7 -> 0.06762037022 | J19: =J7 -> 0.08333206208 | K19: 0.05069122156 | L19: 0.07088810483 | M19: 0.06506178505 | N19: 0.1022153458 | O19: 0.06650503019 | P19: 0.1260441989 | Q19: 0.1010447508 | R19: 0.1461414353 | S19: 0.08747802869 | T19: 0.05460494263 | U19: 0.1169406979 | V19: 0.08443408636 | W19: 0.05813510905 | X19: 0.07928815272 | Y19: 0.1508916664 | Z19: 0.1322731526 | AA19: 0.09245981602 | AB19: 0.08248240075 | AC19: 0.09164949708 | AD19: 0.07004170643 | AE19: 0.07779877214 | AF19: 0.1269863762 | AG19: 0.06493160727 | AH19: 0.1171890265 | AI19: 0.1271244212 | AJ19: 0.06335436721 | AK19: 0.08585261309 | AL19: 0.08199349168 | AM19: 0.06077995137 | AN19: 0.07569143762 | AO19: 0.02425112653 | AP19: 0.06857828408 | AQ19: 0.06976305854 | AR19: 0.0831525298 | AS19: 0.07096881394 | AT19: 0.1040780997 | AU19: 0.03303934909 | AV19: 0.0759071932 | AW19: 0.08182585384 | AX19: 0.05800158343 | AY19: 0.07781650617 | AZ19: 0.07254788553 | BA19: 0.09886959952 | BB19: 0.08996193329 | BC19: 0.07729048576 | BD19: 0.1434812533 | BE19: 0.1224638611 | BF19: 0.0485230128 | BG19: 0.1144357911 | BH19: 0.08402979203 | BI19: 0.05455631712 | BJ19: 0.01882663097 | BK19: 0.093304526 | BL19: 0.1145911218 | BM19: 0.04083157324 | BN19: 0.105086707 | BO19: 0.06094163812 | BP19: 0.1338471748 | BQ19: 0.1116858756 | BR19: 0.05407547301 | BS19: 0.07962339707 | BT19: 0.05729499439 | BU19: 0.08452104198 | BV19: =BV7 -> 0.09291603267 | BW19: 0.1215180318 | BX19: 0.1484322796 | BY19: 0.07426845129 | BZ19: 0.03527869119 | CA19: 0.09564597225 | CB19: 0.0685645103 | CC19: 0.06467138215 | CD19: 0.05447849679 | CE19: 0.09743571545 | CF19: 0.09719113201 | CG19: 0.08492403509 | CH19: 0.06683603298 | CI19: 0.09148628767 | CJ19: 0.06532078132 | CK19: 0.09395005101 | CL19: 0.1246508332 | CM19: 0.02605306692 | CN19: 0.1390814236 | CO19: 0.07847397852 | CP19: 0.1134709436 | CQ19: 0.08206064359 | CR19: 0.09278716491 | CS19: 0.06623557428 | CT19: 0.1394745518 | CU19: 0.05568120382 | CV19: 0.1350140044 | CW19: 0.08784509697 | CX19: 0.09239991581 | CY19: 0.04904088836 | CZ19: 0.1284386592 | DA19: 0.08501004766 | DB19: 0.1150325793 | DC19: 0.07102293314 | DD19: 0.07212595735 | DE19: 0.01227834465 | DF19: 0.0832242776 | DG19: 0.1188832934 | DH19: 0.08232731053 | DI19: 0.05272413405 | DJ19: 0.1314472352 | DK19: 0.07212251397 | DL19: 0.06395826953 | DM19: 0.1147899935 | DN19: 0.04230610795 | DO19: 0.08591676629 | DP19: 0.04147876132 | DQ19: 0.08861166077 | DR19: 0.08782563929 | DS19: 0.08379918925 | DT19: 0.06743526386 | DU19: 0.1091128395 | DV19: 0.06869116682 | DW19: 0.08467895034 | DX19: 0.1113637848 | DY19: 0.0662837585 | DZ19: 0.1124977535 | EA19: 0.06763497625 | EB19: 0.08712964478 | EC19: 0.0515004093 | ED19: 0.05968130245 | EE19: 0.05630797334 | EF19: 0.07587150455 | EG19: 0.08367949534 | EH19: =EH7 -> 0.1015888287 | EI19: 0.06655415085 | EJ19: 0.04911074877 | EK19: 0.05719703461 | EL19: 0.1103686384 | EM19: 0.03390353718 | EN19: 0.07446971266 | EO19: 0.03887350501 | EP19: 0.08910376417 | EQ19: 0.06766571635 | ER19: 0.04710270551 | ES19: 0.05926421079 | ET19: 0.1012839385 | EU19: 0.07963755395 | EV19: 0.082892116 | EW19: 0.067022795 | EX19: 0.08786808663 | EY19: 0.0650242633 | EZ19: 0.1113420892 | FA19: 0.09630782486 | FB19: 0.1145261323 | FC19: 0.064316695 | FD19: 0.07926997419 | FE19: 0.08273207292 | FF19: 0.08606167995 | FG19: 0.1026689309 | FH19: 0.009364187147 | FI19: 0.08261530076 | FJ19: 0.1096799158 | FK19: 0.02308737253 | FL19: 0.03862093952 | FM19: 0.1238347329 | FN19: 0.06443811138 | FO19: 0.05346201821 | FP19: 0.08325687038 | FQ19: 0.08628047375 | FR19: 0.07652070266 | FS19: 0.07310619744 | FT19: 0.110127966 | FU19: 0.09136698732 | FV19: 0.05053360566 | FW19: 0.07787345592 | FX19: 0.09751093592 | FY19: 0.05427962782 | FZ19: 0.1111082101 | GA19: 0.1471343118 | GB19: 0.07357956195 | GC19: 0.05083954782 | GD19: 0.03491385815 | GE19: 0.09337558192 | GF19: 0.00757807797 | GG19: 0.04383620603 | GH19: 0.1297985696 | GI19: 0.09070989153 | GJ19: 0.09051763314 | GK19: 0.112103574 | GL19: 0.04212951819 | GM19: 0.07662994816 | GN19: 0.05677821157 | GO19: 0.07068008121 | GP19: 0.108506343 | GQ19: 0.07812179854 | GR19: 0.04978929038 | GS19: 0.0587207678 | GT19: =GT7 -> 0.04969445608 | GU19: 0.07326276976 | GV19: 0.06090660389 | GW19: 0.1035554944 | GX19: 0.1308920448 | GY19: 0.1039869236 | GZ19: 0.03947332123 | HA19: 0.1474668824 | HB19: 0.08357076291 | HC19: 0.1311086576 | HD19: -0.0002637505736 | HE19: 0.06203873919 | HF19: 0.04149785539 | HG19: 0.1174915192 | HH19: 0.09186433476 | HI19: 0.08231556682 | HJ19: 0.1267017499 | HK19: 0.05620945951 | HL19: 0.03426871733 | HM19: 0.04113744824 | HN19: 0.05225254045 | HO19: 0.09729935341 | HP19: 0.08901679203 | HQ19: 0.09928090558 | HR19: 0.09179501032 | HS19: 0.1273424063 | HT19: 0.09657089442 | HU19: 0.05228478882 | HV19: 0.08932308303 | HW19: 0.06665806236 | HX19: 0.04397066756 | HY19: 0.05573475779 | HZ19: 0.08052664715 | IA19: 0.09155783114 | IB19: 0.05849445249 | IC19: 0.1136856582 | ID19: 0.1111282801 | IE19: 0.05639756412 | IF19: 0.1285824266 | IG19: 0.06752096233 | IH19: 0.07832140662 | II19: 0.1251705566 | IJ19: 0.1118067255 | IK19: 0.140960617 | IL19: 0.08496167174 | IM19: 0.0799912429 | IN19: 0.0663316624 | IO19: 0.1197301566 | IP19: 0.1370052386 | IQ19: 0.05598347895 | IR19: 0.08647012595 | IS19: 0.0710618314 | IT19: 0.07913442734 | IU19: 0.0303440197 | IV19: 0.07917240728 | IW19: 0.09051993319 | IX19: 0.08946219313 | IY19: 0.05260969213 | IZ19: 0.1011703019 | JA19: 0.09572392678 | JB19: 0.1023592895 | JC19: 0.06650991509 | JD19: 0.0775046325 | JE19: 0.06432740727 | JF19: =JF7 -> 0.0400134501 | JG19: 0.1215669759 | JH19: 0.06893885913 | JI19: 0.08478516304 | JJ19: 0.06481430111 | JK19: 0.04732886175 | JL19: 0.02364868928 | JM19: 0.0978781946 | JN19: 0.08527388932 | JO19: 0.09890993381 | JP19: 0.08014827842 | JQ19: 0.05214183305 | JR19: 0.04756817225 | JS19: 0.1028712841 | JT19: 0.06645574188 | JU19: 0.06441099885 | JV19: 0.04153220256 | JW19: 0.07540551838 | JX19: 0.1040183502 | JY19: 0.0623123766 | JZ19: 0.1144093194 | KA19: 0.1223061318 | KB19: 0.1406722187 | KC19: 0.1301761696 | KD19: 0.1509599827 | KE19: 0.103136392 | KF19: 0.07457036727 | KG19: 0.09213969932 | KH19: 0.08172271679 | KI19: 0.0988675905 | KJ19: 0.03132158928 | KK19: 0.08569628383 | KL19: 0.04936729419 | KM19: 0.06846211965 | KN19: 0.05458657565 | KO19: 0.08286749551 | KP19: 0.1155118283 | KQ19: 0.04643969951 | KR19: 0.04418842043 | KS19: 0.08079824727 | KT19: 0.07178823134 | KU19: 0.08813581718 | KV19: 0.02815232554 | KW19: 0.1370761643 | KX19: 0.0786501071 | KY19: 0.09562078336 | KZ19: 0.1160234996 | LA19: 0.0668140797 | LB19: 0.05572637702 | LC19: 0.0756183408 | LD19: 0.08100040034 | LE19: 0.09853355084 | LF19: 0.08173286041 | LG19: 0.0926035235 | LH19: 0.1202031979 | LI19: 0.09350735905 | LJ19: 0.07936015399 | LK19: 0.0514911072 | LL19: 0.07016662738 | LM19: 0.03759677009 | LN19: 0.08394983726 | LO19: 0.05981401919 | LP19: 0.06467897202 | LQ19: 0.03932774563 | LR19: =LR7 -> 0.1280368044 | LS19: 0.08737760379 | LT19: 0.09389511872 | LU19: 0.06835550568 | LV19: 0.09937974065 | LW19: 0.133858294 | LX19: 0.0905839988 | LY19: 0.09979846919 | LZ19: 0.09347994164 | MA19: 0.08794241104 | MB19: 0.0621589043 | MC19: 0.1120799918 | MD19: 0.06111190234 | ME19: 0.09125647467 | MF19: 0.07599533926 | MG19: 0.05863687845 | MH19: 0.1061610879 | MI19: 0.08603524742 | MJ19: 0.09335017739 | MK19: 0.09742055311 | ML19: 0.05415129914 | MM19: 0.09244000132 | MN19: 0.07003820465 | MO19: 0.1107600298 | MP19: 0.08119129201 | MQ19: 0.1064923248 | MR19: 0.07798510366 | MS19: 0.09698146106
H20: Growth | I20: =I10 -> 0.01793032383 | J20: =J10 -> 0.02775970842 | K20: 0.002636087575 | L20: 0.01653277706 | M20: 0.01078425271 | N20: 0.01951405813 | O20: 0.02375890592 | P20: 0.01451176044 | Q20: 0.02230004775 | R20: 0.01874810659 | S20: 0.01632647759 | T20: 0.01899971069 | U20: 0.01517138689 | V20: 0.01847163754 | W20: 0.01685935733 | X20: 0.01342255515 | Y20: 0.02689585854 | Z20: 0.02833279371 | AA20: 0.02338600509 | AB20: 0.02115199003 | AC20: 0.02878627425 | AD20: =AD10 -> 0.02387355199 | AE20: 0.02265742207 | AF20: 0.02285713685 | AG20: 0.01341341629 | AH20: 0.02369794657 | AI20: 0.02317328466 | AJ20: 0.01650783545 | AK20: 0.02249259509 | AL20: 0.0260459066 | AM20: 0.03454823066 | AN20: 0.01664242928 | AO20: 0.0246871533 | AP20: 0.01408462496 | AQ20: 0.01858154272 | AR20: 0.02230214666 | AS20: 0.03236630494 | AT20: 0.02412725462 | AU20: 0.02134160686 | AV20: 0.02385107156 | AW20: 0.02562029448 | AX20: 0.01886118133 | AY20: 0.02646970884 | AZ20: 0.02065131729 | BA20: 0.01903903983 | BB20: 0.01818280889 | BC20: 0.01681242876 | BD20: 0.02136808374 | BE20: 0.02379312552 | BF20: 0.01082577124 | BG20: 0.02081412269 | BH20: 0.02344951393 | BI20: 0.01483164253 | BJ20: 0.01241894177 | BK20: 0.01885537301 | BL20: 0.01640142503 | BM20: 0.01883633753 | BN20: 0.02121880593 | BO20: 0.01860737168 | BP20: 0.02583753609 | BQ20: 0.02375148752 | BR20: 0.01183015854 | BS20: 0.01503065154 | BT20: 0.02436178846 | BU20: 0.01619996442 | BV20: 0.01431668421 | BW20: 0.01805068797 | BX20: 0.01366515077 | BY20: 0.01720402951 | BZ20: 0.01580713007 | CA20: 0.02655972086 | CB20: 0.02054470483 | CC20: 0.02477163331 | CD20: 0.029128665 | CE20: 0.01936999624 | CF20: 0.02060955088 | CG20: 0.01009887192 | CH20: 0.016675255 | CI20: 0.02242272882 | CJ20: 0.008777579964 | CK20: 0.02571367067 | CL20: 0.004917129405 | CM20: 0.02174159453 | CN20: 0.02734335762 | CO20: 0.02356950688 | CP20: =CP10 -> 0.01943537967 | CQ20: 0.02310433205 | CR20: 0.02440104183 | CS20: 0.01671443414 | CT20: 0.03213464604 | CU20: 0.01317311188 | CV20: 0.01581344135 | CW20: 0.02319974295 | CX20: 0.0178921292 | CY20: 0.02169197131 | CZ20: 0.02184019786 | DA20: 0.02062646682 | DB20: 0.02088740348 | DC20: 0.01985328346 | DD20: 0.01490849038 | DE20: 0.0195595456 | DF20: 0.01868397365 | DG20: 0.02175239101 | DH20: 0.01416712396 | DI20: 0.01869987988 | DJ20: 0.02652416842 | DK20: 0.01355248209 | DL20: 0.02337623457 | DM20: 0.01729310952 | DN20: 0.02593918083 | DO20: 0.02097761816 | DP20: 0.01460907223 | DQ20: 0.01207753537 | DR20: 0.0229652729 | DS20: 0.02325238698 | DT20: 0.02761630566 | DU20: 0.01228697834 | DV20: 0.02250624164 | DW20: 0.03389330697 | DX20: 0.02091223775 | DY20: 0.02255723463 | DZ20: 0.01105289463 | EA20: 0.02264329957 | EB20: 0.01818585791 | EC20: 0.01273480208 | ED20: 0.0157015547 | EE20: 0.01318177204 | EF20: 0.02394478978 | EG20: 0.02682985438 | EH20: 0.02743714141 | EI20: 0.01317701793 | EJ20: 0.02766617596 | EK20: 0.02880415368 | EL20: 0.0170103473 | EM20: 0.01661785995 | EN20: 0.01999529581 | EO20: 0.01295239004 | EP20: 0.02473133685 | EQ20: 0.0229791933 | ER20: 0.02101894315 | ES20: 0.02327187185 | ET20: 0.02454636916 | EU20: 0.02068843164 | EV20: 0.01677257963 | EW20: 0.02051135996 | EX20: 0.02038100662 | EY20: 0.02128628679 | EZ20: 0.0216296708 | FA20: 0.01486582856 | FB20: =FB10 -> 0.01388278342 | FC20: 0.01737300448 | FD20: 0.01317674965 | FE20: 0.01985798881 | FF20: 0.01690759411 | FG20: 0.01264075027 | FH20: 0.01198100989 | FI20: 0.02388493228 | FJ20: 0.02137883761 | FK20: 0.01203725649 | FL20: 0.01871402024 | FM20: 0.02631776178 | FN20: 0.02587965809 | FO20: 0.02042400481 | FP20: 0.02087840754 | FQ20: 0.03183435138 | FR20: 0.02148706308 | FS20: 0.008934898536 | FT20: 0.01460818616 | FU20: 0.03144986473 | FV20: 0.02196227187 | FW20: 0.02442357006 | FX20: 0.01812330735 | FY20: 0.02865964647 | FZ20: 0.01219349868 | GA20: 0.01473914999 | GB20: 0.01783449629 | GC20: 0.02111532138 | GD20: 0.01745940771 | GE20: 0.03443166486 | GF20: 0.02557915851 | GG20: 0.02273008946 | GH20: 0.01988803737 | GI20: 0.01359221999 | GJ20: 0.02109469872 | GK20: 0.02075790054 | GL20: 0.01094601538 | GM20: 0.03263930825 | GN20: 0.0100829368 | GO20: 0.02328340474 | GP20: 0.02606255609 | GQ20: 0.0173502417 | GR20: 0.02442555438 | GS20: 0.02660834861 | GT20: 0.02045720753 | GU20: 0.02744925768 | GV20: 0.02149280547 | GW20: 0.02159221772 | GX20: 0.01654549304 | GY20: 0.02526631264 | GZ20: 0.02110712947 | HA20: 0.01576717617 | HB20: 0.02279787506 | HC20: 0.02013702093 | HD20: 0.01766169541 | HE20: 0.01825094572 | HF20: 0.02277368397 | HG20: 0.01967361547 | HH20: 0.01830712559 | HI20: 0.0115913463 | HJ20: 0.02117794892 | HK20: 0.0154720048 | HL20: 0.02110506869 | HM20: 0.02298421617 | HN20: =HN10 -> 0.02547918406 | HO20: 0.020863501 | HP20: 0.02694432586 | HQ20: 0.02424737474 | HR20: 0.01452421396 | HS20: 0.02381848418 | HT20: 0.02132533675 | HU20: 0.01712192949 | HV20: 0.02041036558 | HW20: 0.02496085764 | HX20: 0.0144887684 | HY20: 0.02666451591 | HZ20: 0.0212821455 | IA20: 0.01611941523 | IB20: 0.01347934422 | IC20: 0.0287609171 | ID20: 0.01600218986 | IE20: 0.02242039403 | IF20: 0.02347021673 | IG20: 0.02106647354 | IH20: 0.01798222117 | II20: 0.02843964898 | IJ20: 0.02536596504 | IK20: 0.0183749076 | IL20: 0.01756109335 | IM20: 0.0309903616 | IN20: 0.01321718926 | IO20: 0.02442334154 | IP20: 0.02592345215 | IQ20: 0.02532839591 | IR20: 0.02234046485 | IS20: 0.02303431947 | IT20: 0.02545458539 | IU20: 0.01965450216 | IV20: 0.01488499539 | IW20: 0.02130166974 | IX20: 0.02802723187 | IY20: 0.01111281172 | IZ20: 0.01120436547 | JA20: 0.01438333532 | JB20: 0.01752943351 | JC20: 0.02214570103 | JD20: 0.01719504149 | JE20: 0.01803735888 | JF20: 0.01934487005 | JG20: 0.02637232308 | JH20: 0.02006044249 | JI20: 0.01081514533 | JJ20: 0.01881350387 | JK20: 0.01739616193 | JL20: 0.02607313442 | JM20: 0.01469650053 | JN20: 0.01739245791 | JO20: 0.02436742605 | JP20: 0.02312097603 | JQ20: 0.02456714455 | JR20: 0.01303502612 | JS20: 0.009626784752 | JT20: 0.01926858312 | JU20: 0.006332808565 | JV20: 0.02475852186 | JW20: 0.02062074494 | JX20: 0.02100723697 | JY20: 0.01484676919 | JZ20: =JZ10 -> 0.01996442709 | KA20: 0.01843338536 | KB20: 0.0286381089 | KC20: 0.0219683446 | KD20: 0.01635313794 | KE20: 0.02235479426 | KF20: 0.01302123613 | KG20: 0.02614448514 | KH20: 0.01917723546 | KI20: 0.027157704 | KJ20: 0.019464713 | KK20: 0.01618807577 | KL20: 0.0214578346 | KM20: 0.01955017184 | KN20: 0.02038531599 | KO20: 0.0183289699 | KP20: 0.02756028946 | KQ20: 0.02501294029 | KR20: 0.01498197299 | KS20: 0.01817219936 | KT20: 0.019339727 | KU20: 0.01466322094 | KV20: 0.01757907821 | KW20: 0.01892413492 | KX20: 0.0154114969 | KY20: 0.02595408659 | KZ20: 0.02226389168 | LA20: 0.01856606183 | LB20: 0.0198126521 | LC20: 0.01658158476 | LD20: 0.02607056267 | LE20: 0.0129728242 | LF20: 0.02112821615 | LG20: 0.02190628447 | LH20: 0.02262426791 | LI20: 0.01981792934 | LJ20: 0.02100024936 | LK20: 0.0202955902 | LL20: 0.01799500932 | LM20: 0.02330980099 | LN20: 0.01685906712 | LO20: 0.02389204977 | LP20: 0.02589367774 | LQ20: 0.01757393843 | LR20: 0.008650295768 | LS20: 0.01436409171 | LT20: 0.02510121792 | LU20: 0.01999307913 | LV20: 0.02258320037 | LW20: 0.006658853074 | LX20: 0.01727469522 | LY20: 0.02278183297 | LZ20: 0.02312468962 | MA20: 0.02688476208 | MB20: 0.01826700019 | MC20: 0.02166858447 | MD20: 0.01948181509 | ME20: 0.02150963242 | MF20: 0.02241206 | MG20: 0.01909783505 | MH20: 0.01082285551 | MI20: 0.01757069463 | MJ20: 0.02531396489 | MK20: 0.01762227986 | ML20: =ML10 -> 0.02345161936 | MM20: 0.005149979368 | MN20: 0.01205309497 | MO20: 0.00946421925 | MP20: 0.00921399014 | MQ20: 0.007319123375 | MR20: 0.008116171344 | MS20: 0.006286383518
H21: ROE * G | I21: =I20*I19 -> 0.001212455136 | J21: =J20*J19 -> 0.002313273745 | K21: 0.0001336264993 | L21: 0.001171977233 | M21: 0.000701642732 | N21: 0.001994636199 | O21: 0.001580086755 | P21: 0.001829123219 | Q21: 0.002253302769 | R21: 0.002739875206 | S21: 0.001428208075 | T21: 0.001037478112 | U21: 0.001774152572 | V21: 0.001559635839 | W21: 0.0009801205767 | X21: 0.001064249603 | Y21: 0.004058360914 | Z21: 0.003747667947 | AA21: 0.002162265728 | AB21: 0.001744666918 | AC21: 0.002638247558 | AD21: 0.00167214432 | AE21: 0.001762719617 | AF21: 0.002902544979 | AG21: 0.0008709546787 | AH21: 0.002777139287 | AI21: 0.0029458904 | AJ21: 0.001045843469 | AK21: 0.001931048063 | AL21: 0.002135594826 | AM21: 0.00209983978 | AN21: 0.001259689397 | AO21: 0.0005986912784 | AP21: 0.0009658994118 | AQ21: 0.001296305253 | AR21: 0.001854479915 | AS21: 0.002296998273 | AT21: 0.002511118811 | AU21: 0.0007051127992 | AV21: 0.001810467897 | AW21: 0.002096402471 | AX21: 0.001093978382 | AY21: 0.002059780261 | AZ21: 0.001498209403 | BA21: 0.001882382244 | BB21: 0.001635760641 | BC21: 0.001299440786 | BD21: 0.003065919436 | BE21: 0.002913798019 | BF21: 0.0005252990363 | BG21: 0.002381880597 | BH21: 0.001970457779 | BI21: 0.0008091597935 | BJ21: 0.0002338068337 | BK21: 0.001759291641 | BL21: 0.001879457693 | BM21: 0.0007691172955 | BN21: 0.002229814442 | BO21: 0.001133963712 | BP21: 0.003458281211 | BQ21: 0.00265270568 | BR21: 0.000639721419 | BS21: 0.001196791536 | BT21: 0.001395808533 | BU21: 0.001369237873 | BV21: =BV20*BV19 -> 0.001330249498 | BW21: 0.002193484075 | BX21: 0.002028349481 | BY21: 0.001277716628 | BZ21: 0.0005576548603 | CA21: 0.002540330325 | CB21: 0.001408637626 | CC21: 0.001602015764 | CD21: 0.001586885883 | CE21: 0.001887329442 | CF21: 0.00200306558 | CG21: 0.0008576369535 | CH21: 0.001114507893 | CI21: 0.002051372219 | CJ21: 0.0005733583813 | CK21: 0.002415800671 | CL21: 0.0006129242774 | CM21: 0.0005664352171 | CN21: 0.003802953103 | CO21: 0.001849592977 | CP21: 0.00220535087 | CQ21: 0.001895956358 | CR21: 0.002264103493 | CS21: 0.001107090144 | CT21: 0.004481965352 | CU21: 0.0007334947274 | CV21: 0.00213503604 | CW21: 0.002037983669 | CX21: 0.001653231232 | CY21: 0.001063793543 | CZ21: 0.00280512573 | DA21: 0.001753456927 | DB21: 0.002402731898 | DC21: 0.001410038424 | DD21: 0.001075289142 | DE21: 0.000240158842 | DF21: 0.00155496021 | DG21: 0.002585995883 | DH21: 0.001166341213 | DI21: 0.0009859349734 | DJ21: 0.003486528606 | DK21: 0.000977439079 | DL21: 0.001495103511 | DM21: 0.00198507593 | DN21: 0.001097385785 | DO21: 0.001802329117 | DP21: 0.00060596622 | DQ21: 0.001070210467 | DR21: 0.002016939774 | DS21: 0.001948531177 | DT21: 0.001862312859 | DU21: 0.001340667096 | DV21: 0.001545979999 | DW21: 0.002870049658 | DX21: 0.002328865944 | DY21: 0.001495178293 | DZ21: 0.001243425815 | EA21: 0.001531479029 | EB21: 0.00158452734 | EC21: 0.0006558475193 | ED21: 0.0009370892347 | EE21: 0.0007422388685 | EF21: 0.001816727227 | EG21: 0.002245108674 | EH21: =EH20*EH19 -> 0.002787307057 | EI21: 0.0008769852389 | EJ21: 0.001358706617 | EK21: 0.001647512175 | EL21: 0.00187740887 | EM21: 0.0005634042326 | EN21: 0.001489043934 | EO21: 0.0005035047991 | EP21: 0.002203655206 | EQ21: 0.001554903576 | ER21: 0.0009900490895 | ES21: 0.001379189119 | ET21: 0.002486152944 | EU21: 0.001647576091 | EV21: 0.001390314616 | EW21: 0.001374728674 | EX21: 0.001790840055 | EY21: 0.001384125117 | EZ21: 0.002408292736 | FA21: 0.001431695613 | FB21: 0.001589941492 | FC21: 0.001117374231 | FD21: 0.001044520605 | FE21: 0.001642892579 | FF21: 0.001455095953 | FG21: 0.001297812316 | FH21: 0.0001121924188 | FI21: 0.001973260863 | FJ21: 0.00234482911 | FK21: 0.0002779086248 | FL21: 0.000722753044 | FM21: 0.003259053 | FN21: 0.00166763629 | FO21: 0.001091908517 | FP21: 0.00173827087 | FQ21: 0.002746682919 | FR21: 0.001644205165 | FS21: 0.0006531964564 | FT21: 0.001608769829 | FU21: 0.002873479392 | FV21: 0.001109832786 | FW21: 0.001901947806 | FX21: 0.001767220662 | FY21: 0.001555634944 | FZ21: 0.001354797812 | GA21: 0.002168634689 | GB21: 0.001312254425 | GC21: 0.001073493391 | GD21: 0.0006095752842 | GE21: 0.003215076743 | GF21: 0.0001938408576 | GG21: 0.0009964008847 | GH21: 0.002581438803 | GI21: 0.001232948801 | GJ21: 0.0019094422 | GK21: 0.00232703484 | GL21: 0.0004611503539 | GM21: 0.002501148499 | GN21: 0.0005724911189 | GO21: 0.001645672938 | GP21: 0.002827952649 | GQ21: 0.001355432087 | GR21: 0.00121613102 | GS21: 0.00156246266 | GT21: =GT20*GT19 -> 0.001016609801 | GU21: 0.002011008645 | GV21: 0.001309053789 | GW21: 0.002235992781 | GX21: 0.002165673415 | GY21: 0.002627366122 | GZ21: 0.0008331685018 | HA21: 0.002325136315 | HB21: 0.001905235812 | HC21: 0.002640137781 | HD21: -4.658282294e-06 | HE21: 0.001132265662 | HF21: 0.0009450590444 | HG21: 0.002311482969 | HH21: 0.001681771913 | HI21: 0.0009541482411 | HJ21: 0.002683283187 | HK21: 0.0008696730272 | HL21: 0.0007232436332 | HM21: 0.000945512003 | HN21: 0.001331352096 | HO21: 0.002030005157 | HP21: 0.002398497452 | HQ21: 0.002407301323 | HR21: 0.00133325037 | HS21: 0.003033103089 | HT21: 0.002059406844 | HU21: 0.0008952164675 | HV21: 0.00182311678 | HW21: 0.001663842405 | HX21: 0.0006370808187 | HY21: 0.001486140336 | HZ21: 0.001713779821 | IA21: 0.001475858697 | IB21: 0.00078846686 | IC21: 0.003269703792 | ID21: 0.001778295837 | IE21: 0.00126445561 | IF21: 0.003017857419 | IG21: 0.001422428566 | IH21: 0.001408392857 | II21: 0.003559806691 | IJ21: 0.002836085489 | IK21: 0.002590138313 | IL21: 0.001492019848 | IM21: 0.002478957542 | IN21: 0.0008767181358 | IO21: 0.002924210506 | IP21: 0.003551648747 | IQ21: 0.001417971719 | IR21: 0.001931782809 | IS21: 0.001636860927 | IT21: 0.002014334038 | IU21: 0.0005963966009 | IV21: 0.001178480917 | IW21: 0.001928225722 | IX21: 0.002507377631 | IY21: 0.0005846416031 | IZ21: 0.001133549037 | JA21: 0.001376829337 | JB21: 0.001794300358 | JC21: 0.001472908695 | JD21: 0.001332695372 | JE21: 0.001160296531 | JF21: =JF20*JF19 -> 0.0007740549923 | JG21: 0.003206003564 | JH21: 0.001382944019 | JI21: 0.0009169638599 | JJ21: 0.001219384105 | JK21: 0.0008233405427 | JL21: 0.0006165954545 | JM21: 0.001438466939 | JN21: 0.001483122531 | JO21: 0.002410180498 | JP21: 0.001853106424 | JQ21: 0.00128097595 | JR21: 0.0006200523678 | JS21: 0.0009903197089 | JT21: 0.001280507986 | JU21: 0.0004079025252 | JV21: 0.001028275945 | JW21: 0.001554917961 | JX21: 0.002185138132 | JY21: 0.0009251374732 | JZ21: 0.002284116515 | KA21: 0.002254516058 | KB21: 0.004028586319 | KC21: 0.002859754951 | KD21: 0.002468669421 | KE21: 0.002305592825 | KF21: 0.0009709983607 | KG21: 0.002408944999 | KH21: 0.001567215782 | KI21: 0.002685016758 | KJ21: 0.0006096657461 | KK21: 0.001387257936 | KL21: 0.001059315234 | KM21: 0.001338446204 | KN21: 0.001112764594 | KO21: 0.001518875831 | KP21: 0.003183539423 | KQ21: 0.001161593431 | KR21: 0.0006620297214 | KS21: 0.001468281857 | KT21: 0.001388364796 | KU21: 0.00129235496 | KV21: 0.0004948919325 | KW21: 0.002594047827 | KX21: 0.001212115881 | KY21: 0.002481750091 | KZ21: 0.002583134626 | LA21: 0.001240474335 | LB21: 0.001104087321 | LC21: 0.001253871927 | LD21: 0.002111726013 | LE21: 0.001278258433 | LF21: 0.001726869542 | LG21: 0.002028599128 | LH21: 0.002719509352 | LI21: 0.001853122234 | LJ21: 0.001666583023 | LK21: 0.001045042411 | LL21: 0.001262649113 | LM21: 0.0008763732287 | LN21: 0.001415315941 | LO21: 0.001429079524 | LP21: 0.001674776458 | LQ21: 0.0006911433804 | LR21: =LR20*LR19 -> 0.001107556227 | LS21: 0.001255099914 | LT21: 0.002356881837 | LU21: 0.001366637034 | LV21: 0.002244312596 | LW21: 0.0008913427124 | LX21: 0.001564810971 | LY21: 0.002273592056 | LZ21: 0.002161694636 | MA21: 0.002364310798 | MB21: 0.001135456717 | MC21: 0.00242861477 | MD21: 0.001190570781 | ME21: 0.001962893226 | MF21: 0.001703212103 | MG21: 0.001119837432 | MH21: 0.001148966115 | MI21: 0.00151169906 | MJ21: 0.002363063113 | MK21: 0.001716772251 | ML21: 0.001269935655 | MM21: 0.0004760640996 | MN21: 0.0008441771324 | MO21: 0.001048257207 | MP21: 0.0007480957641 | MQ21: 0.0007794304635 | MR21: 0.0006329404635 | MS21: 0.0006096626583
D25: ROE Table | F25: 1 | G25: =F12 -> 15 | H25: 15 | K25: ROE = A + B x MB | O25: MB = A + B x ROE + C x G + D x (ROE x G)
D26: ROE | F26: =F6 -> 0.06762037022 | G26: =F26 -> 0.06762037022 | H26: =G26 -> 0.06762037022 | K26: A | L26: =INTERCEPT(I19:MS19,I18:MS18) -> 0.02260693323 | O26: G x ROE | P26: G | Q26: ROE | R26: Const | W26: Avg | AA26: Derived M/B
D27: Growth | F27: =F10 -> 0.01793032383 | G27: =F27 -> 0.01793032383 | H27: =F10 -> 0.01793032383 | K27: B | L27: =SLOPE(I19:MS19,I18:MS18) -> 0.03791609419 | N27: Const | O27: =LINEST(I18:MS18,I19:MS21,TRUE,TRUE) -> 629.1924641 | P27: -37.38937074 | Q27: 12.91557621 | R27: 0.218635452 | V27: ROE | W27: =AVERAGE(I19:MS19) -> 0.08196398166 | X27: =Q27 -> 12.91557621 | Y27: =W27*X27 -> 1.058612052
K28: Cost of Cap | L28: =L26+L27 -> 0.06052302742 | N28: Std Err | O28: 8.790394576 | P28: 0.7843696537 | Q28: 0.1799374006 | R28: 0.01587273079 | V28: G | W28: =AVERAGE(I20:MS20) -> 0.01986388038 | X28: =P27 -> -37.38937074 | Y28: =W28*X28 -> -0.742697988 | AA28: 1 = A + B x ROE + C x G + D x (ROE x G)
K29: RSQ | L29: =RSQ(I19:MS19,I18:MS18) -> 0.9680142022 | O29: 0.9988283473 | P29: 0.02553639448 | V29: G x ROE | W29: =AVERAGE(I21:MS21) -> 0.001638504586 | X29: =O27 -> 629.1924641 | Y29: 1.030934738 | AA29: B x ROE = 1 - A - C x G - D x (ROE x G)
O30: 98036.95225 | P30: 345 | V30: Const | W30: 1 | X30: =R27 -> 0.218635452 | Y30: 0.218635452 | AA30: ROE = (1- A - C x G)/(B + D) | AL30: ROE = (1 - A - C x G - D x (ROE x G))/B
O31: 191.7918788 | P31: 0.2249770679 | Y31: =SUM(Y27:Y30) -> 1.565484254 | AA31: Alt G | AB31: =W29/W27 -> 0.01999054406 | AL31: =(1-R27-Y29-Y28)/X27 -> 0.03818085927
V32: Average | Y32: =AVERAGE(I18:MS18) -> 1.565484254 | AA32: k | AB32: =(1-R27-Y28)/(O27*AB31+Q27) -> 0.05978245347 | AL32: =(Y32-R27-Y28-Y29)/Q27 -> 0.08196398166
D34: Time Period | G34: 1 | H34: 2 | I34: 3 | J34: 4 | K34: 5 | L34: 6 | M34: 7 | N34: 8 | O34: 9 | P34: 10 | Q34: 11 | R34: 12 | S34: 13 | T34: 14 | U34: 15
D35: Short-term | E35: =F11 -> 6.328417558 | G35: =G34<=$E$35 -> TRUE | H35: =H34<=$E$35 -> TRUE | I35: TRUE | J35: TRUE | K35: TRUE | L35: TRUE | M35: FALSE | N35: FALSE | O35: FALSE | P35: FALSE | Q35: FALSE | R35: FALSE | S35: FALSE | T35: FALSE | U35: FALSE
D36: Terminal Period | E36: =F12 -> 15 | G36: =G34=$E$36 -> FALSE | H36: =H34=$E$36 -> FALSE | I36: FALSE | J36: FALSE | K36: FALSE | L36: FALSE | M36: FALSE | N36: FALSE | O36: FALSE | P36: FALSE | Q36: FALSE | R36: FALSE | S36: FALSE | T36: FALSE | U36: TRUE
D38: ROE | G38: =interpolate_look_up(G34,25:25,26:26) -> 0.06762037022 | H38: =interpolate_look_up(H34,25:25,26:26) -> 0.06762037022 | I38: =interpolate_look_up(I34,25:25,26:26) -> 0.06762037022 | J38: =interpolate_look_up(J34,25:25,26:26) -> 0.06762037022 | K38: =interpolate_look_up(K34,25:25,26:26) -> 0.06762037022 | L38: =interpolate_look_up(L34,25:25,26:26) -> 0.06762037022 | M38: =interpolate_look_up(M34,25:25,26:26) -> 0.06762037022 | N38: =interpolate_look_up(N34,25:25,26:26) -> 0.06762037022 | O38: =interpolate_look_up(O34,25:25,26:26) -> 0.06762037022 | P38: =interpolate_look_up(P34,25:25,26:26) -> 0.06762037022 | Q38: =interpolate_look_up(Q34,25:25,26:26) -> 0.06762037022 | R38: =interpolate_look_up(R34,25:25,26:26) -> 0.06762037022 | S38: =interpolate_look_up(S34,25:25,26:26) -> 0.06762037022 | T38: =interpolate_look_up(T34,25:25,26:26) -> 0.06762037022 | U38: =interpolate_look_up(U34,25:25,26:26) -> 0.06762037022
D39: Growth | G39: =interpolate_look_up(G34,25:25,27:27) -> 0.01793032383 | H39: =interpolate_look_up(H34,25:25,27:27) -> 0.01793032383 | I39: =interpolate_look_up(I34,25:25,27:27) -> 0.01793032383 | J39: =interpolate_look_up(J34,25:25,27:27) -> 0.01793032383 | K39: =interpolate_look_up(K34,25:25,27:27) -> 0.01793032383 | L39: =interpolate_look_up(L34,25:25,27:27) -> 0.01793032383 | M39: =interpolate_look_up(M34,25:25,27:27) -> 0.01793032383 | N39: =interpolate_look_up(N34,25:25,27:27) -> 0.01793032383 | O39: =interpolate_look_up(O34,25:25,27:27) -> 0.01793032383 | P39: =interpolate_look_up(P34,25:25,27:27) -> 0.01793032383 | Q39: =interpolate_look_up(Q34,25:25,27:27) -> 0.01793032383 | R39: =interpolate_look_up(R34,25:25,27:27) -> 0.01793032383 | S39: =interpolate_look_up(S34,25:25,27:27) -> 0.01793032383 | T39: =interpolate_look_up(T34,25:25,27:27) -> 0.01793032383 | U39: =interpolate_look_up(U34,25:25,27:27) -> 0.01793032383
D40: Payout Ratio | G40: =(1-G39/G38) -> 0.7348384256 | H40: =(1-H39/H38) -> 0.7348384256 | I40: 0.7348384256 | J40: 0.7348384256 | K40: 0.7348384256 | L40: 0.7348384256 | M40: 0.7348384256 | N40: 0.7348384256 | O40: 0.7348384256 | P40: 0.7348384256 | Q40: 0.7348384256 | R40: 0.7348384256 | S40: 0.7348384256 | T40: 0.7348384256 | U40: 0.7348384256
D42: BV Progression
D43: Opening | G43: =F46 -> 100 | H43: =G46 -> 101.7930324 | I43: 103.6182144 | J43: 105.4761226 | K43: 107.3673436 | L43: 109.2924748 | M43: 111.2521243 | N43: 113.2469109 | O43: 115.2774647 | P43: 117.344427 | Q43: 119.4484505 | R43: 121.5901999 | S43: 123.7703516 | T43: 125.9895941 | U43: 128.2486283
D44: Add: Income | G44: =G43*G38 -> 6.762037022 | H44: =H43*H38 -> 6.883282536 | I44: 7.006702021 | J44: 7.132334457 | K44: 7.260219524 | L44: 7.390397611 | M44: 7.522909833 | N44: 7.657798042 | O44: 7.795104841 | P44: 7.934873595 | Q44: 8.077148448 | R44: 8.221974336 | S44: 8.369396998 | T44: 8.519462996 | U44: 8.672219727
D45: Less: Dividend | G45: =G44*G40 -> 4.96900464 | H45: =H44*H40 -> 5.058100502 | I45: 5.148793882 | J45: 5.241113423 | K45: 5.335088284 | L45: 5.430748145 | M45: 5.528123218 | N45: 5.627244257 | O45: 5.728142569 | P45: 5.83085002 | Q45: 5.935399049 | R45: 6.041822676 | S45: 6.150154513 | T45: 6.260428775 | U45: 6.372680291
D46: Closing Balance | F46: =F5 -> 100 | G46: =G43+G44-G45 -> 101.7930324 | H46: =H43+H44-H45 -> 103.6182144 | I46: 105.4761226 | J46: 107.3673436 | K46: 109.2924748 | L46: 111.2521243 | M46: 113.2469109 | N46: 115.2774647 | O46: 117.344427 | P46: 119.4484505 | Q46: 121.5901999 | R46: 123.7703516 | S46: 125.9895941 | T46: 128.2486283 | U46: 130.5481677
D48: Terminal Value | E48: =(1+F10)*(1-F10/H26)/(F8-H27) -> 17.78036782 | G48: =G44*$E$48*G36 -> 0 | H48: =H44*$E$48*H36 -> 0 | I48: 0 | J48: 0 | K48: 0 | L48: 0 | M48: 0 | N48: 0 | O48: 0 | P48: 0 | Q48: 0 | R48: 0 | S48: 0 | T48: 0 | U48: 154.1952566
D50: Total Cash Flow | G50: =G48+G45 -> 4.96900464 | H50: =H48+H45 -> 5.058100502 | I50: 5.148793882 | J50: 5.241113423 | K50: 5.335088284 | L50: 5.430748145 | M50: 5.528123218 | N50: 5.627244257 | O50: 5.728142569 | P50: 5.83085002 | Q50: 5.935399049 | R50: 6.041822676 | S50: 6.150154513 | T50: 6.260428775 | U50: 160.5679369
D51: Total Value | E51: =F8 -> 0.06 | F51: =NPV(E51,G50:U50) -> 118.1136888
D52: Price to Book | F52: =F51/F46 -> 1.181136888
D53: P/E Ratio | F53: =F51/G44 -> 17.46717571
D55: Cash Flow | G55: =G45+G48 -> 4.96900464 | H55: =H45+H48 -> 5.058100502 | I55: 5.148793882 | J55: 5.241113423 | K55: 5.335088284 | L55: 5.430748145 | M55: 5.528123218 | N55: 5.627244257 | O55: 5.728142569 | P55: 5.83085002 | Q55: 5.935399049 | R55: 6.041822676 | S55: 6.150154513 | T55: 6.260428775 | U55: 160.5679369
D56: PV of Cash Flow | G56: =G55/(1+$E$51)^G34 -> 4.687740226 | H56: =H55/(1+$E$51)^H34 -> 4.50169144 | I56: 4.323026627 | J56: 4.151452731 | K56: 3.986688323 | L56: 3.828463147 | M56: 3.676517671 | N56: 3.530602664 | O56: 3.390478785 | P56: 3.255916196 | Q56: 3.126694177 | R56: 3.00260077 | S56: 2.883432429 | T56: 2.768993685 | U56: 66.99938994
D57: Weighting | G57: =G56/SUM(56:56) -> 0.03968837375 | H57: =H56/SUM(56:56) -> 0.03811320674 | I57: 0.03660055554 | J57: 0.03514793901 | K57: 0.03375297447 | L57: 0.03241337381 | M57: 0.03112693971 | N57: 0.0298915621 | O57: 0.02870521461 | P57: 0.02756595132 | Q57: 0.02647190354 | R57: 0.02542127674 | S57: 0.02441234761 | T57: 0.02344346123 | U57: 0.5672449198
D58: Weighted ROE | E58: =SUMPRODUCT(G57:U57,G38:U38) -> 0.06762037022

Sheet Simulation Residual
D2: Code | E2: 20 | I2: V = ROE x BV * (1-g/ROE)/(k-g) | M2: P/B = (ROE-g)/(k-g) | O2: k=(ROE-g)/PB + g | Q2: k = ROE/PB-g/PB + g
F4: Applied | G4: Vol | H4: Max | I4: Base | J4: Constant | K4: High ROE | L4: High G | M4: Low G | N4: High ST | O4: High LT G | P4: 1 | Q4: 2 | R4: 3 | S4: 4 | T4: 5 | U4: 6 | V4: 7 | W4: 8 | X4: 9 | Y4: 10 | Z4: 11 | AA4: 12 | AB4: 13 | AC4: 14 | AD4: 15 | AE4: 16 | AF4: 17 | AG4: 18 | AH4: 19 | AI4: 20 | AJ4: 21 | AK4: 22 | AL4: 23 | AM4: 24 | AN4: 25 | AO4: 26 | AP4: 27 | AQ4: 28 | AR4: 29 | AS4: 30 | AT4: 31 | AU4: 32 | AV4: 33 | AW4: 34 | AX4: 35 | AY4: 36 | AZ4: 37 | BA4: 38 | BB4: 39 | BC4: 40 | BD4: 41 | BE4: 42 | BF4: 43 | BG4: 44 | BH4: 45 | BI4: 46 | BJ4: 47 | BK4: 48 | BL4: 49 | BM4: 50 | BN4: 51 | BO4: 52 | BP4: 53 | BQ4: 54 | BR4: 55 | BS4: 56 | BT4: 57 | BU4: 58 | BV4: 59 | BW4: 60 | BX4: 61 | BY4: 62 | BZ4: 63 | CA4: 64 | CB4: 65 | CC4: 66 | CD4: 67 | CE4: 68 | CF4: 69 | CG4: 70 | CH4: 71 | CI4: 72 | CJ4: 73 | CK4: 74 | CL4: 75 | CM4: 76 | CN4: 77 | CO4: 78 | CP4: 79 | CQ4: 80 | CR4: 81 | CS4: 82 | CT4: 83 | CU4: 84 | CV4: 85 | CW4: 86 | CX4: 87 | CY4: 88 | CZ4: 89 | DA4: 90 | DB4: 91 | DC4: 92 | DD4: 93 | DE4: 94 | DF4: 95 | DG4: 96 | DH4: 97 | DI4: 98 | DJ4: 99 | DK4: 100 | DL4: 101 | DM4: 102 | DN4: 103 | DO4: 104 | DP4: 105 | DQ4: 106 | DR4: 107 | DS4: 108 | DT4: 109 | DU4: 110 | DV4: 111 | DW4: 112 | DX4: 113 | DY4: 114 | DZ4: 115 | EA4: 116 | EB4: 117 | EC4: 118 | ED4: 119 | EE4: 120 | EF4: 121 | EG4: 122 | EH4: 123 | EI4: 124 | EJ4: 125 | EK4: 126 | EL4: 127 | EM4: 128 | EN4: 129 | EO4: 130 | EP4: 131 | EQ4: 132 | ER4: 133 | ES4: 134 | ET4: 135 | EU4: 136 | EV4: 137 | EW4: 138 | EX4: 139 | EY4: 140 | EZ4: 141 | FA4: 142 | FB4: 143 | FC4: 144 | FD4: 145 | FE4: 146 | FF4: 147 | FG4: 148 | FH4: 149 | FI4: 150 | FJ4: 151 | FK4: 152 | FL4: 153 | FM4: 154 | FN4: 155 | FO4: 156 | FP4: 157 | FQ4: 158 | FR4: 159 | FS4: 160 | FT4: 161 | FU4: 162 | FV4: 163 | FW4: 164 | FX4: 165 | FY4: 166 | FZ4: 167 | GA4: 168 | GB4: 169 | GC4: 170 | GD4: 171 | GE4: 172 | GF4: 173 | GG4: 174 | GH4: 175 | GI4: 176 | GJ4: 177 | GK4: 178 | GL4: 179 | GM4: 180 | GN4: 181 | GO4: 182 | GP4: 183 | GQ4: 184 | GR4: 185 | GS4: 186 | GT4: 187 | GU4: 188 | GV4: 189 | GW4: 190 | GX4: 191 | GY4: 192 | GZ4: 193 | HA4: 194 | HB4: 195 | HC4: 196 | HD4: 197 | HE4: 198 | HF4: 199 | HG4: 200 | HH4: 201 | HI4: 202 | HJ4: 203 | HK4: 204 | HL4: 205 | HM4: 206 | HN4: 207 | HO4: 208 | HP4: 209 | HQ4: 210 | HR4: 211 | HS4: 212 | HT4: 213 | HU4: 214 | HV4: 215 | HW4: 216 | HX4: 217 | HY4: 218 | HZ4: 219 | IA4: 220 | IB4: 221 | IC4: 222 | ID4: 223 | IE4: 224 | IF4: 225 | IG4: 226 | IH4: 227 | II4: 228 | IJ4: 229 | IK4: 230 | IL4: 231 | IM4: 232 | IN4: 233 | IO4: 234 | IP4: 235 | IQ4: 236 | IR4: 237 | IS4: 238 | IT4: 239 | IU4: 240 | IV4: 241 | IW4: 242 | IX4: 243 | IY4: 244 | IZ4: 245 | JA4: 246 | JB4: 247 | JC4: 248 | JD4: 249 | JE4: 250 | JF4: 251 | JG4: 252 | JH4: 253 | JI4: 254 | JJ4: 255 | JK4: 256 | JL4: 257 | JM4: 258 | JN4: 259 | JO4: 260 | JP4: 261 | JQ4: 262 | JR4: 263 | JS4: 264 | JT4: 265 | JU4: 266 | JV4: 267 | JW4: 268 | JX4: 269 | JY4: 270 | JZ4: 271 | KA4: 272 | KB4: 273 | KC4: 274 | KD4: 275 | KE4: 276 | KF4: 277 | KG4: 278 | KH4: 279 | KI4: 280 | KJ4: 281 | KK4: 282 | KL4: 283 | KM4: 284 | KN4: 285 | KO4: 286 | KP4: 287 | KQ4: 288 | KR4: 289 | KS4: 290 | KT4: 291 | KU4: 292 | KV4: 293 | KW4: 294 | KX4: 295 | KY4: 296 | KZ4: 297 | LA4: 298 | LB4: 299 | LC4: 300 | LD4: 301 | LE4: 302 | LF4: 303 | LG4: 304 | LH4: 305 | LI4: 306 | LJ4: 307 | LK4: 308 | LL4: 309 | LM4: 310 | LN4: 311 | LO4: 312 | LP4: 313 | LQ4: 314 | LR4: 315 | LS4: 316 | LT4: 317 | LU4: 318 | LV4: 319 | LW4: 320 | LX4: 321 | LY4: 322 | LZ4: 323 | MA4: 324 | MB4: 325 | MC4: 326 | MD4: 327 | ME4: 328 | MF4: 329 | MG4: 330 | MH4: 331 | MI4: 332 | MJ4: 333 | MK4: 334 | ML4: 335 | MM4: 336 | MN4: 337 | MO4: 338 | MP4: 339 | MQ4: 340 | MR4: 341 | MS4: 342
D5: Book Value | E5: USD/Share | F5: =INDEX(I5:MS5,$E$2) -> 100 | I5: 100 | J5: 100 | K5: 100 | L5: 100 | M5: 100 | N5: 100 | O5: 100 | P5: 100 | Q5: 100 | R5: 100 | S5: 100 | T5: 100 | U5: 100 | V5: 100 | W5: 100 | X5: 100 | Y5: 100 | Z5: 100 | AA5: 100 | AB5: 100 | AC5: 100 | AD5: =AC5 -> 100 | AE5: =AD5 -> 100 | AF5: 100 | AG5: 100 | AH5: 100 | AI5: 100 | AJ5: 100 | AK5: 100 | AL5: 100 | AM5: 100 | AN5: 100 | AO5: 100 | AP5: 100 | AQ5: 100 | AR5: 100 | AS5: 100 | AT5: 100 | AU5: 100 | AV5: 100 | AW5: 100 | AX5: 100 | AY5: 100 | AZ5: 100 | BA5: 100 | BB5: 100 | BC5: 100 | BD5: 100 | BE5: 100 | BF5: 100 | BG5: 100 | BH5: 100 | BI5: 100 | BJ5: 100 | BK5: 100 | BL5: 100 | BM5: 100 | BN5: 100 | BO5: 100 | BP5: 100 | BQ5: 100 | BR5: 100 | BS5: 100 | BT5: 100 | BU5: 100 | BV5: 100 | BW5: 100 | BX5: 100 | BY5: 100 | BZ5: 100 | CA5: 100 | CB5: 100 | CC5: 100 | CD5: 100 | CE5: 100 | CF5: 100 | CG5: 100 | CH5: 100 | CI5: 100 | CJ5: 100 | CK5: 100 | CL5: 100 | CM5: 100 | CN5: 100 | CO5: 100 | CP5: 100 | CQ5: =CP5 -> 100 | CR5: 100 | CS5: 100 | CT5: 100 | CU5: 100 | CV5: 100 | CW5: 100 | CX5: 100 | CY5: 100 | CZ5: 100 | DA5: 100 | DB5: 100 | DC5: 100 | DD5: 100 | DE5: 100 | DF5: 100 | DG5: 100 | DH5: 100 | DI5: 100 | DJ5: 100 | DK5: 100 | DL5: 100 | DM5: 100 | DN5: 100 | DO5: 100 | DP5: 100 | DQ5: 100 | DR5: 100 | DS5: 100 | DT5: 100 | DU5: 100 | DV5: 100 | DW5: 100 | DX5: 100 | DY5: 100 | DZ5: 100 | EA5: 100 | EB5: 100 | EC5: 100 | ED5: 100 | EE5: 100 | EF5: 100 | EG5: 100 | EH5: 100 | EI5: 100 | EJ5: 100 | EK5: 100 | EL5: 100 | EM5: 100 | EN5: 100 | EO5: 100 | EP5: 100 | EQ5: 100 | ER5: 100 | ES5: 100 | ET5: 100 | EU5: 100 | EV5: 100 | EW5: 100 | EX5: 100 | EY5: 100 | EZ5: 100 | FA5: 100 | FB5: 100 | FC5: =FB5 -> 100 | FD5: 100 | FE5: 100 | FF5: 100 | FG5: 100 | FH5: 100 | FI5: 100 | FJ5: 100 | FK5: 100 | FL5: 100 | FM5: 100 | FN5: 100 | FO5: 100 | FP5: 100 | FQ5: 100 | FR5: 100 | FS5: 100 | FT5: 100 | FU5: 100 | FV5: 100 | FW5: 100 | FX5: 100 | FY5: 100 | FZ5: 100 | GA5: 100 | GB5: 100 | GC5: 100 | GD5: 100 | GE5: 100 | GF5: 100 | GG5: 100 | GH5: 100 | GI5: 100 | GJ5: 100 | GK5: 100 | GL5: 100 | GM5: 100 | GN5: 100 | GO5: 100 | GP5: 100 | GQ5: 100 | GR5: 100 | GS5: 100 | GT5: 100 | GU5: 100 | GV5: 100 | GW5: 100 | GX5: 100 | GY5: 100 | GZ5: 100 | HA5: 100 | HB5: 100 | HC5: 100 | HD5: 100 | HE5: 100 | HF5: 100 | HG5: 100 | HH5: 100 | HI5: 100 | HJ5: 100 | HK5: 100 | HL5: 100 | HM5: 100 | HN5: 100 | HO5: =HN5 -> 100 | HP5: 100 | HQ5: 100 | HR5: 100 | HS5: 100 | HT5: 100 | HU5: 100 | HV5: 100 | HW5: 100 | HX5: 100 | HY5: 100 | HZ5: 100 | IA5: 100 | IB5: 100 | IC5: 100 | ID5: 100 | IE5: 100 | IF5: 100 | IG5: 100 | IH5: 100 | II5: 100 | IJ5: 100 | IK5: 100 | IL5: 100 | IM5: 100 | IN5: 100 | IO5: 100 | IP5: 100 | IQ5: 100 | IR5: 100 | IS5: 100 | IT5: 100 | IU5: 100 | IV5: 100 | IW5: 100 | IX5: 100 | IY5: 100 | IZ5: 100 | JA5: 100 | JB5: 100 | JC5: 100 | JD5: 100 | JE5: 100 | JF5: 100 | JG5: 100 | JH5: 100 | JI5: 100 | JJ5: 100 | JK5: 100 | JL5: 100 | JM5: 100 | JN5: 100 | JO5: 100 | JP5: 100 | JQ5: 100 | JR5: 100 | JS5: 100 | JT5: 100 | JU5: 100 | JV5: 100 | JW5: 100 | JX5: 100 | JY5: 100 | JZ5: 100 | KA5: =JZ5 -> 100 | KB5: 100 | KC5: 100 | KD5: 100 | KE5: 100 | KF5: 100 | KG5: 100 | KH5: 100 | KI5: 100 | KJ5: 100 | KK5: 100 | KL5: 100 | KM5: 100 | KN5: 100 | KO5: 100 | KP5: 100 | KQ5: 100 | KR5: 100 | KS5: 100 | KT5: 100 | KU5: 100 | KV5: 100 | KW5: 100 | KX5: 100 | KY5: 100 | KZ5: 100 | LA5: 100 | LB5: 100 | LC5: 100 | LD5: 100 | LE5: 100 | LF5: 100 | LG5: 100 | LH5: 100 | LI5: 100 | LJ5: 100 | LK5: 100 | LL5: 100 | LM5: 100 | LN5: 100 | LO5: 100 | LP5: 100 | LQ5: 100 | LR5: 100 | LS5: 100 | LT5: 100 | LU5: 100 | LV5: 100 | LW5: 100 | LX5: 100 | LY5: 100 | LZ5: 100 | MA5: 100 | MB5: 100 | MC5: 100 | MD5: 100 | ME5: 100 | MF5: 100 | MG5: 100 | MH5: 100 | MI5: 100 | MJ5: 100 | MK5: 100 | ML5: 100 | MM5: =ML5 -> 100 | MN5: 100 | MO5: 100 | MP5: 100 | MQ5: 100 | MR5: 100 | MS5: 100
D6: ROE Short-term | E6: % | F6: =INDEX(I6:MS6,$E$2) -> 0.1173601195 | G6: 0.02 | I6: 0.12 | J6: 0.11 | K6: 0.15 | L6: 0.15 | M6: 0.11 | N6: 0.2 | O6: 0.11 | P6: =MAX(_xlfn.NORM.INV(RAND(),$I6,$G6),5%) -> 0.1012660162 | Q6: =MAX(_xlfn.NORM.INV(RAND(),$I6,$G6),5%) -> 0.1110745209 | R6: 0.1278908867 | S6: 0.1087500748 | T6: 0.1481207324 | U6: 0.09111639484 | V6: 0.1011275254 | W6: 0.09887601822 | X6: 0.1573704707 | Y6: 0.1293674469 | Z6: 0.114917945 | AA6: 0.1062266018 | AB6: 0.1173601195 | AC6: 0.1397005003 | AD6: 0.1409252556 | AE6: 0.1160698677 | AF6: 0.1063194407 | AG6: 0.1191906168 | AH6: 0.1364596945 | AI6: 0.1118229151 | AJ6: 0.09619804327 | AK6: 0.129237857 | AL6: 0.1008620548 | AM6: 0.1118475917 | AN6: 0.1443327325 | AO6: 0.09454056052 | AP6: 0.1201824638 | AQ6: 0.1476447334 | AR6: 0.1235309562 | AS6: 0.1500108033 | AT6: 0.1114047215 | AU6: 0.1161873812 | AV6: 0.09303283354 | AW6: 0.1543037036 | AX6: 0.1392976398 | AY6: 0.1330745654 | AZ6: 0.1332907993 | BA6: 0.1088335927 | BB6: 0.1697624678 | BC6: 0.1226990715 | BD6: 0.1308411623 | BE6: 0.1211873743 | BF6: 0.1284719813 | BG6: 0.07789218833 | BH6: 0.101274965 | BI6: 0.1064982134 | BJ6: 0.07395486035 | BK6: 0.1191790143 | BL6: 0.135478512 | BM6: 0.08583595129 | BN6: 0.1283177075 | BO6: 0.1267689277 | BP6: 0.1257790409 | BQ6: 0.1358860746 | BR6: 0.1035001756 | BS6: 0.1315159296 | BT6: 0.1022034819 | BU6: 0.1305001341 | BV6: 0.1250465305 | BW6: 0.1328787545 | BX6: 0.1382178135 | BY6: 0.101806898 | BZ6: 0.1099080838 | CA6: 0.141068117 | CB6: 0.1353060643 | CC6: =MAX(_xlfn.NORM.INV(RAND(),$I6,$G6),5%) -> 0.1442628415 | CD6: 0.1123221363 | CE6: 0.1107182288 | CF6: 0.1118652047 | CG6: 0.1242461096 | CH6: 0.1076715137 | CI6: 0.1311390803 | CJ6: 0.1088423335 | CK6: 0.1457941734 | CL6: 0.1008115559 | CM6: 0.1336083164 | CN6: 0.1340270529 | CO6: 0.06641073041 | CP6: 0.1434023196 | CQ6: 0.1305027214 | CR6: 0.1067746701 | CS6: 0.0949821842 | CT6: 0.1120475791 | CU6: 0.1258378369 | CV6: 0.1306071451 | CW6: 0.07775014084 | CX6: 0.1361224171 | CY6: 0.1340320769 | CZ6: 0.1041430883 | DA6: 0.1291481646 | DB6: 0.1540449672 | DC6: 0.1294866463 | DD6: 0.136790024 | DE6: 0.1049401254 | DF6: 0.1050479403 | DG6: 0.0866225263 | DH6: 0.1075265197 | DI6: 0.1181335817 | DJ6: 0.1506791254 | DK6: 0.1206245993 | DL6: 0.1092890522 | DM6: 0.1118495465 | DN6: 0.1279958727 | DO6: 0.1191528005 | DP6: 0.1238675295 | DQ6: 0.1267797884 | DR6: 0.1003698148 | DS6: 0.1285445601 | DT6: 0.1085131305 | DU6: 0.1261691632 | DV6: 0.1209563647 | DW6: 0.09690870223 | DX6: 0.09676363638 | DY6: 0.1089281613 | DZ6: 0.1390945479 | EA6: 0.1258400844 | EB6: 0.1223710491 | EC6: 0.07145981937 | ED6: 0.1106974025 | EE6: 0.09326275016 | EF6: 0.1110745922 | EG6: 0.1516885238 | EH6: 0.1296555681 | EI6: 0.1107225789 | EJ6: 0.1199631582 | EK6: 0.08123936089 | EL6: 0.1167399938 | EM6: 0.1413143762 | EN6: 0.1269585446 | EO6: =MAX(_xlfn.NORM.INV(RAND(),$I6,$G6),5%) -> 0.1273072901 | EP6: 0.1217745569 | EQ6: 0.1060729707 | ER6: 0.1581642773 | ES6: 0.1401380802 | ET6: 0.07031567045 | EU6: 0.126680751 | EV6: 0.1076379222 | EW6: 0.1486063897 | EX6: 0.1314593632 | EY6: 0.1133039201 | EZ6: 0.1016572127 | FA6: 0.1166229546 | FB6: 0.09771373943 | FC6: 0.1494931834 | FD6: 0.07862141517 | FE6: 0.1354080802 | FF6: 0.09159887879 | FG6: 0.08181073249 | FH6: 0.1223164746 | FI6: 0.1655702365 | FJ6: 0.08659510594 | FK6: 0.145216843 | FL6: 0.1386614185 | FM6: 0.1141991715 | FN6: 0.1186997188 | FO6: 0.1178464127 | FP6: 0.1243468033 | FQ6: 0.09192862946 | FR6: 0.1375000866 | FS6: 0.07735340939 | FT6: 0.1118650972 | FU6: 0.1087751879 | FV6: 0.1279049679 | FW6: 0.1199978808 | FX6: 0.1431008054 | FY6: 0.1070804189 | FZ6: 0.09124277306 | GA6: 0.1006607799 | GB6: 0.105764732 | GC6: 0.1459782132 | GD6: 0.1179811751 | GE6: 0.1306570257 | GF6: 0.07283529903 | GG6: 0.1365939379 | GH6: 0.1527777302 | GI6: 0.1049645428 | GJ6: 0.1253632813 | GK6: 0.1672167625 | GL6: 0.151112508 | GM6: 0.1271879052 | GN6: 0.08704503429 | GO6: 0.1180928595 | GP6: 0.1192229738 | GQ6: 0.1160315627 | GR6: 0.1130946247 | GS6: 0.1172210821 | GT6: 0.0823063443 | GU6: 0.1203077491 | GV6: 0.1305832252 | GW6: 0.1313001439 | GX6: 0.1237881522 | GY6: 0.1627640258 | GZ6: 0.1059150292 | HA6: =MAX(_xlfn.NORM.INV(RAND(),$I6,$G6),5%) -> 0.1276516457 | HB6: 0.09190068553 | HC6: 0.1125091406 | HD6: 0.12455482 | HE6: 0.1141287563 | HF6: 0.0979648796 | HG6: 0.144370442 | HH6: 0.1066786994 | HI6: 0.1570037997 | HJ6: 0.08462239255 | HK6: 0.1270611569 | HL6: 0.1158368691 | HM6: 0.1090426621 | HN6: 0.1067050756 | HO6: 0.117057571 | HP6: 0.1212975519 | HQ6: 0.09305764529 | HR6: 0.1405012539 | HS6: 0.1397258308 | HT6: 0.1281617918 | HU6: 0.1211577547 | HV6: 0.08953861491 | HW6: 0.1214933181 | HX6: 0.1205982042 | HY6: 0.1080846641 | HZ6: 0.09291859253 | IA6: 0.08413424347 | IB6: 0.1543430821 | IC6: 0.1352903278 | ID6: 0.1142306449 | IE6: 0.1423791664 | IF6: 0.1029336776 | IG6: 0.1388733541 | IH6: 0.1204450455 | II6: 0.1198710767 | IJ6: 0.1171073611 | IK6: 0.1275268869 | IL6: 0.1203624105 | IM6: 0.08459481412 | IN6: 0.1613920655 | IO6: 0.1408069236 | IP6: 0.1159375047 | IQ6: 0.106902125 | IR6: 0.1564493368 | IS6: 0.1418155557 | IT6: 0.1314958103 | IU6: 0.1115765916 | IV6: 0.1118488722 | IW6: 0.1425179888 | IX6: 0.1027003567 | IY6: 0.0977568481 | IZ6: 0.1250376223 | JA6: 0.1474333717 | JB6: 0.09597748332 | JC6: 0.1247489958 | JD6: 0.1399276588 | JE6: 0.1071881788 | JF6: 0.1340484162 | JG6: 0.1368042893 | JH6: 0.1145557024 | JI6: 0.1444993984 | JJ6: 0.09695375462 | JK6: 0.09748995079 | JL6: 0.1207753601 | JM6: =MAX(_xlfn.NORM.INV(RAND(),$I6,$G6),5%) -> 0.07572188498 | JN6: 0.1174270494 | JO6: 0.1058611007 | JP6: 0.1251437031 | JQ6: 0.1412811473 | JR6: 0.1305031529 | JS6: 0.1113722229 | JT6: 0.09083158941 | JU6: 0.116213743 | JV6: 0.1524650767 | JW6: 0.079932046 | JX6: 0.1013157328 | JY6: 0.1299677137 | JZ6: 0.1058087493 | KA6: 0.1371462574 | KB6: 0.09288217847 | KC6: 0.1411372259 | KD6: 0.1011233363 | KE6: 0.1369302766 | KF6: 0.1189575426 | KG6: 0.1261435307 | KH6: 0.1538686771 | KI6: 0.1245981434 | KJ6: 0.1647381821 | KK6: 0.1446052121 | KL6: 0.07362125144 | KM6: 0.1117943718 | KN6: 0.1270526257 | KO6: 0.1420210042 | KP6: 0.1062212123 | KQ6: 0.1157322136 | KR6: 0.1332294549 | KS6: 0.104111808 | KT6: 0.07796495105 | KU6: 0.09731227491 | KV6: 0.113186029 | KW6: 0.1326547338 | KX6: 0.1244313678 | KY6: 0.08250706714 | KZ6: 0.1148569482 | LA6: 0.1243005109 | LB6: 0.1412621073 | LC6: 0.1191543659 | LD6: 0.1161557874 | LE6: 0.09880710494 | LF6: 0.1239392885 | LG6: 0.09951763906 | LH6: 0.1150641662 | LI6: 0.1028834734 | LJ6: 0.125404747 | LK6: 0.1174240588 | LL6: 0.1133497803 | LM6: 0.1350648915 | LN6: 0.1354793254 | LO6: 0.1195919178 | LP6: 0.1264911983 | LQ6: 0.1165983206 | LR6: 0.1502468882 | LS6: 0.1208567481 | LT6: 0.1217282174 | LU6: 0.128671852 | LV6: 0.1322993962 | LW6: 0.1120246358 | LX6: 0.1202204697 | LY6: =MAX(_xlfn.NORM.INV(RAND(),$I6,$G6),5%) -> 0.1184264021 | LZ6: 0.1253484695 | MA6: 0.1406054451 | MB6: 0.1551212212 | MC6: 0.08532225176 | MD6: 0.1061465547 | ME6: 0.1277019924 | MF6: 0.1244020512 | MG6: 0.1324064132 | MH6: 0.1191306272 | MI6: 0.09991665768 | MJ6: 0.09504890534 | MK6: 0.1253151839 | ML6: 0.08494385613 | MM6: 0.1096209188 | MN6: 0.1027776988 | MO6: 0.1308407547 | MP6: 0.1347934612 | MQ6: 0.1106385205 | MR6: 0.1266957507 | MS6: 0.1159099135
D7: ROE vs k | E7: % | F7: =INDEX(I7:MS7,$E$2) -> 0.02 | G7: 0.02 | I7: 0.02 | J7: 0.02 | K7: 0.02 | L7: 0.02 | M7: 0.02 | N7: 0.02 | O7: 0.02 | P7: 0.02 | Q7: 0.02 | R7: 0.02 | S7: 0.02 | T7: 0.02 | U7: 0.02 | V7: 0.02 | W7: 0.02 | X7: 0.02 | Y7: 0.02 | Z7: 0.02 | AA7: 0.02 | AB7: 0.02 | AC7: 0.02 | AD7: 0.02 | AE7: 0.02 | AF7: 0.02 | AG7: 0.02 | AH7: 0.02 | AI7: 0.02 | AJ7: 0.02 | AK7: 0.02 | AL7: 0.02 | AM7: 0.02 | AN7: 0.02 | AO7: 0.02 | AP7: 0.02 | AQ7: 0.02 | AR7: 0.02 | AS7: 0.02 | AT7: 0.02 | AU7: 0.02 | AV7: 0.02 | AW7: 0.02 | AX7: 0.02 | AY7: 0.02 | AZ7: 0.02 | BA7: 0.02 | BB7: 0.02 | BC7: 0.02 | BD7: 0.02 | BE7: 0.02 | BF7: 0.02 | BG7: 0.02 | BH7: 0.02 | BI7: 0.02 | BJ7: 0.02 | BK7: 0.02 | BL7: 0.02 | BM7: 0.02 | BN7: 0.02 | BO7: 0.02 | BP7: 0.02 | BQ7: 0.02 | BR7: 0.02 | BS7: 0.02 | BT7: 0.02 | BU7: 0.02 | BV7: 0.02 | BW7: 0.02 | BX7: 0.02 | BY7: 0.02 | BZ7: 0.02 | CA7: 0.02 | CB7: 0.02 | CC7: 0.02 | CD7: 0.02 | CE7: 0.02 | CF7: 0.02 | CG7: 0.02 | CH7: 0.02 | CI7: 0.02 | CJ7: 0.02 | CK7: 0.02 | CL7: 0.02 | CM7: 0.02 | CN7: 0.02 | CO7: 0.02 | CP7: 0.02 | CQ7: 0.02 | CR7: 0.02 | CS7: 0.02 | CT7: 0.02 | CU7: 0.02 | CV7: 0.02 | CW7: 0.02 | CX7: 0.02 | CY7: 0.02 | CZ7: 0.02 | DA7: 0.02 | DB7: 0.02 | DC7: 0.02 | DD7: 0.02 | DE7: 0.02 | DF7: 0.02 | DG7: 0.02 | DH7: 0.02 | DI7: 0.02 | DJ7: 0.02 | DK7: 0.02 | DL7: 0.02 | DM7: 0.02 | DN7: 0.02 | DO7: 0.02 | DP7: 0.02 | DQ7: 0.02 | DR7: 0.02 | DS7: 0.02 | DT7: 0.02 | DU7: 0.02 | DV7: 0.02 | DW7: 0.02 | DX7: 0.02 | DY7: 0.02 | DZ7: 0.02 | EA7: 0.02 | EB7: 0.02 | EC7: 0.02 | ED7: 0.02 | EE7: 0.02 | EF7: 0.02 | EG7: 0.02 | EH7: 0.02 | EI7: 0.02 | EJ7: 0.02 | EK7: 0.02 | EL7: 0.02 | EM7: 0.02 | EN7: 0.02 | EO7: 0.02 | EP7: 0.02 | EQ7: 0.02 | ER7: 0.02 | ES7: 0.02 | ET7: 0.02 | EU7: 0.02 | EV7: 0.02 | EW7: 0.02 | EX7: 0.02 | EY7: 0.02 | EZ7: 0.02 | FA7: 0.02 | FB7: 0.02 | FC7: 0.02 | FD7: 0.02 | FE7: 0.02 | FF7: 0.02 | FG7: 0.02 | FH7: 0.02 | FI7: 0.02 | FJ7: 0.02 | FK7: 0.02 | FL7: 0.02 | FM7: 0.02 | FN7: 0.02 | FO7: 0.02 | FP7: 0.02 | FQ7: 0.02 | FR7: 0.02 | FS7: 0.02 | FT7: 0.02 | FU7: 0.02 | FV7: 0.02 | FW7: 0.02 | FX7: 0.02 | FY7: 0.02 | FZ7: 0.02 | GA7: 0.02 | GB7: 0.02 | GC7: 0.02 | GD7: 0.02 | GE7: 0.02 | GF7: 0.02 | GG7: 0.02 | GH7: 0.02 | GI7: 0.02 | GJ7: 0.02 | GK7: 0.02 | GL7: 0.02 | GM7: 0.02 | GN7: 0.02 | GO7: 0.02 | GP7: 0.02 | GQ7: 0.02 | GR7: 0.02 | GS7: 0.02 | GT7: 0.02 | GU7: 0.02 | GV7: 0.02 | GW7: 0.02 | GX7: 0.02 | GY7: 0.02 | GZ7: 0.02 | HA7: 0.02 | HB7: 0.02 | HC7: 0.02 | HD7: 0.02 | HE7: 0.02 | HF7: 0.02 | HG7: 0.02 | HH7: 0.02 | HI7: 0.02 | HJ7: 0.02 | HK7: 0.02 | HL7: 0.02 | HM7: 0.02 | HN7: 0.02 | HO7: 0.02 | HP7: 0.02 | HQ7: 0.02 | HR7: 0.02 | HS7: 0.02 | HT7: 0.02 | HU7: 0.02 | HV7: 0.02 | HW7: 0.02 | HX7: 0.02 | HY7: 0.02 | HZ7: 0.02 | IA7: 0.02 | IB7: 0.02 | IC7: 0.02 | ID7: 0.02 | IE7: 0.02 | IF7: 0.02 | IG7: 0.02 | IH7: 0.02 | II7: 0.02 | IJ7: 0.02 | IK7: 0.02 | IL7: 0.02 | IM7: 0.02 | IN7: 0.02 | IO7: 0.02 | IP7: 0.02 | IQ7: 0.02 | IR7: 0.02 | IS7: 0.02 | IT7: 0.02 | IU7: 0.02 | IV7: 0.02 | IW7: 0.02 | IX7: 0.02 | IY7: 0.02 | IZ7: 0.02 | JA7: 0.02 | JB7: 0.02 | JC7: 0.02 | JD7: 0.02 | JE7: 0.02 | JF7: 0.02 | JG7: 0.02 | JH7: 0.02 | JI7: 0.02 | JJ7: 0.02 | JK7: 0.02 | JL7: 0.02 | JM7: 0.02 | JN7: 0.02 | JO7: 0.02 | JP7: 0.02 | JQ7: 0.02 | JR7: 0.02 | JS7: 0.02 | JT7: 0.02 | JU7: 0.02 | JV7: 0.02 | JW7: 0.02 | JX7: 0.02 | JY7: 0.02 | JZ7: 0.02 | KA7: 0.02 | KB7: 0.02 | KC7: 0.02 | KD7: 0.02 | KE7: 0.02 | KF7: 0.02 | KG7: 0.02 | KH7: 0.02 | KI7: 0.02 | KJ7: 0.02 | KK7: 0.02 | KL7: 0.02 | KM7: 0.02 | KN7: 0.02 | KO7: 0.02 | KP7: 0.02 | KQ7: 0.02 | KR7: 0.02 | KS7: 0.02 | KT7: 0.02 | KU7: 0.02 | KV7: 0.02 | KW7: 0.02 | KX7: 0.02 | KY7: 0.02 | KZ7: 0.02 | LA7: 0.02 | LB7: 0.02 | LC7: 0.02 | LD7: 0.02 | LE7: 0.02 | LF7: 0.02 | LG7: 0.02 | LH7: 0.02 | LI7: 0.02 | LJ7: 0.02 | LK7: 0.02 | LL7: 0.02 | LM7: 0.02 | LN7: 0.02 | LO7: 0.02 | LP7: 0.02 | LQ7: 0.02 | LR7: 0.02 | LS7: 0.02 | LT7: 0.02 | LU7: 0.02 | LV7: 0.02 | LW7: 0.02 | LX7: 0.02 | LY7: 0.02 | LZ7: 0.02 | MA7: 0.02 | MB7: 0.02 | MC7: 0.02 | MD7: 0.02 | ME7: 0.02 | MF7: 0.02 | MG7: 0.02 | MH7: 0.02 | MI7: 0.02 | MJ7: 0.02 | MK7: 0.02 | ML7: 0.02 | MM7: 0.02 | MN7: 0.02 | MO7: 0.02 | MP7: 0.02 | MQ7: 0.02 | MR7: 0.02 | MS7: 0.02
D8: k | E8: % | F8: =INDEX(I8:MS8,$E$2) -> 0.06 | I8: 0.06 | J8: 0.06 | K8: 0.06 | L8: 0.06 | M8: 0.06 | N8: 0.06 | O8: 0.06 | P8: =O8 -> 0.06 | Q8: =P8 -> 0.06 | R8: 0.06 | S8: 0.06 | T8: 0.06 | U8: 0.06 | V8: 0.06 | W8: 0.06 | X8: 0.06 | Y8: 0.06 | Z8: 0.06 | AA8: 0.06 | AB8: 0.06 | AC8: 0.06 | AD8: 0.06 | AE8: 0.06 | AF8: 0.06 | AG8: 0.06 | AH8: 0.06 | AI8: 0.06 | AJ8: 0.06 | AK8: 0.06 | AL8: 0.06 | AM8: 0.06 | AN8: 0.06 | AO8: 0.06 | AP8: 0.06 | AQ8: 0.06 | AR8: 0.06 | AS8: 0.06 | AT8: 0.06 | AU8: 0.06 | AV8: 0.06 | AW8: 0.06 | AX8: 0.06 | AY8: 0.06 | AZ8: 0.06 | BA8: 0.06 | BB8: 0.06 | BC8: 0.06 | BD8: 0.06 | BE8: 0.06 | BF8: 0.06 | BG8: 0.06 | BH8: 0.06 | BI8: 0.06 | BJ8: 0.06 | BK8: 0.06 | BL8: 0.06 | BM8: 0.06 | BN8: 0.06 | BO8: 0.06 | BP8: 0.06 | BQ8: 0.06 | BR8: 0.06 | BS8: 0.06 | BT8: 0.06 | BU8: 0.06 | BV8: 0.06 | BW8: 0.06 | BX8: 0.06 | BY8: 0.06 | BZ8: 0.06 | CA8: 0.06 | CB8: 0.06 | CC8: =CB8 -> 0.06 | CD8: 0.06 | CE8: 0.06 | CF8: 0.06 | CG8: 0.06 | CH8: 0.06 | CI8: 0.06 | CJ8: 0.06 | CK8: 0.06 | CL8: 0.06 | CM8: 0.06 | CN8: 0.06 | CO8: 0.06 | CP8: 0.06 | CQ8: 0.06 | CR8: 0.06 | CS8: 0.06 | CT8: 0.06 | CU8: 0.06 | CV8: 0.06 | CW8: 0.06 | CX8: 0.06 | CY8: 0.06 | CZ8: 0.06 | DA8: 0.06 | DB8: 0.06 | DC8: 0.06 | DD8: 0.06 | DE8: 0.06 | DF8: 0.06 | DG8: 0.06 | DH8: 0.06 | DI8: 0.06 | DJ8: 0.06 | DK8: 0.06 | DL8: 0.06 | DM8: 0.06 | DN8: 0.06 | DO8: 0.06 | DP8: 0.06 | DQ8: 0.06 | DR8: 0.06 | DS8: 0.06 | DT8: 0.06 | DU8: 0.06 | DV8: 0.06 | DW8: 0.06 | DX8: 0.06 | DY8: 0.06 | DZ8: 0.06 | EA8: 0.06 | EB8: 0.06 | EC8: 0.06 | ED8: 0.06 | EE8: 0.06 | EF8: 0.06 | EG8: 0.06 | EH8: 0.06 | EI8: 0.06 | EJ8: 0.06 | EK8: 0.06 | EL8: 0.06 | EM8: 0.06 | EN8: 0.06 | EO8: =EN8 -> 0.06 | EP8: 0.06 | EQ8: 0.06 | ER8: 0.06 | ES8: 0.06 | ET8: 0.06 | EU8: 0.06 | EV8: 0.06 | EW8: 0.06 | EX8: 0.06 | EY8: 0.06 | EZ8: 0.06 | FA8: 0.06 | FB8: 0.06 | FC8: 0.06 | FD8: 0.06 | FE8: 0.06 | FF8: 0.06 | FG8: 0.06 | FH8: 0.06 | FI8: 0.06 | FJ8: 0.06 | FK8: 0.06 | FL8: 0.06 | FM8: 0.06 | FN8: 0.06 | FO8: 0.06 | FP8: 0.06 | FQ8: 0.06 | FR8: 0.06 | FS8: 0.06 | FT8: 0.06 | FU8: 0.06 | FV8: 0.06 | FW8: 0.06 | FX8: 0.06 | FY8: 0.06 | FZ8: 0.06 | GA8: 0.06 | GB8: 0.06 | GC8: 0.06 | GD8: 0.06 | GE8: 0.06 | GF8: 0.06 | GG8: 0.06 | GH8: 0.06 | GI8: 0.06 | GJ8: 0.06 | GK8: 0.06 | GL8: 0.06 | GM8: 0.06 | GN8: 0.06 | GO8: 0.06 | GP8: 0.06 | GQ8: 0.06 | GR8: 0.06 | GS8: 0.06 | GT8: 0.06 | GU8: 0.06 | GV8: 0.06 | GW8: 0.06 | GX8: 0.06 | GY8: 0.06 | GZ8: 0.06 | HA8: =GZ8 -> 0.06 | HB8: 0.06 | HC8: 0.06 | HD8: 0.06 | HE8: 0.06 | HF8: 0.06 | HG8: 0.06 | HH8: 0.06 | HI8: 0.06 | HJ8: 0.06 | HK8: 0.06 | HL8: 0.06 | HM8: 0.06 | HN8: 0.06 | HO8: 0.06 | HP8: 0.06 | HQ8: 0.06 | HR8: 0.06 | HS8: 0.06 | HT8: 0.06 | HU8: 0.06 | HV8: 0.06 | HW8: 0.06 | HX8: 0.06 | HY8: 0.06 | HZ8: 0.06 | IA8: 0.06 | IB8: 0.06 | IC8: 0.06 | ID8: 0.06 | IE8: 0.06 | IF8: 0.06 | IG8: 0.06 | IH8: 0.06 | II8: 0.06 | IJ8: 0.06 | IK8: 0.06 | IL8: 0.06 | IM8: 0.06 | IN8: 0.06 | IO8: 0.06 | IP8: 0.06 | IQ8: 0.06 | IR8: 0.06 | IS8: 0.06 | IT8: 0.06 | IU8: 0.06 | IV8: 0.06 | IW8: 0.06 | IX8: 0.06 | IY8: 0.06 | IZ8: 0.06 | JA8: 0.06 | JB8: 0.06 | JC8: 0.06 | JD8: 0.06 | JE8: 0.06 | JF8: 0.06 | JG8: 0.06 | JH8: 0.06 | JI8: 0.06 | JJ8: 0.06 | JK8: 0.06 | JL8: 0.06 | JM8: =JL8 -> 0.06 | JN8: 0.06 | JO8: 0.06 | JP8: 0.06 | JQ8: 0.06 | JR8: 0.06 | JS8: 0.06 | JT8: 0.06 | JU8: 0.06 | JV8: 0.06 | JW8: 0.06 | JX8: 0.06 | JY8: 0.06 | JZ8: 0.06 | KA8: 0.06 | KB8: 0.06 | KC8: 0.06 | KD8: 0.06 | KE8: 0.06 | KF8: 0.06 | KG8: 0.06 | KH8: 0.06 | KI8: 0.06 | KJ8: 0.06 | KK8: 0.06 | KL8: 0.06 | KM8: 0.06 | KN8: 0.06 | KO8: 0.06 | KP8: 0.06 | KQ8: 0.06 | KR8: 0.06 | KS8: 0.06 | KT8: 0.06 | KU8: 0.06 | KV8: 0.06 | KW8: 0.06 | KX8: 0.06 | KY8: 0.06 | KZ8: 0.06 | LA8: 0.06 | LB8: 0.06 | LC8: 0.06 | LD8: 0.06 | LE8: 0.06 | LF8: 0.06 | LG8: 0.06 | LH8: 0.06 | LI8: 0.06 | LJ8: 0.06 | LK8: 0.06 | LL8: 0.06 | LM8: 0.06 | LN8: 0.06 | LO8: 0.06 | LP8: 0.06 | LQ8: 0.06 | LR8: 0.06 | LS8: 0.06 | LT8: 0.06 | LU8: 0.06 | LV8: 0.06 | LW8: 0.06 | LX8: 0.06 | LY8: =LX8 -> 0.06 | LZ8: 0.06 | MA8: 0.06 | MB8: 0.06 | MC8: 0.06 | MD8: 0.06 | ME8: 0.06 | MF8: 0.06 | MG8: 0.06 | MH8: 0.06 | MI8: 0.06 | MJ8: 0.06 | MK8: 0.06 | ML8: 0.06 | MM8: 0.06 | MN8: 0.06 | MO8: 0.06 | MP8: 0.06 | MQ8: 0.06 | MR8: 0.06 | MS8: 0.06
D9: Short-term g | E9: % | F9: =INDEX(I9:MS9,$E$2) -> 0.0530692832 | G9: 0.01 | H9: 1 | I9: 0.04 | J9: 0.05 | K9: 0.05 | L9: 0.08 | M9: 0.03 | N9: 0.03 | O9: 0.03 | P9: =_xlfn.NORM.INV(RAND(),$I9,$G9) -> 0.01687141055 | Q9: 0.04750202612 | R9: 0.02992891539 | S9: 0.04284553112 | T9: 0.03326152441 | U9: 0.05825092839 | V9: 0.0470949848 | W9: 0.04518107474 | X9: 0.03249439658 | Y9: 0.03927221585 | Z9: 0.03242951133 | AA9: 0.0576386766 | AB9: 0.0530692832 | AC9: 0.03331761749 | AD9: 0.04013783188 | AE9: 0.02795292261 | AF9: 0.0249259389 | AG9: 0.03617705111 | AH9: 0.06345185213 | AI9: 0.07391006848 | AJ9: 0.05622186858 | AK9: 0.0403612185 | AL9: 0.03631771273 | AM9: 0.025805503 | AN9: 0.0333922189 | AO9: 0.03144566889 | AP9: 0.02758213249 | AQ9: 0.0419089611 | AR9: 0.04926225003 | AS9: 0.05198285653 | AT9: 0.03960568807 | AU9: 0.0321405684 | AV9: 0.04000416719 | AW9: 0.05180046439 | AX9: 0.04160062866 | AY9: 0.04232111486 | AZ9: 0.02600698075 | BA9: 0.03266441528 | BB9: 0.04794191083 | BC9: 0.03015283238 | BD9: 0.02367590011 | BE9: 0.0497535922 | BF9: 0.05096258651 | BG9: 0.0399862546 | BH9: 0.05690036573 | BI9: 0.06096463556 | BJ9: 0.0305185711 | BK9: 0.03545725068 | BL9: 0.04903105158 | BM9: 0.04249674329 | BN9: 0.04780854703 | BO9: 0.03172257583 | BP9: 0.04410732137 | BQ9: 0.04956030441 | BR9: 0.02132191972 | BS9: 0.04918319113 | BT9: 0.03930110282 | BU9: 0.04136197707 | BV9: 0.03549630512 | BW9: 0.02911790082 | BX9: 0.04863797073 | BY9: 0.05150615271 | BZ9: 0.02870493997 | CA9: 0.03117529177 | CB9: 0.02520058081 | CC9: 0.04193965149 | CD9: 0.05255775493 | CE9: =_xlfn.NORM.INV(RAND(),$I9,$G9) -> 0.03370508386 | CF9: 0.04148262303 | CG9: 0.04501012818 | CH9: 0.04048753074 | CI9: 0.02832834289 | CJ9: 0.04180428557 | CK9: 0.03294725937 | CL9: 0.0379888585 | CM9: 0.03183155322 | CN9: 0.03652234153 | CO9: 0.03636726007 | CP9: 0.0342563039 | CQ9: 0.04317023671 | CR9: 0.03184163753 | CS9: 0.04242116384 | CT9: 0.03763811195 | CU9: 0.03973855836 | CV9: 0.04622047086 | CW9: 0.04461580324 | CX9: 0.0225861329 | CY9: 0.03376957007 | CZ9: 0.0241297098 | DA9: 0.03580072481 | DB9: 0.02594243295 | DC9: 0.04124104129 | DD9: 0.04229053676 | DE9: 0.02474724204 | DF9: 0.0501354745 | DG9: 0.05839283979 | DH9: 0.04543159683 | DI9: 0.0252365161 | DJ9: 0.04717118899 | DK9: 0.04269119184 | DL9: 0.06391639714 | DM9: 0.02946573902 | DN9: 0.04884693519 | DO9: 0.02828947684 | DP9: 0.03751157756 | DQ9: 0.04525488599 | DR9: 0.04843036326 | DS9: 0.05052276731 | DT9: 0.04730062817 | DU9: 0.02615536296 | DV9: 0.03730387239 | DW9: 0.0350340853 | DX9: 0.05043111238 | DY9: 0.04246017831 | DZ9: 0.03661279721 | EA9: 0.0479908988 | EB9: 0.036108019 | EC9: 0.05983974212 | ED9: 0.04989770614 | EE9: 0.0332411795 | EF9: 0.05052327298 | EG9: 0.04833181102 | EH9: 0.05050170161 | EI9: 0.03398640603 | EJ9: 0.03226281552 | EK9: 0.03109386361 | EL9: 0.03412157934 | EM9: 0.03291124694 | EN9: 0.03679643969 | EO9: 0.05852007172 | EP9: 0.0229073796 | EQ9: =_xlfn.NORM.INV(RAND(),$I9,$G9) -> 0.04590138644 | ER9: 0.05145347103 | ES9: 0.05114761602 | ET9: 0.03800848619 | EU9: 0.02709460806 | EV9: 0.03333833719 | EW9: 0.03506546954 | EX9: 0.0325340214 | EY9: 0.04340707019 | EZ9: 0.04594936092 | FA9: 0.03647316826 | FB9: 0.06513343795 | FC9: 0.03657814767 | FD9: 0.04887754127 | FE9: 0.04816719037 | FF9: 0.03420354927 | FG9: 0.05429388174 | FH9: 0.01928795661 | FI9: 0.05001670857 | FJ9: 0.02196128132 | FK9: 0.04298274593 | FL9: 0.04274032796 | FM9: 0.02825042927 | FN9: 0.03980914401 | FO9: 0.04452852732 | FP9: 0.04292914036 | FQ9: 0.03266529683 | FR9: 0.03066483321 | FS9: 0.00434888399 | FT9: 0.03182667087 | FU9: 0.04452869462 | FV9: 0.04624586361 | FW9: 0.0502641819 | FX9: 0.04042102385 | FY9: 0.05949009357 | FZ9: 0.05058685442 | GA9: 0.0292797432 | GB9: 0.03407527475 | GC9: 0.02435346814 | GD9: 0.03723155637 | GE9: 0.03919688651 | GF9: 0.02679266891 | GG9: 0.04329561855 | GH9: 0.009470348635 | GI9: 0.04286793667 | GJ9: 0.03557566326 | GK9: 0.03498757592 | GL9: 0.05533215325 | GM9: 0.04604149456 | GN9: 0.02816652814 | GO9: 0.02667688376 | GP9: 0.05169103574 | GQ9: 0.03398549498 | GR9: 0.05725831376 | GS9: 0.05548709481 | GT9: 0.05171270812 | GU9: 0.03694249496 | GV9: 0.02309260156 | GW9: 0.04974894696 | GX9: 0.0363995826 | GY9: 0.03951521541 | GZ9: 0.04785437458 | HA9: 0.04402962955 | HB9: 0.03117252743 | HC9: =_xlfn.NORM.INV(RAND(),$I9,$G9) -> 0.0453301402 | HD9: 0.03431225699 | HE9: 0.04093681093 | HF9: 0.07866203302 | HG9: 0.04272345321 | HH9: 0.02098555037 | HI9: 0.02842646592 | HJ9: 0.03901717792 | HK9: 0.03318630122 | HL9: 0.04243110515 | HM9: 0.03621651272 | HN9: 0.04724566786 | HO9: 0.0484039136 | HP9: 0.03410045439 | HQ9: 0.03626291529 | HR9: 0.02916599744 | HS9: 0.04086011917 | HT9: 0.05648918719 | HU9: 0.05171050734 | HV9: 0.03536669783 | HW9: 0.03912741668 | HX9: 0.04403406172 | HY9: 0.03876477006 | HZ9: 0.04914480748 | IA9: 0.02975850962 | IB9: 0.05418367948 | IC9: 0.04093692323 | ID9: 0.04013824983 | IE9: 0.05873646555 | IF9: 0.04265221872 | IG9: 0.03147876618 | IH9: 0.03605826943 | II9: 0.02213773412 | IJ9: 0.04411559285 | IK9: 0.04211387508 | IL9: 0.0349815893 | IM9: 0.03483542857 | IN9: 0.03754698214 | IO9: 0.0464436504 | IP9: 0.02636480429 | IQ9: 0.05076000844 | IR9: 0.0505376288 | IS9: 0.05878687673 | IT9: 0.0225014033 | IU9: 0.05823455605 | IV9: 0.04392714278 | IW9: 0.06037902174 | IX9: 0.03594327317 | IY9: 0.02713386754 | IZ9: 0.01931039929 | JA9: 0.06263463535 | JB9: 0.02885718338 | JC9: 0.0420858573 | JD9: 0.03886361952 | JE9: 0.04200488152 | JF9: 0.04451357017 | JG9: 0.04570756258 | JH9: 0.04764333213 | JI9: 0.04922732663 | JJ9: 0.02583970481 | JK9: 0.04681551555 | JL9: 0.04796138382 | JM9: 0.03601515457 | JN9: 0.04703219355 | JO9: =_xlfn.NORM.INV(RAND(),$I9,$G9) -> 0.04312223359 | JP9: 0.04654169991 | JQ9: 0.04766772837 | JR9: 0.02893808017 | JS9: 0.04828996126 | JT9: 0.04012611343 | JU9: 0.03540612515 | JV9: 0.04311654409 | JW9: 0.04141675481 | JX9: 0.04597108833 | JY9: 0.02115249472 | JZ9: 0.03602541023 | KA9: 0.04466848113 | KB9: 0.02718221049 | KC9: 0.02923566503 | KD9: 0.03915995223 | KE9: 0.0534690942 | KF9: 0.03883164086 | KG9: 0.0649944125 | KH9: 0.0333459887 | KI9: 0.05253654855 | KJ9: 0.03464525149 | KK9: 0.04493506425 | KL9: 0.02660681099 | KM9: 0.04912368637 | KN9: 0.05147829564 | KO9: 0.04706233623 | KP9: 0.03749223938 | KQ9: 0.04145479914 | KR9: 0.04802350771 | KS9: 0.04356228371 | KT9: 0.04837036458 | KU9: 0.04062768546 | KV9: 0.04895119956 | KW9: 0.03901873513 | KX9: 0.03435563334 | KY9: 0.03633255006 | KZ9: 0.04477383308 | LA9: 0.0532371723 | LB9: 0.04455043564 | LC9: 0.03562414153 | LD9: 0.02505951355 | LE9: 0.05214776734 | LF9: 0.04741158346 | LG9: 0.04370966752 | LH9: 0.03627544266 | LI9: 0.0331077962 | LJ9: 0.04081195571 | LK9: 0.04036108967 | LL9: 0.04758571615 | LM9: 0.03957441431 | LN9: 0.02915695334 | LO9: 0.03791854453 | LP9: 0.04288987048 | LQ9: 0.03737081602 | LR9: 0.05068280731 | LS9: 0.04837407443 | LT9: 0.04532452203 | LU9: 0.04586078283 | LV9: 0.02992302087 | LW9: 0.03225168547 | LX9: 0.02774268696 | LY9: 0.03954220101 | LZ9: 0.04719975417 | MA9: =_xlfn.NORM.INV(RAND(),$I9,$G9) -> 0.02582786505 | MB9: 0.02609879982 | MC9: 0.0516547333 | MD9: 0.03496416986 | ME9: 0.03440472774 | MF9: 0.05539314164 | MG9: 0.05096150753 | MH9: 0.04228613489 | MI9: 0.04785964747 | MJ9: 0.05198091942 | MK9: 0.03963202662 | ML9: 0.05935803054 | MM9: 0.03183539258 | MN9: 0.03457717744 | MO9: 0.03924714951 | MP9: 0.04879275705 | MQ9: 0.02131184231 | MR9: 0.03113024007 | MS9: 0.04969048376
D10: Long-term g | E10: % | F10: =INDEX(I10:MS10,$E$2) -> 0.02 | G10: 0.005 | I10: 0.02 | J10: 0.02 | K10: 0.02 | L10: 0.02 | M10: 0.02 | N10: 0.02 | O10: 0.02 | P10: 0.02 | Q10: 0.02 | R10: 0.02 | S10: 0.02 | T10: 0.02 | U10: 0.02 | V10: 0.02 | W10: 0.02 | X10: 0.02 | Y10: 0.02 | Z10: 0.02 | AA10: 0.02 | AB10: 0.02 | AC10: 0.02 | AD10: 0.02 | AE10: 0.02 | AF10: 0.02 | AG10: 0.02 | AH10: 0.02 | AI10: 0.02 | AJ10: 0.02 | AK10: 0.02 | AL10: 0.02 | AM10: 0.02 | AN10: 0.02 | AO10: 0.02 | AP10: 0.02 | AQ10: 0.02 | AR10: 0.02 | AS10: 0.02 | AT10: 0.02 | AU10: 0.02 | AV10: 0.02 | AW10: 0.02 | AX10: 0.02 | AY10: 0.02 | AZ10: 0.02 | BA10: 0.02 | BB10: 0.02 | BC10: 0.02 | BD10: 0.02 | BE10: 0.02 | BF10: 0.02 | BG10: 0.02 | BH10: 0.02 | BI10: 0.02 | BJ10: 0.02 | BK10: 0.02 | BL10: 0.02 | BM10: 0.02 | BN10: 0.02 | BO10: 0.02 | BP10: 0.02 | BQ10: 0.02 | BR10: 0.02 | BS10: 0.02 | BT10: 0.02 | BU10: 0.02 | BV10: 0.02 | BW10: 0.02 | BX10: 0.02 | BY10: 0.02 | BZ10: 0.02 | CA10: 0.02 | CB10: 0.02 | CC10: 0.02 | CD10: 0.02 | CE10: 0.02 | CF10: 0.02 | CG10: 0.02 | CH10: 0.02 | CI10: 0.02 | CJ10: 0.02 | CK10: 0.02 | CL10: 0.02 | CM10: 0.02 | CN10: 0.02 | CO10: 0.02 | CP10: 0.02 | CQ10: 0.02 | CR10: 0.02 | CS10: 0.02 | CT10: 0.02 | CU10: 0.02 | CV10: 0.02 | CW10: 0.02 | CX10: 0.02 | CY10: 0.02 | CZ10: 0.02 | DA10: 0.02 | DB10: 0.02 | DC10: 0.02 | DD10: 0.02 | DE10: 0.02 | DF10: 0.02 | DG10: 0.02 | DH10: 0.02 | DI10: 0.02 | DJ10: 0.02 | DK10: 0.02 | DL10: 0.02 | DM10: 0.02 | DN10: 0.02 | DO10: 0.02 | DP10: 0.02 | DQ10: 0.02 | DR10: 0.02 | DS10: 0.02 | DT10: 0.02 | DU10: 0.02 | DV10: 0.02 | DW10: 0.02 | DX10: 0.02 | DY10: 0.02 | DZ10: 0.02 | EA10: 0.02 | EB10: 0.02 | EC10: 0.02 | ED10: 0.02 | EE10: 0.02 | EF10: 0.02 | EG10: 0.02 | EH10: 0.02 | EI10: 0.02 | EJ10: 0.02 | EK10: 0.02 | EL10: 0.02 | EM10: 0.02 | EN10: 0.02 | EO10: 0.02 | EP10: 0.02 | EQ10: 0.02 | ER10: 0.02 | ES10: 0.02 | ET10: 0.02 | EU10: 0.02 | EV10: 0.02 | EW10: 0.02 | EX10: 0.02 | EY10: 0.02 | EZ10: 0.02 | FA10: 0.02 | FB10: 0.02 | FC10: 0.02 | FD10: 0.02 | FE10: 0.02 | FF10: 0.02 | FG10: 0.02 | FH10: 0.02 | FI10: 0.02 | FJ10: 0.02 | FK10: 0.02 | FL10: 0.02 | FM10: 0.02 | FN10: 0.02 | FO10: 0.02 | FP10: 0.02 | FQ10: 0.02 | FR10: 0.02 | FS10: 0.02 | FT10: 0.02 | FU10: 0.02 | FV10: 0.02 | FW10: 0.02 | FX10: 0.02 | FY10: 0.02 | FZ10: 0.02 | GA10: 0.02 | GB10: 0.02 | GC10: 0.02 | GD10: 0.02 | GE10: 0.02 | GF10: 0.02 | GG10: 0.02 | GH10: 0.02 | GI10: 0.02 | GJ10: 0.02 | GK10: 0.02 | GL10: 0.02 | GM10: 0.02 | GN10: 0.02 | GO10: 0.02 | GP10: 0.02 | GQ10: 0.02 | GR10: 0.02 | GS10: 0.02 | GT10: 0.02 | GU10: 0.02 | GV10: 0.02 | GW10: 0.02 | GX10: 0.02 | GY10: 0.02 | GZ10: 0.02 | HA10: 0.02 | HB10: 0.02 | HC10: 0.02 | HD10: 0.02 | HE10: 0.02 | HF10: 0.02 | HG10: 0.02 | HH10: 0.02 | HI10: 0.02 | HJ10: 0.02 | HK10: 0.02 | HL10: 0.02 | HM10: 0.02 | HN10: 0.02 | HO10: 0.02 | HP10: 0.02 | HQ10: 0.02 | HR10: 0.02 | HS10: 0.02 | HT10: 0.02 | HU10: 0.02 | HV10: 0.02 | HW10: 0.02 | HX10: 0.02 | HY10: 0.02 | HZ10: 0.02 | IA10: 0.02 | IB10: 0.02 | IC10: 0.02 | ID10: 0.02 | IE10: 0.02 | IF10: 0.02 | IG10: 0.02 | IH10: 0.02 | II10: 0.02 | IJ10: 0.02 | IK10: 0.02 | IL10: 0.02 | IM10: 0.02 | IN10: 0.02 | IO10: 0.02 | IP10: 0.02 | IQ10: 0.02 | IR10: 0.02 | IS10: 0.02 | IT10: 0.02 | IU10: 0.02 | IV10: 0.02 | IW10: 0.02 | IX10: 0.02 | IY10: 0.02 | IZ10: 0.02 | JA10: 0.02 | JB10: 0.02 | JC10: 0.02 | JD10: 0.02 | JE10: 0.02 | JF10: 0.02 | JG10: 0.02 | JH10: 0.02 | JI10: 0.02 | JJ10: 0.02 | JK10: 0.02 | JL10: 0.02 | JM10: 0.02 | JN10: 0.02 | JO10: 0.02 | JP10: 0.02 | JQ10: 0.02 | JR10: 0.02 | JS10: 0.02 | JT10: 0.02 | JU10: 0.02 | JV10: 0.02 | JW10: 0.02 | JX10: 0.02 | JY10: 0.02 | JZ10: 0.02 | KA10: 0.02 | KB10: 0.02 | KC10: 0.02 | KD10: 0.02 | KE10: 0.02 | KF10: 0.02 | KG10: 0.02 | KH10: 0.02 | KI10: 0.02 | KJ10: 0.02 | KK10: 0.02 | KL10: 0.02 | KM10: 0.02 | KN10: 0.02 | KO10: 0.02 | KP10: 0.02 | KQ10: 0.02 | KR10: 0.02 | KS10: 0.02 | KT10: 0.02 | KU10: 0.02 | KV10: 0.02 | KW10: 0.02 | KX10: 0.02 | KY10: 0.02 | KZ10: 0.02 | LA10: 0.02 | LB10: 0.02 | LC10: 0.02 | LD10: 0.02 | LE10: 0.02 | LF10: 0.02 | LG10: 0.02 | LH10: 0.02 | LI10: 0.02 | LJ10: 0.02 | LK10: 0.02 | LL10: 0.02 | LM10: 0.02 | LN10: 0.02 | LO10: 0.02 | LP10: 0.02 | LQ10: 0.02 | LR10: 0.02 | LS10: 0.02 | LT10: 0.02 | LU10: 0.02 | LV10: 0.02 | LW10: 0.02 | LX10: 0.02 | LY10: 0.02 | LZ10: 0.02 | MA10: 0.02 | MB10: 0.02 | MC10: 0.02 | MD10: 0.02 | ME10: 0.02 | MF10: 0.02 | MG10: 0.02 | MH10: 0.02 | MI10: 0.02 | MJ10: 0.02 | MK10: 0.02 | ML10: 0.02 | MM10: 0.02 | MN10: 0.02 | MO10: 0.02 | MP10: 0.02 | MQ10: 0.02 | MR10: 0.02 | MS10: 0.02
D11: Short-term period | E11: years | F11: =INDEX(I11:MS11,$E$2) -> 6.346870114 | G11: 2 | I11: 5 | J11: 5 | K11: 5 | L11: 5 | M11: 5 | N11: 5 | O11: 5 | P11: =_xlfn.NORM.INV(RAND(),$I11,$G11) -> 3.348458235 | Q11: 4.190264991 | R11: 3.962753866 | S11: 1.870933082 | T11: 4.191417834 | U11: 6.400338957 | V11: 5.742531979 | W11: 4.811672753 | X11: 7.205941582 | Y11: 2.255547534 | Z11: 6.726109327 | AA11: 9.072872346 | AB11: 6.346870114 | AC11: 6.272688471 | AD11: 5.708610512 | AE11: 3.868142974 | AF11: =_xlfn.NORM.INV(RAND(),$I11,$G11) -> 5.054581786 | AG11: 8.283449323 | AH11: 6.098390119 | AI11: 5.497286255 | AJ11: 4.745152316 | AK11: 3.623095808 | AL11: 5.811681062 | AM11: 5.793589012 | AN11: 3.542387673 | AO11: 5.977893913 | AP11: -1.982722688 | AQ11: 0.7751214942 | AR11: 9.351233658 | AS11: 3.447824397 | AT11: 6.303124493 | AU11: 3.416842096 | AV11: 3.105023321 | AW11: 3.848054541 | AX11: 1.120816069 | AY11: 2.157735178 | AZ11: 8.213890601 | BA11: 4.259799819 | BB11: 5.783395164 | BC11: 4.20278161 | BD11: 3.313140563 | BE11: 8.253677548 | BF11: 6.342555792 | BG11: 5.53818932 | BH11: 6.205468068 | BI11: 4.043837826 | BJ11: 7.093936675 | BK11: 8.36493547 | BL11: 4.341098035 | BM11: 4.026646974 | BN11: 4.606243412 | BO11: 5.165771708 | BP11: 6.865947365 | BQ11: 0.6053124336 | BR11: 4.973949274 | BS11: 8.023036365 | BT11: 6.402575955 | BU11: 6.196860267 | BV11: 4.701798921 | BW11: 9.424965398 | BX11: 3.416076956 | BY11: 1.491229379 | BZ11: 7.294711173 | CA11: 5.187085897 | CB11: 6.899432381 | CC11: 5.663718489 | CD11: 5.039360826 | CE11: 7.09319666 | CF11: 0.7998371828 | CG11: 5.559138843 | CH11: 4.352746132 | CI11: 1.995512851 | CJ11: 7.587252118 | CK11: 4.05073799 | CL11: 6.530699679 | CM11: 4.785461702 | CN11: 6.218100823 | CO11: 4.418596093 | CP11: 7.017232846 | CQ11: 2.873162909 | CR11: =_xlfn.NORM.INV(RAND(),$I11,$G11) -> 6.308700776 | CS11: 8.481085028 | CT11: 5.412687413 | CU11: 9.20654506 | CV11: 8.745853149 | CW11: 4.736343539 | CX11: 7.558387839 | CY11: 3.251552933 | CZ11: 3.544570507 | DA11: 10.10000855 | DB11: 4.374411183 | DC11: 6.025202496 | DD11: 7.002357632 | DE11: 4.14953575 | DF11: 4.937220792 | DG11: 7.861725366 | DH11: 3.760522461 | DI11: 4.643490896 | DJ11: 2.870812526 | DK11: 7.544587947 | DL11: 4.72662797 | DM11: 4.139743179 | DN11: 2.621775216 | DO11: 3.481567536 | DP11: 4.960503094 | DQ11: 5.061923918 | DR11: 5.943528518 | DS11: 4.527300496 | DT11: 5.503528555 | DU11: 4.065611345 | DV11: 4.437918283 | DW11: 3.321705355 | DX11: 8.208453486 | DY11: 5.261374922 | DZ11: 4.414247029 | EA11: 6.257911317 | EB11: 7.868040438 | EC11: 4.460982598 | ED11: 2.939945088 | EE11: 8.64859525 | EF11: 6.533053572 | EG11: 8.509107618 | EH11: 4.002661718 | EI11: 5.551805165 | EJ11: 2.051264634 | EK11: 3.893994648 | EL11: 5.851190413 | EM11: 7.490253845 | EN11: 6.88926503 | EO11: 5.544212265 | EP11: 3.424433475 | EQ11: 5.323677554 | ER11: 4.822462488 | ES11: 2.128576243 | ET11: 2.13175173 | EU11: 4.506562307 | EV11: 5.467335863 | EW11: 5.034425022 | EX11: 1.750033282 | EY11: 6.14180374 | EZ11: 3.57730102 | FA11: 6.339202943 | FB11: 1.631831173 | FC11: 6.297444267 | FD11: =_xlfn.NORM.INV(RAND(),$I11,$G11) -> 5.94320083 | FE11: 4.234249049 | FF11: 4.175988428 | FG11: 9.112055427 | FH11: 6.765862081 | FI11: 6.260250998 | FJ11: 2.184772329 | FK11: 6.224164419 | FL11: 6.353370965 | FM11: 4.710374638 | FN11: 1.088707782 | FO11: 3.759200141 | FP11: 5.951116225 | FQ11: 3.754505645 | FR11: 2.043646434 | FS11: 0.9009220515 | FT11: 7.140893781 | FU11: 5.875331508 | FV11: 7.912790276 | FW11: 4.311324777 | FX11: 3.746498459 | FY11: 7.570296841 | FZ11: 2.831223914 | GA11: 5.586367706 | GB11: 5.834082311 | GC11: 2.249301689 | GD11: 4.783286638 | GE11: 5.365387813 | GF11: 6.734426888 | GG11: 3.677532588 | GH11: 4.303093099 | GI11: 2.662801422 | GJ11: 3.719490424 | GK11: 6.276287942 | GL11: 5.091668576 | GM11: 2.053431237 | GN11: 4.374286154 | GO11: 5.348984638 | GP11: 6.317952977 | GQ11: 8.063003472 | GR11: 1.025249663 | GS11: 5.371640691 | GT11: 3.516148858 | GU11: 2.861918835 | GV11: 5.670061529 | GW11: 8.637179328 | GX11: 5.888290832 | GY11: 5.929927504 | GZ11: 3.723154109 | HA11: 3.754953256 | HB11: 4.924124551 | HC11: 9.046002326 | HD11: 4.066122275 | HE11: 7.124250295 | HF11: 9.540455386 | HG11: 5.40464255 | HH11: 9.154404127 | HI11: 5.117227297 | HJ11: 0.4538007938 | HK11: 5.282262292 | HL11: 5.196913351 | HM11: 1.650676716 | HN11: 5.274652015 | HO11: 4.484776113 | HP11: =_xlfn.NORM.INV(RAND(),$I11,$G11) -> 7.256646216 | HQ11: 4.066525662 | HR11: 3.882039025 | HS11: 2.374218151 | HT11: 6.515358458 | HU11: 7.335227001 | HV11: 3.024378941 | HW11: 8.751452989 | HX11: 6.006477114 | HY11: 5.886413589 | HZ11: 6.400644566 | IA11: 5.359545757 | IB11: 2.318711511 | IC11: 6.431070596 | ID11: 7.746795802 | IE11: 3.771537734 | IF11: 2.781436592 | IG11: 10.08028889 | IH11: 4.872030243 | II11: 8.327300455 | IJ11: 6.808145362 | IK11: 7.457103453 | IL11: 5.522950835 | IM11: 0.8818750585 | IN11: 10.53555734 | IO11: 4.238180616 | IP11: 3.276982244 | IQ11: 1.348126702 | IR11: 6.825416293 | IS11: 6.559835081 | IT11: 6.05764219 | IU11: 4.947869345 | IV11: 0.1046808864 | IW11: 5.802607904 | IX11: 7.946029533 | IY11: 3.997321641 | IZ11: 3.475902868 | JA11: 4.640457129 | JB11: 5.205201954 | JC11: 4.81745942 | JD11: 7.098879188 | JE11: 6.870070438 | JF11: 5.110347096 | JG11: 5.668116996 | JH11: 2.755734292 | JI11: 7.553573289 | JJ11: 7.71378631 | JK11: 6.346533119 | JL11: 5.688521926 | JM11: 4.275234746 | JN11: 6.798640825 | JO11: 1.207079694 | JP11: 6.942928585 | JQ11: 6.962389768 | JR11: 4.149820676 | JS11: 1.08888141 | JT11: 5.804936402 | JU11: 4.180980705 | JV11: 2.927805503 | JW11: 3.317481022 | JX11: 4.087572206 | JY11: 7.01771763 | JZ11: 6.029140896 | KA11: 5.738777191 | KB11: =_xlfn.NORM.INV(RAND(),$I11,$G11) -> 4.81029015 | KC11: 2.382866375 | KD11: 4.506138538 | KE11: 7.375585952 | KF11: 8.076918595 | KG11: 3.335761527 | KH11: 6.435671481 | KI11: 1.169344659 | KJ11: 3.002808811 | KK11: 5.960110608 | KL11: 4.503348248 | KM11: 2.036741972 | KN11: 5.845230934 | KO11: 3.033510414 | KP11: 0.6727479362 | KQ11: 4.148250064 | KR11: 3.428132243 | KS11: 8.39439454 | KT11: 7.157930055 | KU11: 10.06620472 | KV11: 5.92731323 | KW11: 4.051999168 | KX11: 1.729851705 | KY11: 0.9917937742 | KZ11: 4.333283008 | LA11: 5.301416191 | LB11: 4.303869581 | LC11: 4.2294924 | LD11: 4.600309099 | LE11: 1.125802819 | LF11: 4.425804657 | LG11: 3.90953999 | LH11: 8.018192257 | LI11: 4.139343535 | LJ11: 4.009744211 | LK11: 2.616685776 | LL11: 7.890510367 | LM11: 4.317128521 | LN11: 6.928014903 | LO11: 3.712775471 | LP11: 4.407644767 | LQ11: 0.9351683238 | LR11: 1.111810494 | LS11: 2.492669828 | LT11: 5.568333548 | LU11: 1.803745641 | LV11: 3.780421231 | LW11: 5.977418435 | LX11: 3.877805226 | LY11: 6.758315636 | LZ11: 6.304224073 | MA11: -1.121380428 | MB11: 4.527930611 | MC11: 8.087194566 | MD11: 3.778404465 | ME11: 2.062633345 | MF11: 7.065905826 | MG11: 3.159895087 | MH11: 4.468203241 | MI11: 9.071339602 | MJ11: 4.549970885 | MK11: 6.127736213 | ML11: 5.329619953 | MM11: 4.495851499 | MN11: =_xlfn.NORM.INV(RAND(),$I11,$G11) -> 4.352735933 | MO11: 2.824494744 | MP11: 5.643699537 | MQ11: 3.990175354 | MR11: 6.224688494 | MS11: 2.851207053
D12: Terminal Period | E12: Year | F12: =INDEX(I12:MS12,$E$2) -> 15 | I12: 15 | J12: 15 | K12: 15 | L12: 15 | M12: 15 | N12: 15 | O12: 15 | P12: =O12 -> 15 | Q12: =P12 -> 15 | R12: 15 | S12: 15 | T12: 15 | U12: 15 | V12: 15 | W12: 15 | X12: 15 | Y12: 15 | Z12: 15 | AA12: 15 | AB12: 15 | AC12: 15 | AD12: 15 | AE12: 15 | AF12: 15 | AG12: 15 | AH12: 15 | AI12: 15 | AJ12: 15 | AK12: 15 | AL12: 15 | AM12: 15 | AN12: 15 | AO12: 15 | AP12: 15 | AQ12: 15 | AR12: 15 | AS12: 15 | AT12: 15 | AU12: 15 | AV12: 15 | AW12: 15 | AX12: 15 | AY12: 15 | AZ12: 15 | BA12: 15 | BB12: 15 | BC12: 15 | BD12: 15 | BE12: 15 | BF12: 15 | BG12: 15 | BH12: 15 | BI12: 15 | BJ12: 15 | BK12: 15 | BL12: 15 | BM12: 15 | BN12: 15 | BO12: 15 | BP12: 15 | BQ12: 15 | BR12: 15 | BS12: 15 | BT12: 15 | BU12: 15 | BV12: 15 | BW12: 15 | BX12: 15 | BY12: 15 | BZ12: 15 | CA12: 15 | CB12: 15 | CC12: =CB12 -> 15 | CD12: 15 | CE12: 15 | CF12: 15 | CG12: 15 | CH12: 15 | CI12: 15 | CJ12: 15 | CK12: 15 | CL12: 15 | CM12: 15 | CN12: 15 | CO12: 15 | CP12: 15 | CQ12: 15 | CR12: 15 | CS12: 15 | CT12: 15 | CU12: 15 | CV12: 15 | CW12: 15 | CX12: 15 | CY12: 15 | CZ12: 15 | DA12: 15 | DB12: 15 | DC12: 15 | DD12: 15 | DE12: 15 | DF12: 15 | DG12: 15 | DH12: 15 | DI12: 15 | DJ12: 15 | DK12: 15 | DL12: 15 | DM12: 15 | DN12: 15 | DO12: 15 | DP12: 15 | DQ12: 15 | DR12: 15 | DS12: 15 | DT12: 15 | DU12: 15 | DV12: 15 | DW12: 15 | DX12: 15 | DY12: 15 | DZ12: 15 | EA12: 15 | EB12: 15 | EC12: 15 | ED12: 15 | EE12: 15 | EF12: 15 | EG12: 15 | EH12: 15 | EI12: 15 | EJ12: 15 | EK12: 15 | EL12: 15 | EM12: 15 | EN12: 15 | EO12: =EN12 -> 15 | EP12: 15 | EQ12: 15 | ER12: 15 | ES12: 15 | ET12: 15 | EU12: 15 | EV12: 15 | EW12: 15 | EX12: 15 | EY12: 15 | EZ12: 15 | FA12: 15 | FB12: 15 | FC12: 15 | FD12: 15 | FE12: 15 | FF12: 15 | FG12: 15 | FH12: 15 | FI12: 15 | FJ12: 15 | FK12: 15 | FL12: 15 | FM12: 15 | FN12: 15 | FO12: 15 | FP12: 15 | FQ12: 15 | FR12: 15 | FS12: 15 | FT12: 15 | FU12: 15 | FV12: 15 | FW12: 15 | FX12: 15 | FY12: 15 | FZ12: 15 | GA12: 15 | GB12: 15 | GC12: 15 | GD12: 15 | GE12: 15 | GF12: 15 | GG12: 15 | GH12: 15 | GI12: 15 | GJ12: 15 | GK12: 15 | GL12: 15 | GM12: 15 | GN12: 15 | GO12: 15 | GP12: 15 | GQ12: 15 | GR12: 15 | GS12: 15 | GT12: 15 | GU12: 15 | GV12: 15 | GW12: 15 | GX12: 15 | GY12: 15 | GZ12: 15 | HA12: =GZ12 -> 15 | HB12: 15 | HC12: 15 | HD12: 15 | HE12: 15 | HF12: 15 | HG12: 15 | HH12: 15 | HI12: 15 | HJ12: 15 | HK12: 15 | HL12: 15 | HM12: 15 | HN12: 15 | HO12: 15 | HP12: 15 | HQ12: 15 | HR12: 15 | HS12: 15 | HT12: 15 | HU12: 15 | HV12: 15 | HW12: 15 | HX12: 15 | HY12: 15 | HZ12: 15 | IA12: 15 | IB12: 15 | IC12: 15 | ID12: 15 | IE12: 15 | IF12: 15 | IG12: 15 | IH12: 15 | II12: 15 | IJ12: 15 | IK12: 15 | IL12: 15 | IM12: 15 | IN12: 15 | IO12: 15 | IP12: 15 | IQ12: 15 | IR12: 15 | IS12: 15 | IT12: 15 | IU12: 15 | IV12: 15 | IW12: 15 | IX12: 15 | IY12: 15 | IZ12: 15 | JA12: 15 | JB12: 15 | JC12: 15 | JD12: 15 | JE12: 15 | JF12: 15 | JG12: 15 | JH12: 15 | JI12: 15 | JJ12: 15 | JK12: 15 | JL12: 15 | JM12: =JL12 -> 15 | JN12: 15 | JO12: 15 | JP12: 15 | JQ12: 15 | JR12: 15 | JS12: 15 | JT12: 15 | JU12: 15 | JV12: 15 | JW12: 15 | JX12: 15 | JY12: 15 | JZ12: 15 | KA12: 15 | KB12: 15 | KC12: 15 | KD12: 15 | KE12: 15 | KF12: 15 | KG12: 15 | KH12: 15 | KI12: 15 | KJ12: 15 | KK12: 15 | KL12: 15 | KM12: 15 | KN12: 15 | KO12: 15 | KP12: 15 | KQ12: 15 | KR12: 15 | KS12: 15 | KT12: 15 | KU12: 15 | KV12: 15 | KW12: 15 | KX12: 15 | KY12: 15 | KZ12: 15 | LA12: 15 | LB12: 15 | LC12: 15 | LD12: 15 | LE12: 15 | LF12: 15 | LG12: 15 | LH12: 15 | LI12: 15 | LJ12: 15 | LK12: 15 | LL12: 15 | LM12: 15 | LN12: 15 | LO12: 15 | LP12: 15 | LQ12: 15 | LR12: 15 | LS12: 15 | LT12: 15 | LU12: 15 | LV12: 15 | LW12: 15 | LX12: 15 | LY12: =LX12 -> 15 | LZ12: 15 | MA12: 15 | MB12: 15 | MC12: 15 | MD12: 15 | ME12: 15 | MF12: 15 | MG12: 15 | MH12: 15 | MI12: 15 | MJ12: 15 | MK12: 15 | ML12: 15 | MM12: 15 | MN12: 15 | MO12: 15 | MP12: 15 | MQ12: 15 | MR12: 15 | MS12: 15
I14: 1 | J14: 2 | K14: 3 | L14: 4 | M14: 5 | N14: 6 | O14: 7 | P14: 8 | Q14: 9 | R14: 10 | S14: 11 | T14: 12 | U14: 13 | V14: 14 | W14: 15 | X14: 16 | Y14: 17 | Z14: 18 | AA14: 19 | AB14: 20 | AC14: 21 | AD14: 22 | AE14: 23 | AF14: 24 | AG14: 25 | AH14: 26 | AI14: 27 | AJ14: 28 | AK14: 29 | AL14: 30 | AM14: 31 | AN14: 32 | AO14: 33 | AP14: 34 | AQ14: 35 | AR14: 36 | AS14: 37 | AT14: 38 | AU14: 39 | AV14: 40 | AW14: 41 | AX14: 42 | AY14: 43 | AZ14: 44 | BA14: 45 | BB14: 46 | BC14: 47 | BD14: 48 | BE14: 49 | BF14: 50 | BG14: 51 | BH14: 52 | BI14: 53 | BJ14: 54 | BK14: 55 | BL14: 56 | BM14: 57 | BN14: 58 | BO14: 59 | BP14: 60 | BQ14: 61 | BR14: 62 | BS14: 63 | BT14: 64 | BU14: 65 | BV14: 66 | BW14: 67 | BX14: 68 | BY14: 69 | BZ14: 70 | CA14: 71 | CB14: 72 | CC14: 73 | CD14: 74 | CE14: 75 | CF14: 76 | CG14: 77 | CH14: 78 | CI14: 79 | CJ14: 80 | CK14: 81 | CL14: 82 | CM14: 83 | CN14: 84 | CO14: 85 | CP14: 86 | CQ14: 87 | CR14: 88 | CS14: 89 | CT14: 90 | CU14: 91 | CV14: 92 | CW14: 93 | CX14: 94 | CY14: 95 | CZ14: 96 | DA14: 97 | DB14: 98 | DC14: 99 | DD14: 100 | DE14: 101 | DF14: 102 | DG14: 103 | DH14: 104 | DI14: 105 | DJ14: 106 | DK14: 107 | DL14: 108 | DM14: 109 | DN14: 110 | DO14: 111 | DP14: 112 | DQ14: 113 | DR14: 114 | DS14: 115 | DT14: 116 | DU14: 117 | DV14: 118 | DW14: 119 | DX14: 120 | DY14: 121 | DZ14: 122 | EA14: 123 | EB14: 124 | EC14: 125 | ED14: 126 | EE14: 127 | EF14: 128 | EG14: 129 | EH14: 130 | EI14: 131 | EJ14: 132 | EK14: 133 | EL14: 134 | EM14: 135 | EN14: 135 | EO14: 135 | EP14: 135 | EQ14: 135 | ER14: 135 | ES14: 135 | ET14: 135 | EU14: 135 | EV14: 135 | EW14: 135 | EX14: 135 | EY14: 135 | EZ14: 135 | FA14: 135 | FB14: 135 | FC14: 135 | FD14: 135 | FE14: 135 | FF14: 135 | FG14: 135 | FH14: 135 | FI14: 135 | FJ14: 135 | FK14: 135 | FL14: 135 | FM14: 135 | FN14: 135 | FO14: 135 | FP14: 135 | FQ14: 135 | FR14: 135 | FS14: 135 | FT14: 135 | FU14: 135 | FV14: 135 | FW14: 135 | FX14: 135 | FY14: 135 | FZ14: 135 | GA14: 135 | GB14: 135 | GC14: 135 | GD14: 135 | GE14: 135 | GF14: 135 | GG14: 135 | GH14: 135 | GI14: 135 | GJ14: 135 | GK14: 135 | GL14: 135 | GM14: 135 | GN14: 135 | GO14: 135 | GP14: 135 | GQ14: 135 | GR14: 135 | GS14: 135 | GT14: 135 | GU14: 135 | GV14: 135 | GW14: 135 | GX14: 135 | GY14: 135 | GZ14: 135 | HA14: 135 | HB14: 135 | HC14: 135 | HD14: 135 | HE14: 135 | HF14: 135 | HG14: 135 | HH14: 135 | HI14: 135 | HJ14: 135 | HK14: 135 | HL14: 135 | HM14: 135 | HN14: 135 | HO14: 135 | HP14: 135 | HQ14: 135 | HR14: 135 | HS14: 135 | HT14: 135 | HU14: 135 | HV14: 135 | HW14: 135 | HX14: 135 | HY14: 135 | HZ14: 135 | IA14: 135 | IB14: 135 | IC14: 135 | ID14: 135 | IE14: 135 | IF14: 135 | IG14: 135 | IH14: 135 | II14: 135 | IJ14: 135 | IK14: 135 | IL14: 135 | IM14: 135 | IN14: 135 | IO14: 135 | IP14: 135 | IQ14: 135 | IR14: 135 | IS14: 135 | IT14: 135 | IU14: 135 | IV14: 135 | IW14: 135 | IX14: 135 | IY14: 135 | IZ14: 135 | JA14: 135 | JB14: 135 | JC14: 135 | JD14: 135 | JE14: 135 | JF14: 135 | JG14: 135 | JH14: 135 | JI14: 135 | JJ14: 135 | JK14: 135 | JL14: 135 | JM14: 135 | JN14: 135 | JO14: 135 | JP14: 135 | JQ14: 135 | JR14: 135 | JS14: 135 | JT14: 135 | JU14: 135 | JV14: 135 | JW14: 135 | JX14: 135 | JY14: 135 | JZ14: 135 | KA14: 135 | KB14: 135 | KC14: 135 | KD14: 135 | KE14: 135 | KF14: 135 | KG14: 135 | KH14: 135 | KI14: 135 | KJ14: 135 | KK14: 135 | KL14: 135 | KM14: 135 | KN14: 135 | KO14: 135 | KP14: 135 | KQ14: 135 | KR14: 135 | KS14: 135 | KT14: 135 | KU14: 135 | KV14: 135 | KW14: 135 | KX14: 135 | KY14: 135 | KZ14: 135 | LA14: 135 | LB14: 135 | LC14: 135 | LD14: 135 | LE14: 135 | LF14: 135 | LG14: 135 | LH14: 135 | LI14: 135 | LJ14: 135 | LK14: 135 | LL14: 135 | LM14: 135 | LN14: 135 | LO14: 135 | LP14: 135 | LQ14: 135 | LR14: 135 | LS14: 135 | LT14: 135 | LU14: 135 | LV14: 135 | LW14: 135 | LX14: 135 | LY14: 135 | LZ14: 135 | MA14: 135 | MB14: 135 | MC14: 135 | MD14: 135 | ME14: 135 | MF14: 135 | MG14: 135 | MH14: 135 | MI14: 135 | MJ14: 135 | MK14: 135 | ML14: 135 | MM14: 135 | MN14: 135 | MO14: 135 | MP14: 135 | MQ14: 135 | MR14: 135 | MS14: 135
H15: =F48 -> 0.6432418146
D16: Simple Implied k
G18: x | I18: =I15 -> 0 | J18: =J15 -> 0 | K18: 0 | L18: 0 | M18: 0 | N18: 0 | O18: 0 | P18: 0 | Q18: 0 | R18: 0 | S18: 0 | T18: 0 | U18: 0 | V18: 0 | W18: 0 | X18: 0 | Y18: 0 | Z18: 0 | AA18: 0 | AB18: 0 | AC18: 0
H19: ROE | I19: =I6 -> 0.12 | J19: =J6 -> 0.11 | K19: 0.15 | L19: 0.15 | M19: 0.11 | N19: 0.2 | O19: 0.11 | P19: 0.1012660162 | Q19: 0.1110745209 | R19: 0.1278908867 | S19: 0.1087500748 | T19: 0.1481207324 | U19: 0.09111639484 | V19: 0.1011275254 | W19: 0.09887601822 | X19: 0.1573704707 | Y19: 0.1293674469 | Z19: 0.114917945 | AA19: 0.1062266018 | AB19: 0.1173601195 | AC19: 0.1397005003
H20: Growth | I20: =I10 -> 0.02 | J20: =J10 -> 0.02 | K20: 0.02 | L20: 0.02 | M20: 0.02 | N20: 0.02 | O20: 0.02 | P20: 0.02 | Q20: 0.02 | R20: 0.02 | S20: 0.02 | T20: 0.02 | U20: 0.02 | V20: 0.02 | W20: 0.02 | X20: 0.02 | Y20: 0.02 | Z20: 0.02 | AA20: 0.02 | AB20: 0.02 | AC20: 0.02
H21: ROE * G | I21: =I19*I20 -> 0.0024 | J21: =J19*J20 -> 0.0022 | K21: 0.003 | L21: 0.003 | M21: 0.0022 | N21: 0.004 | O21: 0.0022 | P21: 0.002025320325 | Q21: 0.002221490417 | R21: 0.002557817735 | S21: 0.002175001497 | T21: 0.002962414647 | U21: 0.001822327897 | V21: 0.002022550508 | W21: 0.001977520364 | X21: 0.003147409413 | Y21: 0.002587348939 | Z21: 0.0022983589 | AA21: 0.002124532036 | AB21: 0.002347202391 | AC21: 0.002794010007
D24: ROE Table | F24: 1 | G24: 5 | H24: 15
D25: ROE | F25: =F6 -> 0.1173601195 | G25: =F25 -> 0.1173601195 | H25: =F10 -> 0.02
D26: Growth | F26: =F10 -> 0.02 | G26: =F26 -> 0.02 | H26: =F10 -> 0.02
D30: Time Period | G30: 1 | H30: 2 | I30: 3 | J30: 4 | K30: 5 | L30: 6 | M30: 7 | N30: 8 | O30: 9 | P30: 10 | Q30: 11 | R30: 12 | S30: 13 | T30: 14 | U30: 15
D31: Short-term | E31: =F11 -> 6.346870114 | G31: =G30<=$E$31 -> TRUE | H31: =H30<=$E$31 -> TRUE | I31: TRUE | J31: TRUE | K31: TRUE | L31: TRUE | M31: FALSE | N31: FALSE | O31: FALSE | P31: FALSE | Q31: FALSE | R31: FALSE | S31: FALSE | T31: FALSE | U31: FALSE
D32: Terminal Period | E32: =F12 -> 15 | G32: =G30=$E$32 -> FALSE | H32: =H30=$E$32 -> FALSE | I32: FALSE | J32: FALSE | K32: FALSE | L32: FALSE | M32: FALSE | N32: FALSE | O32: FALSE | P32: FALSE | Q32: FALSE | R32: FALSE | S32: FALSE | T32: FALSE | U32: TRUE
D34: ROE | G34: =interpolate_look_up(G30,24:24,25:25) -> 0.1173601195 | H34: =interpolate_look_up(H30,24:24,25:25) -> 0.1173601195 | I34: =interpolate_look_up(I30,24:24,25:25) -> 0.1173601195 | J34: =interpolate_look_up(J30,24:24,25:25) -> 0.1173601195 | K34: =interpolate_look_up(K30,24:24,25:25) -> 0.1173601195 | L34: =interpolate_look_up(L30,24:24,25:25) -> 0.09832670558 | M34: =interpolate_look_up(M30,24:24,25:25) -> 0.08238012255 | N34: =interpolate_look_up(N30,24:24,25:25) -> 0.06901974953 | O34: =interpolate_look_up(O30,24:24,25:25) -> 0.05782615609 | P34: =interpolate_look_up(P30,24:24,25:25) -> 0.04844793484 | Q34: =interpolate_look_up(Q30,24:24,25:25) -> 0.04059066951 | R34: =interpolate_look_up(R30,24:24,25:25) -> 0.0340076921 | S34: =interpolate_look_up(S30,24:24,25:25) -> 0.02849233915 | T34: =interpolate_look_up(T30,24:24,25:25) -> 0.02387146378 | U34: =interpolate_look_up(U30,24:24,25:25) -> 0.02
D35: Growth | G35: =interpolate_look_up(G30,24:24,26:26) -> 0.02 | H35: =interpolate_look_up(H30,24:24,26:26) -> 0.02 | I35: =interpolate_look_up(I30,24:24,26:26) -> 0.02 | J35: =interpolate_look_up(J30,24:24,26:26) -> 0.02 | K35: =interpolate_look_up(K30,24:24,26:26) -> 0.02 | L35: =interpolate_look_up(L30,24:24,26:26) -> 0.02 | M35: =interpolate_look_up(M30,24:24,26:26) -> 0.02 | N35: =interpolate_look_up(N30,24:24,26:26) -> 0.02 | O35: =interpolate_look_up(O30,24:24,26:26) -> 0.02 | P35: =interpolate_look_up(P30,24:24,26:26) -> 0.02 | Q35: =interpolate_look_up(Q30,24:24,26:26) -> 0.02 | R35: =interpolate_look_up(R30,24:24,26:26) -> 0.02 | S35: =interpolate_look_up(S30,24:24,26:26) -> 0.02 | T35: =interpolate_look_up(T30,24:24,26:26) -> 0.02 | U35: =interpolate_look_up(U30,24:24,26:26) -> 0.02
D36: Payout Ratio | G36: =(1-G35/G34) -> 0.829584359 | H36: =(1-H35/H34) -> 0.829584359 | I36: 0.829584359 | J36: 0.829584359 | K36: 0.829584359 | L36: 0.7965964599 | M36: 0.757222988 | N36: 0.7102278676 | O36: 0.6541357518 | P36: 0.5871857064 | Q36: 0.5072759271 | R36: 0.4118977571 | S36: 0.2980569305 | T36: 0.162179572 | U36: 0
D38: BV Progression
D39: Opening | G39: =F42 -> 100 | H39: =G42 -> 102 | I39: 104.04 | J39: 106.1208 | K39: 108.243216 | L39: 110.4080803 | M39: 112.6162419 | N39: 114.8685668 | O39: 117.1659381 | P39: 119.5092569 | Q39: 121.899442 | R39: 124.3374308 | S39: 126.8241795 | T39: 129.360663 | U39: 131.9478763
D40: Add: Income | G40: =G39*G34 -> 11.73601195 | H40: =H39*H34 -> 11.97073219 | I40: 12.21014684 | J40: 12.45434977 | K40: 12.70343677 | L40: 10.85606281 | M40: 9.277339811 | N40: 7.928199707 | O40: 6.775255825 | P40: 5.78997669 | Q40: 4.947979963 | R40: 4.228429064 | S40: 3.613517533 | T40: 3.088028382 | U40: 2.638957526
D41: Less: Dividend | G41: =G40*G36 -> 9.736011953 | H41: =H40*H36 -> 9.930732192 | I41: 10.12934684 | J41: 10.33193377 | K41: 10.53857245 | L41: 8.6479012 | M41: 7.025014972 | N41: 5.630828372 | O41: 4.431937063 | P41: 3.399791552 | Q41: 2.509991123 | R41: 1.741680447 | S41: 1.077033944 | T41: 0.5008151214 | U41: 0
D42: Closing Balance | F42: =F5 -> 100 | G42: =G39+G40-G41 -> 102 | H42: =H39+H40-H41 -> 104.04 | I42: 106.1208 | J42: 108.243216 | K42: 110.4080803 | L42: 112.6162419 | M42: 114.8685668 | N42: 117.1659381 | O42: 119.5092569 | P42: 121.899442 | Q42: 124.3374308 | R42: 126.8241795 | S42: 129.360663 | T42: 131.9478763 | U42: 134.5868338
D44: Terminal Value | E44: =(1+F10)*(1-F10/H25)/(F8-H26) -> 0 | G44: =G40*$E$44*G32 -> 0 | H44: =H40*$E$44*H32 -> 0 | I44: 0 | J44: 0 | K44: 0 | L44: 0 | M44: 0 | N44: 0 | O44: 0 | P44: 0 | Q44: 0 | R44: 0 | S44: 0 | T44: 0 | U44: 0
D46: Total Cash Flow | G46: =G44+G41 -> 9.736011953 | H46: =H44+H41 -> 9.930732192 | I46: 10.12934684 | J46: 10.33193377 | K46: 10.53857245 | L46: 8.6479012 | M46: 7.025014972 | N46: 5.630828372 | O46: 4.431937063 | P46: 3.399791552 | Q46: 2.509991123 | R46: 1.741680447 | S46: 1.077033944 | T46: 0.5008151214 | U46: 0
D47: Total Value | E47: =F8 -> 0.06 | F47: =NPV(E47,G46:U46) -> 64.32418146
D48: Price to Book | F48: =F47/F42 -> 0.6432418146
D49: P/E Ratio | F49: =F47/G40 -> 5.480923309
D51: Cash Flow | G51: =G41+G44 -> 9.736011953 | H51: =H41+H44 -> 9.930732192 | I51: 10.12934684 | J51: 10.33193377 | K51: 10.53857245 | L51: 8.6479012 | M51: 7.025014972 | N51: 5.630828372 | O51: 4.431937063 | P51: 3.399791552 | Q51: 2.509991123 | R51: 1.741680447 | S51: 1.077033944 | T51: 0.5008151214 | U51: 0
D52: PV of Cash Flow | G52: =G51/(1+$E$47)^G30 -> 9.184916937 | H52: =H51/(1+$E$47)^H30 -> 8.838316298 | I52: 8.504794928 | J52: 8.183859271 | K52: 7.875034392 | L52: 6.096429104 | M52: 4.672036181 | N52: 3.532851381 | O52: 2.623256738 | P52: 1.898425846 | Q52: 1.322232013 | R52: 0.8655618235 | S52: 0.5049555413 | T52: 0.2215110112 | U52: 0
D53: Weighting | G53: =G52/SUM(52:52) -> 0.1427910426 | H53: =H52/SUM(52:52) -> 0.1374027014 | I53: 0.1322176938 | J53: 0.1272283469 | K53: 0.1224272772 | L53: 0.09477662933 | M53: 0.07263265656 | N53: 0.05492260144 | O53: 0.04078181297 | P53: 0.02951340852 | Q53: 0.02055575341 | R53: 0.01345624311 | S53: 0.007850166606 | T53: 0.003443666225 | U53: 0
D54: Weighted ROE | E54: =SUMPRODUCT(G53:U53,G34:U34) -> 0.1021795563

Sheet Simulation
D2: Code | E2: 10 | I2: V = ROE x BV * (1-g/ROE)/(k-g) | M2: P/B = (ROE-g)/(k-g) | O2: k=(ROE-g)/PB + g | Q2: k = ROE/PB-g/PB + g
B4: Simulation Inputs
F6: Applied | G6: Vol | H6: Max | I6: 1 | J6: 2 | K6: 3 | L6: 4 | M6: 5 | N6: 6 | O6: 7 | P6: 8 | Q6: 9 | R6: 10 | S6: 11 | T6: 12 | U6: 13 | V6: 14 | W6: 15 | X6: 16 | Y6: 17 | Z6: 18 | AA6: 19 | AB6: 20 | AC6: 21 | AD6: 22 | AE6: 23 | AF6: 24 | AG6: 25 | AH6: 26 | AI6: 27 | AJ6: 28 | AK6: 29 | AL6: 30 | AM6: 31 | AN6: 32 | AO6: 33 | AP6: 34 | AQ6: 35 | AR6: 36 | AS6: 37 | AT6: 38 | AU6: 39 | AV6: 40 | AW6: 41 | AX6: 42 | AY6: 43 | AZ6: 44 | BA6: 45 | BB6: 46 | BC6: 47 | BD6: 48 | BE6: 49 | BF6: 50 | BG6: 51 | BH6: 52 | BI6: 53 | BJ6: 54 | BK6: 55 | BL6: 56 | BM6: 57 | BN6: 58 | BO6: 59 | BP6: 60 | BQ6: 61 | BR6: 62 | BS6: 63 | BT6: 64 | BU6: 65 | BV6: 66 | BW6: 67 | BX6: 68 | BY6: 69 | BZ6: 70 | CA6: 71 | CB6: 72 | CC6: 73 | CD6: 74 | CE6: 75 | CF6: 76 | CG6: 77 | CH6: 78 | CI6: 79 | CJ6: 80 | CK6: 81 | CL6: 82 | CM6: 83 | CN6: 84 | CO6: 85 | CP6: 86 | CQ6: 87 | CR6: 88 | CS6: 89 | CT6: 90 | CU6: 91 | CV6: 92 | CW6: 93 | CX6: 94 | CY6: 95 | CZ6: 96 | DA6: 97 | DB6: 98 | DC6: 99 | DD6: 100 | DE6: 101 | DF6: 102 | DG6: 103 | DH6: 104 | DI6: 105 | DJ6: 106 | DK6: 107 | DL6: 108 | DM6: 109 | DN6: 110 | DO6: 111 | DP6: 112 | DQ6: 113 | DR6: 114 | DS6: 115 | DT6: 116 | DU6: 117 | DV6: 118 | DW6: 119 | DX6: 120 | DY6: 121 | DZ6: 122 | EA6: 123 | EB6: 124 | EC6: 125 | ED6: 126 | EE6: 127 | EF6: 128 | EG6: 129 | EH6: 130 | EI6: 131 | EJ6: 132 | EK6: 133 | EL6: 134 | EM6: 135 | EN6: 136 | EO6: 137 | EP6: 138 | EQ6: 139 | ER6: 140 | ES6: 141 | ET6: 142 | EU6: 143 | EV6: 144 | EW6: 145 | EX6: 146 | EY6: 147 | EZ6: 148 | FA6: 149 | FB6: 150 | FC6: 151 | FD6: 152 | FE6: 153 | FF6: 154 | FG6: 155 | FH6: 156 | FI6: 157 | FJ6: 158 | FK6: 159 | FL6: 160 | FM6: 161 | FN6: 162 | FO6: 163 | FP6: 164 | FQ6: 165 | FR6: 166 | FS6: 167 | FT6: 168 | FU6: 169 | FV6: 170 | FW6: 171 | FX6: 172 | FY6: 173 | FZ6: 174 | GA6: 175 | GB6: 176 | GC6: 177 | GD6: 178 | GE6: 179 | GF6: 180 | GG6: 181 | GH6: 182 | GI6: 183 | GJ6: 184 | GK6: 185 | GL6: 186 | GM6: 187 | GN6: 188 | GO6: 189 | GP6: 190 | GQ6: 191 | GR6: 192 | GS6: 193 | GT6: 194 | GU6: 195 | GV6: 196 | GW6: 197 | GX6: 198 | GY6: 199 | GZ6: 200 | HA6: 201 | HB6: 202 | HC6: 203 | HD6: 204 | HE6: 205 | HF6: 206 | HG6: 207 | HH6: 208 | HI6: 209 | HJ6: 210 | HK6: 211 | HL6: 212 | HM6: 213 | HN6: 214 | HO6: 215 | HP6: 216 | HQ6: 217 | HR6: 218 | HS6: 219 | HT6: 220 | HU6: 221 | HV6: 222 | HW6: 223 | HX6: 224 | HY6: 225 | HZ6: 226 | IA6: 227 | IB6: 228 | IC6: 229 | ID6: 230 | IE6: 231 | IF6: 232 | IG6: 233 | IH6: 234 | II6: 235 | IJ6: 236 | IK6: 237 | IL6: 238 | IM6: 239 | IN6: 240 | IO6: 241 | IP6: 242 | IQ6: 243 | IR6: 244 | IS6: 245 | IT6: 246 | IU6: 247 | IV6: 248 | IW6: 249 | IX6: 250 | IY6: 251 | IZ6: 252 | JA6: 253 | JB6: 254 | JC6: 255 | JD6: 256 | JE6: 257 | JF6: 258 | JG6: 259 | JH6: 260 | JI6: 261 | JJ6: 262 | JK6: 263 | JL6: 264 | JM6: 265 | JN6: 266 | JO6: 267 | JP6: 268 | JQ6: 269 | JR6: 270 | JS6: 271 | JT6: 272 | JU6: 273 | JV6: 274 | JW6: 275 | JX6: 276 | JY6: 277 | JZ6: 278 | KA6: 279 | KB6: 280 | KC6: 281 | KD6: 282 | KE6: 283 | KF6: 284 | KG6: 285 | KH6: 286 | KI6: 287 | KJ6: 288 | KK6: 289 | KL6: 290 | KM6: 291 | KN6: 292 | KO6: 293 | KP6: 294 | KQ6: 295 | KR6: 296 | KS6: 297 | KT6: 298 | KU6: 299 | KV6: 300 | KW6: 301 | KX6: 302 | KY6: 303 | KZ6: 304 | LA6: 305 | LB6: 306 | LC6: 307 | LD6: 308 | LE6: 309 | LF6: 310 | LG6: 311 | LH6: 312 | LI6: 313 | LJ6: 314 | LK6: 315 | LL6: 316 | LM6: 317 | LN6: 318 | LO6: 319 | LP6: 320 | LQ6: 321 | LR6: 322 | LS6: 323 | LT6: 324 | LU6: 325 | LV6: 326 | LW6: 327 | LX6: 328 | LY6: 329 | LZ6: 330 | MA6: 331 | MB6: 332 | MC6: 333 | MD6: 334 | ME6: 335 | MF6: 336 | MG6: 337 | MH6: 338 | MI6: 339 | MJ6: 340 | MK6: 341 | ML6: 342 | MM6: 343 | MN6: 344 | MO6: 345 | MP6: 346 | MQ6: 347 | MR6: 348 | MS6: 349
D7: Book Value | E7: USD/Share | F7: =INDEX(I7:MS7,$E$2) -> 100 | I7: 100 | J7: 100 | K7: 100 | L7: 100 | M7: 100 | N7: 100 | O7: 100 | P7: 100 | Q7: 100 | R7: 100 | S7: 100 | T7: 100 | U7: 100 | V7: 100 | W7: 100 | X7: 100 | Y7: 100 | Z7: 100 | AA7: 100 | AB7: 100 | AC7: 100 | AD7: 100 | AE7: 100 | AF7: 100 | AG7: 100 | AH7: 100 | AI7: 100 | AJ7: 100 | AK7: 100 | AL7: 100 | AM7: 100 | AN7: 100 | AO7: 100 | AP7: 100 | AQ7: 100 | AR7: 100 | AS7: 100 | AT7: 100 | AU7: 100 | AV7: 100 | AW7: 100 | AX7: 100 | AY7: 100 | AZ7: 100 | BA7: 100 | BB7: 100 | BC7: 100 | BD7: 100 | BE7: 100 | BF7: 100 | BG7: 100 | BH7: 100 | BI7: 100 | BJ7: 100 | BK7: 100 | BL7: 100 | BM7: 100 | BN7: 100 | BO7: 100 | BP7: 100 | BQ7: 100 | BR7: 100 | BS7: 100 | BT7: 100 | BU7: 100 | BV7: 100 | BW7: 100 | BX7: 100 | BY7: 100 | BZ7: 100 | CA7: 100 | CB7: 100 | CC7: 100 | CD7: 100 | CE7: 100 | CF7: 100 | CG7: 100 | CH7: 100 | CI7: 100 | CJ7: 100 | CK7: 100 | CL7: 100 | CM7: 100 | CN7: 100 | CO7: 100 | CP7: 100 | CQ7: 100 | CR7: 100 | CS7: 100 | CT7: 100 | CU7: 100 | CV7: 100 | CW7: 100 | CX7: 100 | CY7: 100 | CZ7: 100 | DA7: 100 | DB7: 100 | DC7: 100 | DD7: 100 | DE7: 100 | DF7: 100 | DG7: 100 | DH7: 100 | DI7: 100 | DJ7: 100 | DK7: 100 | DL7: 100 | DM7: 100 | DN7: 100 | DO7: 100 | DP7: 100 | DQ7: 100 | DR7: 100 | DS7: 100 | DT7: 100 | DU7: 100 | DV7: 100 | DW7: 100 | DX7: 100 | DY7: 100 | DZ7: 100 | EA7: 100 | EB7: 100 | EC7: 100 | ED7: 100 | EE7: 100 | EF7: 100 | EG7: 100 | EH7: 100 | EI7: 100 | EJ7: 100 | EK7: 100 | EL7: 100 | EM7: 100 | EN7: 100 | EO7: 100 | EP7: 100 | EQ7: 100 | ER7: 100 | ES7: 100 | ET7: 100 | EU7: 100 | EV7: 100 | EW7: 100 | EX7: 100 | EY7: 100 | EZ7: 100 | FA7: 100 | FB7: 100 | FC7: 100 | FD7: 100 | FE7: 100 | FF7: 100 | FG7: 100 | FH7: 100 | FI7: 100 | FJ7: 100 | FK7: 100 | FL7: 100 | FM7: 100 | FN7: 100 | FO7: 100 | FP7: 100 | FQ7: 100 | FR7: 100 | FS7: 100 | FT7: 100 | FU7: 100 | FV7: 100 | FW7: 100 | FX7: 100 | FY7: 100 | FZ7: 100 | GA7: 100 | GB7: 100 | GC7: 100 | GD7: 100 | GE7: 100 | GF7: 100 | GG7: 100 | GH7: 100 | GI7: 100 | GJ7: 100 | GK7: 100 | GL7: 100 | GM7: 100 | GN7: 100 | GO7: 100 | GP7: 100 | GQ7: 100 | GR7: 100 | GS7: 100 | GT7: 100 | GU7: 100 | GV7: 100 | GW7: 100 | GX7: 100 | GY7: 100 | GZ7: 100 | HA7: 100 | HB7: 100 | HC7: 100 | HD7: 100 | HE7: 100 | HF7: 100 | HG7: 100 | HH7: 100 | HI7: 100 | HJ7: 100 | HK7: 100 | HL7: 100 | HM7: 100 | HN7: 100 | HO7: 100 | HP7: 100 | HQ7: 100 | HR7: 100 | HS7: 100 | HT7: 100 | HU7: 100 | HV7: 100 | HW7: 100 | HX7: 100 | HY7: 100 | HZ7: 100 | IA7: 100 | IB7: 100 | IC7: 100 | ID7: 100 | IE7: 100 | IF7: 100 | IG7: 100 | IH7: 100 | II7: 100 | IJ7: 100 | IK7: 100 | IL7: 100 | IM7: 100 | IN7: 100 | IO7: 100 | IP7: 100 | IQ7: 100 | IR7: 100 | IS7: 100 | IT7: 100 | IU7: 100 | IV7: 100 | IW7: 100 | IX7: 100 | IY7: 100 | IZ7: 100 | JA7: 100 | JB7: 100 | JC7: 100 | JD7: 100 | JE7: 100 | JF7: 100 | JG7: 100 | JH7: 100 | JI7: 100 | JJ7: 100 | JK7: 100 | JL7: 100 | JM7: 100 | JN7: 100 | JO7: 100 | JP7: 100 | JQ7: 100 | JR7: 100 | JS7: 100 | JT7: 100 | JU7: 100 | JV7: 100 | JW7: 100 | JX7: 100 | JY7: 100 | JZ7: 100 | KA7: 100 | KB7: 100 | KC7: 100 | KD7: 100 | KE7: 100 | KF7: 100 | KG7: 100 | KH7: 100 | KI7: 100 | KJ7: 100 | KK7: 100 | KL7: 100 | KM7: 100 | KN7: 100 | KO7: 100 | KP7: 100 | KQ7: 100 | KR7: 100 | KS7: 100 | KT7: 100 | KU7: 100 | KV7: 100 | KW7: 100 | KX7: 100 | KY7: 100 | KZ7: 100 | LA7: 100 | LB7: 100 | LC7: 100 | LD7: 100 | LE7: 100 | LF7: 100 | LG7: 100 | LH7: 100 | LI7: 100 | LJ7: 100 | LK7: 100 | LL7: 100 | LM7: 100 | LN7: 100 | LO7: 100 | LP7: 100 | LQ7: 100 | LR7: 100 | LS7: 100 | LT7: 100 | LU7: 100 | LV7: 100 | LW7: 100 | LX7: 100 | LY7: 100 | LZ7: 100 | MA7: 100 | MB7: 100 | MC7: 100 | MD7: 100 | ME7: 100 | MF7: 100 | MG7: 100 | MH7: 100 | MI7: 100 | MJ7: 100 | MK7: 100 | ML7: 100 | MM7: 100 | MN7: 100 | MO7: 100 | MP7: 100 | MQ7: 100 | MR7: 100 | MS7: 100
D8: ROE Short-term | E8: % | F8: =INDEX(I8:MS8,$E$2) -> 0.1325159363 | G8: 0.03 | I8: 0.08280010631 | J8: 0.1204084399 | K8: 0.1229442529 | L8: 0.1310653253 | M8: 0.1383810536 | N8: 0.1065550152 | O8: 0.1126356993 | P8: 0.1052197139 | Q8: 0.1184467746 | R8: 0.1325159363 | S8: 0.1248344521 | T8: 0.1289921174 | U8: 0.129408113 | V8: 0.1050334702 | W8: 0.1410489187 | X8: 0.1202584479 | Y8: 0.1331938953 | Z8: 0.08165718064 | AA8: 0.1213516217 | AB8: 0.1128853218 | AC8: 0.1355389288 | AD8: 0.1325335388 | AE8: 0.1353588179 | AF8: 0.1314567489 | AG8: 0.1166604003 | AH8: 0.108665363 | AI8: 0.1012163634 | AJ8: 0.1356421245 | AK8: 0.09478034934 | AL8: 0.1102172615 | AM8: 0.115521967 | AN8: 0.1011197194 | AO8: 0.1344811659 | AP8: 0.09612550563 | AQ8: 0.1282819791 | AR8: 0.1179131973 | AS8: 0.09123100355 | AT8: 0.1184430067 | AU8: 0.1268530278 | AV8: 0.127395033 | AW8: 0.1210127258 | AX8: 0.1348801427 | AY8: 0.1678368504 | AZ8: 0.1271615298 | BA8: 0.1561984992 | BB8: 0.09893171205 | BC8: 0.1025132425 | BD8: 0.1281170908 | BE8: 0.09258108595 | BF8: 0.08671358414 | BG8: 0.1103409396 | BH8: 0.1037326875 | BI8: 0.1461082101 | BJ8: 0.1178841149 | BK8: 0.1123282842 | BL8: 0.1267257352 | BM8: 0.1350880733 | BN8: 0.1225357173 | BO8: 0.1248318827 | BP8: 0.0997498963 | BQ8: 0.1357012269 | BR8: 0.1256050227 | BS8: 0.09822618475 | BT8: 0.1077965475 | BU8: 0.1214494915 | BV8: 0.1233134658 | BW8: 0.1482586198 | BX8: 0.1248666054 | BY8: 0.1284967176 | BZ8: 0.07814571672 | CA8: 0.1272171458 | CB8: 0.1256871223 | CC8: 0.1559579328 | CD8: 0.1481600097 | CE8: 0.1210282396 | CF8: 0.1050551568 | CG8: 0.1116686235 | CH8: 0.1121162889 | CI8: 0.1026651691 | CJ8: 0.1207373767 | CK8: 0.1258586995 | CL8: 0.1523305703 | CM8: 0.1296246665 | CN8: 0.1241851068 | CO8: 0.1179699284 | CP8: 0.120226079 | CQ8: 0.1424784347 | CR8: 0.1464314258 | CS8: 0.1252070106 | CT8: 0.09507171481 | CU8: 0.1192386326 | CV8: 0.1304228911 | CW8: 0.1118260797 | CX8: 0.1176333676 | CY8: 0.1099590055 | CZ8: 0.1574112628 | DA8: 0.1277399696 | DB8: 0.1222397076 | DC8: 0.1168067415 | DD8: 0.1582548213 | DE8: 0.07104667801 | DF8: 0.08508829854 | DG8: 0.06709885678 | DH8: 0.1245736548 | DI8: 0.1202124641 | DJ8: 0.1164120619 | DK8: 0.1074366955 | DL8: 0.1440875836 | DM8: 0.1185399566 | DN8: 0.111196091 | DO8: 0.1432143886 | DP8: 0.08565443272 | DQ8: 0.1173751796 | DR8: 0.1218443331 | DS8: 0.1026199339 | DT8: 0.1181096008 | DU8: 0.1504243779 | DV8: 0.1553675001 | DW8: 0.1181250856 | DX8: 0.154533173 | DY8: 0.1125336498 | DZ8: 0.1445080156 | EA8: 0.143652342 | EB8: 0.1389572866 | EC8: 0.1136825088 | ED8: 0.1145554291 | EE8: 0.1402908838 | EF8: 0.1142581505 | EG8: 0.1462796077 | EH8: 0.1581138558 | EI8: 0.06641771005 | EJ8: 0.1517577212 | EK8: 0.1036353091 | EL8: 0.1467053874 | EM8: 0.135140818 | EN8: 0.1206928503 | EO8: 0.09410148478 | EP8: 0.1130273951 | EQ8: 0.1046154554 | ER8: 0.1342563752 | ES8: 0.1007385744 | ET8: 0.1208676259 | EU8: 0.1418924411 | EV8: 0.1219409062 | EW8: 0.1233372354 | EX8: 0.1185898095 | EY8: 0.1290050009 | EZ8: 0.1201313559 | FA8: 0.1541756 | FB8: 0.1522516778 | FC8: 0.1121926261 | FD8: 0.1231779529 | FE8: 0.1286729919 | FF8: 0.1189518548 | FG8: 0.1191562086 | FH8: 0.0856943373 | FI8: 0.1187072064 | FJ8: 0.1018684335 | FK8: 0.08898652828 | FL8: 0.09547356014 | FM8: 0.1166037328 | FN8: 0.1193443639 | FO8: 0.07742340265 | FP8: 0.1086753186 | FQ8: 0.1182046379 | FR8: 0.1050989625 | FS8: 0.105638903 | FT8: 0.1311564449 | FU8: 0.1476147982 | FV8: 0.09859200012 | FW8: 0.1358463562 | FX8: 0.09978829773 | FY8: 0.1279534431 | FZ8: 0.1262206066 | GA8: 0.09813480932 | GB8: 0.1207266562 | GC8: 0.1152496717 | GD8: 0.08623924335 | GE8: 0.09698191343 | GF8: 0.1011487982 | GG8: 0.1057823253 | GH8: 0.1333836157 | GI8: 0.09007511496 | GJ8: 0.1260388714 | GK8: 0.1464423218 | GL8: 0.1591613527 | GM8: 0.1177145027 | GN8: 0.1060039925 | GO8: 0.1457228739 | GP8: 0.1416296394 | GQ8: 0.1242591888 | GR8: 0.1235729236 | GS8: 0.08258773309 | GT8: 0.1479508475 | GU8: 0.1132777474 | GV8: 0.08105555055 | GW8: 0.09961936534 | GX8: 0.1219803174 | GY8: 0.1187439253 | GZ8: 0.1279076681 | HA8: 0.1499271202 | HB8: 0.1144494075 | HC8: 0.1376712981 | HD8: 0.114654173 | HE8: 0.1247218542 | HF8: 0.1309310701 | HG8: 0.0965173598 | HH8: 0.1283239942 | HI8: 0.1155849723 | HJ8: 0.1168569173 | HK8: 0.1476868418 | HL8: 0.1449730015 | HM8: 0.1157955346 | HN8: 0.117156677 | HO8: 0.123794694 | HP8: 0.1228970782 | HQ8: 0.1515451322 | HR8: 0.1082877851 | HS8: 0.1294305878 | HT8: 0.1461020081 | HU8: 0.08898985818 | HV8: 0.1065707672 | HW8: 0.1484543362 | HX8: 0.09101063494 | HY8: 0.1142112638 | HZ8: 0.09976141515 | IA8: 0.09290119559 | IB8: 0.1452576212 | IC8: 0.1030139431 | ID8: 0.1213346999 | IE8: 0.1053728859 | IF8: 0.08449259973 | IG8: 0.1256350675 | IH8: 0.09108454036 | II8: 0.07661315312 | IJ8: 0.1760679634 | IK8: 0.1196264676 | IL8: 0.1240874365 | IM8: 0.1211948632 | IN8: 0.1275651065 | IO8: 0.1202025966 | IP8: 0.1114204729 | IQ8: 0.09233418869 | IR8: 0.123734797 | IS8: 0.1251195459 | IT8: 0.1204771787 | IU8: 0.1142041953 | IV8: 0.1151185633 | IW8: 0.09544795153 | IX8: 0.1222823056 | IY8: 0.1279196704 | IZ8: 0.1351916935 | JA8: 0.1237264447 | JB8: 0.1428319741 | JC8: 0.1219347692 | JD8: 0.0777639182 | JE8: 0.1163687608 | JF8: 0.09542381816 | JG8: 0.1339614198 | JH8: 0.1383269222 | JI8: 0.1293368186 | JJ8: 0.1336836261 | JK8: 0.05927026822 | JL8: 0.1123616622 | JM8: 0.106270259 | JN8: 0.1067020216 | JO8: 0.1450525242 | JP8: 0.1358137057 | JQ8: 0.1210784155 | JR8: 0.1096140133 | JS8: 0.1299445707 | JT8: 0.1278901934 | JU8: 0.1425183786 | JV8: 0.09238554463 | JW8: 0.1036532278 | JX8: 0.08334079649 | JY8: 0.103261293 | JZ8: 0.1167030112 | KA8: 0.1181519401 | KB8: 0.1047284917 | KC8: 0.1043676562 | KD8: 0.1245967504 | KE8: 0.09650845802 | KF8: 0.1446860187 | KG8: 0.1174827216 | KH8: 0.1167770834 | KI8: 0.1333043153 | KJ8: 0.09839603047 | KK8: 0.1036991894 | KL8: 0.09111243652 | KM8: 0.127311513 | KN8: 0.1115058778 | KO8: 0.1091480473 | KP8: 0.132020389 | KQ8: 0.1272284592 | KR8: 0.1193369597 | KS8: 0.1076345205 | KT8: 0.1474280358 | KU8: 0.1246666009 | KV8: 0.1148119356 | KW8: 0.1108587454 | KX8: 0.1452536444 | KY8: 0.1411051038 | KZ8: 0.1300958921 | LA8: 0.1034481179 | LB8: 0.09575001167 | LC8: 0.1052704705 | LD8: 0.1359449242 | LE8: 0.1304950674 | LF8: 0.136921237 | LG8: 0.08367229214 | LH8: 0.1242665147 | LI8: 0.1003370591 | LJ8: 0.1196395886 | LK8: 0.1344850493 | LL8: 0.1541963746 | LM8: 0.1001457478 | LN8: 0.1141967734 | LO8: 0.1065938808 | LP8: 0.122544554 | LQ8: 0.1334041536 | LR8: 0.1075366888 | LS8: 0.1296280069 | LT8: 0.0969480402 | LU8: 0.1160633819 | LV8: 0.1122132205 | LW8: 0.1428468051 | LX8: 0.1161938881 | LY8: 0.1321141584 | LZ8: 0.1104100778 | MA8: 0.09713960574 | MB8: 0.1198896688 | MC8: 0.1370965153 | MD8: 0.08800035973 | ME8: 0.1125375971 | MF8: 0.1246503462 | MG8: 0.1326620312 | MH8: 0.09003123092 | MI8: 0.1260173254 | MJ8: 0.1230083524 | MK8: 0.1309578332 | ML8: 0.1357190888 | MM8: 0.1028885839 | MN8: 0.1028885839 | MO8: 0.1028885839 | MP8: 0.1028885839 | MQ8: 0.1028885839 | MR8: 0.1028885839 | MS8: 0.1028885839
D9: ROE vs k | E9: % | F9: =INDEX(I9:MS9,$E$2) -> 0.02 | G9: 0.02 | I9: 0.02 | J9: 0.02 | K9: 0.02 | L9: 0.02 | M9: 0.02 | N9: 0.02 | O9: 0.02 | P9: 0.02 | Q9: 0.02 | R9: 0.02 | S9: 0.02 | T9: 0.02 | U9: 0.02 | V9: 0.02 | W9: 0.02 | X9: 0.02 | Y9: 0.02 | Z9: 0.02 | AA9: 0.02 | AB9: 0.02 | AC9: 0.02 | AD9: 0.02 | AE9: 0.02 | AF9: 0.02 | AG9: 0.02 | AH9: 0.02 | AI9: 0.02 | AJ9: 0.02 | AK9: 0.02 | AL9: 0.02 | AM9: 0.02 | AN9: 0.02 | AO9: 0.02 | AP9: 0.02 | AQ9: 0.02 | AR9: 0.02 | AS9: 0.02 | AT9: 0.02 | AU9: 0.02 | AV9: 0.02 | AW9: 0.02 | AX9: 0.02 | AY9: 0.02 | AZ9: 0.02 | BA9: 0.02 | BB9: 0.02 | BC9: 0.02 | BD9: 0.02 | BE9: 0.02 | BF9: 0.02 | BG9: 0.02 | BH9: 0.02 | BI9: 0.02 | BJ9: 0.02 | BK9: 0.02 | BL9: 0.02 | BM9: 0.02 | BN9: 0.02 | BO9: 0.02 | BP9: 0.02 | BQ9: 0.02 | BR9: 0.02 | BS9: 0.02 | BT9: 0.02 | BU9: 0.02 | BV9: 0.02 | BW9: 0.02 | BX9: 0.02 | BY9: 0.02 | BZ9: 0.02 | CA9: 0.02 | CB9: 0.02 | CC9: 0.02 | CD9: 0.02 | CE9: 0.02 | CF9: 0.02 | CG9: 0.02 | CH9: 0.02 | CI9: 0.02 | CJ9: 0.02 | CK9: 0.02 | CL9: 0.02 | CM9: 0.02 | CN9: 0.02 | CO9: 0.02 | CP9: 0.02 | CQ9: 0.02 | CR9: 0.02 | CS9: 0.02 | CT9: 0.02 | CU9: 0.02 | CV9: 0.02 | CW9: 0.02 | CX9: 0.02 | CY9: 0.02 | CZ9: 0.02 | DA9: 0.02 | DB9: 0.02 | DC9: 0.02 | DD9: 0.02 | DE9: 0.02 | DF9: 0.02 | DG9: 0.02 | DH9: 0.02 | DI9: 0.02 | DJ9: 0.02 | DK9: 0.02 | DL9: 0.02 | DM9: 0.02 | DN9: 0.02 | DO9: 0.02 | DP9: 0.02 | DQ9: 0.02 | DR9: 0.02 | DS9: 0.02 | DT9: 0.02 | DU9: 0.02 | DV9: 0.02 | DW9: 0.02 | DX9: 0.02 | DY9: 0.02 | DZ9: 0.02 | EA9: 0.02 | EB9: 0.02 | EC9: 0.02 | ED9: 0.02 | EE9: 0.02 | EF9: 0.02 | EG9: 0.02 | EH9: 0.02 | EI9: 0.02 | EJ9: 0.02 | EK9: 0.02 | EL9: 0.02 | EM9: 0.02 | EN9: 0.02 | EO9: 0.02 | EP9: 0.02 | EQ9: 0.02 | ER9: 0.02 | ES9: 0.02 | ET9: 0.02 | EU9: 0.02 | EV9: 0.02 | EW9: 0.02 | EX9: 0.02 | EY9: 0.02 | EZ9: 0.02 | FA9: 0.02 | FB9: 0.02 | FC9: 0.02 | FD9: 0.02 | FE9: 0.02 | FF9: 0.02 | FG9: 0.02 | FH9: 0.02 | FI9: 0.02 | FJ9: 0.02 | FK9: 0.02 | FL9: 0.02 | FM9: 0.02 | FN9: 0.02 | FO9: 0.02 | FP9: 0.02 | FQ9: 0.02 | FR9: 0.02 | FS9: 0.02 | FT9: 0.02 | FU9: 0.02 | FV9: 0.02 | FW9: 0.02 | FX9: 0.02 | FY9: 0.02 | FZ9: 0.02 | GA9: 0.02 | GB9: 0.02 | GC9: 0.02 | GD9: 0.02 | GE9: 0.02 | GF9: 0.02 | GG9: 0.02 | GH9: 0.02 | GI9: 0.02 | GJ9: 0.02 | GK9: 0.02 | GL9: 0.02 | GM9: 0.02 | GN9: 0.02 | GO9: 0.02 | GP9: 0.02 | GQ9: 0.02 | GR9: 0.02 | GS9: 0.02 | GT9: 0.02 | GU9: 0.02 | GV9: 0.02 | GW9: 0.02 | GX9: 0.02 | GY9: 0.02 | GZ9: 0.02 | HA9: 0.02 | HB9: 0.02 | HC9: 0.02 | HD9: 0.02 | HE9: 0.02 | HF9: 0.02 | HG9: 0.02 | HH9: 0.02 | HI9: 0.02 | HJ9: 0.02 | HK9: 0.02 | HL9: 0.02 | HM9: 0.02 | HN9: 0.02 | HO9: 0.02 | HP9: 0.02 | HQ9: 0.02 | HR9: 0.02 | HS9: 0.02 | HT9: 0.02 | HU9: 0.02 | HV9: 0.02 | HW9: 0.02 | HX9: 0.02 | HY9: 0.02 | HZ9: 0.02 | IA9: 0.02 | IB9: 0.02 | IC9: 0.02 | ID9: 0.02 | IE9: 0.02 | IF9: 0.02 | IG9: 0.02 | IH9: 0.02 | II9: 0.02 | IJ9: 0.02 | IK9: 0.02 | IL9: 0.02 | IM9: 0.02 | IN9: 0.02 | IO9: 0.02 | IP9: 0.02 | IQ9: 0.02 | IR9: 0.02 | IS9: 0.02 | IT9: 0.02 | IU9: 0.02 | IV9: 0.02 | IW9: 0.02 | IX9: 0.02 | IY9: 0.02 | IZ9: 0.02 | JA9: 0.02 | JB9: 0.02 | JC9: 0.02 | JD9: 0.02 | JE9: 0.02 | JF9: 0.02 | JG9: 0.02 | JH9: 0.02 | JI9: 0.02 | JJ9: 0.02 | JK9: 0.02 | JL9: 0.02 | JM9: 0.02 | JN9: 0.02 | JO9: 0.02 | JP9: 0.02 | JQ9: 0.02 | JR9: 0.02 | JS9: 0.02 | JT9: 0.02 | JU9: 0.02 | JV9: 0.02 | JW9: 0.02 | JX9: 0.02 | JY9: 0.02 | JZ9: 0.02 | KA9: 0.02 | KB9: 0.02 | KC9: 0.02 | KD9: 0.02 | KE9: 0.02 | KF9: 0.02 | KG9: 0.02 | KH9: 0.02 | KI9: 0.02 | KJ9: 0.02 | KK9: 0.02 | KL9: 0.02 | KM9: 0.02 | KN9: 0.02 | KO9: 0.02 | KP9: 0.02 | KQ9: 0.02 | KR9: 0.02 | KS9: 0.02 | KT9: 0.02 | KU9: 0.02 | KV9: 0.02 | KW9: 0.02 | KX9: 0.02 | KY9: 0.02 | KZ9: 0.02 | LA9: 0.02 | LB9: 0.02 | LC9: 0.02 | LD9: 0.02 | LE9: 0.02 | LF9: 0.02 | LG9: 0.02 | LH9: 0.02 | LI9: 0.02 | LJ9: 0.02 | LK9: 0.02 | LL9: 0.02 | LM9: 0.02 | LN9: 0.02 | LO9: 0.02 | LP9: 0.02 | LQ9: 0.02 | LR9: 0.02 | LS9: 0.02 | LT9: 0.02 | LU9: 0.02 | LV9: 0.02 | LW9: 0.02 | LX9: 0.02 | LY9: 0.02 | LZ9: 0.02 | MA9: 0.02 | MB9: 0.02 | MC9: 0.02 | MD9: 0.02 | ME9: 0.02 | MF9: 0.02 | MG9: 0.02 | MH9: 0.02 | MI9: 0.02 | MJ9: 0.02 | MK9: 0.02 | ML9: 0.02 | MM9: 0.02 | MN9: 0.02 | MO9: 0.02 | MP9: 0.02 | MQ9: 0.02 | MR9: 0.02 | MS9: 0.02
D10: k | E10: % | F10: =INDEX(I10:MS10,$E$2) -> 0.06 | I10: 0.06 | J10: 0.06 | K10: 0.06 | L10: 0.06 | M10: 0.06 | N10: 0.06 | O10: 0.06 | P10: 0.06 | Q10: 0.06 | R10: 0.06 | S10: 0.06 | T10: 0.06 | U10: 0.06 | V10: 0.06 | W10: 0.06 | X10: 0.06 | Y10: 0.06 | Z10: 0.06 | AA10: 0.06 | AB10: 0.06 | AC10: 0.06 | AD10: 0.06 | AE10: 0.06 | AF10: 0.06 | AG10: 0.06 | AH10: 0.06 | AI10: 0.06 | AJ10: 0.06 | AK10: 0.06 | AL10: 0.06 | AM10: 0.06 | AN10: 0.06 | AO10: 0.06 | AP10: 0.06 | AQ10: 0.06 | AR10: 0.06 | AS10: 0.06 | AT10: 0.06 | AU10: 0.06 | AV10: 0.06 | AW10: 0.06 | AX10: 0.06 | AY10: 0.06 | AZ10: 0.06 | BA10: 0.06 | BB10: 0.06 | BC10: 0.06 | BD10: 0.06 | BE10: 0.06 | BF10: 0.06 | BG10: 0.06 | BH10: 0.06 | BI10: 0.06 | BJ10: 0.06 | BK10: 0.06 | BL10: 0.06 | BM10: 0.06 | BN10: 0.06 | BO10: 0.06 | BP10: 0.06 | BQ10: 0.06 | BR10: 0.06 | BS10: 0.06 | BT10: 0.06 | BU10: 0.06 | BV10: 0.06 | BW10: 0.06 | BX10: 0.06 | BY10: 0.06 | BZ10: 0.06 | CA10: 0.06 | CB10: 0.06 | CC10: 0.06 | CD10: 0.06 | CE10: 0.06 | CF10: 0.06 | CG10: 0.06 | CH10: 0.06 | CI10: 0.06 | CJ10: 0.06 | CK10: 0.06 | CL10: 0.06 | CM10: 0.06 | CN10: 0.06 | CO10: 0.06 | CP10: 0.06 | CQ10: 0.06 | CR10: 0.06 | CS10: 0.06 | CT10: 0.06 | CU10: 0.06 | CV10: 0.06 | CW10: 0.06 | CX10: 0.06 | CY10: 0.06 | CZ10: 0.06 | DA10: 0.06 | DB10: 0.06 | DC10: 0.06 | DD10: 0.06 | DE10: 0.06 | DF10: 0.06 | DG10: 0.06 | DH10: 0.06 | DI10: 0.06 | DJ10: 0.06 | DK10: 0.06 | DL10: 0.06 | DM10: 0.06 | DN10: 0.06 | DO10: 0.06 | DP10: 0.06 | DQ10: 0.06 | DR10: 0.06 | DS10: 0.06 | DT10: 0.06 | DU10: 0.06 | DV10: 0.06 | DW10: 0.06 | DX10: 0.06 | DY10: 0.06 | DZ10: 0.06 | EA10: 0.06 | EB10: 0.06 | EC10: 0.06 | ED10: 0.06 | EE10: 0.06 | EF10: 0.06 | EG10: 0.06 | EH10: 0.06 | EI10: 0.06 | EJ10: 0.06 | EK10: 0.06 | EL10: 0.06 | EM10: 0.06 | EN10: 0.06 | EO10: 0.06 | EP10: 0.06 | EQ10: 0.06 | ER10: 0.06 | ES10: 0.06 | ET10: 0.06 | EU10: 0.06 | EV10: 0.06 | EW10: 0.06 | EX10: 0.06 | EY10: 0.06 | EZ10: 0.06 | FA10: 0.06 | FB10: 0.06 | FC10: 0.06 | FD10: 0.06 | FE10: 0.06 | FF10: 0.06 | FG10: 0.06 | FH10: 0.06 | FI10: 0.06 | FJ10: 0.06 | FK10: 0.06 | FL10: 0.06 | FM10: 0.06 | FN10: 0.06 | FO10: 0.06 | FP10: 0.06 | FQ10: 0.06 | FR10: 0.06 | FS10: 0.06 | FT10: 0.06 | FU10: 0.06 | FV10: 0.06 | FW10: 0.06 | FX10: 0.06 | FY10: 0.06 | FZ10: 0.06 | GA10: 0.06 | GB10: 0.06 | GC10: 0.06 | GD10: 0.06 | GE10: 0.06 | GF10: 0.06 | GG10: 0.06 | GH10: 0.06 | GI10: 0.06 | GJ10: 0.06 | GK10: 0.06 | GL10: 0.06 | GM10: 0.06 | GN10: 0.06 | GO10: 0.06 | GP10: 0.06 | GQ10: 0.06 | GR10: 0.06 | GS10: 0.06 | GT10: 0.06 | GU10: 0.06 | GV10: 0.06 | GW10: 0.06 | GX10: 0.06 | GY10: 0.06 | GZ10: 0.06 | HA10: 0.06 | HB10: 0.06 | HC10: 0.06 | HD10: 0.06 | HE10: 0.06 | HF10: 0.06 | HG10: 0.06 | HH10: 0.06 | HI10: 0.06 | HJ10: 0.06 | HK10: 0.06 | HL10: 0.06 | HM10: 0.06 | HN10: 0.06 | HO10: 0.06 | HP10: 0.06 | HQ10: 0.06 | HR10: 0.06 | HS10: 0.06 | HT10: 0.06 | HU10: 0.06 | HV10: 0.06 | HW10: 0.06 | HX10: 0.06 | HY10: 0.06 | HZ10: 0.06 | IA10: 0.06 | IB10: 0.06 | IC10: 0.06 | ID10: 0.06 | IE10: 0.06 | IF10: 0.06 | IG10: 0.06 | IH10: 0.06 | II10: 0.06 | IJ10: 0.06 | IK10: 0.06 | IL10: 0.06 | IM10: 0.06 | IN10: 0.06 | IO10: 0.06 | IP10: 0.06 | IQ10: 0.06 | IR10: 0.06 | IS10: 0.06 | IT10: 0.06 | IU10: 0.06 | IV10: 0.06 | IW10: 0.06 | IX10: 0.06 | IY10: 0.06 | IZ10: 0.06 | JA10: 0.06 | JB10: 0.06 | JC10: 0.06 | JD10: 0.06 | JE10: 0.06 | JF10: 0.06 | JG10: 0.06 | JH10: 0.06 | JI10: 0.06 | JJ10: 0.06 | JK10: 0.06 | JL10: 0.06 | JM10: 0.06 | JN10: 0.06 | JO10: 0.06 | JP10: 0.06 | JQ10: 0.06 | JR10: 0.06 | JS10: 0.06 | JT10: 0.06 | JU10: 0.06 | JV10: 0.06 | JW10: 0.06 | JX10: 0.06 | JY10: 0.06 | JZ10: 0.06 | KA10: 0.06 | KB10: 0.06 | KC10: 0.06 | KD10: 0.06 | KE10: 0.06 | KF10: 0.06 | KG10: 0.06 | KH10: 0.06 | KI10: 0.06 | KJ10: 0.06 | KK10: 0.06 | KL10: 0.06 | KM10: 0.06 | KN10: 0.06 | KO10: 0.06 | KP10: 0.06 | KQ10: 0.06 | KR10: 0.06 | KS10: 0.06 | KT10: 0.06 | KU10: 0.06 | KV10: 0.06 | KW10: 0.06 | KX10: 0.06 | KY10: 0.06 | KZ10: 0.06 | LA10: 0.06 | LB10: 0.06 | LC10: 0.06 | LD10: 0.06 | LE10: 0.06 | LF10: 0.06 | LG10: 0.06 | LH10: 0.06 | LI10: 0.06 | LJ10: 0.06 | LK10: 0.06 | LL10: 0.06 | LM10: 0.06 | LN10: 0.06 | LO10: 0.06 | LP10: 0.06 | LQ10: 0.06 | LR10: 0.06 | LS10: 0.06 | LT10: 0.06 | LU10: 0.06 | LV10: 0.06 | LW10: 0.06 | LX10: 0.06 | LY10: 0.06 | LZ10: 0.06 | MA10: 0.06 | MB10: 0.06 | MC10: 0.06 | MD10: 0.06 | ME10: 0.06 | MF10: 0.06 | MG10: 0.06 | MH10: 0.06 | MI10: 0.06 | MJ10: 0.06 | MK10: 0.06 | ML10: 0.06 | MM10: 0.06 | MN10: 0.06 | MO10: 0.06 | MP10: 0.06 | MQ10: 0.06 | MR10: 0.06 | MS10: 0.06
